{"text_format":"1","workbook":"xlsx","n_sheets":13,"sheets":["SolCotizacion","ResumenCotizacion","Cotizacion","Solicitud","csvSol","Categorias","Consolidado","CSV","Cuadro Totales","Listas","minimo","temp","tempListas"],"not_rendered":{"charts":0,"images":0,"macros":1,"external_links":1,"defined_names":33,"comments":0,"pivot_tables":1},"unopened":[],"bounds":{"document_bytes":16777216,"sheet_cells":100000,"rows_first":2000,"rows_last":500,"rows_between":2000,"halvings":0,"cell_chars":16384,"cell_head_chars":4096},"cells_cut":0,"cells_raw":0,"read":"whole","date_system":"1900"}

{"sheet":"SolCotizacion","index":0,"n_rows":39,"n_cols":16,"rows_kept":39,"cut":false,"hidden":false,"merged":[[0,1,1,15],[3,1,3,15],[5,1,5,3],[5,4,5,8],[5,10,5,11],[5,12,5,15],[36,5,36,6],[34,2,34,6],[35,2,35,6],[32,1,32,15],[11,1,11,3],[11,4,11,8],[13,1,13,3],[13,4,13,8],[33,1,33,7],[31,1,31,15],[15,1,15,15],[19,1,19,15],[26,13,26,14],[27,13,27,14],[17,8,18,13],[21,2,21,15],[26,4,26,8],[27,4,27,8],[7,12,7,15],[9,1,9,3],[9,4,9,8],[9,10,9,11],[9,12,9,15],[7,1,7,3],[7,4,7,8],[7,10,7,11]]}
[null,"Solicitud de Cotización\nAcuerdo Marco Elementos para Emergencias"]
[]
[null,"Versión: 10","2018-05-15"]
[null,"Información de la Entidad Compradora"]
[]
[null,"Nombre de la Entidad",null,null,null,null,null,null,null,null,"NIT"]
[]
[null,"Dirección de la Entidad",null,null,null,null,null,null,null,null,"Correo de contacto"]
[]
[null,"Municipio",null,null,null,null,null,null,null,null,"Teléfono de contacto"]
[]
[null,"Nombre funcionario Comprador"]
[]
[]
[]
[null,"Solicitud de Cotización"]
[]
[null,null,null,null,null,null,null,null,"Recuerde que los datos de municipio y dirección de prestación del servicio, deben ser donde efectivamente se preste el servicio por parte del Proveedor."]
[]
[null,"Productos"]
[]
["*Libros, revistas, cartillas y/o catálogo Segmento 1.",{"$f":"E18","v":0},{"$f":"VLOOKUP(B22,Categorias!$A$1:$B$3,2,0)","v":{"$error":"#N/A"}}]
[]
[null,"Cantidad de filas:"]
[null,1]
[]
[null,"Item","Categoría","Código Catálogo","Descripción del Elemento de Emergencia",null,null,null,null,"Unidad","Zona","Departamento","Municipio","Dirección de entrega",null,"cantidad"]
[{"$f":"E28&L28","v":{"$error":"#N/A"}},1,null,null,{"$f":"VLOOKUP($D28,Consolidado!$B:$K,3,0)","v":{"$error":"#N/A"}},null,null,null,null,{"$f":"VLOOKUP($D28,Consolidado!$B:$K,6,0)","v":{"$error":"#N/A"}},{"$f":"VLOOKUP($D28,Consolidado!$B:$K,5,0)","v":{"$error":"#N/A"}}]
[null,"1. Si requiere agregue o elimine fila"]
[]
[]
[null,"Gravámenes adicionales*"]
[null,"Si los hay, indique los gravámenes adicionales a los que está sujeta la Orden de Compra. Son gravámenes adicionales por ejemplo; estampillas y demás impuestos territoriales. \nLos impuestos como ICA y retención en la fuente NO son gravámenes adicionales.\n"]
[null,"Gravámenes adicionales (estampillas)"]
[null,"No","Descripción",null,null,null,null,"Porcentaje"]
[null,1,"",null,null,null,null,"","","","","","","","",""]
[null,null,null,null,null,"Total porcentaje:",null,{"$f":"SUM(H36:H36)","v":0}]
[null,null,null,"Filas a agregar o eliminar Gravámenes:"]
[null,null,null,1]

{"sheet":"ResumenCotizacion","index":1,"n_rows":969719,"n_cols":23,"rows_kept":4500,"cut":true,"hidden":false,"merged":[[11,4,11,8],[7,1,7,3],[7,4,7,8],[7,12,7,15],[9,10,9,11],[9,12,9,15],[27,4,27,8],[27,13,27,14],[13,4,13,8],[19,1,19,15],[26,13,26,14],[26,4,26,8],[21,2,21,15],[15,1,15,15],[13,1,13,3],[9,1,9,3],[9,4,9,8],[7,10,7,11],[11,1,11,3],[0,1,1,15],[3,1,3,15],[5,1,5,3],[5,4,5,8],[5,10,5,11],[5,12,5,15],[35,2,35,6],[36,5,36,6],[31,17,31,20],[32,1,32,15],[33,1,33,7],[34,2,34,6],[31,1,31,15]],"bounds":{"rows_first":2000,"rows_last":500,"rows_between":2000,"halvings":0}}
[null,"Solicitud de Cotización\nAcuerdo Marco Elementos para Emergencias"]
[]
[null,{"$f":"SolCotizacion!B3","v":"Versión: 10"},{"$f":"SolCotizacion!C3","v":"2018-05-15"}]
[null,"Información de la Entidad Compradora"]
[]
[null,"Nombre de la Entidad",null,null,null,null,null,null,null,null,"NIT"]
[]
[null,"Dirección de la Entidad",null,null,null,null,null,null,null,null,"Correo de contacto"]
[]
[null,"Municipio",null,null,null,null,null,null,null,null,"Teléfono de contacto"]
[]
[null,"Nombre funcionario Comprador"]
[]
[]
[]
[null,"Solicitud de Cotización"]
[]
[]
[]
[null,"Productos"]
[]
["*Libros, revistas, cartillas y/o catálogo Segmento 1."]
[]
[null,"Cantidad de filas:"]
[null,1]
[]
[null,"Item","Categoría","Código Catálogo","Descripción del Elemento de Emergencia",null,null,null,null,"Unidad","Zona","Departamento","Municipio","Dirección de entrega",null,"cantidad","Precio Unitario","Precio Unitario + Gravamen","Subtotal","IVA","Precio Total"]
["Botiquín tipo A en maletínBogotá",1,null,null,null,null,null,null,null,null,null,null,null,null,null,null,null,null,null,{"$f":"ROUND(S28*IF(VLOOKUP(D28,Consolidado!B:M,12,0)=1,19%,0),2)","v":{"$error":"#N/A"}},{"$f":"S28+T28","v":{"$error":"#N/A"}}]
[null,"1. Si requiere agregue o elimine fila",null,null,null,null,null,null,null,null,null,null,null,null,null,null,null,null,null,"Valor Total",{"$f":"ROUND(SUM($U$28:$U$28),2)","v":{"$error":"#N/A"}}]
[]
[]
[null,"Gravámenes adicionales*",null,null,null,null,null,null,null,null,null,null,null,null,null,null,null,"Resumen"]
[null,"Si los hay, indique los gravámenes adicionales a los que está sujeta la Orden de Compra. Son gravámenes adicionales por ejemplo; estampillas y demás impuestos territoriales. \nLos impuestos como ICA y retención en la fuente NO son gravámenes adicionales.\n",null,null,null,null,null,null,null,null,null,null,null,null,null,null,null,"Categoría","SubTotal","IVA","Total"]
[null,"Gravámenes adicionales (estampillas)",null,null,null,null,null,null,null,null,null,null,null,null,null,null,null,"Categoria 1",{"$f":"SUMIF($C$28:$C$28,$R$34,$S$28:$S$28)","v":0},{"$f":"SUMIF($C$28:$C$28,$R$34,$T$28:$T$28)","v":0},{"$f":"S34+T34","v":0}]
[null,"No","Descripción",null,null,null,null,"Porcentaje",null,null,null,null,null,null,null,null,null,"Categoria 2",{"$f":"SUMIF($C$28:$C$28,$R$35,$S$28:$S$28)","v":0},{"$f":"SUMIF($C$28:$C$28,$R$35,$T$28:$T$28)","v":0},{"$f":"S35+T35","v":0}]
[null,1,"",null,null,null,null,"","","","","","","","","",null,"Categoria 3",{"$f":"SUMIF($C$28:$C$28,$R$36,$S$28:$S$28)","v":0},{"$f":"SUMIF($C$28:$C$28,$R$36,$T$28:$T$28)","v":0},{"$f":"S36+T36","v":0}]
[null,null,null,null,null,"Total porcentaje:",null,{"$f":"SUM(H36:H36)","v":0},null,null,null,null,null,null,null,null,null,"Totales",{"$f":"SUM(S34:S36)","v":0},{"$f":"SUM(T34:T36)","v":0},{"$f":"SUM(U34:U36)","v":0}]
[null,null,null,"Filas a agregar o eliminar Gravámenes:"]
[null,null,null,1]
[]
[]
[]
[]
[]
[]
[]
[]
[]
[]
[]
[]
[]
[]
[]
[]
[]
[]
[]
[]
[]
[]
[]
[]
[]
[]
[]
[]
[]
[]
[]
[]
[]
[]
[]
[]
[]
[]
[]
[]
[]
[]
[]
[]
[]
[]
[]
[]
[]
[]
[]
[]
[]
[]
[]
[]
[]
[]
[]
[]
[]
[]
[]
[]
[]
[]
[]
[]
[]
[]
[]
[]
[]
[]
[]
[]
[]
[]
[]
[]
[]
[]
[]
[]
[]
[]
[]
[]
[]
[]
[]
[]
[]
[]
[]
[]
[]
[]
[]
[]
[]
[]
[]
[]
[]
[]
[]
[]
[]
[]
[]
[]
[]
[]
[]
[]
[]
[]
[]
[]
[]
[]
[]
[]
[]
[]
[]
[]
[]
[]
[]
[]
[]
[]
[]
[]
[]
[]
[]
[]
[]
[]
[]
[]
[]
[]
[]
[]
[]
[]
[]
[]
[]
[]
[]
[]
[]
[]
[]
[]
[]
[]
[]
[]
[]
[]
[]
[]
[]
[]
[]
[]
[]
[]
[]
[]
[]
[]
[]
[]
[]
[]
[]
[]
[]
[]
[]
[]
[]
[]
[]
[]
[]
[]
[]
[]
[]
[]
[]
[]
[]
[]
[]
[]
[]
[]
[]
[]
[]
[]
[]
[]
[]
[]
[]
[]
[]
[]
[]
[]
[]
[]
[]
[]
[]
[]
[]
[]
[]
[]
[]
[]
[]
[]
[]
[]
[]
[]
[]
[]
[]
[]
[]
[]
[]
[]
[]
[]
[]
[]
[]
[]
[]
[]
[]
[]
[]
[]
[]
[]
[]
[]
[]
[]
[]
[]
[]
[]
[]
[]
[]
[]
[]
[]
[]
[]
[]
[]
[]
[]
[]
[]
[]
[]
[]
[]
[]
[]
[]
[]
[]
[]
[]
[]
[]
[]
[]
[]
[]
[]
[]
[]
[]
[]
[]
[]
[]
[]
[]
[]
[]
[]
[]
[]
[]
[]
[]
[]
[]
[]
[]
[]
[]
[]
[]
[]
[]
[]
[]
[]
[]
[]
[]
[]
[]
[]
[]
[]
[]
[]
[]
[]
[]
[]
[]
[]
[]
[]
[]
[]
[]
[]
[]
[]
[]
[]
[]
[]
[]
[]
[]
[]
[]
[]
[]
[]
[]
[]
[]
[]
[]
[]
[]
[]
[]
[]
[]
[]
[]
[]
[]
[]
[]
[]
[]
[]
[]
[]
[]
[]
[]
[]
[]
[]
[]
[]
[]
[]
[]
[]
[]
[]
[]
[]
[]
[]
[]
[]
[]
[]
[]
[]
[]
[]
[]
[]
[]
[]
[]
[]
[]
[]
[]
[]
[]
[]
[]
[]
[]
[]
[]
[]
[]
[]
[]
[]
[]
[]
[]
[]
[]
[]
[]
[]
[]
[]
[]
[]
[]
[]
[]
[]
[]
[]
[]
[]
[]
[]
[]
[]
[]
[]
[]
[]
[]
[]
[]
[]
[]
[]
[]
[]
[]
[]
[]
[]
[]
[]
[]
[]
[]
[]
[]
[]
[]
[]
[]
[]
[]
[]
[]
[]
[]
[]
[]
[]
[]
[]
[]
[]
[]
[]
[]
[]
[]
[]
[]
[]
[]
[]
[]
[]
[]
[]
[]
[]
[]
[]
[]
[]
[]
[]
[]
[]
[]
[]
[]
[]
[]
[]
[]
[]
[]
[]
[]
[]
[]
[]
[]
[]
[]
[]
[]
[]
[]
[]
[]
[]
[]
[]
[]
[]
[]
[]
[]
[]
[]
[]
[]
[]
[]
[]
[]
[]
[]
[]
[]
[]
[]
[]
[]
[]
[]
[]
[]
[]
[]
[]
[]
[]
[]
[]
[]
[]
[]
[]
[]
[]
[]
[]
[]
[]
[]
[]
[]
[]
[]
[]
[]
[]
[]
[]
[]
[]
[]
[]
[]
[]
[]
[]
[]
[]
[]
[]
[]
[]
[]
[]
[]
[]
[]
[]
[]
[]
[]
[]
[]
[]
[]
[]
[]
[]
[]
[]
[]
[]
[]
[]
[]
[]
[]
[]
[]
[]
[]
[]
[]
[]
[]
[]
[]
[]
[]
[]
[]
[]
[]
[]
[]
[]
[]
[]
[]
[]
[]
[]
[]
[]
[]
[]
[]
[]
[]
[]
[]
[]
[]
[]
[]
[]
[]
[]
[]
[]
[]
[]
[]
[]
[]
[]
[]
[]
[]
[]
[]
[]
[]
[]
[]
[]
[]
[]
[]
[]
[]
[]
[]
[]
[]
[]
[]
[]
[]
[]
[]
[]
[]
[]
[]
[]
[]
[]
[]
[]
[]
[]
[]
[]
[]
[]
[]
[]
[]
[]
[]
[]
[]
[]
[]
[]
[]
[]
[]
[]
[]
[]
[]
[]
[]
[]
[]
[]
[]
[]
[]
[]
[]
[]
[]
[]
[]
[]
[]
[]
[]
[]
[]
[]
[]
[]
[]
[]
[]
[]
[]
[]
[]
[]
[]
[]
[]
[]
[]
[]
[]
[]
[]
[]
[]
[]
[]
[]
[]
[]
[]
[]
[]
[]
[]
[]
[]
[]
[]
[]
[]
[]
[]
[]
[]
[]
[]
[]
[]
[]
[]
[]
[]
[]
[]
[]
[]
[]
[]
[]
[]
[]
[]
[]
[]
[]
[]
[]
[]
[]
[]
[]
[]
[]
[]
[]
[]
[]
[]
[]
[]
[]
[]
[]
[]
[]
[]
[]
[]
[]
[]
[]
[]
[]
[]
[]
[]
[]
[]
[]
[]
[]
[]
[]
[]
[]
[]
[]
[]
[]
[]
[]
[]
[]
[]
[]
[]
[]
[]
[]
[]
[]
[]
[]
[]
[]
[]
[]
[]
[]
[]
[]
[]
[]
[]
[]
[]
[]
[]
[]
[]
[]
[]
[]
[]
[]
[]
[]
[]
[]
[]
[]
[]
[]
[]
[]
[]
[]
[]
[]
[]
[]
[]
[]
[]
[]
[]
[]
[]
[]
[]
[]
[]
[]
[]
[]
[]
[]
[]
[]
[]
[]
[]
[]
[]
[]
[]
[]
[]
[]
[]
[]
[]
[]
[]
[]
[]
[]
[]
[]
[]
[]
[]
[]
[]
[]
[]
[]
[]
[]
[]
[]
[]
[]
[]
[]
[]
[]
[]
[]
[]
[]
[]
[]
[]
[]
[]
[]
[]
[]
[]
[]
[]
[]
[]
[]
[]
[]
[]
[]
[]
[]
[]
[]
[]
[]
[]
[]
[]
[]
[]
[]
[]
[]
[]
[]
[]
[]
[]
[]
[]
[]
[]
[]
[]
[]
[]
[]
[]
[]
[]
[]
[]
[]
[]
[]
[]
[]
[]
[]
[]
[]
[]
[]
[]
[]
[]
[]
[]
[]
[]
[]
[]
[]
[]
[]
[]
[]
[]
[]
[]
[]
[]
[]
[]
[]
[]
[]
[]
[]
[]
[]
[]
[]
[]
[]
[]
[]
[]
[]
[]
[]
[]
[]
[]
[]
[]
[]
[]
[]
[]
[]
[]
[]
[]
[]
[]
[]
[]
[]
[]
[]
[]
[]
[]
[]
[]
[]
[]
[]
[]
[]
[]
[]
[]
[]
[]
[]
[]
[]
[]
[]
[]
[]
[]
[]
[]
[]
[]
[]
[]
[]
[]
[]
[]
[]
[]
[]
[]
[]
[]
[]
[]
[]
[]
[]
[]
[]
[]
[]
[]
[]
[]
[]
[]
[]
[]
[]
[]
[]
[]
[]
[]
[]
[]
[]
[]
[]
[]
[]
[]
[]
[]
[]
[]
[]
[]
[]
[]
[]
[]
[]
[]
[]
[]
[]
[]
[]
[]
[]
[]
[]
[]
[]
[]
[]
[]
[]
[]
[]
[]
[]
[]
[]
[]
[]
[]
[]
[]
[]
[]
[]
[]
[]
[]
[]
[]
[]
[]
[]
[]
[]
[]
[]
[]
[]
[]
[]
[]
[]
[]
[]
[]
[]
[]
[]
[]
[]
[]
[]
[]
[]
[]
[]
[]
[]
[]
[]
[]
[]
[]
[]
[]
[]
[]
[]
[]
[]
[]
[]
[]
[]
[]
[]
[]
[]
[]
[]
[]
[]
[]
[]
[]
[]
[]
[]
[]
[]
[]
[]
[]
[]
[]
[]
[]
[]
[]
[]
[]
[]
[]
[]
[]
[]
[]
[]
[]
[]
[]
[]
[]
[]
[]
[]
[]
[]
[]
[]
[]
[]
[]
[]
[]
[]
[]
[]
[]
[]
[]
[]
[]
[]
[]
[]
[]
[]
[]
[]
[]
[]
[]
[]
[]
[]
[]
[]
[]
[]
[]
[]
[]
[]
[]
[]
[]
[]
[]
[]
[]
[]
[]
[]
[]
[]
[]
[]
[]
[]
[]
[]
[]
[]
[]
[]
[]
[]
[]
[]
[]
[]
[]
[]
[]
[]
[]
[]
[]
[]
[]
[]
[]
[]
[]
[]
[]
[]
[]
[]
[]
[]
[]
[]
[]
[]
[]
[]
[]
[]
[]
[]
[]
[]
[]
[]
[]
[]
[]
[]
[]
[]
[]
[]
[]
[]
[]
[]
[]
[]
[]
[]
[]
[]
[]
[]
[]
[]
[]
[]
[]
[]
[]
[]
[]
[]
[]
[]
[]
[]
[]
[]
[]
[]
[]
[]
[]
[]
[]
[]
[]
[]
[]
[]
[]
[]
[]
[]
[]
[]
[]
[]
[]
[]
[]
[]
[]
[]
[]
[]
[]
[]
[]
[]
[]
[]
[]
[]
[]
[]
[]
[]
[]
[]
[]
[]
[]
[]
[]
[]
[]
[]
[]
[]
[]
[]
[]
[]
[]
[]
[]
[]
[]
[]
[]
[]
[]
[]
[]
[]
[]
[]
[]
[]
[]
[]
[]
[]
[]
[]
[]
[]
[]
[]
[]
[]
[]
[]
[]
[]
[]
[]
[]
[]
[]
[]
[]
[]
[]
[]
[]
[]
[]
[]
[]
[]
[]
[]
[]
[]
[]
[]
[]
[]
[]
[]
[]
[]
[]
[]
[]
[]
[]
[]
[]
[]
[]
[]
[]
[]
[]
[]
[]
[]
[]
[]
[]
[]
[]
[]
[]
[]
[]
[]
[]
[]
[]
[]
[]
[]
[]
[]
[]
[]
[]
[]
[]
[]
[]
[]
[]
[]
[]
[]
[]
[]
[]
[]
[]
[]
[]
[]
[]
[]
[]
[]
[]
[]
[]
[]
[]
[]
[]
[]
[]
[]
[]
[]
[]
[]
[]
[]
[]
[]
[]
[]
[]
[]
[]
[]
[]
[]
[]
[]
[]
[]
[]
[]
[]
[]
[]
[]
[]
[]
[]
[]
[]
[]
[]
[]
[]
[]
[]
[]
[]
[]
[]
[]
[]
[]
[]
[]
[]
[]
[]
[]
[]
[]
[]
[]
[]
[]
[]
[]
[]
[]
[]
[]
[]
[]
[]
[]
[]
[]
[]
[]
[]
[]
[]
[]
[]
[]
[]
[]
[]
[]
[]
[]
[]
[]
[]
[]
[]
[]
[]
[]
[]
[]
[]
[]
[]
[]
[]
[]
[]
[]
[]
[]
[]
[]
[]
[]
[]
[]
[]
[]
[]
[]
[]
[]
[]
[]
[]
[]
[]
[]
[]
[]
[]
[]
[]
[]
[]
[]
[]
[]
[]
[]
[]
[]
[]
[]
[]
[]
[]
[]
[]
[]
[]
[]
[]
[]
[]
[]
[]
[]
[]
[]
[]
[]
[]
[]
[]
[]
[]
[]
[]
[]
[]
[]
[]
[]
[]
[]
[]
[]
[]
[]
[]
[]
[]
[]
[]
[]
[]
[]
[]
[]
[]
[]
[]
[]
[]
[]
[]
[]
[]
[]
[]
[]
[]
[]
[]
[]
[]
[]
[]
[]
[]
[]
[]
[]
[]
[]
[]
[]
[]
[]
[]
[]
[]
[]
[]
[]
[]
[]
[]
[]
[]
[]
[]
[]
[]
[]
[]
[]
[]
[]
[]
[]
[]
[]
[]
[]
[]
[]
[]
[]
[]
[]
[]
[]
[]
[]
[]
[]
[]
[]
[]
[]
[]
[]
[]
[]
[]
[]
[]
[]
[]
[]
[]
[]
[]
[]
[]
[]
[]
[]
[]
[]
[]
[]
[]
[]
[]
[]
[]
[]
[]
[]
[]
[]
[]
[]
[]
[]
[]
[]
[]
[]
[]
[]
[]
[]
[]
[]
[]
[]
[]
[]
[]
[]
[]
[]
[]
[]
[]
[]
[]
[]
[]
[]
[]
[]
[]
[]
[]
[]
[]
[]
[]
[]
[]
[]
[]
[]
[]
[]
[]
[]
[]
[]
[]
[]
[]
[]
[]
[]
[]
[]
[]
[]
[]
[]
[]
[]
[]
[]
[]
[]
[]
[]
[]
[]
[]
[]
[]
[]
[]
[]
[]
[]
[]
[]
[]
[]
[]
[]
[]
[]
[]
[]
[]
[]
[]
[]
[]
[]
[]
[]
[]
[]
[]
[]
[]
[]
[]
[]
[]
[]
[]
[]
[]
[]
[]
[]
[]
[]
[]
[]
[]
[]
[]
[]
[]
[]
[]
[]
[]
[]
[]
[]
[]
[]
[]
[]
[]
[]
[]
[]
[]
[]
[]
[]
[]
[]
[]
[]
[]
[]
[]
[]
[]
[]
[]
[]
[]
[]
[]
[]
[]
[]
[]
[]
[]
[]
[]
[]
[]
[]
[]
[]
[]
[]
[]
[]
[]
[]
[]
[]
[]
[]
[]
[]
[]
[]
[]
[]
[]
[]
[]
[]
[]
[]
[]
[]
[]
[]
[]
[]
[]
[]
[]
[]
[]
[]
[]
[]
[]
[]
[]
[]
[]
[]
[]
[]
[]
[]
[]
[]
[]
[]
[]
[]
[]
[]
[]
[]
[]
[]
[]
[]
[]
[]
[]
[]
[]
[]
[]
[]
[]
[]
[]
[]
[]
[]
[]
[]
[]
[]
[]
[]
[]
[]
[]
[]
[]
[]
[]
[]
[]
[]
[]
[]
[]
[]
[]
[]
[]
[]
[]
[]
[]
[]
[]
[]
[]
[]
[]
[]
[]
[]
[]
[]
[]
[]
[]
[]
[]
[]
[]
[]
[]
[]
[]
[]
[]
[]
[]
[]
[]
[]
[]
[]
[]
[]
[]
[]
[]
[]
[]
[]
[]
[]
[]
[]
[]
[]
[]
[]
[]
[]
[]
[]
[]
[]
[]
[]
[]
[]
[]
[]
[]
[]
[]
[]
[]
[]
[]
[]
[]
[]
[]
[]
[]
[]
[]
[]
[]
[]
[]
[]
[]
[]
[]
[]
[]
[]
[]
[]
[]
[]
[]
[]
[]
[]
[]
[]
[]
[]
[]
[]
[]
[]
[]
[]
[]
[]
[]
[]
[]
[]
[]
[]
[]
[]
[]
[]
[]
[]
[]
[]
[]
[]
[]
[]
[]
[]
[]
[]
[]
[]
[]
[]
[]
[]
[]
[]
[]
[]
[]
[]
[]
[]
[]
[]
[]
[]
[]
[]
[]
[]
[]
[]
[]
[]
[]
[]
[]
[]
[]
[]
[]
[]
[]
[]
[]
[]
[]
[]
[]
[]
[]
[]
[]
[]
[]
[]
[]
[]
[]
[]
[]
[]
[]
[]
[]
[]
[]
[]
[]
[]
[]
[]
[]
[]
[]
[]
[]
[]
[]
[]
[]
[]
[]
[]
[]
[]
[]
[]
[]
[]
[]
[]
[]
[]
[]
[]
[]
[]
[]
[]
[]
[]
[]
[]
[]
[]
[]
[]
[]
[]
[]
[]
[]
[]
[]
[]
[]
[]
[]
[]
[]
[]
[]
[]
[]
[]
[]
[]
[]
[]
[]
[]
[]
[]
[]
[]
[]
[]
[]
[]
[]
[]
[]
[]
[]
[]
[]
[]
[]
[]
[]
[]
[]
[]
[]
[]
[]
[]
[]
[]
[]
[]
[]
[]
[]
[]
[]
[]
[]
[]
[]
[]
[]
[]
[]
[]
[]
[]
[]
[]
[]
[]
[]
[]
[]
[]
[]
[]
[]
[]
[]
[]
[]
[]
[]
[]
[]
[]
[]
[]
[]
[]
[]
[]
[]
[]
[]
[]
[]
[]
[]
[]
[]
[]
[]
[]
[]
[]
[]
[]
[]
[]
[]
[]
[]
[]
[]
[]
[]
[]
[]
[]
[]
[]
[]
[]
[]
[]
[]
[]
[]
[]
[]
[]
[]
[]
[]
[]
[]
[]
[]
[]
[]
[]
[]
[]
[]
[]
[]
[]
[]
[]
[]
[]
[]
[]
[]
[]
[]
[]
[]
[]
[]
[]
[]
[]
[]
[]
[]
[]
[]
[]
[]
[]
[]
[]
[]
[]
[]
[]
[]
[]
[]
[]
[]
[]
[]
[]
[]
[]
[]
[]
[]
[]
[]
[]
[]
[]
[]
[]
[]
[]
[]
[]
[]
[]
[]
[]
[]
[]
[]
[]
[]
[]
[]
[]
[]
[]
[]
[]
[]
[]
[]
[]
[]
[]
[]
[]
[]
[]
[]
[]
[]
[]
[]
[]
[]
[]
[]
[]
[]
[]
[]
[]
[]
[]
[]
[]
[]
[]
[]
[]
[]
[]
[]
[]
[]
[]
[]
[]
[]
[]
[]
[]
[]
[]
[]
[]
[]
[]
[]
[]
[]
[]
[]
[]
[]
[]
[]
[]
[]
[]
[]
[]
[]
[]
[]
[]
[]
[]
[]
[]
[]
[]
[]
[]
[]
[]
[]
[]
[]
[]
[]
[]
[]
[]
[]
[]
[]
[]
[]
[]
[]
[]
[]
[]
[]
[]
[]
[]
[]
[]
[]
[]
[]
[]
[]
[]
[]
[]
[]
[]
[]
[]
[]
[]
[]
[]
[]
[]
[]
[]
[]
[]
[]
[]
[]
[]
[]
[]
[]
[]
[]
[]
[]
[]
[]
[]
[]
[]
[]
[]
[]
[]
[]
[]
[]
[]
[]
[]
[]
[]
[]
[]
[]
[]
[]
[]
[]
[]
[]
[]
[]
[]
[]
[]
[]
[]
[]
[]
[]
[]
[]
[]
[]
[]
[]
[]
[]
[]
[]
[]
[]
[]
[]
[]
[]
[]
[]
[]
[]
[]
[]
[]
[]
[]
[]
[]
[]
[]
[]
[]
[]
[]
[]
[]
[]
[]
[]
[]
[]
[]
[]
[]
[]
[]
[]
[]
[]
[]
[]
[]
[]
[]
[]
[]
[]
[]
[]
[]
[]
[]
[]
[]
[]
[]
[]
[]
[]
[]
[]
[]
[]
[]
[]
[]
[]
[]
[]
[]
[]
[]
[]
[]
[]
[]
[]
[]
[]
[]
[]
[]
[]
[]
[]
[]
[]
[]
[]
[]
[]
[]
[]
[]
[]
[]
[]
[]
[]
[]
[]
[]
[]
[]
[]
[]
[]
[]
[]
[]
[]
[]
[]
[]
[]
[]
[]
[]
[]
[]
[]
[]
[]
[]
[]
[]
[]
[]
[]
[]
[]
[]
[]
[]
[]
[]
[]
[]
[]
[]
[]
[]
[]
[]
[]
[]
[]
[]
[]
[]
[]
[]
[]
[]
[]
[]
[]
[]
[]
[]
[]
[]
[]
[]
[]
[]
[]
[]
[]
[]
[]
[]
[]
[]
[]
[]
[]
[]
[]
[]
[]
[]
[]
[]
[]
[]
[]
[]
[]
[]
[]
[]
[]
[]
[]
[]
[]
[]
[]
[]
[]
[]
[]
[]
[]
[]
[]
[]
[]
[]
[]
[]
[]
[]
[]
[]
[]
[]
[]
[]
[]
[]
[]
[]
[]
[]
[]
[]
[]
[]
[]
[]
[]
[]
[]
[]
[]
[]
[]
[]
[]
[]
[]
[]
[]
[]
[]
[]
[]
[]
[]
[]
[]
[]
[]
[]
[]
[]
[]
[]
[]
[]
[]
[]
[]
[]
[]
[]
[]
[]
[]
[]
[]
[]
[]
[]
[]
[]
[]
[]
[]
[]
[]
[]
[]
[]
[]
[]
[]
[]
[]
[]
[]
[]
[]
[]
[]
[]
[]
[]
[]
[]
[]
[]
[]
[]
[]
[]
[]
[]
[]
[]
[]
[]
[]
[]
[]
[]
[]
[]
[]
[]
[]
[]
[]
[]
[]
[]
[]
[]
[]
[]
[]
[]
[]
[]
[]
[]
[]
[]
[]
[]
[]
[]
[]
[]
[]
[]
[]
[]
[]
[]
[]
[]
[]
[]
[]
[]
[]
[]
[]
[]
[]
[]
[]
[]
[]
[]
[]
[]
[]
[]
[]
[]
[]
[]
[]
[]
[]
[]
[]
[]
[]
[]
[]
[]
[]
[]
[]
[]
[]
[]
[]
[]
[]
[]
[]
[]
[]
[]
[]
[]
[]
[]
[]
[]
[]
[]
[]
[]
[]
[]
[]
[]
[]
[]
[]
[]
[]
[]
[]
[]
[]
[]
[]
[]
[]
[]
[]
[]
[]
[]
[]
[]
[]
[]
[]
[]
[]
[]
[]
[]
[]
[]
[]
[]
[]
[]
[]
[]
[]
[]
[]
[]
[]
[]
[]
[]
[]
[]
[]
[]
[]
[]
[]
[]
[]
[]
[]
[]
[]
[]
[]
[]
[]
[]
[]
[]
[]
[]
[]
[]
[]
[]
[]
[]
[]
[]
[]
[]
[]
[]
[]
[]
[]
[]
[]
[]
[]
[]
[]
[]
[]
[]
[]
[]
[]
[]
[]
[]
[]
[]
[]
[]
[]
[]
[]
[]
[]
[]
[]
[]
[]
[]
[]
[]
[]
[]
[]
[]
[]
[]
[]
[]
[]
[]
[]
[]
[]
[]
[]
[]
[]
[]
[]
[]
[]
[]
[]
[]
[]
[]
[]
[]
[]
[]
[]
[]
[]
[]
[]
[]
[]
[]
[]
[]
[]
[]
[]
[]
[]
[]
[]
[]
[]
[]
[]
[]
[]
[]
[]
[]
[]
[]
[]
[]
[]
[]
[]
[]
[]
[]
[]
[]
[]
[]
[]
[]
[]
[]
[]
[]
[]
[]
[]
[]
[]
[]
[]
[]
[]
[]
[]
[]
[]
[]
[]
[]
[]
[]
[]
[]
[]
[]
[]
[]
[]
[]
[]
[]
[]
[]
[]
[]
[]
[]
[]
[]
[]
[]
[]
[]
[]
[]
[]
[]
[]
[]
[]
[]
[]
[]
[]
[]
[]
[]
[]
[]
[]
[]
[]
[]
[]
[]
[]
[]
[]
[]
[]
[]
[]
[]
[]
[]
[]
[]
[]
[]
[]
[]
[]
[]
[]
[]
[]
[]
[]
[]
[]
[]
[]
[]
[]
[]
[]
[]
[]
[]
[]
[]
[]
[]
[]
[]
[]
[]
[]
[]
[]
[]
[]
[]
[]
[]
[]
[]
[]
[]
[]
[]
[]
[]
[]
[]
[]
[]
[]
[]
[]
[]
[]
[]
[]
[]
[]
[]
[]
[]
[]
[]
[]
[]
[]
[]
[]
[]
[]
[]
[]
[]
[]
[]
[]
[]
[]
[]
[]
[]
[]
[]
[]
[]
[]
[]
[]
[]
[]
[]
[]
[]
[]
[]
[]
[]
[]
[]
[]
[]
[]
[]
[]
[]
[]
[]
[]
[]
[]
[]
[]
[]
[]
[]
[]
[]
[]
[]
[]
[]
[]
[]
[]
[]
[]
[]
[]
[]
[]
[]
[]
[]
[]
[]
[]
[]
[]
[]
[]
[]
[]
[]
[]
[]
[]
[]
[]
[]
[]
[]
[]
[]
[]
[]
[]
[]
[]
[]
[]
[]
[]
[]
[]
[]
[]
[]
[]
[]
[]
[]
[]
[]
[]
[]
[]
[]
[]
[]
[]
[]
[]
[]
[]
[]
[]
[]
[]
[]
[]
[]
[]
[]
[]
[]
[]
[]
[]
[]
[]
[]
[]
[]
[]
[]
[]
[]
[]
[]
[]
[]
[]
[]
[]
[]
[]
[]
[]
[]
[]
[]
[]
[]
[]
[]
[]
[]
[]
[]
[]
[]
[]
[]
[]
[]
[]
[]
[]
[]
[]
[]
[]
[]
[]
[]
[]
[]
[]
[]
[]
[]
[]
[]
[]
[]
[]
[]
[]
[]
[]
[]
[]
[]
[]
[]
[]
[]
[]
[]
[]
[]
[]
[]
[]
[]
[]
[]
[]
[]
[]
[]
[]
[]
[]
[]
[]
[]
[]
[]
[]
[]
[]
[]
[]
[]
[]
[]
[]
[]
[]
[]
[]
[]
[]
[]
[]
[]
[]
[]
[]
[]
[]
[]
[]
[]
[]
[]
[]
[]
[]
[]
[]
[]
[]
[]
[]
[]
[]
[]
[]
[]
[]
[]
[]
[]
[]
[]
[]
[]
[]
[]
[]
[]
[]
[]
[]
[]
[]
[]
[]
[]
[]
[]
[]
[]
[]
[]
[]
[]
[]
[]
[]
[]
[]
[]
[]
[]
[]
[]
[]
[]
[]
[]
[]
[]
[]
[]
[]
[]
[]
[]
[]
[]
[]
[]
[]
[]
[]
[]
[]
[]
[]
[]
[]
[]
[]
[]
[]
[]
[]
[]
[]
[]
[]
[]
[]
[]
[]
[]
[]
[]
[]
[]
[]
[]
[]
[]
[]
[]
[]
[]
[]
[]
[]
[]
[]
[]
[]
[]
[]
[]
[]
[]
[]
[]
[]
[]
[]
[]
[]
[]
[]
[]
[]
[]
[]
[]
[]
[]
[]
[]
[]
[]
[]
[]
[]
[]
[]
[]
[]
[]
[]
[]
[]
[]
[]
[]
[]
[]
[]
[]
[]
[]
[]
[]
[]
[]
[]
[]
[]
[]
[]
[]
[]
[]
[]
[]
[]
[]
[]
[]
[]
[]
[]
[]
[]
[]
[]
[]
[]
[]
[]
[]
[]
[]
[]
[]
[]
[]
[]
[]
[]
[]
[]
[]
[]
[]
[]
[]
[]
[]
[]
[]
[]
[]
[]
[]
[]
[]
[]
[]
[]
[]
[]
[]
[]
[]
[]
[]
[]
[]
[]
[]
[]
[]
[]
[]
[]
[]
[]
[]
[]
[]
[]
[]
[]
[]
[]
[]
[]
[]
[]
[]
[]
[]
[]
[]
[]
[]
[]
[]
[]
[]
[]
[]
[]
[]
[]
[]
[]
[]
[]
[]
[]
[]
[]
[]
[]
[]
[]
[]
[]
[]
[]
[]
[]
[]
[]
[]
[]
[]
[]
[]
[]
[]
[]
[]
[]
[]
[]
[]
[]
[]
[]
[]
[]
[]
[]
[]
[]
[]
[]
[]
[]
[]
[]
[]
[]
[]
[]
[]
[]
[]
[]
[]
[]
[]
[]
[]
[]
[]
[]
[]
[]
[]
[]
[]
[]
[]
[]
[]
[]
[]
[]
[]
[]
[]
[]
[]
[]
[]
[]
[]
[]
[]
[]
[]
[]
[]
[]
[]
[]
[]
[]
[]
[]
[]
[]
[]
[]
[]
[]
[]
[]
[]
[]
[]
[]
[]
[]
[]
[]
[]
[]
[]
[]
[]
[]
[]
[]
[]
[]
[]
[]
[]
[]
[]
[]
[]
[]
[]
[]
[]
[]
[]
[]
[]
[]
[]
[]
[]
[]
[]
[]
[]
[]
[]
[]
[]
[]
[]
[]
[]
[]
[]
[]
[]
[]
[]
[]
[]
[]
[]
[]
[]
[]
[]
[]
[]
[]
[]
[]
[]
[]
[]
[]
[]
[]
[]
[]
[]
[]
[]
[]
[]
[]
[]
[]
[]
[]
[]
[]
[]
[]
[]
[]
[]
[]
[]
[]
[]
[]
[]
[]
[]
[]
[]
[]
[]
[]
[]
[]
[]
[]
[]
[]
[]
[]
[]
[]
[]
[]
[]
[]
[]
[]
[]
[]
[]
[]
[]
[]
[]
[]
[]
[]
[]
[]
[]
[]
[]
[]
[]
[]
[]
[]
[]
[]
[]
[]
[]
[]
[]
[]
[]
[]
[]
[]
[]
[]
[]
[]
[]
[]
[]
[]
[]
[]
[]
[]
[]
[]
[]
[]
[]
[]
[]
[]
[]
[]
[]
[]
[]
[]
[]
[]
[]
[]
[]
[]
[]
[]
[]
[]
[]
[]
[]
[]
[]
[]
[]
[]
[]
[]
[]
[]
[]
[]
[]
[]
[]
[]
[]
[]
[]
[]
[]
[]
[]
[]
[]
[]
[]
[]
[]
[]
[]
[]
[]
[]
[]
[]
[]
[]
[]
[]
[]
[]
[]
[]
[]
[]
[]
[]
[]
[]
[]
[]
[]
[]
[]
[]
[]
[]
[]
[]
[]
[]
[]
[]
[]
[]
[]
[]
[]
[]
[]
[]
[]
[]
[]
[]
[]
[]
[]
[]
[]
[]
[]
[]
[]
[]
[]
[]
[]
[]
[]
[]
[]
[null,null,null,null,null,null,null,null,null,null,null,null,null,null,null,null,null,null,null,null,null,null,{"$f":"ROUND(SUM(#REF!),2)","v":{"$error":"#REF!"}}]

{"sheet":"Cotizacion","index":2,"n_rows":39,"n_cols":23,"rows_kept":39,"cut":false,"hidden":false,"merged":[[13,4,13,8],[11,1,11,3],[11,4,11,8],[13,1,13,3],[26,4,26,8],[7,1,7,3],[19,1,19,15],[24,13,24,15],[24,11,24,12],[15,1,15,15],[21,2,21,15],[7,10,7,11],[7,12,7,15],[9,10,9,11],[9,12,9,15],[9,1,9,3],[9,4,9,8],[7,4,7,8],[0,1,1,15],[3,1,3,15],[5,1,5,3],[5,4,5,8],[5,10,5,11],[5,12,5,15],[35,2,35,6],[36,5,36,6],[31,1,31,15],[27,13,27,14],[26,13,26,14],[32,1,32,15],[33,1,33,7],[34,2,34,6],[27,4,27,8]]}
[null,"Solicitud de Cotización\nAcuerdo Marco Elementos para Emergencias"]
[]
[null,{"$f":"SolCotizacion!B3","v":"Versión: 10"},{"$f":"SolCotizacion!C3","v":"2018-05-15"}]
[null,"Información de la Entidad Compradora"]
[]
[null,"Nombre de la Entidad",null,null,null,null,null,null,null,null,"NIT"]
[]
[null,"Dirección de la Entidad",null,null,null,null,null,null,null,null,"Correo de contacto"]
[]
[null,"Municipio",null,null,null,null,null,null,null,null,"Teléfono de contacto"]
[]
[null,"Nombre funcionario Comprador"]
[]
[]
[]
[null,"Solicitud de Cotización"]
[]
[]
[]
[null,"Productos"]
[]
["*Libros, revistas, cartillas y/o catálogo Segmento 1."]
[]
[null,"Cantidad de filas:"]
[null,1,null,null,null,null,null,null,null,null,null,"Proveedor"]
[]
[null,"Item","Categoría","Código Catálogo","Descripción del Elemento de Emergencia",null,null,null,null,"Unidad","Zona","Departamento","Municipio","Dirección de entrega",null,"cantidad","Precio Unitario","Precio Unitario + Gravamen","Descuento adicional","Precio con Descuento","Subtotal","IVA","Precio Total"]
["Botiquín tipo A en maletínBogotá",1,null,null,null,null,null,null,null,null,null,null,null,null,null,null,null,null,null,null,null,{"$f":"ROUND(U28*IF(VLOOKUP(D28,Consolidado!B:M,12,0)=1,19%,0),2)","v":{"$error":"#N/A"}},{"$f":"U28+V28","v":{"$error":"#N/A"}}]
[null,"1. Si requiere agregue o elimine fila",null,null,null,null,null,null,null,null,null,null,null,null,null,null,null,null,null,null,null,"Valor Total",{"$f":"ROUND(SUM($W$28:$W$28),2)","v":{"$error":"#N/A"}}]
[]
[]
[null,"Gravámenes adicionales*"]
[null,"Si los hay, indique los gravámenes adicionales a los que está sujeta la Orden de Compra. Son gravámenes adicionales por ejemplo; estampillas y demás impuestos territoriales. \nLos impuestos como ICA y retención en la fuente NO son gravámenes adicionales.\n"]
[null,"Gravámenes adicionales (estampillas)"]
[null,"No","Descripción",null,null,null,null,"Porcentaje"]
[null,1,"",null,null,null,null,"","","","","","","","",""]
[null,null,null,null,null,"Total porcentaje:",null,{"$f":"SUM(H36:H36)","v":0}]
[null,null,null,"Filas a agregar o eliminar Gravámenes:"]
[null,null,null,1]

{"sheet":"Solicitud","index":3,"n_rows":982421,"n_cols":25,"rows_kept":4500,"cut":true,"hidden":false,"merged":[[21,13,21,15],[22,13,22,15],[26,4,26,8],[26,13,26,14],[27,4,27,8],[27,13,27,14],[0,1,1,15],[3,1,3,15],[5,1,5,3],[5,4,5,8],[5,10,5,11],[5,12,5,15],[19,1,19,15],[23,13,23,15],[24,13,24,15],[7,1,7,3],[7,4,7,8],[7,10,7,11],[7,12,7,15],[9,1,9,3],[9,4,9,8],[9,10,9,11],[9,12,9,15],[11,1,11,3],[11,4,11,8],[13,1,13,3],[13,4,13,8],[15,1,15,15],[35,2,35,6],[36,5,36,6],[31,19,31,22],[31,1,31,15],[32,1,32,15],[33,1,33,7],[34,2,34,6]],"bounds":{"rows_first":2000,"rows_last":500,"rows_between":2000,"halvings":0}}
[null,"Solicitud de Cotización\nAcuerdo Marco Elementos para Emergencias"]
[]
[null,{"$f":"SolCotizacion!B3","v":"Versión: 10"},{"$f":"SolCotizacion!C3","v":"2018-05-15"}]
[null,"Información de la Entidad Compradora"]
[null,null,null,null,"\"\"\"\"\"\"\"\"\"\"\"\"\"\"\"\"\"\"\"\"\"\"\"\"\"\"",null,null,null,"\"\"\"\"\"\"\"\"\"\"\"\"\"\"\"\"\"\"\"\"\"\"\"\"\"\""]
[null,"Nombre de la Entidad",null,null,null,null,null,null,null,null,"NIT"]
[null,null,null,null,"\"\"\"\"\"\"\"\"\"\"\"\"\"\"\"\"\"\"\"\"\"\"\"\"\"\"",null,null,null,"\"\"\"\"\"\"\"\"\"\"\"\"\"\"\"\"\"\"\"\"\"\"\"\"\"\""]
[null,"Dirección de la Entidad",null,null,null,null,null,null,null,null,"Correo de contacto"]
[null,null,null,null,"\"\"\"\"\"\"\"\"\"\"\"\"\"\"\"\"\"\"\"\"\"\"\"\"\"\"",null,null,null,"\"\"\"\"\"\"\"\"\"\"\"\"\"\"\"\"\"\"\"\"\"\"\"\"\"\""]
[null,"Municipio",null,null,null,null,null,null,null,null,"Teléfono de contacto"]
[null,null,null,null,"\"\"\"\"\"\"\"\"\"\"\"\"\"\"\"\"\"\"\"\"\"\"\"\"\"\"",null,null,null,"\"\"\"\"\"\"\"\"\"\"\"\"\"\"\"\"\"\"\"\"\"\"\"\"\"\""]
[null,"Nombre funcionario Comprador"]
[null,null,null,null,"\"\"\"\"\"\"\"\"\"\"\"\"\"\"\"\"\"\"\"\"\"\"\"\"\"\"",null,null,null,"\"\"\"\"\"\"\"\"\"\"\"\"\"\"\"\"\"\"\"\"\"\"\"\"\"\""]
[null,null,null,null,"\"\"\"\"\"\"\"\"\"\"\"\"\"\"\"\"\"\"\"\"\"\"\"\"\"\""]
[null,null,null,null,"\"\"\"\"\"\"\"\"\"\"\"\"\"\"\"\"\"\"\"\"\"\"\"\"\"\"",null,null,null,"\"\"\"\"\"\"\"\"\"\"\"\"\"\"\"\"\"\"\"\"\"\"\"\"\"\""]
[null,"Solicitud de Cotización"]
[null,null,null,null,"\"\"\"\"\"\"\"\"\"\"\"\"\"\"\"\"\"\"\"\"\"\"\"\"\"\"",null,null,null,"\"\"\"\"\"\"\"\"\"\"\"\"\"\"\"\"\"\"\"\"\"\"\"\"\"\""]
[null,null,null,null,null,null,null,null,"\"\"\"\"\"\"\"\"\"\"\"\"\"\"\"\"\"\"\"\"\"\"\"\"\"\""]
[null,null,null,null,"\"\"\"\"\"\"\"\"\"\"\"\"\"\"\"\"\"\"\"\"\"\"\"\"\"\"",null,null,null,"\"\"\"\"\"\"\"\"\"\"\"\"\"\"\"\"\"\"\"\"\"\"\"\"\"\""]
[null,"Productos"]
[null,null,null,null,"\"\"\"\"\"\"\"\"\"\"\"\"\"\"\"\"\"\"\"\"\"\"\"\"\"\"",null,null,null,"\"\"\"\"\"\"\"\"\"\"\"\"\"\"\"\"\"\"\"\"\"\"\"\"\"\""]
["*Libros, revistas, cartillas y/o catálogo Segmento 1.",null,null,null,null,null,null,null,null,null,null,null,"Categoria","Proveedores Seleccionados"]
[null,null,null,null,null,null,null,null,null,null,null,null,"Categoria 1"]
[null,"Cantidad de filas:",null,null,null,null,null,null,null,null,null,null,"Categoria 2"]
[null,1,null,null,null,null,null,null,null,null,null,null,"Categoria 3"]
[]
[null,"Item","Categoría","Código Catálogo","Descripción del Elemento de Emergencia",null,null,null,null,"Unidad","Zona","Departamento","Municipio","Dirección de entrega",null,"cantidad","Precio Unitario","Precio Unitario + Gravamen","Descuento adicional","Precio con Descuento","Subtotal","IVA","Precio Total","llavetvec","proveedor"]
["Botiquín tipo A en maletínBogotá",1,null,null,null,null,null,null,null,null,null,null,null,null,null,null,null,null,null,null,null,{"$f":"ROUND(U28*IF(VLOOKUP(D28,Consolidado!B:M,12,0)=1,19%,0),2)","v":{"$error":"#N/A"}},{"$f":"U28+V28","v":{"$error":"#N/A"}},{"$f":"VLOOKUP(D28,Consolidado!B:L,11,0)","v":{"$error":"#N/A"}},{"$f":"VLOOKUP(C28,$M$23:$P$25,2,0)","v":{"$error":"#N/A"}}]
[null,"1. Si requiere agregue o elimine fila",null,null,null,null,null,null,null,null,null,null,null,null,null,null,null,null,null,null,null,"Valor Total",{"$f":"ROUND(SUM($W$28:$W$28),2)","v":{"$error":"#N/A"}}]
[]
[]
[null,"Gravámenes adicionales*",null,null,null,null,null,null,null,null,null,null,null,null,null,null,null,null,null,"Resumen"]
[null,"Si los hay, indique los gravámenes adicionales a los que está sujeta la Orden de Compra. Son gravámenes adicionales por ejemplo; estampillas y demás impuestos territoriales. \nLos impuestos como ICA y retención en la fuente NO son gravámenes adicionales.\n",null,null,null,null,null,null,null,null,null,null,null,null,null,null,null,null,null,"Categoría","SubTotal","IVA","Total"]
[null,"Gravámenes adicionales (estampillas)",null,null,null,null,null,null,null,null,null,null,null,null,null,null,null,null,null,"Categoria 1",{"$f":"SUMIF($C$28:$C$28,$T$34,$U$28:$U$28)","v":0},{"$f":"SUMIF($C$28:$C$28,$T$34,$V$28:$V$28)","v":0},{"$f":"U34+V34","v":0}]
[null,"No","Descripción",null,null,null,null,"Porcentaje",null,null,null,null,null,null,null,null,null,null,null,"Categoria 2",{"$f":"SUMIF($C$28:$C$28,$T$35,$U$28:$U$28)","v":0},{"$f":"SUMIF($C$28:$C$28,$T$35,$V$28:$V$28)","v":0},{"$f":"U35+V35","v":0}]
[null,1,"",null,null,null,null,"","","","","","","","","",null,null,null,"Categoria 3",{"$f":"SUMIF($C$28:$C$28,$T$36,$U$28:$U$28)","v":0},{"$f":"SUMIF($C$28:$C$28,$T$36,$V$28:$V$28)","v":0},{"$f":"U36+V36","v":0}]
[null,null,null,null,null,"Total porcentaje:",null,{"$f":"SUM(H36:H36)","v":0},null,null,null,null,null,null,null,null,null,null,null,"Totales",{"$f":"SUM(U34:U36)","v":0},{"$f":"SUM(V34:V36)","v":0},{"$f":"SUM(W34:W36)","v":0}]
[null,null,null,"Filas a agregar o eliminar Gravámenes:"]
[null,null,null,1]
[]
[]
[]
[]
[]
[]
[]
[]
[]
[]
[]
[]
[]
[]
[]
[]
[]
[]
[]
[]
[]
[]
[]
[]
[]
[]
[]
[]
[]
[]
[]
[]
[]
[]
[]
[]
[]
[]
[]
[]
[]
[]
[]
[]
[]
[]
[]
[]
[]
[]
[]
[]
[]
[]
[]
[]
[]
[]
[]
[]
[]
[]
[]
[]
[]
[]
[]
[]
[]
[]
[]
[]
[]
[]
[]
[]
[]
[]
[]
[]
[]
[]
[]
[]
[]
[]
[]
[]
[]
[]
[]
[]
[]
[]
[]
[]
[]
[]
[]
[]
[]
[]
[]
[]
[]
[]
[]
[]
[]
[]
[]
[]
[]
[]
[]
[]
[]
[]
[]
[]
[]
[]
[]
[]
[]
[]
[]
[]
[]
[]
[]
[]
[]
[]
[]
[]
[]
[]
[]
[]
[]
[]
[]
[]
[]
[]
[]
[]
[]
[]
[]
[]
[]
[]
[]
[]
[]
[]
[]
[]
[]
[]
[]
[]
[]
[]
[]
[]
[]
[]
[]
[]
[]
[]
[]
[]
[]
[]
[]
[]
[]
[]
[]
[]
[]
[]
[]
[]
[]
[]
[]
[]
[]
[]
[]
[]
[]
[]
[]
[]
[]
[]
[]
[]
[]
[]
[]
[]
[]
[]
[]
[]
[]
[]
[]
[]
[]
[]
[]
[]
[]
[]
[]
[]
[]
[]
[]
[]
[]
[]
[]
[]
[]
[]
[]
[]
[]
[]
[]
[]
[]
[]
[]
[]
[]
[]
[]
[]
[]
[]
[]
[]
[]
[]
[]
[]
[]
[]
[]
[]
[]
[]
[]
[]
[]
[]
[]
[]
[]
[]
[]
[]
[]
[]
[]
[]
[]
[]
[]
[]
[]
[]
[]
[]
[]
[]
[]
[]
[]
[]
[]
[]
[]
[]
[]
[]
[]
[]
[]
[]
[]
[]
[]
[]
[]
[]
[]
[]
[]
[]
[]
[]
[]
[]
[]
[]
[]
[]
[]
[]
[]
[]
[]
[]
[]
[]
[]
[]
[]
[]
[]
[]
[]
[]
[]
[]
[]
[]
[]
[]
[]
[]
[]
[]
[]
[]
[]
[]
[]
[]
[]
[]
[]
[]
[]
[]
[]
[]
[]
[]
[]
[]
[]
[]
[]
[]
[]
[]
[]
[]
[]
[]
[]
[]
[]
[]
[]
[]
[]
[]
[]
[]
[]
[]
[]
[]
[]
[]
[]
[]
[]
[]
[]
[]
[]
[]
[]
[]
[]
[]
[]
[]
[]
[]
[]
[]
[]
[]
[]
[]
[]
[]
[]
[]
[]
[]
[]
[]
[]
[]
[]
[]
[]
[]
[]
[]
[]
[]
[]
[]
[]
[]
[]
[]
[]
[]
[]
[]
[]
[]
[]
[]
[]
[]
[]
[]
[]
[]
[]
[]
[]
[]
[]
[]
[]
[]
[]
[]
[]
[]
[]
[]
[]
[]
[]
[]
[]
[]
[]
[]
[]
[]
[]
[]
[]
[]
[]
[]
[]
[]
[]
[]
[]
[]
[]
[]
[]
[]
[]
[]
[]
[]
[]
[]
[]
[]
[]
[]
[]
[]
[]
[]
[]
[]
[]
[]
[]
[]
[]
[]
[]
[]
[]
[]
[]
[]
[]
[]
[]
[]
[]
[]
[]
[]
[]
[]
[]
[]
[]
[]
[]
[]
[]
[]
[]
[]
[]
[]
[]
[]
[]
[]
[]
[]
[]
[]
[]
[]
[]
[]
[]
[]
[]
[]
[]
[]
[]
[]
[]
[]
[]
[]
[]
[]
[]
[]
[]
[]
[]
[]
[]
[]
[]
[]
[]
[]
[]
[]
[]
[]
[]
[]
[]
[]
[]
[]
[]
[]
[]
[]
[]
[]
[]
[]
[]
[]
[]
[]
[]
[]
[]
[]
[]
[]
[]
[]
[]
[]
[]
[]
[]
[]
[]
[]
[]
[]
[]
[]
[]
[]
[]
[]
[]
[]
[]
[]
[]
[]
[]
[]
[]
[]
[]
[]
[]
[]
[]
[]
[]
[]
[]
[]
[]
[]
[]
[]
[]
[]
[]
[]
[]
[]
[]
[]
[]
[]
[]
[]
[]
[]
[]
[]
[]
[]
[]
[]
[]
[]
[]
[]
[]
[]
[]
[]
[]
[]
[]
[]
[]
[]
[]
[]
[]
[]
[]
[]
[]
[]
[]
[]
[]
[]
[]
[]
[]
[]
[]
[]
[]
[]
[]
[]
[]
[]
[]
[]
[]
[]
[]
[]
[]
[]
[]
[]
[]
[]
[]
[]
[]
[]
[]
[]
[]
[]
[]
[]
[]
[]
[]
[]
[]
[]
[]
[]
[]
[]
[]
[]
[]
[]
[]
[]
[]
[]
[]
[]
[]
[]
[]
[]
[]
[]
[]
[]
[]
[]
[]
[]
[]
[]
[]
[]
[]
[]
[]
[]
[]
[]
[]
[]
[]
[]
[]
[]
[]
[]
[]
[]
[]
[]
[]
[]
[]
[]
[]
[]
[]
[]
[]
[]
[]
[]
[]
[]
[]
[]
[]
[]
[]
[]
[]
[]
[]
[]
[]
[]
[]
[]
[]
[]
[]
[]
[]
[]
[]
[]
[]
[]
[]
[]
[]
[]
[]
[]
[]
[]
[]
[]
[]
[]
[]
[]
[]
[]
[]
[]
[]
[]
[]
[]
[]
[]
[]
[]
[]
[]
[]
[]
[]
[]
[]
[]
[]
[]
[]
[]
[]
[]
[]
[]
[]
[]
[]
[]
[]
[]
[]
[]
[]
[]
[]
[]
[]
[]
[]
[]
[]
[]
[]
[]
[]
[]
[]
[]
[]
[]
[]
[]
[]
[]
[]
[]
[]
[]
[]
[]
[]
[]
[]
[]
[]
[]
[]
[]
[]
[]
[]
[]
[]
[]
[]
[]
[]
[]
[]
[]
[]
[]
[]
[]
[]
[]
[]
[]
[]
[]
[]
[]
[]
[]
[]
[]
[]
[]
[]
[]
[]
[]
[]
[]
[]
[]
[]
[]
[]
[]
[]
[]
[]
[]
[]
[]
[]
[]
[]
[]
[]
[]
[]
[]
[]
[]
[]
[]
[]
[]
[]
[]
[]
[]
[]
[]
[]
[]
[]
[]
[]
[]
[]
[]
[]
[]
[]
[]
[]
[]
[]
[]
[]
[]
[]
[]
[]
[]
[]
[]
[]
[]
[]
[]
[]
[]
[]
[]
[]
[]
[]
[]
[]
[]
[]
[]
[]
[]
[]
[]
[]
[]
[]
[]
[]
[]
[]
[]
[]
[]
[]
[]
[]
[]
[]
[]
[]
[]
[]
[]
[]
[]
[]
[]
[]
[]
[]
[]
[]
[]
[]
[]
[]
[]
[]
[]
[]
[]
[]
[]
[]
[]
[]
[]
[]
[]
[]
[]
[]
[]
[]
[]
[]
[]
[]
[]
[]
[]
[]
[]
[]
[]
[]
[]
[]
[]
[]
[]
[]
[]
[]
[]
[]
[]
[]
[]
[]
[]
[]
[]
[]
[]
[]
[]
[]
[]
[]
[]
[]
[]
[]
[]
[]
[]
[]
[]
[]
[]
[]
[]
[]
[]
[]
[]
[]
[]
[]
[]
[]
[]
[]
[]
[]
[]
[]
[]
[]
[]
[]
[]
[]
[]
[]
[]
[]
[]
[]
[]
[]
[]
[]
[]
[]
[]
[]
[]
[]
[]
[]
[]
[]
[]
[]
[]
[]
[]
[]
[]
[]
[]
[]
[]
[]
[]
[]
[]
[]
[]
[]
[]
[]
[]
[]
[]
[]
[]
[]
[]
[]
[]
[]
[]
[]
[]
[]
[]
[]
[]
[]
[]
[]
[]
[]
[]
[]
[]
[]
[]
[]
[]
[]
[]
[]
[]
[]
[]
[]
[]
[]
[]
[]
[]
[]
[]
[]
[]
[]
[]
[]
[]
[]
[]
[]
[]
[]
[]
[]
[]
[]
[]
[]
[]
[]
[]
[]
[]
[]
[]
[]
[]
[]
[]
[]
[]
[]
[]
[]
[]
[]
[]
[]
[]
[]
[]
[]
[]
[]
[]
[]
[]
[]
[]
[]
[]
[]
[]
[]
[]
[]
[]
[]
[]
[]
[]
[]
[]
[]
[]
[]
[]
[]
[]
[]
[]
[]
[]
[]
[]
[]
[]
[]
[]
[]
[]
[]
[]
[]
[]
[]
[]
[]
[]
[]
[]
[]
[]
[]
[]
[]
[]
[]
[]
[]
[]
[]
[]
[]
[]
[]
[]
[]
[]
[]
[]
[]
[]
[]
[]
[]
[]
[]
[]
[]
[]
[]
[]
[]
[]
[]
[]
[]
[]
[]
[]
[]
[]
[]
[]
[]
[]
[]
[]
[]
[]
[]
[]
[]
[]
[]
[]
[]
[]
[]
[]
[]
[]
[]
[]
[]
[]
[]
[]
[]
[]
[]
[]
[]
[]
[]
[]
[]
[]
[]
[]
[]
[]
[]
[]
[]
[]
[]
[]
[]
[]
[]
[]
[]
[]
[]
[]
[]
[]
[]
[]
[]
[]
[]
[]
[]
[]
[]
[]
[]
[]
[]
[]
[]
[]
[]
[]
[]
[]
[]
[]
[]
[]
[]
[]
[]
[]
[]
[]
[]
[]
[]
[]
[]
[]
[]
[]
[]
[]
[]
[]
[]
[]
[]
[]
[]
[]
[]
[]
[]
[]
[]
[]
[]
[]
[]
[]
[]
[]
[]
[]
[]
[]
[]
[]
[]
[]
[]
[]
[]
[]
[]
[]
[]
[]
[]
[]
[]
[]
[]
[]
[]
[]
[]
[]
[]
[]
[]
[]
[]
[]
[]
[]
[]
[]
[]
[]
[]
[]
[]
[]
[]
[]
[]
[]
[]
[]
[]
[]
[]
[]
[]
[]
[]
[]
[]
[]
[]
[]
[]
[]
[]
[]
[]
[]
[]
[]
[]
[]
[]
[]
[]
[]
[]
[]
[]
[]
[]
[]
[]
[]
[]
[]
[]
[]
[]
[]
[]
[]
[]
[]
[]
[]
[]
[]
[]
[]
[]
[]
[]
[]
[]
[]
[]
[]
[]
[]
[]
[]
[]
[]
[]
[]
[]
[]
[]
[]
[]
[]
[]
[]
[]
[]
[]
[]
[]
[]
[]
[]
[]
[]
[]
[]
[]
[]
[]
[]
[]
[]
[]
[]
[]
[]
[]
[]
[]
[]
[]
[]
[]
[]
[]
[]
[]
[]
[]
[]
[]
[]
[]
[]
[]
[]
[]
[]
[]
[]
[]
[]
[]
[]
[]
[]
[]
[]
[]
[]
[]
[]
[]
[]
[]
[]
[]
[]
[]
[]
[]
[]
[]
[]
[]
[]
[]
[]
[]
[]
[]
[]
[]
[]
[]
[]
[]
[]
[]
[]
[]
[]
[]
[]
[]
[]
[]
[]
[]
[]
[]
[]
[]
[]
[]
[]
[]
[]
[]
[]
[]
[]
[]
[]
[]
[]
[]
[]
[]
[]
[]
[]
[]
[]
[]
[]
[]
[]
[]
[]
[]
[]
[]
[]
[]
[]
[]
[]
[]
[]
[]
[]
[]
[]
[]
[]
[]
[]
[]
[]
[]
[]
[]
[]
[]
[]
[]
[]
[]
[]
[]
[]
[]
[]
[]
[]
[]
[]
[]
[]
[]
[]
[]
[]
[]
[]
[]
[]
[]
[]
[]
[]
[]
[]
[]
[]
[]
[]
[]
[]
[]
[]
[]
[]
[]
[]
[]
[]
[]
[]
[]
[]
[]
[]
[]
[]
[]
[]
[]
[]
[]
[]
[]
[]
[]
[]
[]
[]
[]
[]
[]
[]
[]
[]
[]
[]
[]
[]
[]
[]
[]
[]
[]
[]
[]
[]
[]
[]
[]
[]
[]
[]
[]
[]
[]
[]
[]
[]
[]
[]
[]
[]
[]
[]
[]
[]
[]
[]
[]
[]
[]
[]
[]
[]
[]
[]
[]
[]
[]
[]
[]
[]
[]
[]
[]
[]
[]
[]
[]
[]
[]
[]
[]
[]
[]
[]
[]
[]
[]
[]
[]
[]
[]
[]
[]
[]
[]
[]
[]
[]
[]
[]
[]
[]
[]
[]
[]
[]
[]
[]
[]
[]
[]
[]
[]
[]
[]
[]
[]
[]
[]
[]
[]
[]
[]
[]
[]
[]
[]
[]
[]
[]
[]
[]
[]
[]
[]
[]
[]
[]
[]
[]
[]
[]
[]
[]
[]
[]
[]
[]
[]
[]
[]
[]
[]
[]
[]
[]
[]
[]
[]
[]
[]
[]
[]
[]
[]
[]
[]
[]
[]
[]
[]
[]
[]
[]
[]
[]
[]
[]
[]
[]
[]
[]
[]
[]
[]
[]
[]
[]
[]
[]
[]
[]
[]
[]
[]
[]
[]
[]
[]
[]
[]
[]
[]
[]
[]
[]
[]
[]
[]
[]
[]
[]
[]
[]
[]
[]
[]
[]
[]
[]
[]
[]
[]
[]
[]
[]
[]
[]
[]
[]
[]
[]
[]
[]
[]
[]
[]
[]
[]
[]
[]
[]
[]
[]
[]
[]
[]
[]
[]
[]
[]
[]
[]
[]
[]
[]
[]
[]
[]
[]
[]
[]
[]
[]
[]
[]
[]
[]
[]
[]
[]
[]
[]
[]
[]
[]
[]
[]
[]
[]
[]
[]
[]
[]
[]
[]
[]
[]
[]
[]
[]
[]
[]
[]
[]
[]
[]
[]
[]
[]
[]
[]
[]
[]
[]
[]
[]
[]
[]
[]
[]
[]
[]
[]
[]
[]
[]
[]
[]
[]
[]
[]
[]
[]
[]
[]
[]
[]
[]
[]
[]
[]
[]
[]
[]
[]
[]
[]
[]
[]
[]
[]
[]
[]
[]
[]
[]
[]
[]
[]
[]
[]
[]
[]
[]
[]
[]
[]
[]
[]
[]
[]
[]
[]
[]
[]
[]
[]
[]
[]
[]
[]
[]
[]
[]
[]
[]
[]
[]
[]
[]
[]
[]
[]
[]
[]
[]
[]
[]
[]
[]
[]
[]
[]
[]
[]
[]
[]
[]
[]
[]
[]
[]
[]
[]
[]
[]
[]
[]
[]
[]
[]
[]
[]
[]
[]
[]
[]
[]
[]
[]
[]
[]
[]
[]
[]
[]
[]
[]
[]
[]
[]
[]
[]
[]
[]
[]
[]
[]
[]
[]
[]
[]
[]
[]
[]
[]
[]
[]
[]
[]
[]
[]
[]
[]
[]
[]
[]
[]
[]
[]
[]
[]
[]
[]
[]
[]
[]
[]
[]
[]
[]
[]
[]
[]
[]
[]
[]
[]
[]
[]
[]
[]
[]
[]
[]
[]
[]
[]
[]
[]
[]
[]
[]
[]
[]
[]
[]
[]
[]
[]
[]
[]
[]
[]
[]
[]
[]
[]
[]
[]
[]
[]
[]
[]
[]
[]
[]
[]
[]
[]
[]
[]
[]
[]
[]
[]
[]
[]
[]
[]
[]
[]
[]
[]
[]
[]
[]
[]
[]
[]
[]
[]
[]
[]
[]
[]
[]
[]
[]
[]
[]
[]
[]
[]
[]
[]
[]
[]
[]
[]
[]
[]
[]
[]
[]
[]
[]
[]
[]
[]
[]
[]
[]
[]
[]
[]
[]
[]
[]
[]
[]
[]
[]
[]
[]
[]
[]
[]
[]
[]
[]
[]
[]
[]
[]
[]
[]
[]
[]
[]
[]
[]
[]
[]
[]
[]
[]
[]
[]
[]
[]
[]
[]
[]
[]
[]
[]
[]
[]
[]
[]
[]
[]
[]
[]
[]
[]
[]
[]
[]
[]
[]
[]
[]
[]
[]
[]
[]
[]
[]
[]
[]
[]
[]
[]
[]
[]
[]
[]
[]
[]
[]
[]
[]
[]
[]
[]
[]
[]
[]
[]
[]
[]
[]
[]
[]
[]
[]
[]
[]
[]
[]
[]
[]
[]
[]
[]
[]
[]
[]
[]
[]
[]
[]
[]
[]
[]
[]
[]
[]
[]
[]
[]
[]
[]
[]
[]
[]
[]
[]
[]
[]
[]
[]
[]
[]
[]
[]
[]
[]
[]
[]
[]
[]
[]
[]
[]
[]
[]
[]
[]
[]
[]
[]
[]
[]
[]
[]
[]
[]
[]
[]
[]
[]
[]
[]
[]
[]
[]
[]
[]
[]
[]
[]
[]
[]
[]
[]
[]
[]
[]
[]
[]
[]
[]
[]
[]
[]
[]
[]
[]
[]
[]
[]
[]
[]
[]
[]
[]
[]
[]
[]
[]
[]
[]
[]
[]
[]
[]
[]
[]
[]
[]
[]
[]
[]
[]
[]
[]
[]
[]
[]
[]
[]
[]
[]
[]
[]
[]
[]
[]
[]
[]
[]
[]
[]
[]
[]
[]
[]
[]
[]
[]
[]
[]
[]
[]
[]
[]
[]
[]
[]
[]
[]
[]
[]
[]
[]
[]
[]
[]
[]
[]
[]
[]
[]
[]
[]
[]
[]
[]
[]
[]
[]
[]
[]
[]
[]
[]
[]
[]
[]
[]
[]
[]
[]
[]
[]
[]
[]
[]
[]
[]
[]
[]
[]
[]
[]
[]
[]
[]
[]
[]
[]
[]
[]
[]
[]
[]
[]
[]
[]
[]
[]
[]
[]
[]
[]
[]
[]
[]
[]
[]
[]
[]
[]
[]
[]
[]
[]
[]
[]
[]
[]
[]
[]
[]
[]
[]
[]
[]
[]
[]
[]
[]
[]
[]
[]
[]
[]
[]
[]
[]
[]
[]
[]
[]
[]
[]
[]
[]
[]
[]
[]
[]
[]
[]
[]
[]
[]
[]
[]
[]
[]
[]
[]
[]
[]
[]
[]
[]
[]
[]
[]
[]
[]
[]
[]
[]
[]
[]
[]
[]
[]
[]
[]
[]
[]
[]
[]
[]
[]
[]
[]
[]
[]
[]
[]
[]
[]
[]
[]
[]
[]
[]
[]
[]
[]
[]
[]
[]
[]
[]
[]
[]
[]
[]
[]
[]
[]
[]
[]
[]
[]
[]
[]
[]
[]
[]
[]
[]
[]
[]
[]
[]
[]
[]
[]
[]
[]
[]
[]
[]
[]
[]
[]
[]
[]
[]
[]
[]
[]
[]
[]
[]
[]
[]
[]
[]
[]
[]
[]
[]
[]
[]
[]
[]
[]
[]
[]
[]
[]
[]
[]
[]
[]
[]
[]
[]
[]
[]
[]
[]
[]
[]
[]
[]
[]
[]
[]
[]
[]
[]
[]
[]
[]
[]
[]
[]
[]
[]
[]
[]
[]
[]
[]
[]
[]
[]
[]
[]
[]
[]
[]
[]
[]
[]
[]
[]
[]
[]
[]
[]
[]
[]
[]
[]
[]
[]
[]
[]
[]
[]
[]
[]
[]
[]
[]
[]
[]
[]
[]
[]
[]
[]
[]
[]
[]
[]
[]
[]
[]
[]
[]
[]
[]
[]
[]
[]
[]
[]
[]
[]
[]
[]
[]
[]
[]
[]
[]
[]
[]
[]
[]
[]
[]
[]
[]
[]
[]
[]
[]
[]
[]
[]
[]
[]
[]
[]
[]
[]
[]
[]
[]
[]
[]
[]
[]
[]
[]
[]
[]
[]
[]
[]
[]
[]
[]
[]
[]
[]
[]
[]
[]
[]
[]
[]
[]
[]
[]
[]
[]
[]
[]
[]
[]
[]
[]
[]
[]
[]
[]
[]
[]
[]
[]
[]
[]
[]
[]
[]
[]
[]
[]
[]
[]
[]
[]
[]
[]
[]
[]
[]
[]
[]
[]
[]
[]
[]
[]
[]
[]
[]
[]
[]
[]
[]
[]
[]
[]
[]
[]
[]
[]
[]
[]
[]
[]
[]
[]
[]
[]
[]
[]
[]
[]
[]
[]
[]
[]
[]
[]
[]
[]
[]
[]
[]
[]
[]
[]
[]
[]
[]
[]
[]
[]
[]
[]
[]
[]
[]
[]
[]
[]
[]
[]
[]
[]
[]
[]
[]
[]
[]
[]
[]
[]
[]
[]
[]
[]
[]
[]
[]
[]
[]
[]
[]
[]
[]
[]
[]
[]
[]
[]
[]
[]
[]
[]
[]
[]
[]
[]
[]
[]
[]
[]
[]
[]
[]
[]
[]
[]
[]
[]
[]
[]
[]
[]
[]
[]
[]
[]
[]
[]
[]
[]
[]
[]
[]
[]
[]
[]
[]
[]
[]
[]
[]
[]
[]
[]
[]
[]
[]
[]
[]
[]
[]
[]
[]
[]
[]
[]
[]
[]
[]
[]
[]
[]
[]
[]
[]
[]
[]
[]
[]
[]
[]
[]
[]
[]
[]
[]
[]
[]
[]
[]
[]
[]
[]
[]
[]
[]
[]
[]
[]
[]
[]
[]
[]
[]
[]
[]
[]
[]
[]
[]
[]
[]
[]
[]
[]
[]
[]
[]
[]
[]
[]
[]
[]
[]
[]
[]
[]
[]
[]
[]
[]
[]
[]
[]
[]
[]
[]
[]
[]
[]
[]
[]
[]
[]
[]
[]
[]
[]
[]
[]
[]
[]
[]
[]
[]
[]
[]
[]
[]
[]
[]
[]
[]
[]
[]
[]
[]
[]
[]
[]
[]
[]
[]
[]
[]
[]
[]
[]
[]
[]
[]
[]
[]
[]
[]
[]
[]
[]
[]
[]
[]
[]
[]
[]
[]
[]
[]
[]
[]
[]
[]
[]
[]
[]
[]
[]
[]
[]
[]
[]
[]
[]
[]
[]
[]
[]
[]
[]
[]
[]
[]
[]
[]
[]
[]
[]
[]
[]
[]
[]
[]
[]
[]
[]
[]
[]
[]
[]
[]
[]
[]
[]
[]
[]
[]
[]
[]
[]
[]
[]
[]
[]
[]
[]
[]
[]
[]
[]
[]
[]
[]
[]
[]
[]
[]
[]
[]
[]
[]
[]
[]
[]
[]
[]
[]
[]
[]
[]
[]
[]
[]
[]
[]
[]
[]
[]
[]
[]
[]
[]
[]
[]
[]
[]
[]
[]
[]
[]
[]
[]
[]
[]
[]
[]
[]
[]
[]
[]
[]
[]
[]
[]
[]
[]
[]
[]
[]
[]
[]
[]
[]
[]
[]
[]
[]
[]
[]
[]
[]
[]
[]
[]
[]
[]
[]
[]
[]
[]
[]
[]
[]
[]
[]
[]
[]
[]
[]
[]
[]
[]
[]
[]
[]
[]
[]
[]
[]
[]
[]
[]
[]
[]
[]
[]
[]
[]
[]
[]
[]
[]
[]
[]
[]
[]
[]
[]
[]
[]
[]
[]
[]
[]
[]
[]
[]
[]
[]
[]
[]
[]
[]
[]
[]
[]
[]
[]
[]
[]
[]
[]
[]
[]
[]
[]
[]
[]
[]
[]
[]
[]
[]
[]
[]
[]
[]
[]
[]
[]
[]
[]
[]
[]
[]
[]
[]
[]
[]
[]
[]
[]
[]
[]
[]
[]
[]
[]
[]
[]
[]
[]
[]
[]
[]
[]
[]
[]
[]
[]
[]
[]
[]
[]
[]
[]
[]
[]
[]
[]
[]
[]
[]
[]
[]
[]
[]
[]
[]
[]
[]
[]
[]
[]
[]
[]
[]
[]
[]
[]
[]
[]
[]
[]
[]
[]
[]
[]
[]
[]
[]
[]
[]
[]
[]
[]
[]
[]
[]
[]
[]
[]
[]
[]
[]
[]
[]
[]
[]
[]
[]
[]
[]
[]
[]
[]
[]
[]
[]
[]
[]
[]
[]
[]
[]
[]
[]
[]
[]
[]
[]
[]
[]
[]
[]
[]
[]
[]
[]
[]
[]
[]
[]
[]
[]
[]
[]
[]
[]
[]
[]
[]
[]
[]
[]
[]
[]
[]
[]
[]
[]
[]
[]
[]
[]
[]
[]
[]
[]
[]
[]
[]
[]
[]
[]
[]
[]
[]
[]
[]
[]
[]
[]
[]
[]
[]
[]
[]
[]
[]
[]
[]
[]
[]
[]
[]
[]
[]
[]
[]
[]
[]
[]
[]
[]
[]
[]
[]
[]
[]
[]
[]
[]
[]
[]
[]
[]
[]
[]
[]
[]
[]
[]
[]
[]
[]
[]
[]
[]
[]
[]
[]
[]
[]
[]
[]
[]
[]
[]
[]
[]
[]
[]
[]
[]
[]
[]
[]
[]
[]
[]
[]
[]
[]
[]
[]
[]
[]
[]
[]
[]
[]
[]
[]
[]
[]
[]
[]
[]
[]
[]
[]
[]
[]
[]
[]
[]
[]
[]
[]
[]
[]
[]
[]
[]
[]
[]
[]
[]
[]
[]
[]
[]
[]
[]
[]
[]
[]
[]
[]
[]
[]
[]
[]
[]
[]
[]
[]
[]
[]
[]
[]
[]
[]
[]
[]
[]
[]
[]
[]
[]
[]
[]
[]
[]
[]
[]
[]
[]
[]
[]
[]
[]
[]
[]
[]
[]
[]
[]
[]
[]
[]
[]
[]
[]
[]
[]
[]
[]
[]
[]
[]
[]
[]
[]
[]
[]
[]
[]
[]
[]
[]
[]
[]
[]
[]
[]
[]
[]
[]
[]
[]
[]
[]
[]
[]
[]
[]
[]
[]
[]
[]
[]
[]
[]
[]
[]
[]
[]
[]
[]
[]
[]
[]
[]
[]
[]
[]
[]
[]
[]
[]
[]
[]
[]
[]
[]
[]
[]
[]
[]
[]
[]
[]
[]
[]
[]
[]
[]
[]
[]
[]
[]
[]
[]
[]
[]
[]
[]
[]
[]
[]
[]
[]
[]
[]
[]
[]
[]
[]
[]
[]
[]
[]
[]
[]
[]
[]
[]
[]
[]
[]
[]
[]
[]
[]
[]
[]
[]
[]
[]
[]
[]
[]
[]
[]
[]
[]
[]
[]
[]
[]
[]
[]
[]
[]
[]
[]
[]
[]
[]
[]
[]
[]
[]
[]
[]
[]
[]
[]
[]
[]
[]
[]
[]
[]
[]
[]
[]
[]
[]
[]
[]
[]
[]
[]
[]
[]
[]
[]
[]
[]
[]
[]
[]
[]
[]
[]
[]
[]
[]
[]
[]
[]
[]
[]
[]
[]
[]
[]
[]
[]
[]
[]
[]
[]
[]
[]
[]
[]
[]
[]
[]
[]
[]
[]
[]
[]
[]
[]
[]
[]
[]
[]
[]
[]
[]
[]
[]
[]
[]
[]
[]
[]
[]
[]
[]
[]
[]
[]
[]
[]
[]
[]
[]
[]
[]
[]
[]
[]
[]
[]
[]
[]
[]
[]
[]
[]
[]
[]
[]
[]
[]
[]
[]
[]
[]
[]
[]
[]
[]
[]
[]
[]
[]
[]
[]
[]
[]
[]
[]
[]
[]
[]
[]
[]
[]
[]
[]
[]
[]
[]
[]
[]
[]
[]
[]
[]
[]
[]
[]
[]
[]
[]
[]
[]
[]
[]
[]
[]
[]
[]
[]
[]
[]
[]
[]
[]
[]
[]
[]
[]
[]
[]
[]
[]
[]
[]
[]
[]
[]
[]
[]
[]
[]
[]
[]
[]
[]
[]
[]
[]
[]
[]
[]
[]
[]
[]
[]
[]
[]
[]
[]
[]
[]
[]
[]
[]
[]
[]
[]
[]
[]
[]
[]
[]
[]
[]
[]
[]
[]
[]
[]
[]
[]
[]
[]
[]
[]
[]
[]
[]
[]
[]
[]
[]
[]
[]
[]
[]
[]
[]
[]
[]
[]
[]
[]
[]
[]
[]
[]
[]
[]
[]
[]
[]
[]
[]
[]
[]
[]
[]
[]
[]
[]
[]
[]
[]
[]
[]
[]
[]
[]
[]
[]
[]
[]
[]
[]
[]
[]
[]
[]
[]
[]
[]
[]
[]
[]
[]
[]
[]
[]
[]
[]
[]
[]
[]
[]
[]
[]
[]
[]
[]
[]
[]
[]
[]
[]
[]
[]
[]
[]
[]
[]
[]
[]
[]
[]
[]
[]
[]
[]
[]
[]
[]
[]
[]
[]
[]
[]
[]
[]
[]
[]
[]
[]
[]
[]
[]
[]
[]
[]
[]
[]
[]
[]
[]
[]
[]
[]
[]
[]
[]
[]
[]
[]
[]
[]
[]
[]
[]
[]
[]
[]
[]
[]
[]
[]
[]
[]
[]
[]
[]
[]
[]
[]
[]
[]
[]
[]
[]
[]
[]
[]
[]
[]
[]
[]
[]
[]
[]
[]
[]
[]
[]
[]
[]
[]
[]
[]
[]
[]
[]
[]
[]
[]
[]
[]
[]
[]
[]
[]
[]
[]
[]
[]
[]
[]
[]
[]
[]
[]
[]
[]
[]
[]
[]
[]
[]
[]
[]
[]
[]
[]
[]
[]
[]
[]
[]
[]
[]
[]
[]
[]
[]
[]
[]
[]
[]
[]
[]
[]
[]
[]
[]
[]
[]
[]
[]
[]
[]
[]
[]
[]
[]
[]
[]
[]
[]
[]
[]
[]
[]
[]
[]
[]
[null,null,null,null,null,null,null,null,null,null,null,null,null,null,null,null,null,null,null,null,null,null,null,null,{"$f":"ROUND(SUM(#REF!),2)","v":{"$error":"#REF!"}}]

{"sheet":"csvSol","index":4,"n_rows":10,"n_cols":46,"rows_kept":10,"cut":false,"hidden":true,"merged":[]}
["Solicitud","Registrar identificador","Â¿Enviar para aprobaciÃ³n?","LÃ­mite de recepciÃ³n de la sol.","JustificaciÃ³n","Nombre del departamento","Nota del comprador","Solicitado por (correo electrÃ³nico)","Solicitado por (inicio de sesiÃ³n)","Nombre de tarjeta de compras","Enviar a nombre","Enviar a id.","Enviar a nombre de","Enviar a calle 1","Enviar a calle 2","Enviar a ciudad","Enviar a estado","Enviar a cÃ³digo postal","Enviar a cÃ³digo de paÃ­s","Enviar a nombre de paÃ­s","Enviar a cÃ³digo de ubicaciÃ³n","N.I.T.","AgregaciÃ³n","Necesidad del bien o servicio*","Modalidad de selecciÃ³n","DestinaciÃ³n del gasto*","Origen de los    recursos*","Asociado al Acuerdo de Paz*","Supervisor de la Orden de Compra*","Correo electrÃ³nico del supervisor*","TelÃ©fono del      supervisor*","Vencimiento de la Orden de Compra*","Especificaciones adicionales de entrega","GravÃ¡menes      adicionales","IntegraciÃ³n con SIIF","CÃ³digo Unidad / Subunidad Ejecutora","Acepto tÃ©rminos y condiciones"]
["LÃ­nea de solicitudes","Registrar identificador","NÃºmero de lÃ­nea","NÃºmero de artÃ­culo del catÃ¡logo","Nombre de artÃ­culo del catÃ¡logo","Sin descripciÃ³n de artÃ­culo del catÃ¡logo","NÃºmero de parte del proveedor","Cantidad","Precio","LÃ­mite de recepciÃ³n de la sol.","Nombre del proveedor","NÃºmero del proveedor","CÃ³digo de sitio del proveedor","CÃ³digo de unidad de medida","Nombre de mercancÃ­a","Nombre del contrato","CÃ³digo de divisa","Etiquetas de activos","Nombre del Cuadro de cuentas","Nombre de la cuenta","CÃ³digo de cuentas","Segmento 1 de la cuenta","Segmento 2 de la cuenta","Segmento 3 de la cuenta","Segmento 4 de la cuenta","Segmento 5 de la cuenta","Segmento 6 de la cuenta","Segmento 7 de la cuenta","Segmento 8 de la cuenta","Segmento 9 de la cuenta","Segmento 10 de la cuenta","Segmento 11 de la cuenta","Segmento 12 de la cuenta","Segmento 13 de la cuenta","Segmento 14 de la cuenta","Segmento 15 de la cuenta","Segmento 16 de la cuenta","Segmento 17 de la cuenta","Segmento 18 de la cuenta","Segmento 19 de la cuenta","Segmento 20 de la cuenta","Importe de asignaciÃ³n de cuenta","Porcentaje de asignaciÃ³n de cuenta","CÃ³digo del plazo de pago","CÃ³digo del plazo de envÃ­o","Nombre de perÃ­odo de presupuesto"]
["AsignaciÃ³n de cuentas","Registrar identificador","NÃºmero de lÃ­nea","Monto","Porcentaje","Nombre de perÃ­odo de presupuesto","Nombre de la cuenta","CÃ³digo de cuentas","Segmento 1 de la cuenta","Segmento 2 de la cuenta","Segmento 3 de la cuenta","Segmento 4 de la cuenta","Segmento 5 de la cuenta","Segmento 6 de la cuenta","Segmento 7 de la cuenta","Segmento 8 de la cuenta","Segmento 9 de la cuenta","Segmento 10 de la cuenta","Segmento 11 de la cuenta","Segmento 12 de la cuenta","Segmento 13 de la cuenta","Segmento 14 de la cuenta","Segmento 15 de la cuenta","Segmento 16 de la cuenta","Segmento 17 de la cuenta","Segmento 18 de la cuenta","Segmento 19 de la cuenta","Segmento 20 de la cuenta"]
["Solicitud",1,"no",null,"\"\"","Digite nombre de la entidad",null,"crear.entidad@colombiacompra.gov.co","\"digite.usuario\"",null,"Direccion",4394,null,null,null,null,null,null,null,null,null,null,"Elementos para Emergencias","Necesidad","SelecciÃ³n Abreviada AMP","Funcionamiento","Recursos propios","Digite supervisor","Digite correo",1,"2020-01-01",null,"GravÃ¡menes",null,"Yes"]
["LÃ­nea de solicitudes",1,1,null,"\"C2_EMER_Z1_2 Botiquin tipo A en maletin\"",null,null,10,"\"275838,50\"",null,"Asesorias y productos en prevencion y seguridad S.A.S (Aspreseg)",null,null,"Und","Elementos para Emergencias",null,"COP"]
["LÃ­nea de solicitudes",1,2,null,"\"C1_EMER_Z1_3 Extintor polvo quimico seco clase ABC portatil de 20 libras\"",null,null,10,"\"119703,50\"",null,"Coltech S.A.S",null,null,"Und","Elementos para Emergencias",null,"COP"]
["LÃ­nea de solicitudes",1,3,null,"\"C3_EMER_Z1_4 Silbato\"",null,null,10,"\"7182,21\"",null,"Coltech S.A.S",null,null,"Und","Elementos para Emergencias",null,"COP"]
["LÃ­nea de solicitudes",1,4,null,"\"IVA Elementos de emergencia categorÃ­a 1\"",null,null,1,"\"227436,65\"",null,"Coltech S.A.S",null,null,"Und","Elementos para Emergencias",null,"COP"]
["LÃ­nea de solicitudes",1,5,null,"\"IVA Elementos de emergencia categorÃ­a 2\"",null,null,1,"\"0\"",null,"Asesorias y productos en prevencion y seguridad S.A.S (Aspreseg)",null,null,"Und","Elementos para Emergencias",null,"COP"]
["LÃ­nea de solicitudes",1,6,null,"\"IVA Elementos de emergencia categorÃ­a 3\"",null,null,1,"\"13646,2\"",null,"Coltech S.A.S",null,null,"Und","Elementos para emergencias",null,"COP"]

{"sheet":"Categorias","index":5,"n_rows":3,"n_cols":2,"rows_kept":3,"cut":false,"hidden":true,"merged":[]}
["Categoria 1","Extintores"]
["Categoria 2","Elementos para Primeros Auxilios"]
["Categoria 3","Elementos para Evacuación"]

{"sheet":"Consolidado","index":6,"n_rows":994,"n_cols":13,"rows_kept":994,"cut":false,"hidden":true,"merged":[]}
["llave","Cod_Cat","Consecutivo","Biomedico","Categoria","Zona","Unidad","Unidad_TVEC","Proveedor","Valor","Activo","LLAVE_TVEC","IVA"]
[{"$f":"I2&B2","v":"Productos de Seguridad S.A (Prodeseg)C1_EMER_Z1_1"},{"$f":"\"C\"&E2&\"_EMER_Z\"&F2&\"_\"&C2","v":"C1_EMER_Z1_1"},1,"Extintor polvo químico seco clase ABC portátil de 5 libras",1,1,"unidad","Und","Productos de Seguridad S.A (Prodeseg)",29318.955801299999,1,"C1_EMER_Z1_1 Extintor polvo quimico seco clase ABC portatil de 5 libras",1]
[{"$f":"I3&B3","v":"Productos de Seguridad S.A (Prodeseg)C1_EMER_Z1_2"},{"$f":"\"C\"&E3&\"_EMER_Z\"&F3&\"_\"&C3","v":"C1_EMER_Z1_2"},2,"Extintor polvo químico seco clase ABC portátil de 10 libras",1,1,"unidad","Und","Productos de Seguridad S.A (Prodeseg)",46779.239813166663,1,"C1_EMER_Z1_2 Extintor polvo quimico seco clase ABC portatil de 10 libras",1]
["Productos de Seguridad S.A (Prodeseg)C1_EMER_Z1_3","C1_EMER_Z1_3",3,"Extintor polvo químico seco clase ABC portátil de 20 libras",1,1,"unidad","Und","Productos de Seguridad S.A (Prodeseg)",71450.777562066665,1,"C1_EMER_Z1_3 Extintor polvo quimico seco clase ABC portatil de 20 libras",1]
["Productos de Seguridad S.A (Prodeseg)C1_EMER_Z1_4","C1_EMER_Z1_4",4,"Extintor polvo químico seco clase ABC portátil de 30 libras",1,1,"unidad","Und","Productos de Seguridad S.A (Prodeseg)",92965.342241033315,1,"C1_EMER_Z1_4 Extintor polvo quimico seco clase ABC portatil de 30 libras",1]
["Productos de Seguridad S.A (Prodeseg)C1_EMER_Z1_5","C1_EMER_Z1_5",5,"Extintor polvo químico seco clase ABC rodante de 50 libras",1,1,"unidad","Und","Productos de Seguridad S.A (Prodeseg)",687663.89350000001,1,"C1_EMER_Z1_5 Extintor polvo quimico seco clase ABC rodante de 50 libras",1]
["Productos de Seguridad S.A (Prodeseg)C1_EMER_Z1_6","C1_EMER_Z1_6",6,"Extintor polvo químico seco clase ABC rodante de 150 libras",1,1,"unidad","Und","Productos de Seguridad S.A (Prodeseg)",779932.59046666662,1,"C1_EMER_Z1_6 Extintor polvo quimico seco clase ABC rodante de 150 libras",1]
["Productos de Seguridad S.A (Prodeseg)C1_EMER_Z1_7","C1_EMER_Z1_7",7,"Extintor de agua de  2 ½  galones",1,1,"unidad","Und","Productos de Seguridad S.A (Prodeseg)",146386.96193363334,1,"C1_EMER_Z1_7 Extintor de agua de  2 y medio galones",1]
["Productos de Seguridad S.A (Prodeseg)C1_EMER_Z1_8","C1_EMER_Z1_8",8,"Extintor de agua de 14 galones tipo satelite",1,1,"unidad","Und","Productos de Seguridad S.A (Prodeseg)",1064395.9878666666,1,"C1_EMER_Z1_8 Extintor de agua de 14 galones tipo satelite",1]
["Productos de Seguridad S.A (Prodeseg)C1_EMER_Z1_9","C1_EMER_Z1_9",9,"Extintor de agente limpio HCFC de 2500 gramos",1,1,"unidad","Und","Productos de Seguridad S.A (Prodeseg)",167770.5827309,1,"C1_EMER_Z1_9 Extintor de agente limpio HCFC de 2500 gramos",1]
["Productos de Seguridad S.A (Prodeseg)C1_EMER_Z1_10","C1_EMER_Z1_10",10,"Extintor de agente limpio HCFC de 3700 gramos",1,1,"unidad","Und","Productos de Seguridad S.A (Prodeseg)",245520.80049999998,1,"C1_EMER_Z1_10 Extintor de agente limpio HCFC de 3700 gramos",1]
["Productos de Seguridad S.A (Prodeseg)C1_EMER_Z1_11","C1_EMER_Z1_11",11,"Extintor de agente limpio HCFC de 7000 gramos",1,1,"unidad","Und","Productos de Seguridad S.A (Prodeseg)",411050.02708999999,1,"C1_EMER_Z1_11 Extintor de agente limpio HCFC de 7000 gramos",1]
["Productos de Seguridad S.A (Prodeseg)C1_EMER_Z1_12","C1_EMER_Z1_12",12,"Extintor de agente limpio HCFC de 9000 gramos",1,1,"unidad","Und","Productos de Seguridad S.A (Prodeseg)",489701.19302880001,1,"C1_EMER_Z1_12 Extintor de agente limpio HCFC de 9000 gramos",1]
["Productos de Seguridad S.A (Prodeseg)C1_EMER_Z1_13","C1_EMER_Z1_13",13,"Extintor de CO2 de 5 libras",1,1,"unidad","Und","Productos de Seguridad S.A (Prodeseg)",182988.64377999998,1,"C1_EMER_Z1_13 Extintor de CO2 de 5 libras",1]
["Productos de Seguridad S.A (Prodeseg)C1_EMER_Z1_14","C1_EMER_Z1_14",14,"Extintor de CO2 de 10 libras",1,1,"unidad","Und","Productos de Seguridad S.A (Prodeseg)",279756.00149999995,1,"C1_EMER_Z1_14 Extintor de CO2 de 10 libras",1]
["Productos de Seguridad S.A (Prodeseg)C1_EMER_Z1_15","C1_EMER_Z1_15",15,"Extintor de CO2 de 15 libras",1,1,"unidad","Und","Productos de Seguridad S.A (Prodeseg)",367001.63724999997,1,"C1_EMER_Z1_15 Extintor de CO2 de 15 libras",1]
["Productos de Seguridad S.A (Prodeseg)C1_EMER_Z1_16","C1_EMER_Z1_16",16,"Extintor de CO2 de 20 libras",1,1,"unidad","Und","Productos de Seguridad S.A (Prodeseg)",464639.61859999999,1,"C1_EMER_Z1_16 Extintor de CO2 de 20 libras",1]
["Productos de Seguridad S.A (Prodeseg)C1_EMER_Z1_17","C1_EMER_Z1_17",17,"Extintor de CO2 de 50 libras tipo carretilla",1,1,"unidad","Und","Productos de Seguridad S.A (Prodeseg)",1625982.7025855002,1,"C1_EMER_Z1_17 Extintor de CO2 de 50 libras tipo carretilla",1]
["Productos de Seguridad S.A (Prodeseg)C1_EMER_Z1_18","C1_EMER_Z1_18",18,"Extintor de CO2 de 100 libras tipo carretilla",1,1,"unidad","Und","Productos de Seguridad S.A (Prodeseg)",2815754.4658067995,1,"C1_EMER_Z1_18 Extintor de CO2 de 100 libras tipo carretilla",1]
["Productos de Seguridad S.A (Prodeseg)C1_EMER_Z1_19","C1_EMER_Z1_19",19,"Extintor de AFFF de 6 Litros ",1,1,"unidad","Und","Productos de Seguridad S.A (Prodeseg)",139121.8969875667,1,"C1_EMER_Z1_19 Extintor de AFFF de 6 Litros ",1]
["Productos de Seguridad S.A (Prodeseg)C1_EMER_Z1_20","C1_EMER_Z1_20",20,"Extintor de AFFF de 9,5 Litros ",1,1,"unidad","Und","Productos de Seguridad S.A (Prodeseg)",174308.05823,1,"C1_EMER_Z1_20 Extintor de AFFF de 9,5 Litros ",1]
["Productos de Seguridad S.A (Prodeseg)C1_EMER_Z1_21","C1_EMER_Z1_21",21,"Extintor tipo k de 6 Litros ",1,1,"unidad","Und","Productos de Seguridad S.A (Prodeseg)",450734.13245089998,1,"C1_EMER_Z1_21 Extintor tipo k de 6 Litros ",1]
["Productos de Seguridad S.A (Prodeseg)C1_EMER_Z1_22","C1_EMER_Z1_22",22,"Extintortipo k de 2,5 galones ",1,1,"unidad","Und","Productos de Seguridad S.A (Prodeseg)",629601.86696000001,1,"C1_EMER_Z1_22 Extintortipo k de 2,5 galones ",1]
["Productos de Seguridad S.A (Prodeseg)C1_EMER_Z1_23","C1_EMER_Z1_23",23,"Aviso o señalización del Extintor",1,1,"unidad","Und","Productos de Seguridad S.A (Prodeseg)",2185.89,1,"C1_EMER_Z1_23 Aviso o senalizacion del Extintor",1]
["Productos de Seguridad S.A (Prodeseg)C1_EMER_Z1_24","C1_EMER_Z1_24",24,"Soporte de piso tipo pedestal para Extintor 10lb",1,1,"unidad","Und","Productos de Seguridad S.A (Prodeseg)",17669.2775,1,"C1_EMER_Z1_24 Soporte de piso tipo pedestal para Extintor 10lb",1]
["Productos de Seguridad S.A (Prodeseg)C1_EMER_Z1_25","C1_EMER_Z1_25",25,"Soporte de piso tipo pedestal para Extintor 20lb",1,1,"unidad","Und","Productos de Seguridad S.A (Prodeseg)",18867.3534,1,"C1_EMER_Z1_25 Soporte de piso tipo pedestal para Extintor 20lb",1]
["Productos de Seguridad S.A (Prodeseg)C1_EMER_Z1_26","C1_EMER_Z1_26",26,"Soporte de piso tipo pedestal para Extintor 30lb",1,1,"unidad","Und","Productos de Seguridad S.A (Prodeseg)",18867.3534,1,"C1_EMER_Z1_26 Soporte de piso tipo pedestal para Extintor 30lb",1]
["Productos de Seguridad S.A (Prodeseg)C1_EMER_Z1_27","C1_EMER_Z1_27",27,"Mantenimiento Preventivo",1,1,"unidad","Und","Productos de Seguridad S.A (Prodeseg)",31226.999999999996,1,"C1_EMER_Z1_27 Mantenimiento Preventivo",1]
["Productos de Seguridad S.A (Prodeseg)C1_EMER_Z1_28","C1_EMER_Z1_28",28,"Recarga de Extintor polvo químico seco clase ABC portátil de 5 libras",1,1,"unidad","Und","Productos de Seguridad S.A (Prodeseg)",22460.242205199997,1,"C1_EMER_Z1_28 Recarga de Extintor polvo quimico seco clase ABC portatil de 5 libras",1]
["Productos de Seguridad S.A (Prodeseg)C1_EMER_Z1_29","C1_EMER_Z1_29",29,"Recarga de Extintor polvo químico seco clase ABC portátil de 10 libras",1,1,"unidad","Und","Productos de Seguridad S.A (Prodeseg)",39558.975252666663,1,"C1_EMER_Z1_29 Recarga de Extintor polvo quimico seco clase ABC portatil de 10 libras",1]
["Productos de Seguridad S.A (Prodeseg)C1_EMER_Z1_30","C1_EMER_Z1_30",30,"Recarga de Extintor polvo químico seco clase ABC portátil de 20 libras",1,1,"unidad","Und","Productos de Seguridad S.A (Prodeseg)",64799.023981599996,1,"C1_EMER_Z1_30 Recarga de Extintor polvo quimico seco clase ABC portatil de 20 libras",1]
["Productos de Seguridad S.A (Prodeseg)C1_EMER_Z1_31","C1_EMER_Z1_31",31,"Recarga de Extintor polvo químico seco clase ABC portátil de 30 libras",1,1,"unidad","Und","Productos de Seguridad S.A (Prodeseg)",87312.617764133334,1,"C1_EMER_Z1_31 Recarga de Extintor polvo quimico seco clase ABC portatil de 30 libras",1]
["Productos de Seguridad S.A (Prodeseg)C1_EMER_Z1_32","C1_EMER_Z1_32",32,"Recarga de Extintor polvo químico seco clase ABC rodante de 50 libras",1,1,"unidad","Und","Productos de Seguridad S.A (Prodeseg)",488617.49359999999,1,"C1_EMER_Z1_32 Recarga de Extintor polvo quimico seco clase ABC rodante de 50 libras",1]
["Productos de Seguridad S.A (Prodeseg)C1_EMER_Z1_33","C1_EMER_Z1_33",33,"Recarga de Extintor polvo químico seco clase ABC rodante de 150 libras",1,1,"unidad","Und","Productos de Seguridad S.A (Prodeseg)",657006.76146666659,1,"C1_EMER_Z1_33 Recarga de Extintor polvo quimico seco clase ABC rodante de 150 libras",1]
["Productos de Seguridad S.A (Prodeseg)C1_EMER_Z1_34","C1_EMER_Z1_34",34,"Recarga de Extintor de agua de  2 ½  galones",1,1,"unidad","Und","Productos de Seguridad S.A (Prodeseg)",62266.599734533338,1,"C1_EMER_Z1_34 Recarga de Extintor de agua de  2 y medio galones",1]
["Productos de Seguridad S.A (Prodeseg)C1_EMER_Z1_35","C1_EMER_Z1_35",35,"Recarga de Extintor de agua de 14 galones tipo satelite",1,1,"unidad","Und","Productos de Seguridad S.A (Prodeseg)",575400.20146666653,1,"C1_EMER_Z1_35 Recarga de Extintor de agua de 14 galones tipo satelite",1]
["Productos de Seguridad S.A (Prodeseg)C1_EMER_Z1_36","C1_EMER_Z1_36",36,"Recarga de Extintor de agente limpio HCFC de 2500 gramos",1,1,"unidad","Und","Productos de Seguridad S.A (Prodeseg)",207292.26099999997,1,"C1_EMER_Z1_36 Recarga de Extintor de agente limpio HCFC de 2500 gramos",1]
["Productos de Seguridad S.A (Prodeseg)C1_EMER_Z1_37","C1_EMER_Z1_37",37,"Recarga de Extintor de agente limpio HCFC de 3700 gramos",1,1,"unidad","Und","Productos de Seguridad S.A (Prodeseg)",254132.76099999997,1,"C1_EMER_Z1_37 Recarga de Extintor de agente limpio HCFC de 3700 gramos",1]
["Productos de Seguridad S.A (Prodeseg)C1_EMER_Z1_38","C1_EMER_Z1_38",38,"Recarga de Extintor de agente limpio HCFC de 7000 gramos",1,1,"unidad","Und","Productos de Seguridad S.A (Prodeseg)",479738.29776576575,1,"C1_EMER_Z1_38 Recarga de Extintor de agente limpio HCFC de 7000 gramos",1]
["Productos de Seguridad S.A (Prodeseg)C1_EMER_Z1_39","C1_EMER_Z1_39",39,"Recarga de Extintor de agente limpio HCFC de 9000 gramos",1,1,"unidad","Und","Productos de Seguridad S.A (Prodeseg)",571344.06199999992,1,"C1_EMER_Z1_39 Recarga de Extintor de agente limpio HCFC de 9000 gramos",1]
["Productos de Seguridad S.A (Prodeseg)C1_EMER_Z1_40","C1_EMER_Z1_40",40,"Recarga de Extintor de CO2 de 5 libras",1,1,"unidad","Und","Productos de Seguridad S.A (Prodeseg)",95370.76721673178,1,"C1_EMER_Z1_40 Recarga de Extintor de CO2 de 5 libras",1]
["Productos de Seguridad S.A (Prodeseg)C1_EMER_Z1_41","C1_EMER_Z1_41",41,"Recarga de Extintor de CO2 de 10 libras",1,1,"unidad","Und","Productos de Seguridad S.A (Prodeseg)",167861.89305223178,1,"C1_EMER_Z1_41 Recarga de Extintor de CO2 de 10 libras",1]
["Productos de Seguridad S.A (Prodeseg)C1_EMER_Z1_42","C1_EMER_Z1_42",42,"Recarga de Extintor de CO2 de 15 libras",1,1,"unidad","Und","Productos de Seguridad S.A (Prodeseg)",178562.05880473179,1,"C1_EMER_Z1_42 Recarga de Extintor de CO2 de 15 libras",1]
["Productos de Seguridad S.A (Prodeseg)C1_EMER_Z1_43","C1_EMER_Z1_43",43,"Recarga de Extintor de CO2 de 20 libras",1,1,"unidad","Und","Productos de Seguridad S.A (Prodeseg)",221850.53845923324,1,"C1_EMER_Z1_43 Recarga de Extintor de CO2 de 20 libras",1]
["Productos de Seguridad S.A (Prodeseg)C1_EMER_Z1_44","C1_EMER_Z1_44",44,"Recarga de Extintor de CO2 de 50 libras tipo carretilla",1,1,"unidad","Und","Productos de Seguridad S.A (Prodeseg)",1136262.1929443297,1,"C1_EMER_Z1_44 Recarga de Extintor de CO2 de 50 libras tipo carretilla",1]
["Productos de Seguridad S.A (Prodeseg)C1_EMER_Z1_45","C1_EMER_Z1_45",45,"Recarga de Extintor de CO2 de 100 libras tipo carretilla",1,1,"unidad","Und","Productos de Seguridad S.A (Prodeseg)",1477325.6427265762,1,"C1_EMER_Z1_45 Recarga de Extintor de CO2 de 100 libras tipo carretilla",1]
["Productos de Seguridad S.A (Prodeseg)C1_EMER_Z1_46","C1_EMER_Z1_46",46,"Recarga de Extintor de AFFF de 6 Litros ",1,1,"unidad","Und","Productos de Seguridad S.A (Prodeseg)",54298.300666666662,1,"C1_EMER_Z1_46 Recarga de Extintor de AFFF de 6 Litros ",1]
["Productos de Seguridad S.A (Prodeseg)C1_EMER_Z1_47","C1_EMER_Z1_47",47,"Recarga de Extintor de AFFF de 9,5 Litros ",1,1,"unidad","Und","Productos de Seguridad S.A (Prodeseg)",77700.210999999996,1,"C1_EMER_Z1_47 Recarga de Extintor de AFFF de 9,5 Litros ",1]
["Productos de Seguridad S.A (Prodeseg)C1_EMER_Z1_48","C1_EMER_Z1_48",48,"Recarga de Extintor tipo k de 6 Litros ",1,1,"unidad","Und","Productos de Seguridad S.A (Prodeseg)",372740.34199999995,1,"C1_EMER_Z1_48 Recarga de Extintor tipo k de 6 Litros ",1]
["Productos de Seguridad S.A (Prodeseg)C1_EMER_Z1_49","C1_EMER_Z1_49",49,"Recarga de Extintortipo k de 2,5 galones ",1,1,"unidad","Und","Productos de Seguridad S.A (Prodeseg)",508994.15199999994,1,"C1_EMER_Z1_49 Recarga de Extintortipo k de 2,5 galones ",1]
["Productos de Seguridad S.A (Prodeseg)C1_EMER_Z1_50","C1_EMER_Z1_50",50,"Mantenimiento Correctivo - pasador de seguridad",1,1,"unidad","Und","Productos de Seguridad S.A (Prodeseg)",284.16569999999996,1,"C1_EMER_Z1_50 Mantenimiento Correctivo - pasador de seguridad",1]
["Productos de Seguridad S.A (Prodeseg)C1_EMER_Z1_51","C1_EMER_Z1_51",51,"Mantenimiento correctivo   sello plástico ",1,1,"unidad","Und","Productos de Seguridad S.A (Prodeseg)",531.8999,1,"C1_EMER_Z1_51 Mantenimiento correctivo   sello plastico ",1]
["Productos de Seguridad S.A (Prodeseg)C1_EMER_Z1_52","C1_EMER_Z1_52",52,"Mantenimiento correctivo - anillo de verificación",1,1,"unidad","Und","Productos de Seguridad S.A (Prodeseg)",61.413099999999993,1,"C1_EMER_Z1_52 Mantenimiento correctivo - anillo de verificacion",1]
["Productos de Seguridad S.A (Prodeseg)C1_EMER_Z1_53","C1_EMER_Z1_53",53,"Mantenimiento correctivo - calcomania ",1,1,"unidad","Und","Productos de Seguridad S.A (Prodeseg)",649.52159999999992,1,"C1_EMER_Z1_53 Mantenimiento correctivo - calcomania ",1]
["Productos de Seguridad S.A (Prodeseg)C1_EMER_Z1_54","C1_EMER_Z1_54",54,"Pintura extintor de 5 lbs amarillo",1,1,"unidad","Und","Productos de Seguridad S.A (Prodeseg)",13427.609999999999,1,"C1_EMER_Z1_54 Pintura extintor de 5 lbs amarillo",1]
["Productos de Seguridad S.A (Prodeseg)C1_EMER_Z1_55","C1_EMER_Z1_55",55,"pintura extintor de 10 lbs amarillo",1,1,"unidad","Und","Productos de Seguridad S.A (Prodeseg)",15613.499999999998,1,"C1_EMER_Z1_55 pintura extintor de 10 lbs amarillo",1]
["Productos de Seguridad S.A (Prodeseg)C1_EMER_Z1_56","C1_EMER_Z1_56",56,"pintura extintor de 20 lbs amarillo",1,1,"unidad","Und","Productos de Seguridad S.A (Prodeseg)",20089.37,1,"C1_EMER_Z1_56 pintura extintor de 20 lbs amarillo",1]
["Productos de Seguridad S.A (Prodeseg)C1_EMER_Z1_57","C1_EMER_Z1_57",57,"pintura extintor de 30 lbs amarillo",1,1,"unidad","Und","Productos de Seguridad S.A (Prodeseg)",21338.449999999997,1,"C1_EMER_Z1_57 pintura extintor de 30 lbs amarillo",1]
["Productos de Seguridad S.A (Prodeseg)C1_EMER_Z1_58","C1_EMER_Z1_58",58,"pintura extintor de 150 libras robot",1,1,"unidad","Und","Productos de Seguridad S.A (Prodeseg)",89101.04,1,"C1_EMER_Z1_58 pintura extintor de 150 libras robot",1]
["Productos de Seguridad S.A (Prodeseg)C1_EMER_Z1_59","C1_EMER_Z1_59",59,"pintura extintor de 150 libras satelite",1,1,"unidad","Und","Productos de Seguridad S.A (Prodeseg)",89101.04,1,"C1_EMER_Z1_59 pintura extintor de 150 libras satelite",1]
["Productos de Seguridad S.A (Prodeseg)C1_EMER_Z1_60","C1_EMER_Z1_60",60,"pintura extintor de 2.5 kg blanco",1,1,"unidad","Und","Productos de Seguridad S.A (Prodeseg)",13427.609999999999,1,"C1_EMER_Z1_60 pintura extintor de 2.5 kg blanco",1]
["Productos de Seguridad S.A (Prodeseg)C1_EMER_Z1_61","C1_EMER_Z1_61",61,"pintura extintor de 3.7 kg blanco",1,1,"unidad","Und","Productos de Seguridad S.A (Prodeseg)",15613.499999999998,1,"C1_EMER_Z1_61 pintura extintor de 3.7 kg blanco",1]
["Productos de Seguridad S.A (Prodeseg)C1_EMER_Z1_62","C1_EMER_Z1_62",62,"pintura extintor de 9 kg blanco",1,1,"unidad","Und","Productos de Seguridad S.A (Prodeseg)",20089.37,1,"C1_EMER_Z1_62 pintura extintor de 9 kg blanco",1]
["Productos de Seguridad S.A (Prodeseg)C1_EMER_Z1_63","C1_EMER_Z1_63",63,"pintura extintor de 5 lbs rojo co2",1,1,"unidad","Und","Productos de Seguridad S.A (Prodeseg)",13427.609999999999,1,"C1_EMER_Z1_63 pintura extintor de 5 lbs rojo co2",1]
["Productos de Seguridad S.A (Prodeseg)C1_EMER_Z1_64","C1_EMER_Z1_64",64,"pintura extintor de 10 lbs rojo co2",1,1,"unidad","Und","Productos de Seguridad S.A (Prodeseg)",15613.499999999998,1,"C1_EMER_Z1_64 pintura extintor de 10 lbs rojo co2",1]
["Productos de Seguridad S.A (Prodeseg)C1_EMER_Z1_65","C1_EMER_Z1_65",65,"pintura extintor de 15 lbs rojo co2",1,1,"unidad","Und","Productos de Seguridad S.A (Prodeseg)",16446.219999999998,1,"C1_EMER_Z1_65 pintura extintor de 15 lbs rojo co2",1]
[{"$f":"I67&B67","v":"Productos de Seguridad S.A (Prodeseg)C1_EMER_Z1_66"},{"$f":"\"C\"&E67&\"_EMER_Z\"&F67&\"_\"&C67","v":"C1_EMER_Z1_66"},66,"pintura extintor de 50 lbs rojo co2",1,1,"unidad","Und","Productos de Seguridad S.A (Prodeseg)",88476.5,1,"C1_EMER_Z1_66 pintura extintor de 50 lbs rojo co2",1]
["Productos de Seguridad S.A (Prodeseg)C1_EMER_Z1_67","C1_EMER_Z1_67",67,"pintura extintor de 100 libras / carretilla co2",1,1,"unidad","Und","Productos de Seguridad S.A (Prodeseg)",100967.29999999999,1,"C1_EMER_Z1_67 pintura extintor de 100 libras / carretilla co2",1]
["Productos de Seguridad S.A (Prodeseg)C1_EMER_Z1_68","C1_EMER_Z1_68",68,"prueba hidrostatica cilindro de co2 de 5 libras ",1,1,"unidad","Und","Productos de Seguridad S.A (Prodeseg)",104922.71999999999,1,"C1_EMER_Z1_68 prueba hidrostatica cilindro de co2 de 5 libras ",1]
["Productos de Seguridad S.A (Prodeseg)C1_EMER_Z1_69","C1_EMER_Z1_69",69,"prueba hidrostatica ext de co2 de 10-15-20 lb ",1,1,"unidad","Und","Productos de Seguridad S.A (Prodeseg)",104922.71999999999,1,"C1_EMER_Z1_69 prueba hidrostatica ext de co2 de 10-15-20 lb ",1]
["Productos de Seguridad S.A (Prodeseg)C1_EMER_Z1_70","C1_EMER_Z1_70",70,"prueba hidrostatica ext de co2 de 50 lb ",1,1,"unidad","Und","Productos de Seguridad S.A (Prodeseg)",169042.16,1,"C1_EMER_Z1_70 prueba hidrostatica ext de co2 de 50 lb ",1]
["Productos de Seguridad S.A (Prodeseg)C1_EMER_Z1_71","C1_EMER_Z1_71",71,"prueba hidrostatica cilindro co2 de 100 lb ",1,1,"unidad","Und","Productos de Seguridad S.A (Prodeseg)",206098.19999999998,1,"C1_EMER_Z1_71 prueba hidrostatica cilindro co2 de 100 lb ",1]
["Productos de Seguridad S.A (Prodeseg)C1_EMER_Z1_72","C1_EMER_Z1_72",72,"prueba hidrostatica para cilindro 5 lb",1,1,"unidad","Und","Productos de Seguridad S.A (Prodeseg)",8327.1999999999989,1,"C1_EMER_Z1_72 prueba hidrostatica para cilindro 5 lb",1]
["Productos de Seguridad S.A (Prodeseg)C1_EMER_Z1_73","C1_EMER_Z1_73",73,"prueba hidrostatica para cilindro 10 lb",1,1,"unidad","Und","Productos de Seguridad S.A (Prodeseg)",8327.1999999999989,1,"C1_EMER_Z1_73 prueba hidrostatica para cilindro 10 lb",1]
["Productos de Seguridad S.A (Prodeseg)C1_EMER_Z1_74","C1_EMER_Z1_74",74,"prueba hidrostatica para cilindro 20 lb",1,1,"unidad","Und","Productos de Seguridad S.A (Prodeseg)",8327.1999999999989,1,"C1_EMER_Z1_74 prueba hidrostatica para cilindro 20 lb",1]
["Productos de Seguridad S.A (Prodeseg)C1_EMER_Z1_75","C1_EMER_Z1_75",75,"prueba hidrostatica para cilindro 30 lb",1,1,"unidad","Und","Productos de Seguridad S.A (Prodeseg)",8327.1999999999989,1,"C1_EMER_Z1_75 prueba hidrostatica para cilindro 30 lb",1]
["Productos de Seguridad S.A (Prodeseg)C1_EMER_Z1_76","C1_EMER_Z1_76",76,"prueba hidrostatica para cilindro 150 lb robot",1,1,"unidad","Und","Productos de Seguridad S.A (Prodeseg)",44550.52,1,"C1_EMER_Z1_76 prueba hidrostatica para cilindro 150 lb robot",1]
["Productos de Seguridad S.A (Prodeseg)C1_EMER_Z1_77","C1_EMER_Z1_77",77,"prueba hidrostatica para cilindro 150 lb satelite",1,1,"unidad","Und","Productos de Seguridad S.A (Prodeseg)",44550.52,1,"C1_EMER_Z1_77 prueba hidrostatica para cilindro 150 lb satelite",1]
["Productos de Seguridad S.A (Prodeseg)C1_EMER_Z1_78","C1_EMER_Z1_78",78,"cilindro p/extintor agua 2,5 gal/ac inox",1,1,"unidad","Und","Productos de Seguridad S.A (Prodeseg)",108246.3137,1,"C1_EMER_Z1_78 cilindro p/extintor agua 2,5 gal/ac inox",1]
["Productos de Seguridad S.A (Prodeseg)C1_EMER_Z1_79","C1_EMER_Z1_79",79,"cilindro p/extintor 5 lbs amarillo Cold Roll cal 18",1,1,"unidad","Und","Productos de Seguridad S.A (Prodeseg)",7121.8377999999993,1,"C1_EMER_Z1_79 cilindro p/extintor 5 lbs amarillo Cold Roll cal 18",1]
["Productos de Seguridad S.A (Prodeseg)C1_EMER_Z1_80","C1_EMER_Z1_80",80,"cilindro p/extintor 5 lbs blanco Cold Roll cal 18",1,1,"unidad","Und","Productos de Seguridad S.A (Prodeseg)",7121.8377999999993,1,"C1_EMER_Z1_80 cilindro p/extintor 5 lbs blanco Cold Roll cal 18",1]
["Productos de Seguridad S.A (Prodeseg)C1_EMER_Z1_81","C1_EMER_Z1_81",81,"cilindro p/extintor 5lbs rojo Cold Roll cal 18",1,1,"unidad","Und","Productos de Seguridad S.A (Prodeseg)",7121.8377999999993,1,"C1_EMER_Z1_81 cilindro p/extintor 5lbs rojo Cold Roll cal 18",1]
["Productos de Seguridad S.A (Prodeseg)C1_EMER_Z1_82","C1_EMER_Z1_82",82,"cilindro p/extintor 10 lbs amarillo Cold Roll cal 18",1,1,"unidad","Und","Productos de Seguridad S.A (Prodeseg)",6069.4879000000001,1,"C1_EMER_Z1_82 cilindro p/extintor 10 lbs amarillo Cold Roll cal 18",1]
["Productos de Seguridad S.A (Prodeseg)C1_EMER_Z1_83","C1_EMER_Z1_83",83,"cilindro p/extintor 10 lbs blanco Cold Roll cal 18",1,1,"unidad","Und","Productos de Seguridad S.A (Prodeseg)",6069.4879000000001,1,"C1_EMER_Z1_83 cilindro p/extintor 10 lbs blanco Cold Roll cal 18",1]
["Productos de Seguridad S.A (Prodeseg)C1_EMER_Z1_84","C1_EMER_Z1_84",84,"cilindro p/extintor 10 lbs rojo Cold Roll  cal 18",1,1,"unidad","Und","Productos de Seguridad S.A (Prodeseg)",6069.4879000000001,1,"C1_EMER_Z1_84 cilindro p/extintor 10 lbs rojo Cold Roll  cal 18",1]
["Productos de Seguridad S.A (Prodeseg)C1_EMER_Z1_85","C1_EMER_Z1_85",85,"cilindro p/extintor 20 lbs Cold Roll cal 16 amarillo",1,1,"unidad","Und","Productos de Seguridad S.A (Prodeseg)",16014.246499999999,1,"C1_EMER_Z1_85 cilindro p/extintor 20 lbs Cold Roll cal 16 amarillo",1]
["Productos de Seguridad S.A (Prodeseg)C1_EMER_Z1_86","C1_EMER_Z1_86",86,"cilindro p/extintor 20 lbs Cold Roll  cal 16 blanco",1,1,"unidad","Und","Productos de Seguridad S.A (Prodeseg)",16014.246499999999,1,"C1_EMER_Z1_86 cilindro p/extintor 20 lbs Cold Roll  cal 16 blanco",1]
["Productos de Seguridad S.A (Prodeseg)C1_EMER_Z1_87","C1_EMER_Z1_87",87,"cilindro p/extintor 20 lbs Cold Roll  cal 16 rojo",1,1,"unidad","Und","Productos de Seguridad S.A (Prodeseg)",16014.246499999999,1,"C1_EMER_Z1_87 cilindro p/extintor 20 lbs Cold Roll  cal 16 rojo",1]
["Productos de Seguridad S.A (Prodeseg)C1_EMER_Z1_88","C1_EMER_Z1_88",88,"manguera en pvc p/extintor de 4 kgs c/acoples",1,1,"unidad","Und","Productos de Seguridad S.A (Prodeseg)",979.48689999999999,1,"C1_EMER_Z1_88 manguera en pvc p/extintor de 4 kgs c/acoples",1]
["Productos de Seguridad S.A (Prodeseg)C1_EMER_Z1_89","C1_EMER_Z1_89",89,"manguera termoplastica agua 2.1/2 gl 250",1,1,"unidad","Und","Productos de Seguridad S.A (Prodeseg)",1937.1148999999998,1,"C1_EMER_Z1_89 manguera termoplastica agua 2.1/2 gl 250",1]
["Productos de Seguridad S.A (Prodeseg)C1_EMER_Z1_90","C1_EMER_Z1_90",90,"manguera termoplastica ext.agente l. 3.7/9.0 v/pr",1,1,"unidad","Und","Productos de Seguridad S.A (Prodeseg)",2335.7795999999998,1,"C1_EMER_Z1_90 manguera termoplastica ext.agente l. 3.7/9.0 v/pr",1]
["Productos de Seguridad S.A (Prodeseg)C1_EMER_Z1_91","C1_EMER_Z1_91",91,"manguera caucho lona ext 10/20 lbs 200 acople 14mm",1,1,"unidad","Und","Productos de Seguridad S.A (Prodeseg)",4638.2503999999999,1,"C1_EMER_Z1_91 manguera caucho lona ext 10/20 lbs 200 acople 14mm",1]
["Productos de Seguridad S.A (Prodeseg)C1_EMER_Z1_92","C1_EMER_Z1_92",92,"tubo sifon ext. pqs 10/20 lbs pvc",1,1,"unidad","Und","Productos de Seguridad S.A (Prodeseg)",421.56449999999995,1,"C1_EMER_Z1_92 tubo sifon ext. pqs 10/20 lbs pvc",1]
["Productos de Seguridad S.A (Prodeseg)C1_EMER_Z1_93","C1_EMER_Z1_93",93,"valvula para extintor 30 mm /acople 14mm",1,1,"unidad","Und","Productos de Seguridad S.A (Prodeseg)",4735.0540999999994,1,"C1_EMER_Z1_93 valvula para extintor 30 mm /acople 14mm",1]
["Productos de Seguridad S.A (Prodeseg)C1_EMER_Z1_94","C1_EMER_Z1_94",94,"valvula p/extintor 7/8\"",1,1,"unidad","Und","Productos de Seguridad S.A (Prodeseg)",3596.3094999999998,1,"C1_EMER_Z1_94 valvula p/extintor 7/8 pulgadas",1]
["Productos de Seguridad S.A (Prodeseg)C1_EMER_Z1_95","C1_EMER_Z1_95",95,"manometro 125 psi caja metalica",1,1,"unidad","Und","Productos de Seguridad S.A (Prodeseg)",1593.6179,1,"C1_EMER_Z1_95 manometro 125 psi caja metalica",1]
["Productos de Seguridad S.A (Prodeseg)C1_EMER_Z1_96","C1_EMER_Z1_96",96,"manometro 150 psi caja metalica",1,1,"unidad","Und","Productos de Seguridad S.A (Prodeseg)",1745.5892999999999,1,"C1_EMER_Z1_96 manometro 150 psi caja metalica",1]
["Productos de Seguridad S.A (Prodeseg)C1_EMER_Z1_97","C1_EMER_Z1_97",97,"manometro 175 psi caja metalica",1,1,"unidad","Und","Productos de Seguridad S.A (Prodeseg)",1544.6956,1,"C1_EMER_Z1_97 manometro 175 psi caja metalica",1]
["Productos de Seguridad S.A (Prodeseg)C1_EMER_Z1_98","C1_EMER_Z1_98",98,"manometro 195 psi caja metalica",1,1,"unidad","Und","Productos de Seguridad S.A (Prodeseg)",1193.9123,1,"C1_EMER_Z1_98 manometro 195 psi caja metalica",1]
["Coltech S.A.SC1_EMER_Z1_1","C1_EMER_Z1_1",1,"Extintor polvo químico seco clase ABC portátil de 5 libras",1,1,"unidad","Und","Coltech S.A.S",73019.134999999995,1,"C1_EMER_Z1_1 Extintor polvo quimico seco clase ABC portatil de 5 libras",1]
["Coltech S.A.SC1_EMER_Z1_2","C1_EMER_Z1_2",2,"Extintor polvo químico seco clase ABC portátil de 10 libras",1,1,"unidad","Und","Coltech S.A.S",86186.51999999999,1,"C1_EMER_Z1_2 Extintor polvo quimico seco clase ABC portatil de 10 libras",1]
["Coltech S.A.SC1_EMER_Z1_3","C1_EMER_Z1_3",3,"Extintor polvo químico seco clase ABC portátil de 20 libras",1,1,"unidad","Und","Coltech S.A.S",119703.49999999999,1,"C1_EMER_Z1_3 Extintor polvo quimico seco clase ABC portatil de 20 libras",1]
["Coltech S.A.SC1_EMER_Z1_4","C1_EMER_Z1_4",4,"Extintor polvo químico seco clase ABC portátil de 30 libras",1,1,"unidad","Und","Coltech S.A.S",174767.11,1,"C1_EMER_Z1_4 Extintor polvo quimico seco clase ABC portatil de 30 libras",1]
["Coltech S.A.SC1_EMER_Z1_5","C1_EMER_Z1_5",5,"Extintor polvo químico seco clase ABC rodante de 50 libras",1,1,"unidad","Und","Coltech S.A.S",1915255.9999999998,1,"C1_EMER_Z1_5 Extintor polvo quimico seco clase ABC rodante de 50 libras",1]
["Coltech S.A.SC1_EMER_Z1_6","C1_EMER_Z1_6",6,"Extintor polvo químico seco clase ABC rodante de 150 libras",1,1,"unidad","Und","Coltech S.A.S",2130722.2999999998,1,"C1_EMER_Z1_6 Extintor polvo quimico seco clase ABC rodante de 150 libras",1]
["Coltech S.A.SC1_EMER_Z1_7","C1_EMER_Z1_7",7,"Extintor de agua de  2 ½  galones",1,1,"unidad","Und","Coltech S.A.S",239646.40699999998,1,"C1_EMER_Z1_7 Extintor de agua de  2 y medio galones",1]
["Coltech S.A.SC1_EMER_Z1_8","C1_EMER_Z1_8",8,"Extintor de agua de 14 galones tipo satelite",1,1,"unidad","Und","Coltech S.A.S",2136707.4750000001,1,"C1_EMER_Z1_8 Extintor de agua de 14 galones tipo satelite",1]
["Coltech S.A.SC1_EMER_Z1_9","C1_EMER_Z1_9",9,"Extintor de agente limpio HCFC de 2500 gramos",1,1,"unidad","Und","Coltech S.A.S",282500.26,1,"C1_EMER_Z1_9 Extintor de agente limpio HCFC de 2500 gramos",1]
["Coltech S.A.SC1_EMER_Z1_10","C1_EMER_Z1_10",10,"Extintor de agente limpio HCFC de 3700 gramos",1,1,"unidad","Und","Coltech S.A.S",334930.39299999998,1,"C1_EMER_Z1_10 Extintor de agente limpio HCFC de 3700 gramos",1]
["Coltech S.A.SC1_EMER_Z1_11","C1_EMER_Z1_11",11,"Extintor de agente limpio HCFC de 7000 gramos",1,1,"unidad","Und","Coltech S.A.S",837924.5,1,"C1_EMER_Z1_11 Extintor de agente limpio HCFC de 7000 gramos",1]
["Coltech S.A.SC1_EMER_Z1_12","C1_EMER_Z1_12",12,"Extintor de agente limpio HCFC de 9000 gramos",1,1,"unidad","Und","Coltech S.A.S",957627.99999999988,1,"C1_EMER_Z1_12 Extintor de agente limpio HCFC de 9000 gramos",1]
["Coltech S.A.SC1_EMER_Z1_13","C1_EMER_Z1_13",13,"Extintor de CO2 de 5 libras",1,1,"unidad","Und","Coltech S.A.S",335169.8,1,"C1_EMER_Z1_13 Extintor de CO2 de 5 libras",1]
["Coltech S.A.SC1_EMER_Z1_14","C1_EMER_Z1_14",14,"Extintor de CO2 de 10 libras",1,1,"unidad","Und","Coltech S.A.S",598517.5,1,"C1_EMER_Z1_14 Extintor de CO2 de 10 libras",1]
["Coltech S.A.SC1_EMER_Z1_15","C1_EMER_Z1_15",15,"Extintor de CO2 de 15 libras",1,1,"unidad","Und","Coltech S.A.S",1436442,1,"C1_EMER_Z1_15 Extintor de CO2 de 15 libras",1]
["Coltech S.A.SC1_EMER_Z1_16","C1_EMER_Z1_16",16,"Extintor de CO2 de 20 libras",1,1,"unidad","Und","Coltech S.A.S",2034959.4999999998,1,"C1_EMER_Z1_16 Extintor de CO2 de 20 libras",1]
["Coltech S.A.SC1_EMER_Z1_17","C1_EMER_Z1_17",17,"Extintor de CO2 de 50 libras tipo carretilla",1,1,"unidad","Und","Coltech S.A.S",6104878.5,1,"C1_EMER_Z1_17 Extintor de CO2 de 50 libras tipo carretilla",1]
["Coltech S.A.SC1_EMER_Z1_18","C1_EMER_Z1_18",18,"Extintor de CO2 de 100 libras tipo carretilla",1,1,"unidad","Und","Coltech S.A.S",6104878.5,1,"C1_EMER_Z1_18 Extintor de CO2 de 100 libras tipo carretilla",1]
["Coltech S.A.SC1_EMER_Z1_19","C1_EMER_Z1_19",19,"Extintor de AFFF de 6 Litros ",1,1,"unidad","Und","Coltech S.A.S",311229.09999999998,1,"C1_EMER_Z1_19 Extintor de AFFF de 6 Litros ",1]
["Coltech S.A.SC1_EMER_Z1_20","C1_EMER_Z1_20",20,"Extintor de AFFF de 9,5 Litros ",1,1,"unidad","Und","Coltech S.A.S",2678964.3299999996,1,"C1_EMER_Z1_20 Extintor de AFFF de 9,5 Litros ",1]
["Coltech S.A.SC1_EMER_Z1_21","C1_EMER_Z1_21",21,"Extintor tipo k de 6 Litros ",1,1,"unidad","Und","Coltech S.A.S",837924.5,1,"C1_EMER_Z1_21 Extintor tipo k de 6 Litros ",1]
["Coltech S.A.SC1_EMER_Z1_22","C1_EMER_Z1_22",22,"Extintortipo k de 2,5 galones ",1,1,"unidad","Und","Coltech S.A.S",1197035,1,"C1_EMER_Z1_22 Extintortipo k de 2,5 galones ",1]
["Coltech S.A.SC1_EMER_Z1_23","C1_EMER_Z1_23",23,"Aviso o señalización del Extintor",1,1,"unidad","Und","Coltech S.A.S",14364.419999999998,1,"C1_EMER_Z1_23 Aviso o senalizacion del Extintor",1]
["Coltech S.A.SC1_EMER_Z1_24","C1_EMER_Z1_24",24,"Soporte de piso tipo pedestal para Extintor 10lb",1,1,"unidad","Und","Coltech S.A.S",71822.099999999991,1,"C1_EMER_Z1_24 Soporte de piso tipo pedestal para Extintor 10lb",1]
["Coltech S.A.SC1_EMER_Z1_25","C1_EMER_Z1_25",25,"Soporte de piso tipo pedestal para Extintor 20lb",1,1,"unidad","Und","Coltech S.A.S",71822.099999999991,1,"C1_EMER_Z1_25 Soporte de piso tipo pedestal para Extintor 20lb",1]
["Coltech S.A.SC1_EMER_Z1_26","C1_EMER_Z1_26",26,"Soporte de piso tipo pedestal para Extintor 30lb",1,1,"unidad","Und","Coltech S.A.S",71822.099999999991,1,"C1_EMER_Z1_26 Soporte de piso tipo pedestal para Extintor 30lb",1]
["Coltech S.A.SC1_EMER_Z1_27","C1_EMER_Z1_27",27,"Mantenimiento Preventivo",1,1,"unidad","Und","Coltech S.A.S",292076.53999999998,1,"C1_EMER_Z1_27 Mantenimiento Preventivo",1]
["Coltech S.A.SC1_EMER_Z1_28","C1_EMER_Z1_28",28,"Recarga de Extintor polvo químico seco clase ABC portátil de 5 libras",1,1,"unidad","Und","Coltech S.A.S",186737.46,1,"C1_EMER_Z1_28 Recarga de Extintor polvo quimico seco clase ABC portatil de 5 libras",1]
["Coltech S.A.SC1_EMER_Z1_29","C1_EMER_Z1_29",29,"Recarga de Extintor polvo químico seco clase ABC portátil de 10 libras",1,1,"unidad","Und","Coltech S.A.S",186737.46,1,"C1_EMER_Z1_29 Recarga de Extintor polvo quimico seco clase ABC portatil de 10 libras",1]
["Coltech S.A.SC1_EMER_Z1_30","C1_EMER_Z1_30",30,"Recarga de Extintor polvo químico seco clase ABC portátil de 20 libras",1,1,"unidad","Und","Coltech S.A.S",186737.46,1,"C1_EMER_Z1_30 Recarga de Extintor polvo quimico seco clase ABC portatil de 20 libras",1]
["Coltech S.A.SC1_EMER_Z1_31","C1_EMER_Z1_31",31,"Recarga de Extintor polvo químico seco clase ABC portátil de 30 libras",1,1,"unidad","Und","Coltech S.A.S",186737.46,1,"C1_EMER_Z1_31 Recarga de Extintor polvo quimico seco clase ABC portatil de 30 libras",1]
[{"$f":"I131&B131","v":"Coltech S.A.SC1_EMER_Z1_32"},{"$f":"\"C\"&E131&\"_EMER_Z\"&F131&\"_\"&C131","v":"C1_EMER_Z1_32"},32,"Recarga de Extintor polvo químico seco clase ABC rodante de 50 libras",1,1,"unidad","Und","Coltech S.A.S",186737.46,1,"C1_EMER_Z1_32 Recarga de Extintor polvo quimico seco clase ABC rodante de 50 libras",1]
["Coltech S.A.SC1_EMER_Z1_33","C1_EMER_Z1_33",33,"Recarga de Extintor polvo químico seco clase ABC rodante de 150 libras",1,1,"unidad","Und","Coltech S.A.S",186737.46,1,"C1_EMER_Z1_33 Recarga de Extintor polvo quimico seco clase ABC rodante de 150 libras",1]
["Coltech S.A.SC1_EMER_Z1_34","C1_EMER_Z1_34",34,"Recarga de Extintor de agua de  2 ½  galones",1,1,"unidad","Und","Coltech S.A.S",186737.46,1,"C1_EMER_Z1_34 Recarga de Extintor de agua de  2 y medio galones",1]
["Coltech S.A.SC1_EMER_Z1_35","C1_EMER_Z1_35",35,"Recarga de Extintor de agua de 14 galones tipo satelite",1,1,"unidad","Und","Coltech S.A.S",186737.46,1,"C1_EMER_Z1_35 Recarga de Extintor de agua de 14 galones tipo satelite",1]
["Coltech S.A.SC1_EMER_Z1_36","C1_EMER_Z1_36",36,"Recarga de Extintor de agente limpio HCFC de 2500 gramos",1,1,"unidad","Und","Coltech S.A.S",186737.46,1,"C1_EMER_Z1_36 Recarga de Extintor de agente limpio HCFC de 2500 gramos",1]
["Coltech S.A.SC1_EMER_Z1_37","C1_EMER_Z1_37",37,"Recarga de Extintor de agente limpio HCFC de 3700 gramos",1,1,"unidad","Und","Coltech S.A.S",186737.46,1,"C1_EMER_Z1_37 Recarga de Extintor de agente limpio HCFC de 3700 gramos",1]
["Coltech S.A.SC1_EMER_Z1_38","C1_EMER_Z1_38",38,"Recarga de Extintor de agente limpio HCFC de 7000 gramos",1,1,"unidad","Und","Coltech S.A.S",186737.46,1,"C1_EMER_Z1_38 Recarga de Extintor de agente limpio HCFC de 7000 gramos",1]
["Coltech S.A.SC1_EMER_Z1_39","C1_EMER_Z1_39",39,"Recarga de Extintor de agente limpio HCFC de 9000 gramos",1,1,"unidad","Und","Coltech S.A.S",186737.46,1,"C1_EMER_Z1_39 Recarga de Extintor de agente limpio HCFC de 9000 gramos",1]
["Coltech S.A.SC1_EMER_Z1_40","C1_EMER_Z1_40",40,"Recarga de Extintor de CO2 de 5 libras",1,1,"unidad","Und","Coltech S.A.S",186737.46,1,"C1_EMER_Z1_40 Recarga de Extintor de CO2 de 5 libras",1]
["Coltech S.A.SC1_EMER_Z1_41","C1_EMER_Z1_41",41,"Recarga de Extintor de CO2 de 10 libras",1,1,"unidad","Und","Coltech S.A.S",186737.46,1,"C1_EMER_Z1_41 Recarga de Extintor de CO2 de 10 libras",1]
["Coltech S.A.SC1_EMER_Z1_42","C1_EMER_Z1_42",42,"Recarga de Extintor de CO2 de 15 libras",1,1,"unidad","Und","Coltech S.A.S",186737.46,1,"C1_EMER_Z1_42 Recarga de Extintor de CO2 de 15 libras",1]
["Coltech S.A.SC1_EMER_Z1_43","C1_EMER_Z1_43",43,"Recarga de Extintor de CO2 de 20 libras",1,1,"unidad","Und","Coltech S.A.S",186737.46,1,"C1_EMER_Z1_43 Recarga de Extintor de CO2 de 20 libras",1]
["Coltech S.A.SC1_EMER_Z1_44","C1_EMER_Z1_44",44,"Recarga de Extintor de CO2 de 50 libras tipo carretilla",1,1,"unidad","Und","Coltech S.A.S",186737.46,1,"C1_EMER_Z1_44 Recarga de Extintor de CO2 de 50 libras tipo carretilla",1]
["Coltech S.A.SC1_EMER_Z1_45","C1_EMER_Z1_45",45,"Recarga de Extintor de CO2 de 100 libras tipo carretilla",1,1,"unidad","Und","Coltech S.A.S",186737.46,1,"C1_EMER_Z1_45 Recarga de Extintor de CO2 de 100 libras tipo carretilla",1]
["Coltech S.A.SC1_EMER_Z1_46","C1_EMER_Z1_46",46,"Recarga de Extintor de AFFF de 6 Litros ",1,1,"unidad","Und","Coltech S.A.S",186737.46,1,"C1_EMER_Z1_46 Recarga de Extintor de AFFF de 6 Litros ",1]
["Coltech S.A.SC1_EMER_Z1_47","C1_EMER_Z1_47",47,"Recarga de Extintor de AFFF de 9,5 Litros ",1,1,"unidad","Und","Coltech S.A.S",186737.46,1,"C1_EMER_Z1_47 Recarga de Extintor de AFFF de 9,5 Litros ",1]
["Coltech S.A.SC1_EMER_Z1_48","C1_EMER_Z1_48",48,"Recarga de Extintor tipo k de 6 Litros ",1,1,"unidad","Und","Coltech S.A.S",186737.46,1,"C1_EMER_Z1_48 Recarga de Extintor tipo k de 6 Litros ",1]
["Coltech S.A.SC1_EMER_Z1_49","C1_EMER_Z1_49",49,"Recarga de Extintortipo k de 2,5 galones ",1,1,"unidad","Und","Coltech S.A.S",186737.46,1,"C1_EMER_Z1_49 Recarga de Extintortipo k de 2,5 galones ",1]
["Coltech S.A.SC1_EMER_Z1_50","C1_EMER_Z1_50",50,"Mantenimiento Correctivo - pasador de seguridad",1,1,"unidad","Und","Coltech S.A.S",191525.59999999998,1,"C1_EMER_Z1_50 Mantenimiento Correctivo - pasador de seguridad",1]
["Coltech S.A.SC1_EMER_Z1_51","C1_EMER_Z1_51",51,"Mantenimiento correctivo   sello plástico ",1,1,"unidad","Und","Coltech S.A.S",167584.9,1,"C1_EMER_Z1_51 Mantenimiento correctivo   sello plastico ",1]
["Coltech S.A.SC1_EMER_Z1_52","C1_EMER_Z1_52",52,"Mantenimiento correctivo - anillo de verificación",1,1,"unidad","Und","Coltech S.A.S",119703.49999999999,1,"C1_EMER_Z1_52 Mantenimiento correctivo - anillo de verificacion",1]
["Coltech S.A.SC1_EMER_Z1_53","C1_EMER_Z1_53",53,"Mantenimiento correctivo - calcomania ",1,1,"unidad","Und","Coltech S.A.S",71822.099999999991,1,"C1_EMER_Z1_53 Mantenimiento correctivo - calcomania ",1]
["Coltech S.A.SC1_EMER_Z1_54","C1_EMER_Z1_54",54,"Pintura extintor de 5 lbs amarillo",1,1,"unidad","Und","Coltech S.A.S",43093.259999999995,1,"C1_EMER_Z1_54 Pintura extintor de 5 lbs amarillo",1]
["Coltech S.A.SC1_EMER_Z1_55","C1_EMER_Z1_55",55,"pintura extintor de 10 lbs amarillo",1,1,"unidad","Und","Coltech S.A.S",43093.259999999995,1,"C1_EMER_Z1_55 pintura extintor de 10 lbs amarillo",1]
["Coltech S.A.SC1_EMER_Z1_56","C1_EMER_Z1_56",56,"pintura extintor de 20 lbs amarillo",1,1,"unidad","Und","Coltech S.A.S",43093.259999999995,1,"C1_EMER_Z1_56 pintura extintor de 20 lbs amarillo",1]
["Coltech S.A.SC1_EMER_Z1_57","C1_EMER_Z1_57",57,"pintura extintor de 30 lbs amarillo",1,1,"unidad","Und","Coltech S.A.S",43093.259999999995,1,"C1_EMER_Z1_57 pintura extintor de 30 lbs amarillo",1]
["Coltech S.A.SC1_EMER_Z1_58","C1_EMER_Z1_58",58,"pintura extintor de 150 libras robot",1,1,"unidad","Und","Coltech S.A.S",43093.259999999995,1,"C1_EMER_Z1_58 pintura extintor de 150 libras robot",1]
["Coltech S.A.SC1_EMER_Z1_59","C1_EMER_Z1_59",59,"pintura extintor de 150 libras satelite",1,1,"unidad","Und","Coltech S.A.S",43093.259999999995,1,"C1_EMER_Z1_59 pintura extintor de 150 libras satelite",1]
["Coltech S.A.SC1_EMER_Z1_60","C1_EMER_Z1_60",60,"pintura extintor de 2.5 kg blanco",1,1,"unidad","Und","Coltech S.A.S",43093.259999999995,1,"C1_EMER_Z1_60 pintura extintor de 2.5 kg blanco",1]
["Coltech S.A.SC1_EMER_Z1_61","C1_EMER_Z1_61",61,"pintura extintor de 3.7 kg blanco",1,1,"unidad","Und","Coltech S.A.S",43093.259999999995,1,"C1_EMER_Z1_61 pintura extintor de 3.7 kg blanco",1]
["Coltech S.A.SC1_EMER_Z1_62","C1_EMER_Z1_62",62,"pintura extintor de 9 kg blanco",1,1,"unidad","Und","Coltech S.A.S",43093.259999999995,1,"C1_EMER_Z1_62 pintura extintor de 9 kg blanco",1]
["Coltech S.A.SC1_EMER_Z1_63","C1_EMER_Z1_63",63,"pintura extintor de 5 lbs rojo co2",1,1,"unidad","Und","Coltech S.A.S",43093.259999999995,1,"C1_EMER_Z1_63 pintura extintor de 5 lbs rojo co2",1]
["Coltech S.A.SC1_EMER_Z1_64","C1_EMER_Z1_64",64,"pintura extintor de 10 lbs rojo co2",1,1,"unidad","Und","Coltech S.A.S",43093.259999999995,1,"C1_EMER_Z1_64 pintura extintor de 10 lbs rojo co2",1]
["Coltech S.A.SC1_EMER_Z1_65","C1_EMER_Z1_65",65,"pintura extintor de 15 lbs rojo co2",1,1,"unidad","Und","Coltech S.A.S",43093.259999999995,1,"C1_EMER_Z1_65 pintura extintor de 15 lbs rojo co2",1]
["Coltech S.A.SC1_EMER_Z1_66","C1_EMER_Z1_66",66,"pintura extintor de 50 lbs rojo co2",1,1,"unidad","Und","Coltech S.A.S",43093.259999999995,1,"C1_EMER_Z1_66 pintura extintor de 50 lbs rojo co2",1]
["Coltech S.A.SC1_EMER_Z1_67","C1_EMER_Z1_67",67,"pintura extintor de 100 libras / carretilla co2",1,1,"unidad","Und","Coltech S.A.S",43093.259999999995,1,"C1_EMER_Z1_67 pintura extintor de 100 libras / carretilla co2",1]
["Coltech S.A.SC1_EMER_Z1_68","C1_EMER_Z1_68",68,"prueba hidrostatica cilindro de co2 de 5 libras ",1,1,"unidad","Und","Coltech S.A.S",101747.97499999999,1,"C1_EMER_Z1_68 prueba hidrostatica cilindro de co2 de 5 libras ",1]
["Coltech S.A.SC1_EMER_Z1_69","C1_EMER_Z1_69",69,"prueba hidrostatica ext de co2 de 10-15-20 lb ",1,1,"unidad","Und","Coltech S.A.S",101747.97499999999,1,"C1_EMER_Z1_69 prueba hidrostatica ext de co2 de 10-15-20 lb ",1]
["Coltech S.A.SC1_EMER_Z1_70","C1_EMER_Z1_70",70,"prueba hidrostatica ext de co2 de 50 lb ",1,1,"unidad","Und","Coltech S.A.S",101747.97499999999,1,"C1_EMER_Z1_70 prueba hidrostatica ext de co2 de 50 lb ",1]
["Coltech S.A.SC1_EMER_Z1_71","C1_EMER_Z1_71",71,"prueba hidrostatica cilindro co2 de 100 lb ",1,1,"unidad","Und","Coltech S.A.S",101747.97499999999,1,"C1_EMER_Z1_71 prueba hidrostatica cilindro co2 de 100 lb ",1]
["Coltech S.A.SC1_EMER_Z1_72","C1_EMER_Z1_72",72,"prueba hidrostatica para cilindro 5 lb",1,1,"unidad","Und","Coltech S.A.S",101747.97499999999,1,"C1_EMER_Z1_72 prueba hidrostatica para cilindro 5 lb",1]
["Coltech S.A.SC1_EMER_Z1_73","C1_EMER_Z1_73",73,"prueba hidrostatica para cilindro 10 lb",1,1,"unidad","Und","Coltech S.A.S",101747.97499999999,1,"C1_EMER_Z1_73 prueba hidrostatica para cilindro 10 lb",1]
["Coltech S.A.SC1_EMER_Z1_74","C1_EMER_Z1_74",74,"prueba hidrostatica para cilindro 20 lb",1,1,"unidad","Und","Coltech S.A.S",101747.97499999999,1,"C1_EMER_Z1_74 prueba hidrostatica para cilindro 20 lb",1]
["Coltech S.A.SC1_EMER_Z1_75","C1_EMER_Z1_75",75,"prueba hidrostatica para cilindro 30 lb",1,1,"unidad","Und","Coltech S.A.S",101747.97499999999,1,"C1_EMER_Z1_75 prueba hidrostatica para cilindro 30 lb",1]
["Coltech S.A.SC1_EMER_Z1_76","C1_EMER_Z1_76",76,"prueba hidrostatica para cilindro 150 lb robot",1,1,"unidad","Und","Coltech S.A.S",101747.97499999999,1,"C1_EMER_Z1_76 prueba hidrostatica para cilindro 150 lb robot",1]
["Coltech S.A.SC1_EMER_Z1_77","C1_EMER_Z1_77",77,"prueba hidrostatica para cilindro 150 lb satelite",1,1,"unidad","Und","Coltech S.A.S",101747.97499999999,1,"C1_EMER_Z1_77 prueba hidrostatica para cilindro 150 lb satelite",1]
["Coltech S.A.SC1_EMER_Z1_78","C1_EMER_Z1_78",78,"cilindro p/extintor agua 2,5 gal/ac inox",1,1,"unidad","Und","Coltech S.A.S",40444.169499999996,1,"C1_EMER_Z1_78 cilindro p/extintor agua 2,5 gal/ac inox",1]
["Coltech S.A.SC1_EMER_Z1_79","C1_EMER_Z1_79",79,"cilindro p/extintor 5 lbs amarillo Cold Roll cal 18",1,1,"unidad","Und","Coltech S.A.S",30186.1,1,"C1_EMER_Z1_79 cilindro p/extintor 5 lbs amarillo Cold Roll cal 18",1]
["Coltech S.A.SC1_EMER_Z1_80","C1_EMER_Z1_80",80,"cilindro p/extintor 5 lbs blanco Cold Roll cal 18",1,1,"unidad","Und","Coltech S.A.S",30186.1,1,"C1_EMER_Z1_80 cilindro p/extintor 5 lbs blanco Cold Roll cal 18",1]
["Coltech S.A.SC1_EMER_Z1_81","C1_EMER_Z1_81",81,"cilindro p/extintor 5lbs rojo Cold Roll cal 18",1,1,"unidad","Und","Coltech S.A.S",30186.1,1,"C1_EMER_Z1_81 cilindro p/extintor 5lbs rojo Cold Roll cal 18",1]
["Coltech S.A.SC1_EMER_Z1_82","C1_EMER_Z1_82",82,"cilindro p/extintor 10 lbs amarillo Cold Roll cal 18",1,1,"unidad","Und","Coltech S.A.S",47875.154599999994,1,"C1_EMER_Z1_82 cilindro p/extintor 10 lbs amarillo Cold Roll cal 18",1]
["Coltech S.A.SC1_EMER_Z1_83","C1_EMER_Z1_83",83,"cilindro p/extintor 10 lbs blanco Cold Roll cal 18",1,1,"unidad","Und","Coltech S.A.S",47875.154599999994,1,"C1_EMER_Z1_83 cilindro p/extintor 10 lbs blanco Cold Roll cal 18",1]
["Coltech S.A.SC1_EMER_Z1_84","C1_EMER_Z1_84",84,"cilindro p/extintor 10 lbs rojo Cold Roll  cal 18",1,1,"unidad","Und","Coltech S.A.S",47875.154599999994,1,"C1_EMER_Z1_84 cilindro p/extintor 10 lbs rojo Cold Roll  cal 18",1]
["Coltech S.A.SC1_EMER_Z1_85","C1_EMER_Z1_85",85,"cilindro p/extintor 20 lbs Cold Roll cal 16 amarillo",1,1,"unidad","Und","Coltech S.A.S",63148.280299999999,1,"C1_EMER_Z1_85 cilindro p/extintor 20 lbs Cold Roll cal 16 amarillo",1]
["Coltech S.A.SC1_EMER_Z1_86","C1_EMER_Z1_86",86,"cilindro p/extintor 20 lbs Cold Roll  cal 16 blanco",1,1,"unidad","Und","Coltech S.A.S",63148.280299999999,1,"C1_EMER_Z1_86 cilindro p/extintor 20 lbs Cold Roll  cal 16 blanco",1]
["Coltech S.A.SC1_EMER_Z1_87","C1_EMER_Z1_87",87,"cilindro p/extintor 20 lbs Cold Roll  cal 16 rojo",1,1,"unidad","Und","Coltech S.A.S",63148.280299999999,1,"C1_EMER_Z1_87 cilindro p/extintor 20 lbs Cold Roll  cal 16 rojo",1]
["Coltech S.A.SC1_EMER_Z1_88","C1_EMER_Z1_88",88,"manguera en pvc p/extintor de 4 kgs c/acoples",1,1,"unidad","Und","Coltech S.A.S",168855.8389,1,"C1_EMER_Z1_88 manguera en pvc p/extintor de 4 kgs c/acoples",1]
["Coltech S.A.SC1_EMER_Z1_89","C1_EMER_Z1_89",89,"manguera termoplastica agua 2.1/2 gl 250",1,1,"unidad","Und","Coltech S.A.S",168855.8389,1,"C1_EMER_Z1_89 manguera termoplastica agua 2.1/2 gl 250",1]
["Coltech S.A.SC1_EMER_Z1_90","C1_EMER_Z1_90",90,"manguera termoplastica ext.agente l. 3.7/9.0 v/pr",1,1,"unidad","Und","Coltech S.A.S",168855.8389,1,"C1_EMER_Z1_90 manguera termoplastica ext.agente l. 3.7/9.0 v/pr",1]
["Coltech S.A.SC1_EMER_Z1_91","C1_EMER_Z1_91",91,"manguera caucho lona ext 10/20 lbs 200 acople 14mm",1,1,"unidad","Und","Coltech S.A.S",168855.8389,1,"C1_EMER_Z1_91 manguera caucho lona ext 10/20 lbs 200 acople 14mm",1]
["Coltech S.A.SC1_EMER_Z1_92","C1_EMER_Z1_92",92,"tubo sifon ext. pqs 10/20 lbs pvc",1,1,"unidad","Und","Coltech S.A.S",18111.66,1,"C1_EMER_Z1_92 tubo sifon ext. pqs 10/20 lbs pvc",1]
["Coltech S.A.SC1_EMER_Z1_93","C1_EMER_Z1_93",93,"valvula para extintor 30 mm /acople 14mm",1,1,"unidad","Und","Coltech S.A.S",216132.476,1,"C1_EMER_Z1_93 valvula para extintor 30 mm /acople 14mm",1]
["Coltech S.A.SC1_EMER_Z1_94","C1_EMER_Z1_94",94,"valvula p/extintor 7/8\"",1,1,"unidad","Und","Coltech S.A.S",12074.439999999999,1,"C1_EMER_Z1_94 valvula p/extintor 7/8 pulgadas",1]
["Coltech S.A.SC1_EMER_Z1_95","C1_EMER_Z1_95",95,"manometro 125 psi caja metalica",1,1,"unidad","Und","Coltech S.A.S",9662.6746999999996,1,"C1_EMER_Z1_95 manometro 125 psi caja metalica",1]
[{"$f":"I195&B195","v":"Coltech S.A.SC1_EMER_Z1_96"},{"$f":"\"C\"&E195&\"_EMER_Z\"&F195&\"_\"&C195","v":"C1_EMER_Z1_96"},96,"manometro 150 psi caja metalica",1,1,"unidad","Und","Coltech S.A.S",9662.6746999999996,1,"C1_EMER_Z1_96 manometro 150 psi caja metalica",1]
["Coltech S.A.SC1_EMER_Z1_97","C1_EMER_Z1_97",97,"manometro 175 psi caja metalica",1,1,"unidad","Und","Coltech S.A.S",9662.6746999999996,1,"C1_EMER_Z1_97 manometro 175 psi caja metalica",1]
["Coltech S.A.SC1_EMER_Z1_98","C1_EMER_Z1_98",98,"manometro 195 psi caja metalica",1,1,"unidad","Und","Coltech S.A.S",9662.6746999999996,1,"C1_EMER_Z1_98 manometro 195 psi caja metalica",1]
["Productos de Seguridad S.A (Prodeseg)C1_EMER_Z2_1","C1_EMER_Z2_1",1,"Extintor polvo químico seco clase ABC portátil de 5 libras",1,2,"unidad","Und","Productos de Seguridad S.A (Prodeseg)",29534.932496892303,1,"C1_EMER_Z2_1 Extintor polvo quimico seco clase ABC portatil de 5 libras",1]
["Productos de Seguridad S.A (Prodeseg)C1_EMER_Z2_2","C1_EMER_Z2_2",2,"Extintor polvo químico seco clase ABC portátil de 10 libras",1,2,"unidad","Und","Productos de Seguridad S.A (Prodeseg)",47204.648456000003,1,"C1_EMER_Z2_2 Extintor polvo quimico seco clase ABC portatil de 10 libras",1]
["Productos de Seguridad S.A (Prodeseg)C1_EMER_Z2_3","C1_EMER_Z2_3",3,"Extintor polvo químico seco clase ABC portátil de 20 libras",1,2,"unidad","Und","Productos de Seguridad S.A (Prodeseg)",72196.878874112823,1,"C1_EMER_Z2_3 Extintor polvo quimico seco clase ABC portatil de 20 libras",1]
["Productos de Seguridad S.A (Prodeseg)C1_EMER_Z2_4","C1_EMER_Z2_4",4,"Extintor polvo químico seco clase ABC portátil de 30 libras",1,2,"unidad","Und","Productos de Seguridad S.A (Prodeseg)",93992.867732184604,1,"C1_EMER_Z2_4 Extintor polvo quimico seco clase ABC portatil de 30 libras",1]
["Productos de Seguridad S.A (Prodeseg)C1_EMER_Z2_5","C1_EMER_Z2_5",5,"Extintor polvo químico seco clase ABC rodante de 50 libras",1,2,"unidad","Und","Productos de Seguridad S.A (Prodeseg)",694702.58512307692,1,"C1_EMER_Z2_5 Extintor polvo quimico seco clase ABC rodante de 50 libras",1]
["Productos de Seguridad S.A (Prodeseg)C1_EMER_Z2_6","C1_EMER_Z2_6",6,"Extintor polvo químico seco clase ABC rodante de 150 libras",1,2,"unidad","Und","Productos de Seguridad S.A (Prodeseg)",789317.51263076928,1,"C1_EMER_Z2_6 Extintor polvo quimico seco clase ABC rodante de 150 libras",1]
["Productos de Seguridad S.A (Prodeseg)C1_EMER_Z2_7","C1_EMER_Z2_7",7,"Extintor de agua de  2 ½  galones",1,2,"unidad","Und","Productos de Seguridad S.A (Prodeseg)",147191.96598084102,1,"C1_EMER_Z2_7 Extintor de agua de  2 y medio galones",1]
["Productos de Seguridad S.A (Prodeseg)C1_EMER_Z2_8","C1_EMER_Z2_8",8,"Extintor de agua de 14 galones tipo satelite",1,2,"unidad","Und","Productos de Seguridad S.A (Prodeseg)",1073780.9100307692,1,"C1_EMER_Z2_8 Extintor de agua de 14 galones tipo satelite",1]
["Productos de Seguridad S.A (Prodeseg)C1_EMER_Z2_9","C1_EMER_Z2_9",9,"Extintor de agente limpio HCFC de 2500 gramos",1,2,"unidad","Und","Productos de Seguridad S.A (Prodeseg)",168696.72636551541,1,"C1_EMER_Z2_9 Extintor de agente limpio HCFC de 2500 gramos",1]
["Productos de Seguridad S.A (Prodeseg)C1_EMER_Z2_10","C1_EMER_Z2_10",10,"Extintor de agente limpio HCFC de 3700 gramos",1,2,"unidad","Und","Productos de Seguridad S.A (Prodeseg)",247373.08776923077,1,"C1_EMER_Z2_10 Extintor de agente limpio HCFC de 3700 gramos",1]
["Productos de Seguridad S.A (Prodeseg)C1_EMER_Z2_11","C1_EMER_Z2_11",11,"Extintor de agente limpio HCFC de 7000 gramos",1,2,"unidad","Und","Productos de Seguridad S.A (Prodeseg)",412902.3143592308,1,"C1_EMER_Z2_11 Extintor de agente limpio HCFC de 7000 gramos",1]
["Productos de Seguridad S.A (Prodeseg)C1_EMER_Z2_12","C1_EMER_Z2_12",12,"Extintor de agente limpio HCFC de 9000 gramos",1,2,"unidad","Und","Productos de Seguridad S.A (Prodeseg)",491553.48029803083,1,"C1_EMER_Z2_12 Extintor de agente limpio HCFC de 9000 gramos",1]
["Productos de Seguridad S.A (Prodeseg)C1_EMER_Z2_13","C1_EMER_Z2_13",13,"Extintor de CO2 de 5 libras",1,2,"unidad","Und","Productos de Seguridad S.A (Prodeseg)",183914.78741461539,1,"C1_EMER_Z2_13 Extintor de CO2 de 5 libras",1]
["Productos de Seguridad S.A (Prodeseg)C1_EMER_Z2_14","C1_EMER_Z2_14",14,"Extintor de CO2 de 10 libras",1,2,"unidad","Und","Productos de Seguridad S.A (Prodeseg)",281608.28876923077,1,"C1_EMER_Z2_14 Extintor de CO2 de 10 libras",1]
["Productos de Seguridad S.A (Prodeseg)C1_EMER_Z2_15","C1_EMER_Z2_15",15,"Extintor de CO2 de 15 libras",1,2,"unidad","Und","Productos de Seguridad S.A (Prodeseg)",368853.92451923079,1,"C1_EMER_Z2_15 Extintor de CO2 de 15 libras",1]
["Productos de Seguridad S.A (Prodeseg)C1_EMER_Z2_16","C1_EMER_Z2_16",16,"Extintor de CO2 de 20 libras",1,2,"unidad","Und","Productos de Seguridad S.A (Prodeseg)",466491.90586923074,1,"C1_EMER_Z2_16 Extintor de CO2 de 20 libras",1]
["Productos de Seguridad S.A (Prodeseg)C1_EMER_Z2_17","C1_EMER_Z2_17",17,"Extintor de CO2 de 50 libras tipo carretilla",1,2,"unidad","Und","Productos de Seguridad S.A (Prodeseg)",1643512.7493015002,1,"C1_EMER_Z2_17 Extintor de CO2 de 50 libras tipo carretilla",1]
["Productos de Seguridad S.A (Prodeseg)C1_EMER_Z2_18","C1_EMER_Z2_18",18,"Extintor de CO2 de 100 libras tipo carretilla",1,2,"unidad","Und","Productos de Seguridad S.A (Prodeseg)",2836977.2324227383,1,"C1_EMER_Z2_18 Extintor de CO2 de 100 libras tipo carretilla",1]
["Productos de Seguridad S.A (Prodeseg)C1_EMER_Z2_19","C1_EMER_Z2_19",19,"Extintor de AFFF de 6 Litros ",1,2,"unidad","Und","Productos de Seguridad S.A (Prodeseg)",139739.32607731028,1,"C1_EMER_Z2_19 Extintor de AFFF de 6 Litros ",1]
["Productos de Seguridad S.A (Prodeseg)C1_EMER_Z2_20","C1_EMER_Z2_20",20,"Extintor de AFFF de 9,5 Litros ",1,2,"unidad","Und","Productos de Seguridad S.A (Prodeseg)",175234.2018646154,1,"C1_EMER_Z2_20 Extintor de AFFF de 9,5 Litros ",1]
["Productos de Seguridad S.A (Prodeseg)C1_EMER_Z2_21","C1_EMER_Z2_21",21,"Extintor tipo k de 6 Litros ",1,2,"unidad","Und","Productos de Seguridad S.A (Prodeseg)",452586.41972013074,1,"C1_EMER_Z2_21 Extintor tipo k de 6 Litros ",1]
["Productos de Seguridad S.A (Prodeseg)C1_EMER_Z2_22","C1_EMER_Z2_22",22,"Extintortipo k de 2,5 galones ",1,2,"unidad","Und","Productos de Seguridad S.A (Prodeseg)",631454.15422923071,1,"C1_EMER_Z2_22 Extintortipo k de 2,5 galones ",1]
["Productos de Seguridad S.A (Prodeseg)C1_EMER_Z2_23","C1_EMER_Z2_23",23,"Aviso o señalización del Extintor",1,2,"unidad","Und","Productos de Seguridad S.A (Prodeseg)",2237.9349999999999,1,"C1_EMER_Z2_23 Aviso o senalizacion del Extintor",1]
["Productos de Seguridad S.A (Prodeseg)C1_EMER_Z2_24","C1_EMER_Z2_24",24,"Soporte de piso tipo pedestal para Extintor 10lb",1,2,"unidad","Und","Productos de Seguridad S.A (Prodeseg)",17575.5965,1,"C1_EMER_Z2_24 Soporte de piso tipo pedestal para Extintor 10lb",1]
["Productos de Seguridad S.A (Prodeseg)C1_EMER_Z2_25","C1_EMER_Z2_25",25,"Soporte de piso tipo pedestal para Extintor 20lb",1,2,"unidad","Und","Productos de Seguridad S.A (Prodeseg)",18761.1816,1,"C1_EMER_Z2_25 Soporte de piso tipo pedestal para Extintor 20lb",1]
["Productos de Seguridad S.A (Prodeseg)C1_EMER_Z2_26","C1_EMER_Z2_26",26,"Soporte de piso tipo pedestal para Extintor 30lb",1,2,"unidad","Und","Productos de Seguridad S.A (Prodeseg)",18761.1816,1,"C1_EMER_Z2_26 Soporte de piso tipo pedestal para Extintor 30lb",1]
["Productos de Seguridad S.A (Prodeseg)C1_EMER_Z2_27","C1_EMER_Z2_27",27,"Mantenimiento Preventivo",1,2,"unidad","Und","Productos de Seguridad S.A (Prodeseg)",31226.999999999996,1,"C1_EMER_Z2_27 Mantenimiento Preventivo",1]
["Productos de Seguridad S.A (Prodeseg)C1_EMER_Z2_28","C1_EMER_Z2_28",28,"Recarga de Extintor polvo químico seco clase ABC portátil de 5 libras",1,2,"unidad","Und","Productos de Seguridad S.A (Prodeseg)",23324.148987569231,1,"C1_EMER_Z2_28 Recarga de Extintor polvo quimico seco clase ABC portatil de 5 libras",1]
["Productos de Seguridad S.A (Prodeseg)C1_EMER_Z2_29","C1_EMER_Z2_29",29,"Recarga de Extintor polvo químico seco clase ABC portátil de 10 libras",1,2,"unidad","Und","Productos de Seguridad S.A (Prodeseg)",41260.609823999999,1,"C1_EMER_Z2_29 Recarga de Extintor polvo quimico seco clase ABC portatil de 10 libras",1]
["Productos de Seguridad S.A (Prodeseg)C1_EMER_Z2_30","C1_EMER_Z2_30",30,"Recarga de Extintor polvo químico seco clase ABC portátil de 20 libras",1,2,"unidad","Und","Productos de Seguridad S.A (Prodeseg)",67783.429229784626,1,"C1_EMER_Z2_30 Recarga de Extintor polvo quimico seco clase ABC portatil de 20 libras",1]
["Productos de Seguridad S.A (Prodeseg)C1_EMER_Z2_31","C1_EMER_Z2_31",31,"Recarga de Extintor polvo químico seco clase ABC portátil de 30 libras",1,2,"unidad","Und","Productos de Seguridad S.A (Prodeseg)",91422.719728738462,1,"C1_EMER_Z2_31 Recarga de Extintor polvo quimico seco clase ABC portatil de 30 libras",1]
["Productos de Seguridad S.A (Prodeseg)C1_EMER_Z2_32","C1_EMER_Z2_32",32,"Recarga de Extintor polvo químico seco clase ABC rodante de 50 libras",1,2,"unidad","Und","Productos de Seguridad S.A (Prodeseg)",516772.26009230776,1,"C1_EMER_Z2_32 Recarga de Extintor polvo quimico seco clase ABC rodante de 50 libras",1]
["Productos de Seguridad S.A (Prodeseg)C1_EMER_Z2_33","C1_EMER_Z2_33",33,"Recarga de Extintor polvo químico seco clase ABC rodante de 150 libras",1,2,"unidad","Und","Productos de Seguridad S.A (Prodeseg)",694546.45012307691,1,"C1_EMER_Z2_33 Recarga de Extintor polvo quimico seco clase ABC rodante de 150 libras",1]
["Productos de Seguridad S.A (Prodeseg)C1_EMER_Z2_34","C1_EMER_Z2_34",34,"Recarga de Extintor de agua de  2 ½  galones",1,2,"unidad","Und","Productos de Seguridad S.A (Prodeseg)",65486.615923364108,1,"C1_EMER_Z2_34 Recarga de Extintor de agua de  2 y medio galones",1]
["Productos de Seguridad S.A (Prodeseg)C1_EMER_Z2_35","C1_EMER_Z2_35",35,"Recarga de Extintor de agua de 14 galones tipo satelite",1,2,"unidad","Und","Productos de Seguridad S.A (Prodeseg)",612939.89012307697,1,"C1_EMER_Z2_35 Recarga de Extintor de agua de 14 galones tipo satelite",1]
["Productos de Seguridad S.A (Prodeseg)C1_EMER_Z2_36","C1_EMER_Z2_36",36,"Recarga de Extintor de agente limpio HCFC de 2500 gramos",1,2,"unidad","Und","Productos de Seguridad S.A (Prodeseg)",210996.83553846151,1,"C1_EMER_Z2_36 Recarga de Extintor de agente limpio HCFC de 2500 gramos",1]
["Productos de Seguridad S.A (Prodeseg)C1_EMER_Z2_37","C1_EMER_Z2_37",37,"Recarga de Extintor de agente limpio HCFC de 3700 gramos",1,2,"unidad","Und","Productos de Seguridad S.A (Prodeseg)",257837.33553846151,1,"C1_EMER_Z2_37 Recarga de Extintor de agente limpio HCFC de 3700 gramos",1]
["Productos de Seguridad S.A (Prodeseg)C1_EMER_Z2_38","C1_EMER_Z2_38",38,"Recarga de Extintor de agente limpio HCFC de 7000 gramos",1,2,"unidad","Und","Productos de Seguridad S.A (Prodeseg)",487147.44684268878,1,"C1_EMER_Z2_38 Recarga de Extintor de agente limpio HCFC de 7000 gramos",1]
["Productos de Seguridad S.A (Prodeseg)C1_EMER_Z2_39","C1_EMER_Z2_39",39,"Recarga de Extintor de agente limpio HCFC de 9000 gramos",1,2,"unidad","Und","Productos de Seguridad S.A (Prodeseg)",578753.21107692306,1,"C1_EMER_Z2_39 Recarga de Extintor de agente limpio HCFC de 9000 gramos",1]
["Productos de Seguridad S.A (Prodeseg)C1_EMER_Z2_40","C1_EMER_Z2_40",40,"Recarga de Extintor de CO2 de 5 libras",1,2,"unidad","Und","Productos de Seguridad S.A (Prodeseg)",99075.341755193323,1,"C1_EMER_Z2_40 Recarga de Extintor de CO2 de 5 libras",1]
["Productos de Seguridad S.A (Prodeseg)C1_EMER_Z2_41","C1_EMER_Z2_41",41,"Recarga de Extintor de CO2 de 10 libras",1,2,"unidad","Und","Productos de Seguridad S.A (Prodeseg)",175271.04212915484,1,"C1_EMER_Z2_41 Recarga de Extintor de CO2 de 10 libras",1]
["Productos de Seguridad S.A (Prodeseg)C1_EMER_Z2_42","C1_EMER_Z2_42",42,"Recarga de Extintor de CO2 de 15 libras",1,2,"unidad","Und","Productos de Seguridad S.A (Prodeseg)",185971.20788165485,1,"C1_EMER_Z2_42 Recarga de Extintor de CO2 de 15 libras",1]
["Productos de Seguridad S.A (Prodeseg)C1_EMER_Z2_43","C1_EMER_Z2_43",43,"Recarga de Extintor de CO2 de 20 libras",1,2,"unidad","Und","Productos de Seguridad S.A (Prodeseg)",229259.68753615633,1,"C1_EMER_Z2_43 Recarga de Extintor de CO2 de 20 libras",1]
["Productos de Seguridad S.A (Prodeseg)C1_EMER_Z2_44","C1_EMER_Z2_44",44,"Recarga de Extintor de CO2 de 50 libras tipo carretilla",1,2,"unidad","Und","Productos de Seguridad S.A (Prodeseg)",1206382.3798083295,1,"C1_EMER_Z2_44 Recarga de Extintor de CO2 de 50 libras tipo carretilla",1]
["Productos de Seguridad S.A (Prodeseg)C1_EMER_Z2_45","C1_EMER_Z2_45",45,"Recarga de Extintor de CO2 de 100 libras tipo carretilla",1,2,"unidad","Und","Productos de Seguridad S.A (Prodeseg)",1562216.70919033,1,"C1_EMER_Z2_45 Recarga de Extintor de CO2 de 100 libras tipo carretilla",1]
["Productos de Seguridad S.A (Prodeseg)C1_EMER_Z2_46","C1_EMER_Z2_46",46,"Recarga de Extintor de AFFF de 6 Litros ",1,2,"unidad","Und","Productos de Seguridad S.A (Prodeseg)",56768.01702564102,1,"C1_EMER_Z2_46 Recarga de Extintor de AFFF de 6 Litros ",1]
["Productos de Seguridad S.A (Prodeseg)C1_EMER_Z2_47","C1_EMER_Z2_47",47,"Recarga de Extintor de AFFF de 9,5 Litros ",1,2,"unidad","Und","Productos de Seguridad S.A (Prodeseg)",81404.785538461525,1,"C1_EMER_Z2_47 Recarga de Extintor de AFFF de 9,5 Litros ",1]
["Productos de Seguridad S.A (Prodeseg)C1_EMER_Z2_48","C1_EMER_Z2_48",48,"Recarga de Extintor tipo k de 6 Litros ",1,2,"unidad","Und","Productos de Seguridad S.A (Prodeseg)",380149.49107692303,1,"C1_EMER_Z2_48 Recarga de Extintor tipo k de 6 Litros ",1]
["Productos de Seguridad S.A (Prodeseg)C1_EMER_Z2_49","C1_EMER_Z2_49",49,"Recarga de Extintortipo k de 2,5 galones ",1,2,"unidad","Und","Productos de Seguridad S.A (Prodeseg)",516403.30107692303,1,"C1_EMER_Z2_49 Recarga de Extintortipo k de 2,5 galones ",1]
["Productos de Seguridad S.A (Prodeseg)C1_EMER_Z2_50","C1_EMER_Z2_50",50,"Mantenimiento Correctivo - pasador de seguridad",1,2,"unidad","Und","Productos de Seguridad S.A (Prodeseg)",284.16569999999996,1,"C1_EMER_Z2_50 Mantenimiento Correctivo - pasador de seguridad",1]
["Productos de Seguridad S.A (Prodeseg)C1_EMER_Z2_51","C1_EMER_Z2_51",51,"Mantenimiento correctivo   sello plástico ",1,2,"unidad","Und","Productos de Seguridad S.A (Prodeseg)",531.8999,1,"C1_EMER_Z2_51 Mantenimiento correctivo   sello plastico ",1]
["Productos de Seguridad S.A (Prodeseg)C1_EMER_Z2_52","C1_EMER_Z2_52",52,"Mantenimiento correctivo - anillo de verificación",1,2,"unidad","Und","Productos de Seguridad S.A (Prodeseg)",61.413099999999993,1,"C1_EMER_Z2_52 Mantenimiento correctivo - anillo de verificacion",1]
["Productos de Seguridad S.A (Prodeseg)C1_EMER_Z2_53","C1_EMER_Z2_53",53,"Mantenimiento correctivo - calcomania ",1,2,"unidad","Und","Productos de Seguridad S.A (Prodeseg)",649.52159999999992,1,"C1_EMER_Z2_53 Mantenimiento correctivo - calcomania ",1]
["Productos de Seguridad S.A (Prodeseg)C1_EMER_Z2_54","C1_EMER_Z2_54",54,"Pintura extintor de 5 lbs amarillo",1,2,"unidad","Und","Productos de Seguridad S.A (Prodeseg)",13427.609999999999,1,"C1_EMER_Z2_54 Pintura extintor de 5 lbs amarillo",1]
["Productos de Seguridad S.A (Prodeseg)C1_EMER_Z2_55","C1_EMER_Z2_55",55,"pintura extintor de 10 lbs amarillo",1,2,"unidad","Und","Productos de Seguridad S.A (Prodeseg)",15613.499999999998,1,"C1_EMER_Z2_55 pintura extintor de 10 lbs amarillo",1]
["Productos de Seguridad S.A (Prodeseg)C1_EMER_Z2_56","C1_EMER_Z2_56",56,"pintura extintor de 20 lbs amarillo",1,2,"unidad","Und","Productos de Seguridad S.A (Prodeseg)",20089.37,1,"C1_EMER_Z2_56 pintura extintor de 20 lbs amarillo",1]
["Productos de Seguridad S.A (Prodeseg)C1_EMER_Z2_57","C1_EMER_Z2_57",57,"pintura extintor de 30 lbs amarillo",1,2,"unidad","Und","Productos de Seguridad S.A (Prodeseg)",21338.449999999997,1,"C1_EMER_Z2_57 pintura extintor de 30 lbs amarillo",1]
["Productos de Seguridad S.A (Prodeseg)C1_EMER_Z2_58","C1_EMER_Z2_58",58,"pintura extintor de 150 libras robot",1,2,"unidad","Und","Productos de Seguridad S.A (Prodeseg)",89101.04,1,"C1_EMER_Z2_58 pintura extintor de 150 libras robot",1]
["Productos de Seguridad S.A (Prodeseg)C1_EMER_Z2_59","C1_EMER_Z2_59",59,"pintura extintor de 150 libras satelite",1,2,"unidad","Und","Productos de Seguridad S.A (Prodeseg)",89101.04,1,"C1_EMER_Z2_59 pintura extintor de 150 libras satelite",1]
["Productos de Seguridad S.A (Prodeseg)C1_EMER_Z2_60","C1_EMER_Z2_60",60,"pintura extintor de 2.5 kg blanco",1,2,"unidad","Und","Productos de Seguridad S.A (Prodeseg)",13427.609999999999,1,"C1_EMER_Z2_60 pintura extintor de 2.5 kg blanco",1]
["Productos de Seguridad S.A (Prodeseg)C1_EMER_Z2_61","C1_EMER_Z2_61",61,"pintura extintor de 3.7 kg blanco",1,2,"unidad","Und","Productos de Seguridad S.A (Prodeseg)",15613.499999999998,1,"C1_EMER_Z2_61 pintura extintor de 3.7 kg blanco",1]
[{"$f":"I259&B259","v":"Productos de Seguridad S.A (Prodeseg)C1_EMER_Z2_62"},{"$f":"\"C\"&E259&\"_EMER_Z\"&F259&\"_\"&C259","v":"C1_EMER_Z2_62"},62,"pintura extintor de 9 kg blanco",1,2,"unidad","Und","Productos de Seguridad S.A (Prodeseg)",20089.37,1,"C1_EMER_Z2_62 pintura extintor de 9 kg blanco",1]
["Productos de Seguridad S.A (Prodeseg)C1_EMER_Z2_63","C1_EMER_Z2_63",63,"pintura extintor de 5 lbs rojo co2",1,2,"unidad","Und","Productos de Seguridad S.A (Prodeseg)",13427.609999999999,1,"C1_EMER_Z2_63 pintura extintor de 5 lbs rojo co2",1]
["Productos de Seguridad S.A (Prodeseg)C1_EMER_Z2_64","C1_EMER_Z2_64",64,"pintura extintor de 10 lbs rojo co2",1,2,"unidad","Und","Productos de Seguridad S.A (Prodeseg)",15613.499999999998,1,"C1_EMER_Z2_64 pintura extintor de 10 lbs rojo co2",1]
["Productos de Seguridad S.A (Prodeseg)C1_EMER_Z2_65","C1_EMER_Z2_65",65,"pintura extintor de 15 lbs rojo co2",1,2,"unidad","Und","Productos de Seguridad S.A (Prodeseg)",16446.219999999998,1,"C1_EMER_Z2_65 pintura extintor de 15 lbs rojo co2",1]
["Productos de Seguridad S.A (Prodeseg)C1_EMER_Z2_66","C1_EMER_Z2_66",66,"pintura extintor de 50 lbs rojo co2",1,2,"unidad","Und","Productos de Seguridad S.A (Prodeseg)",88476.5,1,"C1_EMER_Z2_66 pintura extintor de 50 lbs rojo co2",1]
["Productos de Seguridad S.A (Prodeseg)C1_EMER_Z2_67","C1_EMER_Z2_67",67,"pintura extintor de 100 libras / carretilla co2",1,2,"unidad","Und","Productos de Seguridad S.A (Prodeseg)",100967.29999999999,1,"C1_EMER_Z2_67 pintura extintor de 100 libras / carretilla co2",1]
["Productos de Seguridad S.A (Prodeseg)C1_EMER_Z2_68","C1_EMER_Z2_68",68,"prueba hidrostatica cilindro de co2 de 5 libras ",1,2,"unidad","Und","Productos de Seguridad S.A (Prodeseg)",104922.71999999999,1,"C1_EMER_Z2_68 prueba hidrostatica cilindro de co2 de 5 libras ",1]
["Productos de Seguridad S.A (Prodeseg)C1_EMER_Z2_69","C1_EMER_Z2_69",69,"prueba hidrostatica ext de co2 de 10-15-20 lb ",1,2,"unidad","Und","Productos de Seguridad S.A (Prodeseg)",104922.71999999999,1,"C1_EMER_Z2_69 prueba hidrostatica ext de co2 de 10-15-20 lb ",1]
["Productos de Seguridad S.A (Prodeseg)C1_EMER_Z2_70","C1_EMER_Z2_70",70,"prueba hidrostatica ext de co2 de 50 lb ",1,2,"unidad","Und","Productos de Seguridad S.A (Prodeseg)",169042.16,1,"C1_EMER_Z2_70 prueba hidrostatica ext de co2 de 50 lb ",1]
["Productos de Seguridad S.A (Prodeseg)C1_EMER_Z2_71","C1_EMER_Z2_71",71,"prueba hidrostatica cilindro co2 de 100 lb ",1,2,"unidad","Und","Productos de Seguridad S.A (Prodeseg)",206098.19999999998,1,"C1_EMER_Z2_71 prueba hidrostatica cilindro co2 de 100 lb ",1]
["Productos de Seguridad S.A (Prodeseg)C1_EMER_Z2_72","C1_EMER_Z2_72",72,"prueba hidrostatica para cilindro 5 lb",1,2,"unidad","Und","Productos de Seguridad S.A (Prodeseg)",8327.1999999999989,1,"C1_EMER_Z2_72 prueba hidrostatica para cilindro 5 lb",1]
["Productos de Seguridad S.A (Prodeseg)C1_EMER_Z2_73","C1_EMER_Z2_73",73,"prueba hidrostatica para cilindro 10 lb",1,2,"unidad","Und","Productos de Seguridad S.A (Prodeseg)",8327.1999999999989,1,"C1_EMER_Z2_73 prueba hidrostatica para cilindro 10 lb",1]
["Productos de Seguridad S.A (Prodeseg)C1_EMER_Z2_74","C1_EMER_Z2_74",74,"prueba hidrostatica para cilindro 20 lb",1,2,"unidad","Und","Productos de Seguridad S.A (Prodeseg)",8327.1999999999989,1,"C1_EMER_Z2_74 prueba hidrostatica para cilindro 20 lb",1]
["Productos de Seguridad S.A (Prodeseg)C1_EMER_Z2_75","C1_EMER_Z2_75",75,"prueba hidrostatica para cilindro 30 lb",1,2,"unidad","Und","Productos de Seguridad S.A (Prodeseg)",8327.1999999999989,1,"C1_EMER_Z2_75 prueba hidrostatica para cilindro 30 lb",1]
["Productos de Seguridad S.A (Prodeseg)C1_EMER_Z2_76","C1_EMER_Z2_76",76,"prueba hidrostatica para cilindro 150 lb robot",1,2,"unidad","Und","Productos de Seguridad S.A (Prodeseg)",44550.52,1,"C1_EMER_Z2_76 prueba hidrostatica para cilindro 150 lb robot",1]
["Productos de Seguridad S.A (Prodeseg)C1_EMER_Z2_77","C1_EMER_Z2_77",77,"prueba hidrostatica para cilindro 150 lb satelite",1,2,"unidad","Und","Productos de Seguridad S.A (Prodeseg)",44550.52,1,"C1_EMER_Z2_77 prueba hidrostatica para cilindro 150 lb satelite",1]
["Productos de Seguridad S.A (Prodeseg)C1_EMER_Z2_78","C1_EMER_Z2_78",78,"cilindro p/extintor agua 2,5 gal/ac inox",1,2,"unidad","Und","Productos de Seguridad S.A (Prodeseg)",108246.3137,1,"C1_EMER_Z2_78 cilindro p/extintor agua 2,5 gal/ac inox",1]
["Productos de Seguridad S.A (Prodeseg)C1_EMER_Z2_79","C1_EMER_Z2_79",79,"cilindro p/extintor 5 lbs amarillo Cold Roll cal 18",1,2,"unidad","Und","Productos de Seguridad S.A (Prodeseg)",7121.8377999999993,1,"C1_EMER_Z2_79 cilindro p/extintor 5 lbs amarillo Cold Roll cal 18",1]
["Productos de Seguridad S.A (Prodeseg)C1_EMER_Z2_80","C1_EMER_Z2_80",80,"cilindro p/extintor 5 lbs blanco Cold Roll cal 18",1,2,"unidad","Und","Productos de Seguridad S.A (Prodeseg)",7121.8377999999993,1,"C1_EMER_Z2_80 cilindro p/extintor 5 lbs blanco Cold Roll cal 18",1]
["Productos de Seguridad S.A (Prodeseg)C1_EMER_Z2_81","C1_EMER_Z2_81",81,"cilindro p/extintor 5lbs rojo Cold Roll cal 18",1,2,"unidad","Und","Productos de Seguridad S.A (Prodeseg)",7121.8377999999993,1,"C1_EMER_Z2_81 cilindro p/extintor 5lbs rojo Cold Roll cal 18",1]
["Productos de Seguridad S.A (Prodeseg)C1_EMER_Z2_82","C1_EMER_Z2_82",82,"cilindro p/extintor 10 lbs amarillo Cold Roll cal 18",1,2,"unidad","Und","Productos de Seguridad S.A (Prodeseg)",6069.4879000000001,1,"C1_EMER_Z2_82 cilindro p/extintor 10 lbs amarillo Cold Roll cal 18",1]
["Productos de Seguridad S.A (Prodeseg)C1_EMER_Z2_83","C1_EMER_Z2_83",83,"cilindro p/extintor 10 lbs blanco Cold Roll cal 18",1,2,"unidad","Und","Productos de Seguridad S.A (Prodeseg)",6069.4879000000001,1,"C1_EMER_Z2_83 cilindro p/extintor 10 lbs blanco Cold Roll cal 18",1]
["Productos de Seguridad S.A (Prodeseg)C1_EMER_Z2_84","C1_EMER_Z2_84",84,"cilindro p/extintor 10 lbs rojo Cold Roll  cal 18",1,2,"unidad","Und","Productos de Seguridad S.A (Prodeseg)",6069.4879000000001,1,"C1_EMER_Z2_84 cilindro p/extintor 10 lbs rojo Cold Roll  cal 18",1]
["Productos de Seguridad S.A (Prodeseg)C1_EMER_Z2_85","C1_EMER_Z2_85",85,"cilindro p/extintor 20 lbs Cold Roll cal 16 amarillo",1,2,"unidad","Und","Productos de Seguridad S.A (Prodeseg)",16014.246499999999,1,"C1_EMER_Z2_85 cilindro p/extintor 20 lbs Cold Roll cal 16 amarillo",1]
["Productos de Seguridad S.A (Prodeseg)C1_EMER_Z2_86","C1_EMER_Z2_86",86,"cilindro p/extintor 20 lbs Cold Roll  cal 16 blanco",1,2,"unidad","Und","Productos de Seguridad S.A (Prodeseg)",16014.246499999999,1,"C1_EMER_Z2_86 cilindro p/extintor 20 lbs Cold Roll  cal 16 blanco",1]
["Productos de Seguridad S.A (Prodeseg)C1_EMER_Z2_87","C1_EMER_Z2_87",87,"cilindro p/extintor 20 lbs Cold Roll  cal 16 rojo",1,2,"unidad","Und","Productos de Seguridad S.A (Prodeseg)",16014.246499999999,1,"C1_EMER_Z2_87 cilindro p/extintor 20 lbs Cold Roll  cal 16 rojo",1]
["Productos de Seguridad S.A (Prodeseg)C1_EMER_Z2_88","C1_EMER_Z2_88",88,"manguera en pvc p/extintor de 4 kgs c/acoples",1,2,"unidad","Und","Productos de Seguridad S.A (Prodeseg)",979.48689999999999,1,"C1_EMER_Z2_88 manguera en pvc p/extintor de 4 kgs c/acoples",1]
["Productos de Seguridad S.A (Prodeseg)C1_EMER_Z2_89","C1_EMER_Z2_89",89,"manguera termoplastica agua 2.1/2 gl 250",1,2,"unidad","Und","Productos de Seguridad S.A (Prodeseg)",1937.1148999999998,1,"C1_EMER_Z2_89 manguera termoplastica agua 2.1/2 gl 250",1]
["Productos de Seguridad S.A (Prodeseg)C1_EMER_Z2_90","C1_EMER_Z2_90",90,"manguera termoplastica ext.agente l. 3.7/9.0 v/pr",1,2,"unidad","Und","Productos de Seguridad S.A (Prodeseg)",2335.7795999999998,1,"C1_EMER_Z2_90 manguera termoplastica ext.agente l. 3.7/9.0 v/pr",1]
["Productos de Seguridad S.A (Prodeseg)C1_EMER_Z2_91","C1_EMER_Z2_91",91,"manguera caucho lona ext 10/20 lbs 200 acople 14mm",1,2,"unidad","Und","Productos de Seguridad S.A (Prodeseg)",4638.2503999999999,1,"C1_EMER_Z2_91 manguera caucho lona ext 10/20 lbs 200 acople 14mm",1]
["Productos de Seguridad S.A (Prodeseg)C1_EMER_Z2_92","C1_EMER_Z2_92",92,"tubo sifon ext. pqs 10/20 lbs pvc",1,2,"unidad","Und","Productos de Seguridad S.A (Prodeseg)",421.56449999999995,1,"C1_EMER_Z2_92 tubo sifon ext. pqs 10/20 lbs pvc",1]
["Productos de Seguridad S.A (Prodeseg)C1_EMER_Z2_93","C1_EMER_Z2_93",93,"valvula para extintor 30 mm /acople 14mm",1,2,"unidad","Und","Productos de Seguridad S.A (Prodeseg)",4735.0540999999994,1,"C1_EMER_Z2_93 valvula para extintor 30 mm /acople 14mm",1]
["Productos de Seguridad S.A (Prodeseg)C1_EMER_Z2_94","C1_EMER_Z2_94",94,"valvula p/extintor 7/8\"",1,2,"unidad","Und","Productos de Seguridad S.A (Prodeseg)",3596.3094999999998,1,"C1_EMER_Z2_94 valvula p/extintor 7/8 pulgadas",1]
["Productos de Seguridad S.A (Prodeseg)C1_EMER_Z2_95","C1_EMER_Z2_95",95,"manometro 125 psi caja metalica",1,2,"unidad","Und","Productos de Seguridad S.A (Prodeseg)",1593.6179,1,"C1_EMER_Z2_95 manometro 125 psi caja metalica",1]
["Productos de Seguridad S.A (Prodeseg)C1_EMER_Z2_96","C1_EMER_Z2_96",96,"manometro 150 psi caja metalica",1,2,"unidad","Und","Productos de Seguridad S.A (Prodeseg)",1745.5892999999999,1,"C1_EMER_Z2_96 manometro 150 psi caja metalica",1]
["Productos de Seguridad S.A (Prodeseg)C1_EMER_Z2_97","C1_EMER_Z2_97",97,"manometro 175 psi caja metalica",1,2,"unidad","Und","Productos de Seguridad S.A (Prodeseg)",1544.6956,1,"C1_EMER_Z2_97 manometro 175 psi caja metalica",1]
["Productos de Seguridad S.A (Prodeseg)C1_EMER_Z2_98","C1_EMER_Z2_98",98,"manometro 195 psi caja metalica",1,2,"unidad","Und","Productos de Seguridad S.A (Prodeseg)",1193.9123,1,"C1_EMER_Z2_98 manometro 195 psi caja metalica",1]
["Coltech S.A.SC1_EMER_Z2_1","C1_EMER_Z2_1",1,"Extintor polvo químico seco clase ABC portátil de 5 libras",1,2,"unidad","Und","Coltech S.A.S",72384.186000000002,1,"C1_EMER_Z2_1 Extintor polvo quimico seco clase ABC portatil de 5 libras",1]
["Coltech S.A.SC1_EMER_Z2_2","C1_EMER_Z2_2",2,"Extintor polvo químico seco clase ABC portátil de 10 libras",1,2,"unidad","Und","Coltech S.A.S",85437.072,1,"C1_EMER_Z2_2 Extintor polvo quimico seco clase ABC portatil de 10 libras",1]
["Coltech S.A.SC1_EMER_Z2_3","C1_EMER_Z2_3",3,"Extintor polvo químico seco clase ABC portátil de 20 libras",1,2,"unidad","Und","Coltech S.A.S",118662.59999999999,1,"C1_EMER_Z2_3 Extintor polvo quimico seco clase ABC portatil de 20 libras",1]
["Coltech S.A.SC1_EMER_Z2_4","C1_EMER_Z2_4",4,"Extintor polvo químico seco clase ABC portátil de 30 libras",1,2,"unidad","Und","Coltech S.A.S",173247.39599999998,1,"C1_EMER_Z2_4 Extintor polvo quimico seco clase ABC portatil de 30 libras",1]
["Coltech S.A.SC1_EMER_Z2_5","C1_EMER_Z2_5",5,"Extintor polvo químico seco clase ABC rodante de 50 libras",1,2,"unidad","Und","Coltech S.A.S",1898601.5999999999,1,"C1_EMER_Z2_5 Extintor polvo quimico seco clase ABC rodante de 50 libras",1]
["Coltech S.A.SC1_EMER_Z2_6","C1_EMER_Z2_6",6,"Extintor polvo químico seco clase ABC rodante de 150 libras",1,2,"unidad","Und","Coltech S.A.S",2112194.2799999998,1,"C1_EMER_Z2_6 Extintor polvo quimico seco clase ABC rodante de 150 libras",1]
["Coltech S.A.SC1_EMER_Z2_7","C1_EMER_Z2_7",7,"Extintor de agua de  2 ½  galones",1,2,"unidad","Und","Coltech S.A.S",237562.52519999997,1,"C1_EMER_Z2_7 Extintor de agua de  2 y medio galones",1]
["Coltech S.A.SC1_EMER_Z2_8","C1_EMER_Z2_8",8,"Extintor de agua de 14 galones tipo satelite",1,2,"unidad","Und","Coltech S.A.S",2118127.4099999997,1,"C1_EMER_Z2_8 Extintor de agua de 14 galones tipo satelite",1]
["Coltech S.A.SC1_EMER_Z2_9","C1_EMER_Z2_9",9,"Extintor de agente limpio HCFC de 2500 gramos",1,2,"unidad","Und","Coltech S.A.S",280043.73599999998,1,"C1_EMER_Z2_9 Extintor de agente limpio HCFC de 2500 gramos",1]
["Coltech S.A.SC1_EMER_Z2_10","C1_EMER_Z2_10",10,"Extintor de agente limpio HCFC de 3700 gramos",1,2,"unidad","Und","Coltech S.A.S",332017.95480000001,1,"C1_EMER_Z2_10 Extintor de agente limpio HCFC de 3700 gramos",1]
["Coltech S.A.SC1_EMER_Z2_11","C1_EMER_Z2_11",11,"Extintor de agente limpio HCFC de 7000 gramos",1,2,"unidad","Und","Coltech S.A.S",830638.2,1,"C1_EMER_Z2_11 Extintor de agente limpio HCFC de 7000 gramos",1]
["Coltech S.A.SC1_EMER_Z2_12","C1_EMER_Z2_12",12,"Extintor de agente limpio HCFC de 9000 gramos",1,2,"unidad","Und","Coltech S.A.S",949300.79999999993,1,"C1_EMER_Z2_12 Extintor de agente limpio HCFC de 9000 gramos",1]
["Coltech S.A.SC1_EMER_Z2_13","C1_EMER_Z2_13",13,"Extintor de CO2 de 5 libras",1,2,"unidad","Und","Coltech S.A.S",332255.27999999997,1,"C1_EMER_Z2_13 Extintor de CO2 de 5 libras",1]
["Coltech S.A.SC1_EMER_Z2_14","C1_EMER_Z2_14",14,"Extintor de CO2 de 10 libras",1,2,"unidad","Und","Coltech S.A.S",593313,1,"C1_EMER_Z2_14 Extintor de CO2 de 10 libras",1]
["Coltech S.A.SC1_EMER_Z2_15","C1_EMER_Z2_15",15,"Extintor de CO2 de 15 libras",1,2,"unidad","Und","Coltech S.A.S",1423951.2,1,"C1_EMER_Z2_15 Extintor de CO2 de 15 libras",1]
["Coltech S.A.SC1_EMER_Z2_16","C1_EMER_Z2_16",16,"Extintor de CO2 de 20 libras",1,2,"unidad","Und","Coltech S.A.S",2017264.2,1,"C1_EMER_Z2_16 Extintor de CO2 de 20 libras",1]
["Coltech S.A.SC1_EMER_Z2_17","C1_EMER_Z2_17",17,"Extintor de CO2 de 50 libras tipo carretilla",1,2,"unidad","Und","Coltech S.A.S",6051792.5999999996,1,"C1_EMER_Z2_17 Extintor de CO2 de 50 libras tipo carretilla",1]
["Coltech S.A.SC1_EMER_Z2_18","C1_EMER_Z2_18",18,"Extintor de CO2 de 100 libras tipo carretilla",1,2,"unidad","Und","Coltech S.A.S",6051792.5999999996,1,"C1_EMER_Z2_18 Extintor de CO2 de 100 libras tipo carretilla",1]
["Coltech S.A.SC1_EMER_Z2_19","C1_EMER_Z2_19",19,"Extintor de AFFF de 6 Litros ",1,2,"unidad","Und","Coltech S.A.S",308522.76,1,"C1_EMER_Z2_19 Extintor de AFFF de 6 Litros ",1]
["Coltech S.A.SC1_EMER_Z2_20","C1_EMER_Z2_20",20,"Extintor de AFFF de 9,5 Litros ",1,2,"unidad","Und","Coltech S.A.S",2655668.9879999999,1,"C1_EMER_Z2_20 Extintor de AFFF de 9,5 Litros ",1]
["Coltech S.A.SC1_EMER_Z2_21","C1_EMER_Z2_21",21,"Extintor tipo k de 6 Litros ",1,2,"unidad","Und","Coltech S.A.S",830638.2,1,"C1_EMER_Z2_21 Extintor tipo k de 6 Litros ",1]
["Coltech S.A.SC1_EMER_Z2_22","C1_EMER_Z2_22",22,"Extintortipo k de 2,5 galones ",1,2,"unidad","Und","Coltech S.A.S",1186626,1,"C1_EMER_Z2_22 Extintortipo k de 2,5 galones ",1]
["Coltech S.A.SC1_EMER_Z2_23","C1_EMER_Z2_23",23,"Aviso o señalización del Extintor",1,2,"unidad","Und","Coltech S.A.S",14239.511999999999,1,"C1_EMER_Z2_23 Aviso o senalizacion del Extintor",1]
["Coltech S.A.SC1_EMER_Z2_24","C1_EMER_Z2_24",24,"Soporte de piso tipo pedestal para Extintor 10lb",1,2,"unidad","Und","Coltech S.A.S",71197.56,1,"C1_EMER_Z2_24 Soporte de piso tipo pedestal para Extintor 10lb",1]
["Coltech S.A.SC1_EMER_Z2_25","C1_EMER_Z2_25",25,"Soporte de piso tipo pedestal para Extintor 20lb",1,2,"unidad","Und","Coltech S.A.S",71197.56,1,"C1_EMER_Z2_25 Soporte de piso tipo pedestal para Extintor 20lb",1]
["Coltech S.A.SC1_EMER_Z2_26","C1_EMER_Z2_26",26,"Soporte de piso tipo pedestal para Extintor 30lb",1,2,"unidad","Und","Coltech S.A.S",71197.56,1,"C1_EMER_Z2_26 Soporte de piso tipo pedestal para Extintor 30lb",1]
["Coltech S.A.SC1_EMER_Z2_27","C1_EMER_Z2_27",27,"Mantenimiento Preventivo",1,2,"unidad","Und","Coltech S.A.S",289536.74400000001,1,"C1_EMER_Z2_27 Mantenimiento Preventivo",1]
[{"$f":"I323&B323","v":"Coltech S.A.SC1_EMER_Z2_28"},{"$f":"\"C\"&E323&\"_EMER_Z\"&F323&\"_\"&C323","v":"C1_EMER_Z2_28"},28,"Recarga de Extintor polvo químico seco clase ABC portátil de 5 libras",1,2,"unidad","Und","Coltech S.A.S",185113.65599999999,1,"C1_EMER_Z2_28 Recarga de Extintor polvo quimico seco clase ABC portatil de 5 libras",1]
["Coltech S.A.SC1_EMER_Z2_29","C1_EMER_Z2_29",29,"Recarga de Extintor polvo químico seco clase ABC portátil de 10 libras",1,2,"unidad","Und","Coltech S.A.S",185113.65599999999,1,"C1_EMER_Z2_29 Recarga de Extintor polvo quimico seco clase ABC portatil de 10 libras",1]
["Coltech S.A.SC1_EMER_Z2_30","C1_EMER_Z2_30",30,"Recarga de Extintor polvo químico seco clase ABC portátil de 20 libras",1,2,"unidad","Und","Coltech S.A.S",185113.65599999999,1,"C1_EMER_Z2_30 Recarga de Extintor polvo quimico seco clase ABC portatil de 20 libras",1]
["Coltech S.A.SC1_EMER_Z2_31","C1_EMER_Z2_31",31,"Recarga de Extintor polvo químico seco clase ABC portátil de 30 libras",1,2,"unidad","Und","Coltech S.A.S",185113.65599999999,1,"C1_EMER_Z2_31 Recarga de Extintor polvo quimico seco clase ABC portatil de 30 libras",1]
["Coltech S.A.SC1_EMER_Z2_32","C1_EMER_Z2_32",32,"Recarga de Extintor polvo químico seco clase ABC rodante de 50 libras",1,2,"unidad","Und","Coltech S.A.S",185113.65599999999,1,"C1_EMER_Z2_32 Recarga de Extintor polvo quimico seco clase ABC rodante de 50 libras",1]
["Coltech S.A.SC1_EMER_Z2_33","C1_EMER_Z2_33",33,"Recarga de Extintor polvo químico seco clase ABC rodante de 150 libras",1,2,"unidad","Und","Coltech S.A.S",185113.65599999999,1,"C1_EMER_Z2_33 Recarga de Extintor polvo quimico seco clase ABC rodante de 150 libras",1]
["Coltech S.A.SC1_EMER_Z2_34","C1_EMER_Z2_34",34,"Recarga de Extintor de agua de  2 ½  galones",1,2,"unidad","Und","Coltech S.A.S",185113.65599999999,1,"C1_EMER_Z2_34 Recarga de Extintor de agua de  2 y medio galones",1]
["Coltech S.A.SC1_EMER_Z2_35","C1_EMER_Z2_35",35,"Recarga de Extintor de agua de 14 galones tipo satelite",1,2,"unidad","Und","Coltech S.A.S",185113.65599999999,1,"C1_EMER_Z2_35 Recarga de Extintor de agua de 14 galones tipo satelite",1]
["Coltech S.A.SC1_EMER_Z2_36","C1_EMER_Z2_36",36,"Recarga de Extintor de agente limpio HCFC de 2500 gramos",1,2,"unidad","Und","Coltech S.A.S",185113.65599999999,1,"C1_EMER_Z2_36 Recarga de Extintor de agente limpio HCFC de 2500 gramos",1]
["Coltech S.A.SC1_EMER_Z2_37","C1_EMER_Z2_37",37,"Recarga de Extintor de agente limpio HCFC de 3700 gramos",1,2,"unidad","Und","Coltech S.A.S",185113.65599999999,1,"C1_EMER_Z2_37 Recarga de Extintor de agente limpio HCFC de 3700 gramos",1]
["Coltech S.A.SC1_EMER_Z2_38","C1_EMER_Z2_38",38,"Recarga de Extintor de agente limpio HCFC de 7000 gramos",1,2,"unidad","Und","Coltech S.A.S",185113.65599999999,1,"C1_EMER_Z2_38 Recarga de Extintor de agente limpio HCFC de 7000 gramos",1]
["Coltech S.A.SC1_EMER_Z2_39","C1_EMER_Z2_39",39,"Recarga de Extintor de agente limpio HCFC de 9000 gramos",1,2,"unidad","Und","Coltech S.A.S",185113.65599999999,1,"C1_EMER_Z2_39 Recarga de Extintor de agente limpio HCFC de 9000 gramos",1]
["Coltech S.A.SC1_EMER_Z2_40","C1_EMER_Z2_40",40,"Recarga de Extintor de CO2 de 5 libras",1,2,"unidad","Und","Coltech S.A.S",185113.65599999999,1,"C1_EMER_Z2_40 Recarga de Extintor de CO2 de 5 libras",1]
["Coltech S.A.SC1_EMER_Z2_41","C1_EMER_Z2_41",41,"Recarga de Extintor de CO2 de 10 libras",1,2,"unidad","Und","Coltech S.A.S",185113.65599999999,1,"C1_EMER_Z2_41 Recarga de Extintor de CO2 de 10 libras",1]
["Coltech S.A.SC1_EMER_Z2_42","C1_EMER_Z2_42",42,"Recarga de Extintor de CO2 de 15 libras",1,2,"unidad","Und","Coltech S.A.S",185113.65599999999,1,"C1_EMER_Z2_42 Recarga de Extintor de CO2 de 15 libras",1]
["Coltech S.A.SC1_EMER_Z2_43","C1_EMER_Z2_43",43,"Recarga de Extintor de CO2 de 20 libras",1,2,"unidad","Und","Coltech S.A.S",185113.65599999999,1,"C1_EMER_Z2_43 Recarga de Extintor de CO2 de 20 libras",1]
["Coltech S.A.SC1_EMER_Z2_44","C1_EMER_Z2_44",44,"Recarga de Extintor de CO2 de 50 libras tipo carretilla",1,2,"unidad","Und","Coltech S.A.S",185113.65599999999,1,"C1_EMER_Z2_44 Recarga de Extintor de CO2 de 50 libras tipo carretilla",1]
["Coltech S.A.SC1_EMER_Z2_45","C1_EMER_Z2_45",45,"Recarga de Extintor de CO2 de 100 libras tipo carretilla",1,2,"unidad","Und","Coltech S.A.S",185113.65599999999,1,"C1_EMER_Z2_45 Recarga de Extintor de CO2 de 100 libras tipo carretilla",1]
["Coltech S.A.SC1_EMER_Z2_46","C1_EMER_Z2_46",46,"Recarga de Extintor de AFFF de 6 Litros ",1,2,"unidad","Und","Coltech S.A.S",185113.65599999999,1,"C1_EMER_Z2_46 Recarga de Extintor de AFFF de 6 Litros ",1]
["Coltech S.A.SC1_EMER_Z2_47","C1_EMER_Z2_47",47,"Recarga de Extintor de AFFF de 9,5 Litros ",1,2,"unidad","Und","Coltech S.A.S",185113.65599999999,1,"C1_EMER_Z2_47 Recarga de Extintor de AFFF de 9,5 Litros ",1]
["Coltech S.A.SC1_EMER_Z2_48","C1_EMER_Z2_48",48,"Recarga de Extintor tipo k de 6 Litros ",1,2,"unidad","Und","Coltech S.A.S",185113.65599999999,1,"C1_EMER_Z2_48 Recarga de Extintor tipo k de 6 Litros ",1]
["Coltech S.A.SC1_EMER_Z2_49","C1_EMER_Z2_49",49,"Recarga de Extintortipo k de 2,5 galones ",1,2,"unidad","Und","Coltech S.A.S",185113.65599999999,1,"C1_EMER_Z2_49 Recarga de Extintortipo k de 2,5 galones ",1]
["Coltech S.A.SC1_EMER_Z2_50","C1_EMER_Z2_50",50,"Mantenimiento Correctivo - pasador de seguridad",1,2,"unidad","Und","Coltech S.A.S",189860.15999999997,1,"C1_EMER_Z2_50 Mantenimiento Correctivo - pasador de seguridad",1]
["Coltech S.A.SC1_EMER_Z2_51","C1_EMER_Z2_51",51,"Mantenimiento correctivo   sello plástico ",1,2,"unidad","Und","Coltech S.A.S",166127.63999999998,1,"C1_EMER_Z2_51 Mantenimiento correctivo   sello plastico ",1]
["Coltech S.A.SC1_EMER_Z2_52","C1_EMER_Z2_52",52,"Mantenimiento correctivo - anillo de verificación",1,2,"unidad","Und","Coltech S.A.S",118662.59999999999,1,"C1_EMER_Z2_52 Mantenimiento correctivo - anillo de verificacion",1]
["Coltech S.A.SC1_EMER_Z2_53","C1_EMER_Z2_53",53,"Mantenimiento correctivo - calcomania ",1,2,"unidad","Und","Coltech S.A.S",71197.56,1,"C1_EMER_Z2_53 Mantenimiento correctivo - calcomania ",1]
["Coltech S.A.SC1_EMER_Z2_54","C1_EMER_Z2_54",54,"Pintura extintor de 5 lbs amarillo",1,2,"unidad","Und","Coltech S.A.S",42718.536,1,"C1_EMER_Z2_54 Pintura extintor de 5 lbs amarillo",1]
["Coltech S.A.SC1_EMER_Z2_55","C1_EMER_Z2_55",55,"pintura extintor de 10 lbs amarillo",1,2,"unidad","Und","Coltech S.A.S",42718.536,1,"C1_EMER_Z2_55 pintura extintor de 10 lbs amarillo",1]
["Coltech S.A.SC1_EMER_Z2_56","C1_EMER_Z2_56",56,"pintura extintor de 20 lbs amarillo",1,2,"unidad","Und","Coltech S.A.S",42718.536,1,"C1_EMER_Z2_56 pintura extintor de 20 lbs amarillo",1]
["Coltech S.A.SC1_EMER_Z2_57","C1_EMER_Z2_57",57,"pintura extintor de 30 lbs amarillo",1,2,"unidad","Und","Coltech S.A.S",42718.536,1,"C1_EMER_Z2_57 pintura extintor de 30 lbs amarillo",1]
["Coltech S.A.SC1_EMER_Z2_58","C1_EMER_Z2_58",58,"pintura extintor de 150 libras robot",1,2,"unidad","Und","Coltech S.A.S",42718.536,1,"C1_EMER_Z2_58 pintura extintor de 150 libras robot",1]
["Coltech S.A.SC1_EMER_Z2_59","C1_EMER_Z2_59",59,"pintura extintor de 150 libras satelite",1,2,"unidad","Und","Coltech S.A.S",42718.536,1,"C1_EMER_Z2_59 pintura extintor de 150 libras satelite",1]
["Coltech S.A.SC1_EMER_Z2_60","C1_EMER_Z2_60",60,"pintura extintor de 2.5 kg blanco",1,2,"unidad","Und","Coltech S.A.S",42718.536,1,"C1_EMER_Z2_60 pintura extintor de 2.5 kg blanco",1]
["Coltech S.A.SC1_EMER_Z2_61","C1_EMER_Z2_61",61,"pintura extintor de 3.7 kg blanco",1,2,"unidad","Und","Coltech S.A.S",42718.536,1,"C1_EMER_Z2_61 pintura extintor de 3.7 kg blanco",1]
["Coltech S.A.SC1_EMER_Z2_62","C1_EMER_Z2_62",62,"pintura extintor de 9 kg blanco",1,2,"unidad","Und","Coltech S.A.S",42718.536,1,"C1_EMER_Z2_62 pintura extintor de 9 kg blanco",1]
["Coltech S.A.SC1_EMER_Z2_63","C1_EMER_Z2_63",63,"pintura extintor de 5 lbs rojo co2",1,2,"unidad","Und","Coltech S.A.S",42718.536,1,"C1_EMER_Z2_63 pintura extintor de 5 lbs rojo co2",1]
["Coltech S.A.SC1_EMER_Z2_64","C1_EMER_Z2_64",64,"pintura extintor de 10 lbs rojo co2",1,2,"unidad","Und","Coltech S.A.S",42718.536,1,"C1_EMER_Z2_64 pintura extintor de 10 lbs rojo co2",1]
["Coltech S.A.SC1_EMER_Z2_65","C1_EMER_Z2_65",65,"pintura extintor de 15 lbs rojo co2",1,2,"unidad","Und","Coltech S.A.S",42718.536,1,"C1_EMER_Z2_65 pintura extintor de 15 lbs rojo co2",1]
["Coltech S.A.SC1_EMER_Z2_66","C1_EMER_Z2_66",66,"pintura extintor de 50 lbs rojo co2",1,2,"unidad","Und","Coltech S.A.S",42718.536,1,"C1_EMER_Z2_66 pintura extintor de 50 lbs rojo co2",1]
["Coltech S.A.SC1_EMER_Z2_67","C1_EMER_Z2_67",67,"pintura extintor de 100 libras / carretilla co2",1,2,"unidad","Und","Coltech S.A.S",42718.536,1,"C1_EMER_Z2_67 pintura extintor de 100 libras / carretilla co2",1]
["Coltech S.A.SC1_EMER_Z2_68","C1_EMER_Z2_68",68,"prueba hidrostatica cilindro de co2 de 5 libras ",1,2,"unidad","Und","Coltech S.A.S",100863.20999999999,1,"C1_EMER_Z2_68 prueba hidrostatica cilindro de co2 de 5 libras ",1]
["Coltech S.A.SC1_EMER_Z2_69","C1_EMER_Z2_69",69,"prueba hidrostatica ext de co2 de 10-15-20 lb ",1,2,"unidad","Und","Coltech S.A.S",100863.20999999999,1,"C1_EMER_Z2_69 prueba hidrostatica ext de co2 de 10-15-20 lb ",1]
["Coltech S.A.SC1_EMER_Z2_70","C1_EMER_Z2_70",70,"prueba hidrostatica ext de co2 de 50 lb ",1,2,"unidad","Und","Coltech S.A.S",100863.20999999999,1,"C1_EMER_Z2_70 prueba hidrostatica ext de co2 de 50 lb ",1]
["Coltech S.A.SC1_EMER_Z2_71","C1_EMER_Z2_71",71,"prueba hidrostatica cilindro co2 de 100 lb ",1,2,"unidad","Und","Coltech S.A.S",100863.20999999999,1,"C1_EMER_Z2_71 prueba hidrostatica cilindro co2 de 100 lb ",1]
["Coltech S.A.SC1_EMER_Z2_72","C1_EMER_Z2_72",72,"prueba hidrostatica para cilindro 5 lb",1,2,"unidad","Und","Coltech S.A.S",100863.20999999999,1,"C1_EMER_Z2_72 prueba hidrostatica para cilindro 5 lb",1]
["Coltech S.A.SC1_EMER_Z2_73","C1_EMER_Z2_73",73,"prueba hidrostatica para cilindro 10 lb",1,2,"unidad","Und","Coltech S.A.S",100863.20999999999,1,"C1_EMER_Z2_73 prueba hidrostatica para cilindro 10 lb",1]
["Coltech S.A.SC1_EMER_Z2_74","C1_EMER_Z2_74",74,"prueba hidrostatica para cilindro 20 lb",1,2,"unidad","Und","Coltech S.A.S",100863.20999999999,1,"C1_EMER_Z2_74 prueba hidrostatica para cilindro 20 lb",1]
["Coltech S.A.SC1_EMER_Z2_75","C1_EMER_Z2_75",75,"prueba hidrostatica para cilindro 30 lb",1,2,"unidad","Und","Coltech S.A.S",100863.20999999999,1,"C1_EMER_Z2_75 prueba hidrostatica para cilindro 30 lb",1]
["Coltech S.A.SC1_EMER_Z2_76","C1_EMER_Z2_76",76,"prueba hidrostatica para cilindro 150 lb robot",1,2,"unidad","Und","Coltech S.A.S",100863.20999999999,1,"C1_EMER_Z2_76 prueba hidrostatica para cilindro 150 lb robot",1]
["Coltech S.A.SC1_EMER_Z2_77","C1_EMER_Z2_77",77,"prueba hidrostatica para cilindro 150 lb satelite",1,2,"unidad","Und","Coltech S.A.S",100863.20999999999,1,"C1_EMER_Z2_77 prueba hidrostatica para cilindro 150 lb satelite",1]
["Coltech S.A.SC1_EMER_Z2_78","C1_EMER_Z2_78",78,"cilindro p/extintor agua 2,5 gal/ac inox",1,2,"unidad","Und","Coltech S.A.S",39746.766499999998,1,"C1_EMER_Z2_78 cilindro p/extintor agua 2,5 gal/ac inox",1]
["Coltech S.A.SC1_EMER_Z2_79","C1_EMER_Z2_79",79,"cilindro p/extintor 5 lbs amarillo Cold Roll cal 18",1,2,"unidad","Und","Coltech S.A.S",29665.649999999998,1,"C1_EMER_Z2_79 cilindro p/extintor 5 lbs amarillo Cold Roll cal 18",1]
["Coltech S.A.SC1_EMER_Z2_80","C1_EMER_Z2_80",80,"cilindro p/extintor 5 lbs blanco Cold Roll cal 18",1,2,"unidad","Und","Coltech S.A.S",29665.649999999998,1,"C1_EMER_Z2_80 cilindro p/extintor 5 lbs blanco Cold Roll cal 18",1]
["Coltech S.A.SC1_EMER_Z2_81","C1_EMER_Z2_81",81,"cilindro p/extintor 5lbs rojo Cold Roll cal 18",1,2,"unidad","Und","Coltech S.A.S",29665.649999999998,1,"C1_EMER_Z2_81 cilindro p/extintor 5lbs rojo Cold Roll cal 18",1]
["Coltech S.A.SC1_EMER_Z2_82","C1_EMER_Z2_82",82,"cilindro p/extintor 10 lbs amarillo Cold Roll cal 18",1,2,"unidad","Und","Coltech S.A.S",47049.7209,1,"C1_EMER_Z2_82 cilindro p/extintor 10 lbs amarillo Cold Roll cal 18",1]
["Coltech S.A.SC1_EMER_Z2_83","C1_EMER_Z2_83",83,"cilindro p/extintor 10 lbs blanco Cold Roll cal 18",1,2,"unidad","Und","Coltech S.A.S",47049.7209,1,"C1_EMER_Z2_83 cilindro p/extintor 10 lbs blanco Cold Roll cal 18",1]
["Coltech S.A.SC1_EMER_Z2_84","C1_EMER_Z2_84",84,"cilindro p/extintor 10 lbs rojo Cold Roll  cal 18",1,2,"unidad","Und","Coltech S.A.S",47049.7209,1,"C1_EMER_Z2_84 cilindro p/extintor 10 lbs rojo Cold Roll  cal 18",1]
["Coltech S.A.SC1_EMER_Z2_85","C1_EMER_Z2_85",85,"cilindro p/extintor 20 lbs Cold Roll cal 16 amarillo",1,2,"unidad","Und","Coltech S.A.S",62059.498899999999,1,"C1_EMER_Z2_85 cilindro p/extintor 20 lbs Cold Roll cal 16 amarillo",1]
["Coltech S.A.SC1_EMER_Z2_86","C1_EMER_Z2_86",86,"cilindro p/extintor 20 lbs Cold Roll  cal 16 blanco",1,2,"unidad","Und","Coltech S.A.S",62059.498899999999,1,"C1_EMER_Z2_86 cilindro p/extintor 20 lbs Cold Roll  cal 16 blanco",1]
["Coltech S.A.SC1_EMER_Z2_87","C1_EMER_Z2_87",87,"cilindro p/extintor 20 lbs Cold Roll  cal 16 rojo",1,2,"unidad","Und","Coltech S.A.S",62059.498899999999,1,"C1_EMER_Z2_87 cilindro p/extintor 20 lbs Cold Roll  cal 16 rojo",1]
["Coltech S.A.SC1_EMER_Z2_88","C1_EMER_Z2_88",88,"manguera en pvc p/extintor de 4 kgs c/acoples",1,2,"unidad","Und","Coltech S.A.S",165944.44159999999,1,"C1_EMER_Z2_88 manguera en pvc p/extintor de 4 kgs c/acoples",1]
["Coltech S.A.SC1_EMER_Z2_89","C1_EMER_Z2_89",89,"manguera termoplastica agua 2.1/2 gl 250",1,2,"unidad","Und","Coltech S.A.S",165944.44159999999,1,"C1_EMER_Z2_89 manguera termoplastica agua 2.1/2 gl 250",1]
["Coltech S.A.SC1_EMER_Z2_90","C1_EMER_Z2_90",90,"manguera termoplastica ext.agente l. 3.7/9.0 v/pr",1,2,"unidad","Und","Coltech S.A.S",165944.44159999999,1,"C1_EMER_Z2_90 manguera termoplastica ext.agente l. 3.7/9.0 v/pr",1]
["Coltech S.A.SC1_EMER_Z2_91","C1_EMER_Z2_91",91,"manguera caucho lona ext 10/20 lbs 200 acople 14mm",1,2,"unidad","Und","Coltech S.A.S",165944.44159999999,1,"C1_EMER_Z2_91 manguera caucho lona ext 10/20 lbs 200 acople 14mm",1]
[{"$f":"I387&B387","v":"Coltech S.A.SC1_EMER_Z2_92"},{"$f":"\"C\"&E387&\"_EMER_Z\"&F387&\"_\"&C387","v":"C1_EMER_Z2_92"},92,"tubo sifon ext. pqs 10/20 lbs pvc",1,2,"unidad","Und","Coltech S.A.S",17799.39,1,"C1_EMER_Z2_92 tubo sifon ext. pqs 10/20 lbs pvc",1]
["Coltech S.A.SC1_EMER_Z2_93","C1_EMER_Z2_93",93,"valvula para extintor 30 mm /acople 14mm",1,2,"unidad","Und","Coltech S.A.S",212406.05399999997,1,"C1_EMER_Z2_93 valvula para extintor 30 mm /acople 14mm",1]
["Coltech S.A.SC1_EMER_Z2_94","C1_EMER_Z2_94",94,"valvula p/extintor 7/8\"",1,2,"unidad","Und","Coltech S.A.S",11866.259999999998,1,"C1_EMER_Z2_94 valvula p/extintor 7/8 pulgadas",1]
["Coltech S.A.SC1_EMER_Z2_95","C1_EMER_Z2_95",95,"manometro 125 psi caja metalica",1,2,"unidad","Und","Coltech S.A.S",9496.1306999999997,1,"C1_EMER_Z2_95 manometro 125 psi caja metalica",1]
["Coltech S.A.SC1_EMER_Z2_96","C1_EMER_Z2_96",96,"manometro 150 psi caja metalica",1,2,"unidad","Und","Coltech S.A.S",9496.1306999999997,1,"C1_EMER_Z2_96 manometro 150 psi caja metalica",1]
["Coltech S.A.SC1_EMER_Z2_97","C1_EMER_Z2_97",97,"manometro 175 psi caja metalica",1,2,"unidad","Und","Coltech S.A.S",9496.1306999999997,1,"C1_EMER_Z2_97 manometro 175 psi caja metalica",1]
["Coltech S.A.SC1_EMER_Z2_98","C1_EMER_Z2_98",98,"manometro 195 psi caja metalica",1,2,"unidad","Und","Coltech S.A.S",9496.1306999999997,1,"C1_EMER_Z2_98 manometro 195 psi caja metalica",1]
["Productos de Seguridad S.A (Prodeseg)C1_EMER_Z3_1","C1_EMER_Z3_1",1,"Extintor polvo químico seco clase ABC portátil de 5 libras",1,3,"unidad","Und","Productos de Seguridad S.A (Prodeseg)",35071.106674449999,1,"C1_EMER_Z3_1 Extintor polvo quimico seco clase ABC portatil de 5 libras",1]
["Productos de Seguridad S.A (Prodeseg)C1_EMER_Z3_2","C1_EMER_Z3_2",2,"Extintor polvo químico seco clase ABC portátil de 10 libras",1,3,"unidad","Und","Productos de Seguridad S.A (Prodeseg)",58109.233957249999,1,"C1_EMER_Z3_2 Extintor polvo quimico seco clase ABC portatil de 10 libras",1]
["Productos de Seguridad S.A (Prodeseg)C1_EMER_Z3_3","C1_EMER_Z3_3",3,"Extintor polvo químico seco clase ABC portátil de 20 libras",1,3,"unidad","Und","Productos de Seguridad S.A (Prodeseg)",91321.844214766665,1,"C1_EMER_Z3_3 Extintor polvo quimico seco clase ABC portatil de 20 libras",1]
["Productos de Seguridad S.A (Prodeseg)C1_EMER_Z3_4","C1_EMER_Z3_4",4,"Extintor polvo químico seco clase ABC portátil de 30 libras",1,3,"unidad","Und","Productos de Seguridad S.A (Prodeseg)",120331.63578904998,1,"C1_EMER_Z3_4 Extintor polvo quimico seco clase ABC portatil de 30 libras",1]
["Productos de Seguridad S.A (Prodeseg)C1_EMER_Z3_5","C1_EMER_Z3_5",5,"Extintor polvo químico seco clase ABC rodante de 50 libras",1,3,"unidad","Und","Productos de Seguridad S.A (Prodeseg)",875126.7864499999,1,"C1_EMER_Z3_5 Extintor polvo quimico seco clase ABC rodante de 50 libras",1]
["Productos de Seguridad S.A (Prodeseg)C1_EMER_Z3_6","C1_EMER_Z3_6",6,"Extintor polvo químico seco clase ABC rodante de 150 libras",1,3,"unidad","Und","Productos de Seguridad S.A (Prodeseg)",1029883.1144,1,"C1_EMER_Z3_6 Extintor polvo quimico seco clase ABC rodante de 150 libras",1]
["Productos de Seguridad S.A (Prodeseg)C1_EMER_Z3_7","C1_EMER_Z3_7",7,"Extintor de agua de  2 ½  galones",1,3,"unidad","Und","Productos de Seguridad S.A (Prodeseg)",167826.79700628333,1,"C1_EMER_Z3_7 Extintor de agua de  2 y medio galones",1]
["Productos de Seguridad S.A (Prodeseg)C1_EMER_Z3_8","C1_EMER_Z3_8",8,"Extintor de agua de 14 galones tipo satelite",1,3,"unidad","Und","Productos de Seguridad S.A (Prodeseg)",1314346.5118,1,"C1_EMER_Z3_8 Extintor de agua de 14 galones tipo satelite",1]
["Productos de Seguridad S.A (Prodeseg)C1_EMER_Z3_9","C1_EMER_Z3_9",9,"Extintor de agente limpio HCFC de 2500 gramos",1,3,"unidad","Und","Productos de Seguridad S.A (Prodeseg)",192436.75285590001,1,"C1_EMER_Z3_9 Extintor de agente limpio HCFC de 2500 gramos",1]
["Productos de Seguridad S.A (Prodeseg)C1_EMER_Z3_10","C1_EMER_Z3_10",10,"Extintor de agente limpio HCFC de 3700 gramos",1,3,"unidad","Und","Productos de Seguridad S.A (Prodeseg)",294853.14074999996,1,"C1_EMER_Z3_10 Extintor de agente limpio HCFC de 3700 gramos",1]
["Productos de Seguridad S.A (Prodeseg)C1_EMER_Z3_11","C1_EMER_Z3_11",11,"Extintor de agente limpio HCFC de 7000 gramos",1,3,"unidad","Und","Productos de Seguridad S.A (Prodeseg)",460382.36734,1,"C1_EMER_Z3_11 Extintor de agente limpio HCFC de 7000 gramos",1]
["Productos de Seguridad S.A (Prodeseg)C1_EMER_Z3_12","C1_EMER_Z3_12",12,"Extintor de agente limpio HCFC de 9000 gramos",1,3,"unidad","Und","Productos de Seguridad S.A (Prodeseg)",539033.53327879997,1,"C1_EMER_Z3_12 Extintor de agente limpio HCFC de 9000 gramos",1]
["Productos de Seguridad S.A (Prodeseg)C1_EMER_Z3_13","C1_EMER_Z3_13",13,"Extintor de CO2 de 5 libras",1,3,"unidad","Und","Productos de Seguridad S.A (Prodeseg)",207654.81390499999,1,"C1_EMER_Z3_13 Extintor de CO2 de 5 libras",1]
["Productos de Seguridad S.A (Prodeseg)C1_EMER_Z3_14","C1_EMER_Z3_14",14,"Extintor de CO2 de 10 libras",1,3,"unidad","Und","Productos de Seguridad S.A (Prodeseg)",329088.34174999996,1,"C1_EMER_Z3_14 Extintor de CO2 de 10 libras",1]
["Productos de Seguridad S.A (Prodeseg)C1_EMER_Z3_15","C1_EMER_Z3_15",15,"Extintor de CO2 de 15 libras",1,3,"unidad","Und","Productos de Seguridad S.A (Prodeseg)",416333.97749999998,1,"C1_EMER_Z3_15 Extintor de CO2 de 15 libras",1]
["Productos de Seguridad S.A (Prodeseg)C1_EMER_Z3_16","C1_EMER_Z3_16",16,"Extintor de CO2 de 20 libras",1,3,"unidad","Und","Productos de Seguridad S.A (Prodeseg)",513971.95885,1,"C1_EMER_Z3_16 Extintor de CO2 de 20 libras",1]
["Productos de Seguridad S.A (Prodeseg)C1_EMER_Z3_17","C1_EMER_Z3_17",17,"Extintor de CO2 de 50 libras tipo carretilla",1,3,"unidad","Und","Productos de Seguridad S.A (Prodeseg)",2092863.9707115002,1,"C1_EMER_Z3_17 Extintor de CO2 de 50 libras tipo carretilla",1]
["Productos de Seguridad S.A (Prodeseg)C1_EMER_Z3_18","C1_EMER_Z3_18",18,"Extintor de CO2 de 100 libras tipo carretilla",1,3,"unidad","Und","Productos de Seguridad S.A (Prodeseg)",3380984.6874551997,1,"C1_EMER_Z3_18 Extintor de CO2 de 100 libras tipo carretilla",1]
["Productos de Seguridad S.A (Prodeseg)C1_EMER_Z3_19","C1_EMER_Z3_19",19,"Extintor de AFFF de 6 Litros ",1,3,"unidad","Und","Productos de Seguridad S.A (Prodeseg)",155566.01040423336,1,"C1_EMER_Z3_19 Extintor de AFFF de 6 Litros ",1]
["Productos de Seguridad S.A (Prodeseg)C1_EMER_Z3_20","C1_EMER_Z3_20",20,"Extintor de AFFF de 9,5 Litros ",1,3,"unidad","Und","Productos de Seguridad S.A (Prodeseg)",198974.228355,1,"C1_EMER_Z3_20 Extintor de AFFF de 9,5 Litros ",1]
["Productos de Seguridad S.A (Prodeseg)C1_EMER_Z3_21","C1_EMER_Z3_21",21,"Extintor tipo k de 6 Litros ",1,3,"unidad","Und","Productos de Seguridad S.A (Prodeseg)",500066.47270089999,1,"C1_EMER_Z3_21 Extintor tipo k de 6 Litros ",1]
["Productos de Seguridad S.A (Prodeseg)C1_EMER_Z3_22","C1_EMER_Z3_22",22,"Extintortipo k de 2,5 galones ",1,3,"unidad","Und","Productos de Seguridad S.A (Prodeseg)",678934.20721000002,1,"C1_EMER_Z3_22 Extintortipo k de 2,5 galones ",1]
["Productos de Seguridad S.A (Prodeseg)C1_EMER_Z3_23","C1_EMER_Z3_23",23,"Aviso o señalización del Extintor",1,3,"unidad","Und","Productos de Seguridad S.A (Prodeseg)",2289.98,1,"C1_EMER_Z3_23 Aviso o senalizacion del Extintor",1]
["Productos de Seguridad S.A (Prodeseg)C1_EMER_Z3_24","C1_EMER_Z3_24",24,"Soporte de piso tipo pedestal para Extintor 10lb",1,3,"unidad","Und","Productos de Seguridad S.A (Prodeseg)",24328.955699999999,1,"C1_EMER_Z3_24 Soporte de piso tipo pedestal para Extintor 10lb",1]
["Productos de Seguridad S.A (Prodeseg)C1_EMER_Z3_25","C1_EMER_Z3_25",25,"Soporte de piso tipo pedestal para Extintor 20lb",1,3,"unidad","Und","Productos de Seguridad S.A (Prodeseg)",26710.534899999999,1,"C1_EMER_Z3_25 Soporte de piso tipo pedestal para Extintor 20lb",1]
["Productos de Seguridad S.A (Prodeseg)C1_EMER_Z3_26","C1_EMER_Z3_26",26,"Soporte de piso tipo pedestal para Extintor 30lb",1,3,"unidad","Und","Productos de Seguridad S.A (Prodeseg)",26710.534899999999,1,"C1_EMER_Z3_26 Soporte de piso tipo pedestal para Extintor 30lb",1]
["Productos de Seguridad S.A (Prodeseg)C1_EMER_Z3_27","C1_EMER_Z3_27",27,"Mantenimiento Preventivo",1,3,"unidad","Und","Productos de Seguridad S.A (Prodeseg)",62453.999999999993,1,"C1_EMER_Z3_27 Mantenimiento Preventivo",1]
["Productos de Seguridad S.A (Prodeseg)C1_EMER_Z3_28","C1_EMER_Z3_28",28,"Recarga de Extintor polvo químico seco clase ABC portátil de 5 libras",1,3,"unidad","Und","Productos de Seguridad S.A (Prodeseg)",45468.845697799996,1,"C1_EMER_Z3_28 Recarga de Extintor polvo quimico seco clase ABC portatil de 5 libras",1]
["Productos de Seguridad S.A (Prodeseg)C1_EMER_Z3_29","C1_EMER_Z3_29",29,"Recarga de Extintor polvo químico seco clase ABC portátil de 10 libras",1,3,"unidad","Und","Productos de Seguridad S.A (Prodeseg)",84878.951829000012,1,"C1_EMER_Z3_29 Recarga de Extintor polvo quimico seco clase ABC portatil de 10 libras",1]
["Productos de Seguridad S.A (Prodeseg)C1_EMER_Z3_30","C1_EMER_Z3_30",30,"Recarga de Extintor polvo químico seco clase ABC portátil de 20 libras",1,3,"unidad","Und","Productos de Seguridad S.A (Prodeseg)",144283.29059239998,1,"C1_EMER_Z3_30 Recarga de Extintor polvo quimico seco clase ABC portatil de 20 libras",1]
["Productos de Seguridad S.A (Prodeseg)C1_EMER_Z3_31","C1_EMER_Z3_31",31,"Recarga de Extintor polvo químico seco clase ABC portátil de 30 libras",1,3,"unidad","Und","Productos de Seguridad S.A (Prodeseg)",196777.79195619997,1,"C1_EMER_Z3_31 Recarga de Extintor polvo quimico seco clase ABC portatil de 30 libras",1]
["Productos de Seguridad S.A (Prodeseg)C1_EMER_Z3_32","C1_EMER_Z3_32",32,"Recarga de Extintor polvo químico seco clase ABC rodante de 50 libras",1,3,"unidad","Und","Productos de Seguridad S.A (Prodeseg)",1238469.0654000002,1,"C1_EMER_Z3_32 Recarga de Extintor polvo quimico seco clase ABC rodante de 50 libras",1]
["Productos de Seguridad S.A (Prodeseg)C1_EMER_Z3_33","C1_EMER_Z3_33",33,"Recarga de Extintor polvo químico seco clase ABC rodante de 150 libras",1,3,"unidad","Und","Productos de Seguridad S.A (Prodeseg)",1656808.8572,1,"C1_EMER_Z3_33 Recarga de Extintor polvo quimico seco clase ABC rodante de 150 libras",1]
["Productos de Seguridad S.A (Prodeseg)C1_EMER_Z3_34","C1_EMER_Z3_34",34,"Recarga de Extintor de agua de  2 ½  galones",1,3,"unidad","Und","Productos de Seguridad S.A (Prodeseg)",148025.94002513334,1,"C1_EMER_Z3_34 Recarga de Extintor de agua de  2 y medio galones",1]
["Productos de Seguridad S.A (Prodeseg)C1_EMER_Z3_35","C1_EMER_Z3_35",35,"Recarga de Extintor de agua de 14 galones tipo satelite",1,3,"unidad","Und","Productos de Seguridad S.A (Prodeseg)",1575202.2971999999,1,"C1_EMER_Z3_35 Recarga de Extintor de agua de 14 galones tipo satelite",1]
["Productos de Seguridad S.A (Prodeseg)C1_EMER_Z3_36","C1_EMER_Z3_36",36,"Recarga de Extintor de agente limpio HCFC de 2500 gramos",1,3,"unidad","Und","Productos de Seguridad S.A (Prodeseg)",305956.94149999996,1,"C1_EMER_Z3_36 Recarga de Extintor de agente limpio HCFC de 2500 gramos",1]
["Productos de Seguridad S.A (Prodeseg)C1_EMER_Z3_37","C1_EMER_Z3_37",37,"Recarga de Extintor de agente limpio HCFC de 3700 gramos",1,3,"unidad","Und","Productos de Seguridad S.A (Prodeseg)",352797.44149999996,1,"C1_EMER_Z3_37 Recarga de Extintor de agente limpio HCFC de 3700 gramos",1]
["Productos de Seguridad S.A (Prodeseg)C1_EMER_Z3_38","C1_EMER_Z3_38",38,"Recarga de Extintor de agente limpio HCFC de 7000 gramos",1,3,"unidad","Und","Productos de Seguridad S.A (Prodeseg)",677067.65876576572,1,"C1_EMER_Z3_38 Recarga de Extintor de agente limpio HCFC de 7000 gramos",1]
["Productos de Seguridad S.A (Prodeseg)C1_EMER_Z3_39","C1_EMER_Z3_39",39,"Recarga de Extintor de agente limpio HCFC de 9000 gramos",1,3,"unidad","Und","Productos de Seguridad S.A (Prodeseg)",768673.42299999995,1,"C1_EMER_Z3_39 Recarga de Extintor de agente limpio HCFC de 9000 gramos",1]
["Productos de Seguridad S.A (Prodeseg)C1_EMER_Z3_40","C1_EMER_Z3_40",40,"Recarga de Extintor de CO2 de 5 libras",1,3,"unidad","Und","Productos de Seguridad S.A (Prodeseg)",194035.44771673178,1,"C1_EMER_Z3_40 Recarga de Extintor de CO2 de 5 libras",1]
["Productos de Seguridad S.A (Prodeseg)C1_EMER_Z3_41","C1_EMER_Z3_41",41,"Recarga de Extintor de CO2 de 10 libras",1,3,"unidad","Und","Productos de Seguridad S.A (Prodeseg)",365191.25405223179,1,"C1_EMER_Z3_41 Recarga de Extintor de CO2 de 10 libras",1]
["Productos de Seguridad S.A (Prodeseg)C1_EMER_Z3_42","C1_EMER_Z3_42",42,"Recarga de Extintor de CO2 de 15 libras",1,3,"unidad","Und","Productos de Seguridad S.A (Prodeseg)",375891.41980473173,1,"C1_EMER_Z3_42 Recarga de Extintor de CO2 de 15 libras",1]
["Productos de Seguridad S.A (Prodeseg)C1_EMER_Z3_43","C1_EMER_Z3_43",43,"Recarga de Extintor de CO2 de 20 libras",1,3,"unidad","Und","Productos de Seguridad S.A (Prodeseg)",419179.89945923322,1,"C1_EMER_Z3_43 Recarga de Extintor de CO2 de 20 libras",1]
["Productos de Seguridad S.A (Prodeseg)C1_EMER_Z3_44","C1_EMER_Z3_44",44,"Recarga de Extintor de CO2 de 50 libras tipo carretilla",1,3,"unidad","Und","Productos de Seguridad S.A (Prodeseg)",3003787.26544833,1,"C1_EMER_Z3_44 Recarga de Extintor de CO2 de 50 libras tipo carretilla",1]
["Productos de Seguridad S.A (Prodeseg)C1_EMER_Z3_45","C1_EMER_Z3_45",45,"Recarga de Extintor de CO2 de 100 libras tipo carretilla",1,3,"unidad","Und","Productos de Seguridad S.A (Prodeseg)",3738246.5293201758,1,"C1_EMER_Z3_45 Recarga de Extintor de CO2 de 100 libras tipo carretilla",1]
["Productos de Seguridad S.A (Prodeseg)C1_EMER_Z3_46","C1_EMER_Z3_46",46,"Recarga de Extintor de AFFF de 6 Litros ",1,3,"unidad","Und","Productos de Seguridad S.A (Prodeseg)",120074.75433333333,1,"C1_EMER_Z3_46 Recarga de Extintor de AFFF de 6 Litros ",1]
["Productos de Seguridad S.A (Prodeseg)C1_EMER_Z3_47","C1_EMER_Z3_47",47,"Recarga de Extintor de AFFF de 9,5 Litros ",1,3,"unidad","Und","Productos de Seguridad S.A (Prodeseg)",176364.8915,1,"C1_EMER_Z3_47 Recarga de Extintor de AFFF de 9,5 Litros ",1]
["Productos de Seguridad S.A (Prodeseg)C1_EMER_Z3_48","C1_EMER_Z3_48",48,"Recarga de Extintor tipo k de 6 Litros ",1,3,"unidad","Und","Productos de Seguridad S.A (Prodeseg)",570069.70299999998,1,"C1_EMER_Z3_48 Recarga de Extintor tipo k de 6 Litros ",1]
["Productos de Seguridad S.A (Prodeseg)C1_EMER_Z3_49","C1_EMER_Z3_49",49,"Recarga de Extintortipo k de 2,5 galones ",1,3,"unidad","Und","Productos de Seguridad S.A (Prodeseg)",706323.51299999992,1,"C1_EMER_Z3_49 Recarga de Extintortipo k de 2,5 galones ",1]
["Productos de Seguridad S.A (Prodeseg)C1_EMER_Z3_50","C1_EMER_Z3_50",50,"Mantenimiento Correctivo - pasador de seguridad",1,3,"unidad","Und","Productos de Seguridad S.A (Prodeseg)",284.16569999999996,1,"C1_EMER_Z3_50 Mantenimiento Correctivo - pasador de seguridad",1]
["Productos de Seguridad S.A (Prodeseg)C1_EMER_Z3_51","C1_EMER_Z3_51",51,"Mantenimiento correctivo   sello plástico ",1,3,"unidad","Und","Productos de Seguridad S.A (Prodeseg)",531.8999,1,"C1_EMER_Z3_51 Mantenimiento correctivo   sello plastico ",1]
["Productos de Seguridad S.A (Prodeseg)C1_EMER_Z3_52","C1_EMER_Z3_52",52,"Mantenimiento correctivo - anillo de verificación",1,3,"unidad","Und","Productos de Seguridad S.A (Prodeseg)",61.413099999999993,1,"C1_EMER_Z3_52 Mantenimiento correctivo - anillo de verificacion",1]
["Productos de Seguridad S.A (Prodeseg)C1_EMER_Z3_53","C1_EMER_Z3_53",53,"Mantenimiento correctivo - calcomania ",1,3,"unidad","Und","Productos de Seguridad S.A (Prodeseg)",649.52159999999992,1,"C1_EMER_Z3_53 Mantenimiento correctivo - calcomania ",1]
["Productos de Seguridad S.A (Prodeseg)C1_EMER_Z3_54","C1_EMER_Z3_54",54,"Pintura extintor de 5 lbs amarillo",1,3,"unidad","Und","Productos de Seguridad S.A (Prodeseg)",13427.609999999999,1,"C1_EMER_Z3_54 Pintura extintor de 5 lbs amarillo",1]
["Productos de Seguridad S.A (Prodeseg)C1_EMER_Z3_55","C1_EMER_Z3_55",55,"pintura extintor de 10 lbs amarillo",1,3,"unidad","Und","Productos de Seguridad S.A (Prodeseg)",15613.499999999998,1,"C1_EMER_Z3_55 pintura extintor de 10 lbs amarillo",1]
["Productos de Seguridad S.A (Prodeseg)C1_EMER_Z3_56","C1_EMER_Z3_56",56,"pintura extintor de 20 lbs amarillo",1,3,"unidad","Und","Productos de Seguridad S.A (Prodeseg)",20089.37,1,"C1_EMER_Z3_56 pintura extintor de 20 lbs amarillo",1]
["Productos de Seguridad S.A (Prodeseg)C1_EMER_Z3_57","C1_EMER_Z3_57",57,"pintura extintor de 30 lbs amarillo",1,3,"unidad","Und","Productos de Seguridad S.A (Prodeseg)",21338.449999999997,1,"C1_EMER_Z3_57 pintura extintor de 30 lbs amarillo",1]
[{"$f":"I451&B451","v":"Productos de Seguridad S.A (Prodeseg)C1_EMER_Z3_58"},{"$f":"\"C\"&E451&\"_EMER_Z\"&F451&\"_\"&C451","v":"C1_EMER_Z3_58"},58,"pintura extintor de 150 libras robot",1,3,"unidad","Und","Productos de Seguridad S.A (Prodeseg)",89101.04,1,"C1_EMER_Z3_58 pintura extintor de 150 libras robot",1]
["Productos de Seguridad S.A (Prodeseg)C1_EMER_Z3_59","C1_EMER_Z3_59",59,"pintura extintor de 150 libras satelite",1,3,"unidad","Und","Productos de Seguridad S.A (Prodeseg)",89101.04,1,"C1_EMER_Z3_59 pintura extintor de 150 libras satelite",1]
["Productos de Seguridad S.A (Prodeseg)C1_EMER_Z3_60","C1_EMER_Z3_60",60,"pintura extintor de 2.5 kg blanco",1,3,"unidad","Und","Productos de Seguridad S.A (Prodeseg)",13427.609999999999,1,"C1_EMER_Z3_60 pintura extintor de 2.5 kg blanco",1]
["Productos de Seguridad S.A (Prodeseg)C1_EMER_Z3_61","C1_EMER_Z3_61",61,"pintura extintor de 3.7 kg blanco",1,3,"unidad","Und","Productos de Seguridad S.A (Prodeseg)",15613.499999999998,1,"C1_EMER_Z3_61 pintura extintor de 3.7 kg blanco",1]
["Productos de Seguridad S.A (Prodeseg)C1_EMER_Z3_62","C1_EMER_Z3_62",62,"pintura extintor de 9 kg blanco",1,3,"unidad","Und","Productos de Seguridad S.A (Prodeseg)",20089.37,1,"C1_EMER_Z3_62 pintura extintor de 9 kg blanco",1]
["Productos de Seguridad S.A (Prodeseg)C1_EMER_Z3_63","C1_EMER_Z3_63",63,"pintura extintor de 5 lbs rojo co2",1,3,"unidad","Und","Productos de Seguridad S.A (Prodeseg)",13427.609999999999,1,"C1_EMER_Z3_63 pintura extintor de 5 lbs rojo co2",1]
["Productos de Seguridad S.A (Prodeseg)C1_EMER_Z3_64","C1_EMER_Z3_64",64,"pintura extintor de 10 lbs rojo co2",1,3,"unidad","Und","Productos de Seguridad S.A (Prodeseg)",15613.499999999998,1,"C1_EMER_Z3_64 pintura extintor de 10 lbs rojo co2",1]
["Productos de Seguridad S.A (Prodeseg)C1_EMER_Z3_65","C1_EMER_Z3_65",65,"pintura extintor de 15 lbs rojo co2",1,3,"unidad","Und","Productos de Seguridad S.A (Prodeseg)",16446.219999999998,1,"C1_EMER_Z3_65 pintura extintor de 15 lbs rojo co2",1]
["Productos de Seguridad S.A (Prodeseg)C1_EMER_Z3_66","C1_EMER_Z3_66",66,"pintura extintor de 50 lbs rojo co2",1,3,"unidad","Und","Productos de Seguridad S.A (Prodeseg)",88476.5,1,"C1_EMER_Z3_66 pintura extintor de 50 lbs rojo co2",1]
["Productos de Seguridad S.A (Prodeseg)C1_EMER_Z3_67","C1_EMER_Z3_67",67,"pintura extintor de 100 libras / carretilla co2",1,3,"unidad","Und","Productos de Seguridad S.A (Prodeseg)",100967.29999999999,1,"C1_EMER_Z3_67 pintura extintor de 100 libras / carretilla co2",1]
["Productos de Seguridad S.A (Prodeseg)C1_EMER_Z3_68","C1_EMER_Z3_68",68,"prueba hidrostatica cilindro de co2 de 5 libras ",1,3,"unidad","Und","Productos de Seguridad S.A (Prodeseg)",104922.71999999999,1,"C1_EMER_Z3_68 prueba hidrostatica cilindro de co2 de 5 libras ",1]
["Productos de Seguridad S.A (Prodeseg)C1_EMER_Z3_69","C1_EMER_Z3_69",69,"prueba hidrostatica ext de co2 de 10-15-20 lb ",1,3,"unidad","Und","Productos de Seguridad S.A (Prodeseg)",104922.71999999999,1,"C1_EMER_Z3_69 prueba hidrostatica ext de co2 de 10-15-20 lb ",1]
["Productos de Seguridad S.A (Prodeseg)C1_EMER_Z3_70","C1_EMER_Z3_70",70,"prueba hidrostatica ext de co2 de 50 lb ",1,3,"unidad","Und","Productos de Seguridad S.A (Prodeseg)",169042.16,1,"C1_EMER_Z3_70 prueba hidrostatica ext de co2 de 50 lb ",1]
["Productos de Seguridad S.A (Prodeseg)C1_EMER_Z3_71","C1_EMER_Z3_71",71,"prueba hidrostatica cilindro co2 de 100 lb ",1,3,"unidad","Und","Productos de Seguridad S.A (Prodeseg)",206098.19999999998,1,"C1_EMER_Z3_71 prueba hidrostatica cilindro co2 de 100 lb ",1]
["Productos de Seguridad S.A (Prodeseg)C1_EMER_Z3_72","C1_EMER_Z3_72",72,"prueba hidrostatica para cilindro 5 lb",1,3,"unidad","Und","Productos de Seguridad S.A (Prodeseg)",8327.1999999999989,1,"C1_EMER_Z3_72 prueba hidrostatica para cilindro 5 lb",1]
["Productos de Seguridad S.A (Prodeseg)C1_EMER_Z3_73","C1_EMER_Z3_73",73,"prueba hidrostatica para cilindro 10 lb",1,3,"unidad","Und","Productos de Seguridad S.A (Prodeseg)",8327.1999999999989,1,"C1_EMER_Z3_73 prueba hidrostatica para cilindro 10 lb",1]
["Productos de Seguridad S.A (Prodeseg)C1_EMER_Z3_74","C1_EMER_Z3_74",74,"prueba hidrostatica para cilindro 20 lb",1,3,"unidad","Und","Productos de Seguridad S.A (Prodeseg)",8327.1999999999989,1,"C1_EMER_Z3_74 prueba hidrostatica para cilindro 20 lb",1]
["Productos de Seguridad S.A (Prodeseg)C1_EMER_Z3_75","C1_EMER_Z3_75",75,"prueba hidrostatica para cilindro 30 lb",1,3,"unidad","Und","Productos de Seguridad S.A (Prodeseg)",8327.1999999999989,1,"C1_EMER_Z3_75 prueba hidrostatica para cilindro 30 lb",1]
["Productos de Seguridad S.A (Prodeseg)C1_EMER_Z3_76","C1_EMER_Z3_76",76,"prueba hidrostatica para cilindro 150 lb robot",1,3,"unidad","Und","Productos de Seguridad S.A (Prodeseg)",44550.52,1,"C1_EMER_Z3_76 prueba hidrostatica para cilindro 150 lb robot",1]
["Productos de Seguridad S.A (Prodeseg)C1_EMER_Z3_77","C1_EMER_Z3_77",77,"prueba hidrostatica para cilindro 150 lb satelite",1,3,"unidad","Und","Productos de Seguridad S.A (Prodeseg)",44550.52,1,"C1_EMER_Z3_77 prueba hidrostatica para cilindro 150 lb satelite",1]
["Productos de Seguridad S.A (Prodeseg)C1_EMER_Z3_78","C1_EMER_Z3_78",78,"cilindro p/extintor agua 2,5 gal/ac inox",1,3,"unidad","Und","Productos de Seguridad S.A (Prodeseg)",108246.3137,1,"C1_EMER_Z3_78 cilindro p/extintor agua 2,5 gal/ac inox",1]
["Productos de Seguridad S.A (Prodeseg)C1_EMER_Z3_79","C1_EMER_Z3_79",79,"cilindro p/extintor 5 lbs amarillo Cold Roll cal 18",1,3,"unidad","Und","Productos de Seguridad S.A (Prodeseg)",7121.8377999999993,1,"C1_EMER_Z3_79 cilindro p/extintor 5 lbs amarillo Cold Roll cal 18",1]
["Productos de Seguridad S.A (Prodeseg)C1_EMER_Z3_80","C1_EMER_Z3_80",80,"cilindro p/extintor 5 lbs blanco Cold Roll cal 18",1,3,"unidad","Und","Productos de Seguridad S.A (Prodeseg)",7121.8377999999993,1,"C1_EMER_Z3_80 cilindro p/extintor 5 lbs blanco Cold Roll cal 18",1]
["Productos de Seguridad S.A (Prodeseg)C1_EMER_Z3_81","C1_EMER_Z3_81",81,"cilindro p/extintor 5lbs rojo Cold Roll cal 18",1,3,"unidad","Und","Productos de Seguridad S.A (Prodeseg)",7121.8377999999993,1,"C1_EMER_Z3_81 cilindro p/extintor 5lbs rojo Cold Roll cal 18",1]
["Productos de Seguridad S.A (Prodeseg)C1_EMER_Z3_82","C1_EMER_Z3_82",82,"cilindro p/extintor 10 lbs amarillo Cold Roll cal 18",1,3,"unidad","Und","Productos de Seguridad S.A (Prodeseg)",6069.4879000000001,1,"C1_EMER_Z3_82 cilindro p/extintor 10 lbs amarillo Cold Roll cal 18",1]
["Productos de Seguridad S.A (Prodeseg)C1_EMER_Z3_83","C1_EMER_Z3_83",83,"cilindro p/extintor 10 lbs blanco Cold Roll cal 18",1,3,"unidad","Und","Productos de Seguridad S.A (Prodeseg)",6069.4879000000001,1,"C1_EMER_Z3_83 cilindro p/extintor 10 lbs blanco Cold Roll cal 18",1]
["Productos de Seguridad S.A (Prodeseg)C1_EMER_Z3_84","C1_EMER_Z3_84",84,"cilindro p/extintor 10 lbs rojo Cold Roll  cal 18",1,3,"unidad","Und","Productos de Seguridad S.A (Prodeseg)",6069.4879000000001,1,"C1_EMER_Z3_84 cilindro p/extintor 10 lbs rojo Cold Roll  cal 18",1]
["Productos de Seguridad S.A (Prodeseg)C1_EMER_Z3_85","C1_EMER_Z3_85",85,"cilindro p/extintor 20 lbs Cold Roll cal 16 amarillo",1,3,"unidad","Und","Productos de Seguridad S.A (Prodeseg)",16014.246499999999,1,"C1_EMER_Z3_85 cilindro p/extintor 20 lbs Cold Roll cal 16 amarillo",1]
["Productos de Seguridad S.A (Prodeseg)C1_EMER_Z3_86","C1_EMER_Z3_86",86,"cilindro p/extintor 20 lbs Cold Roll  cal 16 blanco",1,3,"unidad","Und","Productos de Seguridad S.A (Prodeseg)",16014.246499999999,1,"C1_EMER_Z3_86 cilindro p/extintor 20 lbs Cold Roll  cal 16 blanco",1]
["Productos de Seguridad S.A (Prodeseg)C1_EMER_Z3_87","C1_EMER_Z3_87",87,"cilindro p/extintor 20 lbs Cold Roll  cal 16 rojo",1,3,"unidad","Und","Productos de Seguridad S.A (Prodeseg)",16014.246499999999,1,"C1_EMER_Z3_87 cilindro p/extintor 20 lbs Cold Roll  cal 16 rojo",1]
["Productos de Seguridad S.A (Prodeseg)C1_EMER_Z3_88","C1_EMER_Z3_88",88,"manguera en pvc p/extintor de 4 kgs c/acoples",1,3,"unidad","Und","Productos de Seguridad S.A (Prodeseg)",979.48689999999999,1,"C1_EMER_Z3_88 manguera en pvc p/extintor de 4 kgs c/acoples",1]
["Productos de Seguridad S.A (Prodeseg)C1_EMER_Z3_89","C1_EMER_Z3_89",89,"manguera termoplastica agua 2.1/2 gl 250",1,3,"unidad","Und","Productos de Seguridad S.A (Prodeseg)",1937.1148999999998,1,"C1_EMER_Z3_89 manguera termoplastica agua 2.1/2 gl 250",1]
["Productos de Seguridad S.A (Prodeseg)C1_EMER_Z3_90","C1_EMER_Z3_90",90,"manguera termoplastica ext.agente l. 3.7/9.0 v/pr",1,3,"unidad","Und","Productos de Seguridad S.A (Prodeseg)",2335.7795999999998,1,"C1_EMER_Z3_90 manguera termoplastica ext.agente l. 3.7/9.0 v/pr",1]
["Productos de Seguridad S.A (Prodeseg)C1_EMER_Z3_91","C1_EMER_Z3_91",91,"manguera caucho lona ext 10/20 lbs 200 acople 14mm",1,3,"unidad","Und","Productos de Seguridad S.A (Prodeseg)",4638.2503999999999,1,"C1_EMER_Z3_91 manguera caucho lona ext 10/20 lbs 200 acople 14mm",1]
["Productos de Seguridad S.A (Prodeseg)C1_EMER_Z3_92","C1_EMER_Z3_92",92,"tubo sifon ext. pqs 10/20 lbs pvc",1,3,"unidad","Und","Productos de Seguridad S.A (Prodeseg)",421.56449999999995,1,"C1_EMER_Z3_92 tubo sifon ext. pqs 10/20 lbs pvc",1]
["Productos de Seguridad S.A (Prodeseg)C1_EMER_Z3_93","C1_EMER_Z3_93",93,"valvula para extintor 30 mm /acople 14mm",1,3,"unidad","Und","Productos de Seguridad S.A (Prodeseg)",4735.0540999999994,1,"C1_EMER_Z3_93 valvula para extintor 30 mm /acople 14mm",1]
["Productos de Seguridad S.A (Prodeseg)C1_EMER_Z3_94","C1_EMER_Z3_94",94,"valvula p/extintor 7/8\"",1,3,"unidad","Und","Productos de Seguridad S.A (Prodeseg)",3596.3094999999998,1,"C1_EMER_Z3_94 valvula p/extintor 7/8 pulgadas",1]
["Productos de Seguridad S.A (Prodeseg)C1_EMER_Z3_95","C1_EMER_Z3_95",95,"manometro 125 psi caja metalica",1,3,"unidad","Und","Productos de Seguridad S.A (Prodeseg)",1593.6179,1,"C1_EMER_Z3_95 manometro 125 psi caja metalica",1]
["Productos de Seguridad S.A (Prodeseg)C1_EMER_Z3_96","C1_EMER_Z3_96",96,"manometro 150 psi caja metalica",1,3,"unidad","Und","Productos de Seguridad S.A (Prodeseg)",1745.5892999999999,1,"C1_EMER_Z3_96 manometro 150 psi caja metalica",1]
["Productos de Seguridad S.A (Prodeseg)C1_EMER_Z3_97","C1_EMER_Z3_97",97,"manometro 175 psi caja metalica",1,3,"unidad","Und","Productos de Seguridad S.A (Prodeseg)",1544.6956,1,"C1_EMER_Z3_97 manometro 175 psi caja metalica",1]
["Productos de Seguridad S.A (Prodeseg)C1_EMER_Z3_98","C1_EMER_Z3_98",98,"manometro 195 psi caja metalica",1,3,"unidad","Und","Productos de Seguridad S.A (Prodeseg)",1193.9123,1,"C1_EMER_Z3_98 manometro 195 psi caja metalica",1]
["Coltech S.A.SC1_EMER_Z3_1","C1_EMER_Z3_1",1,"Extintor polvo químico seco clase ABC portátil de 5 libras",1,3,"unidad","Und","Coltech S.A.S",73654.084000000003,1,"C1_EMER_Z3_1 Extintor polvo quimico seco clase ABC portatil de 5 libras",1]
["Coltech S.A.SC1_EMER_Z3_2","C1_EMER_Z3_2",2,"Extintor polvo químico seco clase ABC portátil de 10 libras",1,3,"unidad","Und","Coltech S.A.S",86935.967999999993,1,"C1_EMER_Z3_2 Extintor polvo quimico seco clase ABC portatil de 10 libras",1]
["Coltech S.A.SC1_EMER_Z3_3","C1_EMER_Z3_3",3,"Extintor polvo químico seco clase ABC portátil de 20 libras",1,3,"unidad","Und","Coltech S.A.S",120744.4,1,"C1_EMER_Z3_3 Extintor polvo quimico seco clase ABC portatil de 20 libras",1]
["Coltech S.A.SC1_EMER_Z3_4","C1_EMER_Z3_4",4,"Extintor polvo químico seco clase ABC portátil de 30 libras",1,3,"unidad","Und","Coltech S.A.S",176286.82399999999,1,"C1_EMER_Z3_4 Extintor polvo quimico seco clase ABC portatil de 30 libras",1]
["Coltech S.A.SC1_EMER_Z3_5","C1_EMER_Z3_5",5,"Extintor polvo químico seco clase ABC rodante de 50 libras",1,3,"unidad","Und","Coltech S.A.S",1931910.4,1,"C1_EMER_Z3_5 Extintor polvo quimico seco clase ABC rodante de 50 libras",1]
["Coltech S.A.SC1_EMER_Z3_6","C1_EMER_Z3_6",6,"Extintor polvo químico seco clase ABC rodante de 150 libras",1,3,"unidad","Und","Coltech S.A.S",2149250.3199999998,1,"C1_EMER_Z3_6 Extintor polvo quimico seco clase ABC rodante de 150 libras",1]
["Coltech S.A.SC1_EMER_Z3_7","C1_EMER_Z3_7",7,"Extintor de agua de  2 ½  galones",1,3,"unidad","Und","Coltech S.A.S",241730.28879999998,1,"C1_EMER_Z3_7 Extintor de agua de  2 y medio galones",1]
["Coltech S.A.SC1_EMER_Z3_8","C1_EMER_Z3_8",8,"Extintor de agua de 14 galones tipo satelite",1,3,"unidad","Und","Coltech S.A.S",2155287.54,1,"C1_EMER_Z3_8 Extintor de agua de 14 galones tipo satelite",1]
["Coltech S.A.SC1_EMER_Z3_9","C1_EMER_Z3_9",9,"Extintor de agente limpio HCFC de 2500 gramos",1,3,"unidad","Und","Coltech S.A.S",284956.78399999999,1,"C1_EMER_Z3_9 Extintor de agente limpio HCFC de 2500 gramos",1]
["Coltech S.A.SC1_EMER_Z3_10","C1_EMER_Z3_10",10,"Extintor de agente limpio HCFC de 3700 gramos",1,3,"unidad","Und","Coltech S.A.S",337842.83119999996,1,"C1_EMER_Z3_10 Extintor de agente limpio HCFC de 3700 gramos",1]
["Coltech S.A.SC1_EMER_Z3_11","C1_EMER_Z3_11",11,"Extintor de agente limpio HCFC de 7000 gramos",1,3,"unidad","Und","Coltech S.A.S",845210.79999999993,1,"C1_EMER_Z3_11 Extintor de agente limpio HCFC de 7000 gramos",1]
["Coltech S.A.SC1_EMER_Z3_12","C1_EMER_Z3_12",12,"Extintor de agente limpio HCFC de 9000 gramos",1,3,"unidad","Und","Coltech S.A.S",965955.2,1,"C1_EMER_Z3_12 Extintor de agente limpio HCFC de 9000 gramos",1]
["Coltech S.A.SC1_EMER_Z3_13","C1_EMER_Z3_13",13,"Extintor de CO2 de 5 libras",1,3,"unidad","Und","Coltech S.A.S",338084.32,1,"C1_EMER_Z3_13 Extintor de CO2 de 5 libras",1]
["Coltech S.A.SC1_EMER_Z3_14","C1_EMER_Z3_14",14,"Extintor de CO2 de 10 libras",1,3,"unidad","Und","Coltech S.A.S",603722,1,"C1_EMER_Z3_14 Extintor de CO2 de 10 libras",1]
["Coltech S.A.SC1_EMER_Z3_15","C1_EMER_Z3_15",15,"Extintor de CO2 de 15 libras",1,3,"unidad","Und","Coltech S.A.S",1448932.7999999998,1,"C1_EMER_Z3_15 Extintor de CO2 de 15 libras",1]
["Coltech S.A.SC1_EMER_Z3_16","C1_EMER_Z3_16",16,"Extintor de CO2 de 20 libras",1,3,"unidad","Und","Coltech S.A.S",2052654.7999999998,1,"C1_EMER_Z3_16 Extintor de CO2 de 20 libras",1]
["Coltech S.A.SC1_EMER_Z3_17","C1_EMER_Z3_17",17,"Extintor de CO2 de 50 libras tipo carretilla",1,3,"unidad","Und","Coltech S.A.S",6157964.3999999994,1,"C1_EMER_Z3_17 Extintor de CO2 de 50 libras tipo carretilla",1]
["Coltech S.A.SC1_EMER_Z3_18","C1_EMER_Z3_18",18,"Extintor de CO2 de 100 libras tipo carretilla",1,3,"unidad","Und","Coltech S.A.S",6157964.3999999994,1,"C1_EMER_Z3_18 Extintor de CO2 de 100 libras tipo carretilla",1]
["Coltech S.A.SC1_EMER_Z3_19","C1_EMER_Z3_19",19,"Extintor de AFFF de 6 Litros ",1,3,"unidad","Und","Coltech S.A.S",313935.44,1,"C1_EMER_Z3_19 Extintor de AFFF de 6 Litros ",1]
["Coltech S.A.SC1_EMER_Z3_20","C1_EMER_Z3_20",20,"Extintor de AFFF de 9,5 Litros ",1,3,"unidad","Und","Coltech S.A.S",2702259.6719999998,1,"C1_EMER_Z3_20 Extintor de AFFF de 9,5 Litros ",1]
["Coltech S.A.SC1_EMER_Z3_21","C1_EMER_Z3_21",21,"Extintor tipo k de 6 Litros ",1,3,"unidad","Und","Coltech S.A.S",845210.79999999993,1,"C1_EMER_Z3_21 Extintor tipo k de 6 Litros ",1]
["Coltech S.A.SC1_EMER_Z3_22","C1_EMER_Z3_22",22,"Extintortipo k de 2,5 galones ",1,3,"unidad","Und","Coltech S.A.S",1207444,1,"C1_EMER_Z3_22 Extintortipo k de 2,5 galones ",1]
["Coltech S.A.SC1_EMER_Z3_23","C1_EMER_Z3_23",23,"Aviso o señalización del Extintor",1,3,"unidad","Und","Coltech S.A.S",14489.328,1,"C1_EMER_Z3_23 Aviso o senalizacion del Extintor",1]
[{"$f":"I515&B515","v":"Coltech S.A.SC1_EMER_Z3_24"},{"$f":"\"C\"&E515&\"_EMER_Z\"&F515&\"_\"&C515","v":"C1_EMER_Z3_24"},24,"Soporte de piso tipo pedestal para Extintor 10lb",1,3,"unidad","Und","Coltech S.A.S",72446.64,1,"C1_EMER_Z3_24 Soporte de piso tipo pedestal para Extintor 10lb",1]
["Coltech S.A.SC1_EMER_Z3_25","C1_EMER_Z3_25",25,"Soporte de piso tipo pedestal para Extintor 20lb",1,3,"unidad","Und","Coltech S.A.S",72446.64,1,"C1_EMER_Z3_25 Soporte de piso tipo pedestal para Extintor 20lb",1]
["Coltech S.A.SC1_EMER_Z3_26","C1_EMER_Z3_26",26,"Soporte de piso tipo pedestal para Extintor 30lb",1,3,"unidad","Und","Coltech S.A.S",72446.64,1,"C1_EMER_Z3_26 Soporte de piso tipo pedestal para Extintor 30lb",1]
["Coltech S.A.SC1_EMER_Z3_27","C1_EMER_Z3_27",27,"Mantenimiento Preventivo",1,3,"unidad","Und","Coltech S.A.S",294616.33600000001,1,"C1_EMER_Z3_27 Mantenimiento Preventivo",1]
["Coltech S.A.SC1_EMER_Z3_28","C1_EMER_Z3_28",28,"Recarga de Extintor polvo químico seco clase ABC portátil de 5 libras",1,3,"unidad","Und","Coltech S.A.S",188361.264,1,"C1_EMER_Z3_28 Recarga de Extintor polvo quimico seco clase ABC portatil de 5 libras",1]
["Coltech S.A.SC1_EMER_Z3_29","C1_EMER_Z3_29",29,"Recarga de Extintor polvo químico seco clase ABC portátil de 10 libras",1,3,"unidad","Und","Coltech S.A.S",188361.264,1,"C1_EMER_Z3_29 Recarga de Extintor polvo quimico seco clase ABC portatil de 10 libras",1]
["Coltech S.A.SC1_EMER_Z3_30","C1_EMER_Z3_30",30,"Recarga de Extintor polvo químico seco clase ABC portátil de 20 libras",1,3,"unidad","Und","Coltech S.A.S",188361.264,1,"C1_EMER_Z3_30 Recarga de Extintor polvo quimico seco clase ABC portatil de 20 libras",1]
["Coltech S.A.SC1_EMER_Z3_31","C1_EMER_Z3_31",31,"Recarga de Extintor polvo químico seco clase ABC portátil de 30 libras",1,3,"unidad","Und","Coltech S.A.S",188361.264,1,"C1_EMER_Z3_31 Recarga de Extintor polvo quimico seco clase ABC portatil de 30 libras",1]
["Coltech S.A.SC1_EMER_Z3_32","C1_EMER_Z3_32",32,"Recarga de Extintor polvo químico seco clase ABC rodante de 50 libras",1,3,"unidad","Und","Coltech S.A.S",188361.264,1,"C1_EMER_Z3_32 Recarga de Extintor polvo quimico seco clase ABC rodante de 50 libras",1]
["Coltech S.A.SC1_EMER_Z3_33","C1_EMER_Z3_33",33,"Recarga de Extintor polvo químico seco clase ABC rodante de 150 libras",1,3,"unidad","Und","Coltech S.A.S",188361.264,1,"C1_EMER_Z3_33 Recarga de Extintor polvo quimico seco clase ABC rodante de 150 libras",1]
["Coltech S.A.SC1_EMER_Z3_34","C1_EMER_Z3_34",34,"Recarga de Extintor de agua de  2 ½  galones",1,3,"unidad","Und","Coltech S.A.S",188361.264,1,"C1_EMER_Z3_34 Recarga de Extintor de agua de  2 y medio galones",1]
["Coltech S.A.SC1_EMER_Z3_35","C1_EMER_Z3_35",35,"Recarga de Extintor de agua de 14 galones tipo satelite",1,3,"unidad","Und","Coltech S.A.S",188361.264,1,"C1_EMER_Z3_35 Recarga de Extintor de agua de 14 galones tipo satelite",1]
["Coltech S.A.SC1_EMER_Z3_36","C1_EMER_Z3_36",36,"Recarga de Extintor de agente limpio HCFC de 2500 gramos",1,3,"unidad","Und","Coltech S.A.S",188361.264,1,"C1_EMER_Z3_36 Recarga de Extintor de agente limpio HCFC de 2500 gramos",1]
["Coltech S.A.SC1_EMER_Z3_37","C1_EMER_Z3_37",37,"Recarga de Extintor de agente limpio HCFC de 3700 gramos",1,3,"unidad","Und","Coltech S.A.S",188361.264,1,"C1_EMER_Z3_37 Recarga de Extintor de agente limpio HCFC de 3700 gramos",1]
["Coltech S.A.SC1_EMER_Z3_38","C1_EMER_Z3_38",38,"Recarga de Extintor de agente limpio HCFC de 7000 gramos",1,3,"unidad","Und","Coltech S.A.S",188361.264,1,"C1_EMER_Z3_38 Recarga de Extintor de agente limpio HCFC de 7000 gramos",1]
["Coltech S.A.SC1_EMER_Z3_39","C1_EMER_Z3_39",39,"Recarga de Extintor de agente limpio HCFC de 9000 gramos",1,3,"unidad","Und","Coltech S.A.S",188361.264,1,"C1_EMER_Z3_39 Recarga de Extintor de agente limpio HCFC de 9000 gramos",1]
["Coltech S.A.SC1_EMER_Z3_40","C1_EMER_Z3_40",40,"Recarga de Extintor de CO2 de 5 libras",1,3,"unidad","Und","Coltech S.A.S",188361.264,1,"C1_EMER_Z3_40 Recarga de Extintor de CO2 de 5 libras",1]
["Coltech S.A.SC1_EMER_Z3_41","C1_EMER_Z3_41",41,"Recarga de Extintor de CO2 de 10 libras",1,3,"unidad","Und","Coltech S.A.S",188361.264,1,"C1_EMER_Z3_41 Recarga de Extintor de CO2 de 10 libras",1]
["Coltech S.A.SC1_EMER_Z3_42","C1_EMER_Z3_42",42,"Recarga de Extintor de CO2 de 15 libras",1,3,"unidad","Und","Coltech S.A.S",188361.264,1,"C1_EMER_Z3_42 Recarga de Extintor de CO2 de 15 libras",1]
["Coltech S.A.SC1_EMER_Z3_43","C1_EMER_Z3_43",43,"Recarga de Extintor de CO2 de 20 libras",1,3,"unidad","Und","Coltech S.A.S",188361.264,1,"C1_EMER_Z3_43 Recarga de Extintor de CO2 de 20 libras",1]
["Coltech S.A.SC1_EMER_Z3_44","C1_EMER_Z3_44",44,"Recarga de Extintor de CO2 de 50 libras tipo carretilla",1,3,"unidad","Und","Coltech S.A.S",188361.264,1,"C1_EMER_Z3_44 Recarga de Extintor de CO2 de 50 libras tipo carretilla",1]
["Coltech S.A.SC1_EMER_Z3_45","C1_EMER_Z3_45",45,"Recarga de Extintor de CO2 de 100 libras tipo carretilla",1,3,"unidad","Und","Coltech S.A.S",188361.264,1,"C1_EMER_Z3_45 Recarga de Extintor de CO2 de 100 libras tipo carretilla",1]
["Coltech S.A.SC1_EMER_Z3_46","C1_EMER_Z3_46",46,"Recarga de Extintor de AFFF de 6 Litros ",1,3,"unidad","Und","Coltech S.A.S",188361.264,1,"C1_EMER_Z3_46 Recarga de Extintor de AFFF de 6 Litros ",1]
["Coltech S.A.SC1_EMER_Z3_47","C1_EMER_Z3_47",47,"Recarga de Extintor de AFFF de 9,5 Litros ",1,3,"unidad","Und","Coltech S.A.S",188361.264,1,"C1_EMER_Z3_47 Recarga de Extintor de AFFF de 9,5 Litros ",1]
["Coltech S.A.SC1_EMER_Z3_48","C1_EMER_Z3_48",48,"Recarga de Extintor tipo k de 6 Litros ",1,3,"unidad","Und","Coltech S.A.S",188361.264,1,"C1_EMER_Z3_48 Recarga de Extintor tipo k de 6 Litros ",1]
["Coltech S.A.SC1_EMER_Z3_49","C1_EMER_Z3_49",49,"Recarga de Extintortipo k de 2,5 galones ",1,3,"unidad","Und","Coltech S.A.S",188361.264,1,"C1_EMER_Z3_49 Recarga de Extintortipo k de 2,5 galones ",1]
["Coltech S.A.SC1_EMER_Z3_50","C1_EMER_Z3_50",50,"Mantenimiento Correctivo - pasador de seguridad",1,3,"unidad","Und","Coltech S.A.S",193191.03999999998,1,"C1_EMER_Z3_50 Mantenimiento Correctivo - pasador de seguridad",1]
["Coltech S.A.SC1_EMER_Z3_51","C1_EMER_Z3_51",51,"Mantenimiento correctivo   sello plástico ",1,3,"unidad","Und","Coltech S.A.S",169042.16,1,"C1_EMER_Z3_51 Mantenimiento correctivo   sello plastico ",1]
["Coltech S.A.SC1_EMER_Z3_52","C1_EMER_Z3_52",52,"Mantenimiento correctivo - anillo de verificación",1,3,"unidad","Und","Coltech S.A.S",120744.4,1,"C1_EMER_Z3_52 Mantenimiento correctivo - anillo de verificacion",1]
["Coltech S.A.SC1_EMER_Z3_53","C1_EMER_Z3_53",53,"Mantenimiento correctivo - calcomania ",1,3,"unidad","Und","Coltech S.A.S",72446.64,1,"C1_EMER_Z3_53 Mantenimiento correctivo - calcomania ",1]
["Coltech S.A.SC1_EMER_Z3_54","C1_EMER_Z3_54",54,"Pintura extintor de 5 lbs amarillo",1,3,"unidad","Und","Coltech S.A.S",43467.983999999997,1,"C1_EMER_Z3_54 Pintura extintor de 5 lbs amarillo",1]
["Coltech S.A.SC1_EMER_Z3_55","C1_EMER_Z3_55",55,"pintura extintor de 10 lbs amarillo",1,3,"unidad","Und","Coltech S.A.S",43467.983999999997,1,"C1_EMER_Z3_55 pintura extintor de 10 lbs amarillo",1]
["Coltech S.A.SC1_EMER_Z3_56","C1_EMER_Z3_56",56,"pintura extintor de 20 lbs amarillo",1,3,"unidad","Und","Coltech S.A.S",43467.983999999997,1,"C1_EMER_Z3_56 pintura extintor de 20 lbs amarillo",1]
["Coltech S.A.SC1_EMER_Z3_57","C1_EMER_Z3_57",57,"pintura extintor de 30 lbs amarillo",1,3,"unidad","Und","Coltech S.A.S",43467.983999999997,1,"C1_EMER_Z3_57 pintura extintor de 30 lbs amarillo",1]
["Coltech S.A.SC1_EMER_Z3_58","C1_EMER_Z3_58",58,"pintura extintor de 150 libras robot",1,3,"unidad","Und","Coltech S.A.S",43467.983999999997,1,"C1_EMER_Z3_58 pintura extintor de 150 libras robot",1]
["Coltech S.A.SC1_EMER_Z3_59","C1_EMER_Z3_59",59,"pintura extintor de 150 libras satelite",1,3,"unidad","Und","Coltech S.A.S",43467.983999999997,1,"C1_EMER_Z3_59 pintura extintor de 150 libras satelite",1]
["Coltech S.A.SC1_EMER_Z3_60","C1_EMER_Z3_60",60,"pintura extintor de 2.5 kg blanco",1,3,"unidad","Und","Coltech S.A.S",43467.983999999997,1,"C1_EMER_Z3_60 pintura extintor de 2.5 kg blanco",1]
["Coltech S.A.SC1_EMER_Z3_61","C1_EMER_Z3_61",61,"pintura extintor de 3.7 kg blanco",1,3,"unidad","Und","Coltech S.A.S",43467.983999999997,1,"C1_EMER_Z3_61 pintura extintor de 3.7 kg blanco",1]
["Coltech S.A.SC1_EMER_Z3_62","C1_EMER_Z3_62",62,"pintura extintor de 9 kg blanco",1,3,"unidad","Und","Coltech S.A.S",43467.983999999997,1,"C1_EMER_Z3_62 pintura extintor de 9 kg blanco",1]
["Coltech S.A.SC1_EMER_Z3_63","C1_EMER_Z3_63",63,"pintura extintor de 5 lbs rojo co2",1,3,"unidad","Und","Coltech S.A.S",43467.983999999997,1,"C1_EMER_Z3_63 pintura extintor de 5 lbs rojo co2",1]
["Coltech S.A.SC1_EMER_Z3_64","C1_EMER_Z3_64",64,"pintura extintor de 10 lbs rojo co2",1,3,"unidad","Und","Coltech S.A.S",43467.983999999997,1,"C1_EMER_Z3_64 pintura extintor de 10 lbs rojo co2",1]
["Coltech S.A.SC1_EMER_Z3_65","C1_EMER_Z3_65",65,"pintura extintor de 15 lbs rojo co2",1,3,"unidad","Und","Coltech S.A.S",43467.983999999997,1,"C1_EMER_Z3_65 pintura extintor de 15 lbs rojo co2",1]
["Coltech S.A.SC1_EMER_Z3_66","C1_EMER_Z3_66",66,"pintura extintor de 50 lbs rojo co2",1,3,"unidad","Und","Coltech S.A.S",43467.983999999997,1,"C1_EMER_Z3_66 pintura extintor de 50 lbs rojo co2",1]
["Coltech S.A.SC1_EMER_Z3_67","C1_EMER_Z3_67",67,"pintura extintor de 100 libras / carretilla co2",1,3,"unidad","Und","Coltech S.A.S",43467.983999999997,1,"C1_EMER_Z3_67 pintura extintor de 100 libras / carretilla co2",1]
["Coltech S.A.SC1_EMER_Z3_68","C1_EMER_Z3_68",68,"prueba hidrostatica cilindro de co2 de 5 libras ",1,3,"unidad","Und","Coltech S.A.S",102632.73999999999,1,"C1_EMER_Z3_68 prueba hidrostatica cilindro de co2 de 5 libras ",1]
["Coltech S.A.SC1_EMER_Z3_69","C1_EMER_Z3_69",69,"prueba hidrostatica ext de co2 de 10-15-20 lb ",1,3,"unidad","Und","Coltech S.A.S",102632.73999999999,1,"C1_EMER_Z3_69 prueba hidrostatica ext de co2 de 10-15-20 lb ",1]
["Coltech S.A.SC1_EMER_Z3_70","C1_EMER_Z3_70",70,"prueba hidrostatica ext de co2 de 50 lb ",1,3,"unidad","Und","Coltech S.A.S",102632.73999999999,1,"C1_EMER_Z3_70 prueba hidrostatica ext de co2 de 50 lb ",1]
["Coltech S.A.SC1_EMER_Z3_71","C1_EMER_Z3_71",71,"prueba hidrostatica cilindro co2 de 100 lb ",1,3,"unidad","Und","Coltech S.A.S",102632.73999999999,1,"C1_EMER_Z3_71 prueba hidrostatica cilindro co2 de 100 lb ",1]
["Coltech S.A.SC1_EMER_Z3_72","C1_EMER_Z3_72",72,"prueba hidrostatica para cilindro 5 lb",1,3,"unidad","Und","Coltech S.A.S",102632.73999999999,1,"C1_EMER_Z3_72 prueba hidrostatica para cilindro 5 lb",1]
["Coltech S.A.SC1_EMER_Z3_73","C1_EMER_Z3_73",73,"prueba hidrostatica para cilindro 10 lb",1,3,"unidad","Und","Coltech S.A.S",102632.73999999999,1,"C1_EMER_Z3_73 prueba hidrostatica para cilindro 10 lb",1]
["Coltech S.A.SC1_EMER_Z3_74","C1_EMER_Z3_74",74,"prueba hidrostatica para cilindro 20 lb",1,3,"unidad","Und","Coltech S.A.S",102632.73999999999,1,"C1_EMER_Z3_74 prueba hidrostatica para cilindro 20 lb",1]
["Coltech S.A.SC1_EMER_Z3_75","C1_EMER_Z3_75",75,"prueba hidrostatica para cilindro 30 lb",1,3,"unidad","Und","Coltech S.A.S",102632.73999999999,1,"C1_EMER_Z3_75 prueba hidrostatica para cilindro 30 lb",1]
["Coltech S.A.SC1_EMER_Z3_76","C1_EMER_Z3_76",76,"prueba hidrostatica para cilindro 150 lb robot",1,3,"unidad","Und","Coltech S.A.S",102632.73999999999,1,"C1_EMER_Z3_76 prueba hidrostatica para cilindro 150 lb robot",1]
["Coltech S.A.SC1_EMER_Z3_77","C1_EMER_Z3_77",77,"prueba hidrostatica para cilindro 150 lb satelite",1,3,"unidad","Und","Coltech S.A.S",102632.73999999999,1,"C1_EMER_Z3_77 prueba hidrostatica para cilindro 150 lb satelite",1]
["Coltech S.A.SC1_EMER_Z3_78","C1_EMER_Z3_78",78,"cilindro p/extintor agua 2,5 gal/ac inox",1,3,"unidad","Und","Coltech S.A.S",40095.468000000001,1,"C1_EMER_Z3_78 cilindro p/extintor agua 2,5 gal/ac inox",1]
["Coltech S.A.SC1_EMER_Z3_79","C1_EMER_Z3_79",79,"cilindro p/extintor 5 lbs amarillo Cold Roll cal 18",1,3,"unidad","Und","Coltech S.A.S",29925.874999999996,1,"C1_EMER_Z3_79 cilindro p/extintor 5 lbs amarillo Cold Roll cal 18",1]
["Coltech S.A.SC1_EMER_Z3_80","C1_EMER_Z3_80",80,"cilindro p/extintor 5 lbs blanco Cold Roll cal 18",1,3,"unidad","Und","Coltech S.A.S",29925.874999999996,1,"C1_EMER_Z3_80 cilindro p/extintor 5 lbs blanco Cold Roll cal 18",1]
["Coltech S.A.SC1_EMER_Z3_81","C1_EMER_Z3_81",81,"cilindro p/extintor 5lbs rojo Cold Roll cal 18",1,3,"unidad","Und","Coltech S.A.S",29925.874999999996,1,"C1_EMER_Z3_81 cilindro p/extintor 5lbs rojo Cold Roll cal 18",1]
["Coltech S.A.SC1_EMER_Z3_82","C1_EMER_Z3_82",82,"cilindro p/extintor 10 lbs amarillo Cold Roll cal 18",1,3,"unidad","Und","Coltech S.A.S",47462.958199999994,1,"C1_EMER_Z3_82 cilindro p/extintor 10 lbs amarillo Cold Roll cal 18",1]
["Coltech S.A.SC1_EMER_Z3_83","C1_EMER_Z3_83",83,"cilindro p/extintor 10 lbs blanco Cold Roll cal 18",1,3,"unidad","Und","Coltech S.A.S",47462.958199999994,1,"C1_EMER_Z3_83 cilindro p/extintor 10 lbs blanco Cold Roll cal 18",1]
["Coltech S.A.SC1_EMER_Z3_84","C1_EMER_Z3_84",84,"cilindro p/extintor 10 lbs rojo Cold Roll  cal 18",1,3,"unidad","Und","Coltech S.A.S",47462.958199999994,1,"C1_EMER_Z3_84 cilindro p/extintor 10 lbs rojo Cold Roll  cal 18",1]
["Coltech S.A.SC1_EMER_Z3_85","C1_EMER_Z3_85",85,"cilindro p/extintor 20 lbs Cold Roll cal 16 amarillo",1,3,"unidad","Und","Coltech S.A.S",62603.889599999995,1,"C1_EMER_Z3_85 cilindro p/extintor 20 lbs Cold Roll cal 16 amarillo",1]
["Coltech S.A.SC1_EMER_Z3_86","C1_EMER_Z3_86",86,"cilindro p/extintor 20 lbs Cold Roll  cal 16 blanco",1,3,"unidad","Und","Coltech S.A.S",62603.889599999995,1,"C1_EMER_Z3_86 cilindro p/extintor 20 lbs Cold Roll  cal 16 blanco",1]
["Coltech S.A.SC1_EMER_Z3_87","C1_EMER_Z3_87",87,"cilindro p/extintor 20 lbs Cold Roll  cal 16 rojo",1,3,"unidad","Und","Coltech S.A.S",62603.889599999995,1,"C1_EMER_Z3_87 cilindro p/extintor 20 lbs Cold Roll  cal 16 rojo",1]
[{"$f":"I579&B579","v":"Coltech S.A.SC1_EMER_Z3_88"},{"$f":"\"C\"&E579&\"_EMER_Z\"&F579&\"_\"&C579","v":"C1_EMER_Z3_88"},88,"manguera en pvc p/extintor de 4 kgs c/acoples",1,3,"unidad","Und","Coltech S.A.S",167400.66069999998,1,"C1_EMER_Z3_88 manguera en pvc p/extintor de 4 kgs c/acoples",1]
["Coltech S.A.SC1_EMER_Z3_89","C1_EMER_Z3_89",89,"manguera termoplastica agua 2.1/2 gl 250",1,3,"unidad","Und","Coltech S.A.S",167400.66069999998,1,"C1_EMER_Z3_89 manguera termoplastica agua 2.1/2 gl 250",1]
["Coltech S.A.SC1_EMER_Z3_90","C1_EMER_Z3_90",90,"manguera termoplastica ext.agente l. 3.7/9.0 v/pr",1,3,"unidad","Und","Coltech S.A.S",167400.66069999998,1,"C1_EMER_Z3_90 manguera termoplastica ext.agente l. 3.7/9.0 v/pr",1]
["Coltech S.A.SC1_EMER_Z3_91","C1_EMER_Z3_91",91,"manguera caucho lona ext 10/20 lbs 200 acople 14mm",1,3,"unidad","Und","Coltech S.A.S",167400.66069999998,1,"C1_EMER_Z3_91 manguera caucho lona ext 10/20 lbs 200 acople 14mm",1]
["Coltech S.A.SC1_EMER_Z3_92","C1_EMER_Z3_92",92,"tubo sifon ext. pqs 10/20 lbs pvc",1,3,"unidad","Und","Coltech S.A.S",17955.524999999998,1,"C1_EMER_Z3_92 tubo sifon ext. pqs 10/20 lbs pvc",1]
["Coltech S.A.SC1_EMER_Z3_93","C1_EMER_Z3_93",93,"valvula para extintor 30 mm /acople 14mm",1,3,"unidad","Und","Coltech S.A.S",214269.26499999998,1,"C1_EMER_Z3_93 valvula para extintor 30 mm /acople 14mm",1]
["Coltech S.A.SC1_EMER_Z3_94","C1_EMER_Z3_94",94,"valvula p/extintor 7/8\"",1,3,"unidad","Und","Coltech S.A.S",11970.349999999999,1,"C1_EMER_Z3_94 valvula p/extintor 7/8 pulgadas",1]
["Coltech S.A.SC1_EMER_Z3_95","C1_EMER_Z3_95",95,"manometro 125 psi caja metalica",1,3,"unidad","Und","Coltech S.A.S",9579.4026999999987,1,"C1_EMER_Z3_95 manometro 125 psi caja metalica",1]
["Coltech S.A.SC1_EMER_Z3_96","C1_EMER_Z3_96",96,"manometro 150 psi caja metalica",1,3,"unidad","Und","Coltech S.A.S",9579.4026999999987,1,"C1_EMER_Z3_96 manometro 150 psi caja metalica",1]
["Coltech S.A.SC1_EMER_Z3_97","C1_EMER_Z3_97",97,"manometro 175 psi caja metalica",1,3,"unidad","Und","Coltech S.A.S",9579.4026999999987,1,"C1_EMER_Z3_97 manometro 175 psi caja metalica",1]
["Coltech S.A.SC1_EMER_Z3_98","C1_EMER_Z3_98",98,"manometro 195 psi caja metalica",1,3,"unidad","Und","Coltech S.A.S",9579.4026999999987,1,"C1_EMER_Z3_98 manometro 195 psi caja metalica",1]
["Productos de Seguridad S.A (Prodeseg)C2_EMER_Z1_1","C2_EMER_Z1_1",1,"Botiquín tipo A en Gabinete",2,1,"unidad","Und","Productos de Seguridad S.A (Prodeseg)",147208.12264000031,1,"C2_EMER_Z1_1 Botiquin tipo A en Gabinete",0]
["Productos de Seguridad S.A (Prodeseg)C2_EMER_Z1_2","C2_EMER_Z1_2",2,"Botiquín tipo A en maletín",2,1,"unidad","Und","Productos de Seguridad S.A (Prodeseg)",109727.29630666666,1,"C2_EMER_Z1_2 Botiquin tipo A en maletin",0]
["Productos de Seguridad S.A (Prodeseg)C2_EMER_Z1_3","C2_EMER_Z1_3",3,"Botiquín tipo B en Gabinete",2,1,"unidad","Und","Productos de Seguridad S.A (Prodeseg)",573744.36252999993,1,"C2_EMER_Z1_3 Botiquin tipo B en Gabinete",0]
["Productos de Seguridad S.A (Prodeseg)C2_EMER_Z1_4","C2_EMER_Z1_4",4,"Botiquín tipo B en maletín",2,1,"unidad","Und","Productos de Seguridad S.A (Prodeseg)",575054.23109000002,1,"C2_EMER_Z1_4 Botiquin tipo B en maletin",0]
["Productos de Seguridad S.A (Prodeseg)C2_EMER_Z1_5","C2_EMER_Z1_5",5,"Botiquín tipo C en Gabinete",2,1,"unidad","Und","Productos de Seguridad S.A (Prodeseg)",659004.89789000002,1,"C2_EMER_Z1_5 Botiquin tipo C en Gabinete",0]
["Productos de Seguridad S.A (Prodeseg)C2_EMER_Z1_6","C2_EMER_Z1_6",6,"Botiquín tipo C en morral ",2,1,"unidad","Und","Productos de Seguridad S.A (Prodeseg)",699660.89053999993,1,"C2_EMER_Z1_6 Botiquin tipo C en morral ",1]
["Productos de Seguridad S.A (Prodeseg)C2_EMER_Z1_7","C2_EMER_Z1_7",7,"Gabinete de Botiquín ",2,1,"unidad","Und","Productos de Seguridad S.A (Prodeseg)",75934.279540000003,1,"C2_EMER_Z1_7 Gabinete de Botiquin ",1]
["Productos de Seguridad S.A (Prodeseg)C2_EMER_Z1_8","C2_EMER_Z1_8",8,"Morral para Botiquín tipo B y C",2,1,"unidad","Und","Productos de Seguridad S.A (Prodeseg)",129724.45591001333,1,"C2_EMER_Z1_8 Morral para Botiquin tipo B y C",1]
["Productos de Seguridad S.A (Prodeseg)C2_EMER_Z1_9","C2_EMER_Z1_9",9,"Morral para Botiquín tipo A",2,1,"unidad","Und","Productos de Seguridad S.A (Prodeseg)",25202.188083146666,1,"C2_EMER_Z1_9 Morral para Botiquin tipo A",1]
["Productos de Seguridad S.A (Prodeseg)C2_EMER_Z1_10","C2_EMER_Z1_10",10,"Baja lenguas - 1 paquete por 20 unidades",2,1,"unidad","Und","Productos de Seguridad S.A (Prodeseg)",1215.4240627317829,1,"C2_EMER_Z1_10 Baja lenguas - 1 paquete por 20 unidades",1]
["Productos de Seguridad S.A (Prodeseg)C2_EMER_Z1_11","C2_EMER_Z1_11",11,"Gasa estéril - 1 paquete por 20 unidades",2,1,"unidad","Und","Productos de Seguridad S.A (Prodeseg)",14725.675211538459,1,"C2_EMER_Z1_11 Gasa esteril - 1 paquete por 20 unidades",1]
["Productos de Seguridad S.A (Prodeseg)C2_EMER_Z1_12","C2_EMER_Z1_12",12,"Gasas limpias - 1 paquete por 100 unidades.",2,1,"unidad","Und","Productos de Seguridad S.A (Prodeseg)",16421.318568695649,1,"C2_EMER_Z1_12 Gasas limpias - 1 paquete por 100 unidades.",0]
["Productos de Seguridad S.A (Prodeseg)C2_EMER_Z1_13","C2_EMER_Z1_13",13,"Apósito o compresas no estériles - 1 paquete por 4 unidades.",2,1,"unidad","Und","Productos de Seguridad S.A (Prodeseg)",6927.7763339285711,1,"C2_EMER_Z1_13 Aposito o compresas no esteriles - 1 paquete por 4 unidades.",1]
["Productos de Seguridad S.A (Prodeseg)C2_EMER_Z1_14","C2_EMER_Z1_14",14,"Guantes de nitrilo para exámen - 1 caja por 100 unidades. ",2,1,"unidad","Und","Productos de Seguridad S.A (Prodeseg)",20095.159125789476,1,"C2_EMER_Z1_14 Guantes de nitrilo para examen - 1 caja por 100 unidades. ",1]
["Productos de Seguridad S.A (Prodeseg)C2_EMER_Z1_15","C2_EMER_Z1_15",15,"Solución salina - 1 frasco plástico de 250 cc.",2,1,"unidad","Und","Productos de Seguridad S.A (Prodeseg)",3197.7799682999998,1,"C2_EMER_Z1_15 Solucion salina - 1 frasco plastico de 250 cc.",1]
["Productos de Seguridad S.A (Prodeseg)C2_EMER_Z1_16","C2_EMER_Z1_16",16,"Termómetro digital - 1 unidad",2,1,"unidad","Und","Productos de Seguridad S.A (Prodeseg)",10289.120407894738,1,"C2_EMER_Z1_16 Termometro digital - 1 unidad",1]
["Productos de Seguridad S.A (Prodeseg)C2_EMER_Z1_17","C2_EMER_Z1_17",17,"Venda elástica - 1 unidad, 2´´x5 yardas y de 450 cms de longitud estirada. ",2,1,"unidad","Und","Productos de Seguridad S.A (Prodeseg)",928.94062646080761,1,"C2_EMER_Z1_17 Venda elastica - 1 unidad, 2 pulgadas x5 yardas y de 450 cms de longitud estirada. ",0]
["Productos de Seguridad S.A (Prodeseg)C2_EMER_Z1_18","C2_EMER_Z1_18",18,"Venda elástica - 1unidad, 3´´x5 yardas y de 450 cms de longitud estirada. ",2,1,"unidad","Und","Productos de Seguridad S.A (Prodeseg)",1390.5733947330959,1,"C2_EMER_Z1_18 Venda elastica - 1unidad, 3 pulgadas x5 yardas y de 450 cms de longitud estirada. ",0]
["Productos de Seguridad S.A (Prodeseg)C2_EMER_Z1_19","C2_EMER_Z1_19",19,"Venda elástica - 1 unidad, 5´´x5 yardas y de 450 cms de longitud estirada. ",2,1,"unidad","Und","Productos de Seguridad S.A (Prodeseg)",2320.0841379761905,1,"C2_EMER_Z1_19 Venda elastica - 1 unidad, 5 pulgadas x5 yardas y de 450 cms de longitud estirada. ",0]
["Productos de Seguridad S.A (Prodeseg)C2_EMER_Z1_20","C2_EMER_Z1_20",20,"Venda de algodón laminado - 1 unidad, 3´´x5 yardas y de 450 cms de longitud estirada. ",2,1,"unidad","Und","Productos de Seguridad S.A (Prodeseg)",1014.110500777202,1,"C2_EMER_Z1_20 Venda de algodon laminado - 1 unidad, 3 pulgadas x5 yardas y de 450 cms de longitud estirada. ",0]
["Productos de Seguridad S.A (Prodeseg)C2_EMER_Z1_21","C2_EMER_Z1_21",21,"Venda de algodón laminado - 1 unidad, 3´´x5 yardas y de 450 cms de longitud estirada. ",2,1,"unidad","Und","Productos de Seguridad S.A (Prodeseg)",1014.110500777202,1,"C2_EMER_Z1_21 Venda de algodon laminado - 1 unidad, 3 pulgadas x5 yardas y de 450 cms de longitud estirada. ",0]
["Productos de Seguridad S.A (Prodeseg)C2_EMER_Z1_22","C2_EMER_Z1_22",22,"Alcohol antiséptico - 1 frasco de 275 ml.",2,1,"unidad","Und","Productos de Seguridad S.A (Prodeseg)",3052.2304714433685,1,"C2_EMER_Z1_22 Alcohol antiseptico - 1 frasco de 275 ml.",0]
["Productos de Seguridad S.A (Prodeseg)C2_EMER_Z1_23","C2_EMER_Z1_23",23,"Esparadrapo en tela - 1 rollo de 4´´",2,1,"unidad","Und","Productos de Seguridad S.A (Prodeseg)",25289.95423333333,1,"C2_EMER_Z1_23 Esparadrapo en tela - 1 rollo de 4 pulgadas",0]
["Productos de Seguridad S.A (Prodeseg)C2_EMER_Z1_24","C2_EMER_Z1_24",24,"Yodopovidona - 1 frasco por 120 ml. ",2,1,"unidad","Und","Productos de Seguridad S.A (Prodeseg)",7148.5768137037039,1,"C2_EMER_Z1_24 Yodopovidona - 1 frasco por 120 ml. ",0]
["Productos de Seguridad S.A (Prodeseg)C2_EMER_Z1_25","C2_EMER_Z1_25",25,"Tijeras corta todo - 1 unidad",2,1,"unidad","Und","Productos de Seguridad S.A (Prodeseg)",7498.1546057692294,1,"C2_EMER_Z1_25 Tijeras corta todo - 1 unidad",1]
["Productos de Seguridad S.A (Prodeseg)C2_EMER_Z1_26","C2_EMER_Z1_26",26,"Linterna de Dinamo - 1 unidad",2,1,"unidad","Und","Productos de Seguridad S.A (Prodeseg)",8089.1715729166663,1,"C2_EMER_Z1_26 Linterna de Dinamo - 1 unidad",1]
["Productos de Seguridad S.A (Prodeseg)C2_EMER_Z1_27","C2_EMER_Z1_27",27,"Collar cervical de adulto - 1 unidad",2,1,"unidad","Und","Productos de Seguridad S.A (Prodeseg)",52336.983071428571,1,"C2_EMER_Z1_27 Collar cervical de adulto - 1 unidad",1]
["Productos de Seguridad S.A (Prodeseg)C2_EMER_Z1_28","C2_EMER_Z1_28",28,"Collar cervical de niño - 1 unidad",2,1,"unidad","Und","Productos de Seguridad S.A (Prodeseg)",45422.738437499997,1,"C2_EMER_Z1_28 Collar cervical de nino - 1 unidad",1]
["Productos de Seguridad S.A (Prodeseg)C2_EMER_Z1_29","C2_EMER_Z1_29",29,"Inmovilizadores o ferula de miembros superiores de adulto  - 1 unidad",2,1,"unidad","Und","Productos de Seguridad S.A (Prodeseg)",12703.120303666665,1,"C2_EMER_Z1_29 Inmovilizadores o ferula de miembros superiores de adulto  - 1 unidad",0]
["Productos de Seguridad S.A (Prodeseg)C2_EMER_Z1_30","C2_EMER_Z1_30",30,"Inmovilizadores o ferula de miembros inferiores de adulto  - 1 unidad",2,1,"unidad","Und","Productos de Seguridad S.A (Prodeseg)",12201.415859375,1,"C2_EMER_Z1_30 Inmovilizadores o ferula de miembros inferiores de adulto  - 1 unidad",0]
["Productos de Seguridad S.A (Prodeseg)C2_EMER_Z1_31","C2_EMER_Z1_31",31,"Inmovilizadores o ferula de miembros superiores de niño  - 1 unidad",2,1,"unidad","Und","Productos de Seguridad S.A (Prodeseg)",12298.311567500001,1,"C2_EMER_Z1_31 Inmovilizadores o ferula de miembros superiores de nino  - 1 unidad",0]
["Productos de Seguridad S.A (Prodeseg)C2_EMER_Z1_32","C2_EMER_Z1_32",32,"Inmovilizadores o ferula de miembros inferiores de niño  - 1 unidad",2,1,"unidad","Und","Productos de Seguridad S.A (Prodeseg)",12201.415859375,1,"C2_EMER_Z1_32 Inmovilizadores o ferula de miembros inferiores de nino  - 1 unidad",0]
["Productos de Seguridad S.A (Prodeseg)C2_EMER_Z1_33","C2_EMER_Z1_33",33,"Vasos desechables - 1 paquete de 25 unidades",2,1,"unidad","Und","Productos de Seguridad S.A (Prodeseg)",2406.9115525164912,1,"C2_EMER_Z1_33 Vasos desechables - 1 paquete de 25 unidades",1]
["Productos de Seguridad S.A (Prodeseg)C2_EMER_Z1_34","C2_EMER_Z1_34",34,"Tensiometro manual - 1 unidad ",2,1,"unidad","Und","Productos de Seguridad S.A (Prodeseg)",300636.90159999998,1,"C2_EMER_Z1_34 Tensiometro manual - 1 unidad ",1]
["Productos de Seguridad S.A (Prodeseg)C2_EMER_Z1_35","C2_EMER_Z1_35",35,"Tensiometro digital - 1 unidad ",2,1,"unidad","Und","Productos de Seguridad S.A (Prodeseg)",345811.96159999998,1,"C2_EMER_Z1_35 Tensiometro digital - 1 unidad ",1]
["Productos de Seguridad S.A (Prodeseg)C2_EMER_Z1_36","C2_EMER_Z1_36",36,"Fonendoscopio - 1 unidad ",2,1,"unidad","Und","Productos de Seguridad S.A (Prodeseg)",14725.675211538459,1,"C2_EMER_Z1_36 Fonendoscopio - 1 unidad ",1]
["Productos de Seguridad S.A (Prodeseg)C2_EMER_Z1_37","C2_EMER_Z1_37",37,"Mascarilla desechable para RCP - 1 unidad",2,1,"unidad","Und","Productos de Seguridad S.A (Prodeseg)",50116.431101428578,1,"C2_EMER_Z1_37 Mascarilla desechable para RCP - 1 unidad",1]
["Productos de Seguridad S.A (Prodeseg)C2_EMER_Z1_38","C2_EMER_Z1_38",38,"Tabla espinal para emergencias ",2,1,"unidad","Und","Productos de Seguridad S.A (Prodeseg)",263788.5955,1,"C2_EMER_Z1_38 Tabla espinal para emergencias ",1]
["Res-Q Solutions S.A.SC2_EMER_Z1_1","C2_EMER_Z1_1",1,"Botiquín tipo A en Gabinete",2,1,"unidad","Und","Res-Q Solutions S.A.S",221191.25,1,"C2_EMER_Z1_1 Botiquin tipo A en Gabinete",0]
["Res-Q Solutions S.A.SC2_EMER_Z1_2","C2_EMER_Z1_2",2,"Botiquín tipo A en maletín",2,1,"unidad","Und","Res-Q Solutions S.A.S",195168.75,1,"C2_EMER_Z1_2 Botiquin tipo A en maletin",0]
["Res-Q Solutions S.A.SC2_EMER_Z1_3","C2_EMER_Z1_3",3,"Botiquín tipo B en Gabinete",2,1,"unidad","Und","Res-Q Solutions S.A.S",1899642.5,1,"C2_EMER_Z1_3 Botiquin tipo B en Gabinete",0]
["Res-Q Solutions S.A.SC2_EMER_Z1_4","C2_EMER_Z1_4",4,"Botiquín tipo B en maletín",2,1,"unidad","Und","Res-Q Solutions S.A.S",1743507.5,1,"C2_EMER_Z1_4 Botiquin tipo B en maletin",0]
["Res-Q Solutions S.A.SC2_EMER_Z1_5","C2_EMER_Z1_5",5,"Botiquín tipo C en Gabinete",2,1,"unidad","Und","Res-Q Solutions S.A.S",2937940.25,1,"C2_EMER_Z1_5 Botiquin tipo C en Gabinete",0]
["Res-Q Solutions S.A.SC2_EMER_Z1_6","C2_EMER_Z1_6",6,"Botiquín tipo C en morral ",2,1,"unidad","Und","Res-Q Solutions S.A.S",2779853.5625,1,"C2_EMER_Z1_6 Botiquin tipo C en morral ",1]
["Res-Q Solutions S.A.SC2_EMER_Z1_7","C2_EMER_Z1_7",7,"Gabinete de Botiquín ",2,1,"unidad","Und","Res-Q Solutions S.A.S",131205.88235294117,1,"C2_EMER_Z1_7 Gabinete de Botiquin ",1]
["Res-Q Solutions S.A.SC2_EMER_Z1_8","C2_EMER_Z1_8",8,"Morral para Botiquín tipo B y C",2,1,"unidad","Und","Res-Q Solutions S.A.S",174941.17647058822,1,"C2_EMER_Z1_8 Morral para Botiquin tipo B y C",1]
["Res-Q Solutions S.A.SC2_EMER_Z1_9","C2_EMER_Z1_9",9,"Morral para Botiquín tipo A",2,1,"unidad","Und","Res-Q Solutions S.A.S",153073.5294117647,1,"C2_EMER_Z1_9 Morral para Botiquin tipo A",1]
["Res-Q Solutions S.A.SC2_EMER_Z1_10","C2_EMER_Z1_10",10,"Baja lenguas - 1 paquete por 20 unidades",2,1,"unidad","Und","Res-Q Solutions S.A.S",3122.7,1,"C2_EMER_Z1_10 Baja lenguas - 1 paquete por 20 unidades",1]
["Res-Q Solutions S.A.SC2_EMER_Z1_11","C2_EMER_Z1_11",11,"Gasa estéril - 1 paquete por 20 unidades",2,1,"unidad","Und","Res-Q Solutions S.A.S",28624.75,1,"C2_EMER_Z1_11 Gasa esteril - 1 paquete por 20 unidades",1]
["Res-Q Solutions S.A.SC2_EMER_Z1_12","C2_EMER_Z1_12",12,"Gasas limpias - 1 paquete por 100 unidades.",2,1,"unidad","Und","Res-Q Solutions S.A.S",22119.125,1,"C2_EMER_Z1_12 Gasas limpias - 1 paquete por 100 unidades.",0]
["Res-Q Solutions S.A.SC2_EMER_Z1_13","C2_EMER_Z1_13",13,"Apósito o compresas no estériles - 1 paquete por 4 unidades.",2,1,"unidad","Und","Res-Q Solutions S.A.S",19516.875,1,"C2_EMER_Z1_13 Aposito o compresas no esteriles - 1 paquete por 4 unidades.",1]
["Res-Q Solutions S.A.SC2_EMER_Z1_14","C2_EMER_Z1_14",14,"Guantes de nitrilo para exámen - 1 caja por 100 unidades. ",2,1,"unidad","Und","Res-Q Solutions S.A.S",46840.5,1,"C2_EMER_Z1_14 Guantes de nitrilo para examen - 1 caja por 100 unidades. ",1]
["Res-Q Solutions S.A.SC2_EMER_Z1_15","C2_EMER_Z1_15",15,"Solución salina - 1 frasco plástico de 250 cc.",2,1,"unidad","Und","Res-Q Solutions S.A.S",4684.0499999999993,1,"C2_EMER_Z1_15 Solucion salina - 1 frasco plastico de 250 cc.",1]
[{"$f":"I643&B643","v":"Res-Q Solutions S.A.SC2_EMER_Z1_16"},{"$f":"\"C\"&E643&\"_EMER_Z\"&F643&\"_\"&C643","v":"C2_EMER_Z1_16"},16,"Termómetro digital - 1 unidad",2,1,"unidad","Und","Res-Q Solutions S.A.S",19516.875,1,"C2_EMER_Z1_16 Termometro digital - 1 unidad",1]
["Res-Q Solutions S.A.SC2_EMER_Z1_17","C2_EMER_Z1_17",17,"Venda elástica - 1 unidad, 2´´x5 yardas y de 450 cms de longitud estirada. ",2,1,"unidad","Und","Res-Q Solutions S.A.S",3122.7,1,"C2_EMER_Z1_17 Venda elastica - 1 unidad, 2 pulgadas x5 yardas y de 450 cms de longitud estirada. ",0]
["Res-Q Solutions S.A.SC2_EMER_Z1_18","C2_EMER_Z1_18",18,"Venda elástica - 1unidad, 3´´x5 yardas y de 450 cms de longitud estirada. ",2,1,"unidad","Und","Res-Q Solutions S.A.S",3643.1499999999996,1,"C2_EMER_Z1_18 Venda elastica - 1unidad, 3 pulgadas x5 yardas y de 450 cms de longitud estirada. ",0]
["Res-Q Solutions S.A.SC2_EMER_Z1_19","C2_EMER_Z1_19",19,"Venda elástica - 1 unidad, 5´´x5 yardas y de 450 cms de longitud estirada. ",2,1,"unidad","Und","Res-Q Solutions S.A.S",4553.9375,1,"C2_EMER_Z1_19 Venda elastica - 1 unidad, 5 pulgadas x5 yardas y de 450 cms de longitud estirada. ",0]
["Res-Q Solutions S.A.SC2_EMER_Z1_20","C2_EMER_Z1_20",20,"Venda de algodón laminado - 1 unidad, 3´´x5 yardas y de 450 cms de longitud estirada. ",2,1,"unidad","Und","Res-Q Solutions S.A.S",2342.0249999999996,1,"C2_EMER_Z1_20 Venda de algodon laminado - 1 unidad, 3 pulgadas x5 yardas y de 450 cms de longitud estirada. ",0]
["Res-Q Solutions S.A.SC2_EMER_Z1_21","C2_EMER_Z1_21",21,"Venda de algodón laminado - 1 unidad, 3´´x5 yardas y de 450 cms de longitud estirada. ",2,1,"unidad","Und","Res-Q Solutions S.A.S",3643.1499999999996,1,"C2_EMER_Z1_21 Venda de algodon laminado - 1 unidad, 3 pulgadas x5 yardas y de 450 cms de longitud estirada. ",0]
["Res-Q Solutions S.A.SC2_EMER_Z1_22","C2_EMER_Z1_22",22,"Alcohol antiséptico - 1 frasco de 275 ml.",2,1,"unidad","Und","Res-Q Solutions S.A.S",6505.625,1,"C2_EMER_Z1_22 Alcohol antiseptico - 1 frasco de 275 ml.",0]
["Res-Q Solutions S.A.SC2_EMER_Z1_23","C2_EMER_Z1_23",23,"Esparadrapo en tela - 1 rollo de 4´´",2,1,"unidad","Und","Res-Q Solutions S.A.S",33829.25,1,"C2_EMER_Z1_23 Esparadrapo en tela - 1 rollo de 4 pulgadas",0]
["Res-Q Solutions S.A.SC2_EMER_Z1_24","C2_EMER_Z1_24",24,"Yodopovidona - 1 frasco por 120 ml. ",2,1,"unidad","Und","Res-Q Solutions S.A.S",11189.674999999999,1,"C2_EMER_Z1_24 Yodopovidona - 1 frasco por 120 ml. ",0]
["Res-Q Solutions S.A.SC2_EMER_Z1_25","C2_EMER_Z1_25",25,"Tijeras corta todo - 1 unidad",2,1,"unidad","Und","Res-Q Solutions S.A.S",18215.75,1,"C2_EMER_Z1_25 Tijeras corta todo - 1 unidad",1]
["Res-Q Solutions S.A.SC2_EMER_Z1_26","C2_EMER_Z1_26",26,"Linterna de Dinamo - 1 unidad",2,1,"unidad","Und","Res-Q Solutions S.A.S",20818,1,"C2_EMER_Z1_26 Linterna de Dinamo - 1 unidad",1]
["Res-Q Solutions S.A.SC2_EMER_Z1_27","C2_EMER_Z1_27",27,"Collar cervical de adulto - 1 unidad",2,1,"unidad","Und","Res-Q Solutions S.A.S",65056.249999999993,1,"C2_EMER_Z1_27 Collar cervical de adulto - 1 unidad",1]
["Res-Q Solutions S.A.SC2_EMER_Z1_28","C2_EMER_Z1_28",28,"Collar cervical de niño - 1 unidad",2,1,"unidad","Und","Res-Q Solutions S.A.S",101487.75,1,"C2_EMER_Z1_28 Collar cervical de nino - 1 unidad",1]
["Res-Q Solutions S.A.SC2_EMER_Z1_29","C2_EMER_Z1_29",29,"Inmovilizadores o ferula de miembros superiores de adulto  - 1 unidad",2,1,"unidad","Und","Res-Q Solutions S.A.S",65056.249999999993,1,"C2_EMER_Z1_29 Inmovilizadores o ferula de miembros superiores de adulto  - 1 unidad",0]
["Res-Q Solutions S.A.SC2_EMER_Z1_30","C2_EMER_Z1_30",30,"Inmovilizadores o ferula de miembros inferiores de adulto  - 1 unidad",2,1,"unidad","Und","Res-Q Solutions S.A.S",65056.249999999993,1,"C2_EMER_Z1_30 Inmovilizadores o ferula de miembros inferiores de adulto  - 1 unidad",0]
["Res-Q Solutions S.A.SC2_EMER_Z1_31","C2_EMER_Z1_31",31,"Inmovilizadores o ferula de miembros superiores de niño  - 1 unidad",2,1,"unidad","Und","Res-Q Solutions S.A.S",65056.249999999993,1,"C2_EMER_Z1_31 Inmovilizadores o ferula de miembros superiores de nino  - 1 unidad",0]
["Res-Q Solutions S.A.SC2_EMER_Z1_32","C2_EMER_Z1_32",32,"Inmovilizadores o ferula de miembros inferiores de niño  - 1 unidad",2,1,"unidad","Und","Res-Q Solutions S.A.S",65056.249999999993,1,"C2_EMER_Z1_32 Inmovilizadores o ferula de miembros inferiores de nino  - 1 unidad",0]
["Res-Q Solutions S.A.SC2_EMER_Z1_33","C2_EMER_Z1_33",33,"Vasos desechables - 1 paquete de 25 unidades",2,1,"unidad","Und","Res-Q Solutions S.A.S",2733.455882352941,1,"C2_EMER_Z1_33 Vasos desechables - 1 paquete de 25 unidades",1]
["Res-Q Solutions S.A.SC2_EMER_Z1_34","C2_EMER_Z1_34",34,"Tensiometro manual - 1 unidad ",2,1,"unidad","Und","Res-Q Solutions S.A.S",24054.411764705881,1,"C2_EMER_Z1_34 Tensiometro manual - 1 unidad ",1]
["Res-Q Solutions S.A.SC2_EMER_Z1_35","C2_EMER_Z1_35",35,"Tensiometro digital - 1 unidad ",2,1,"unidad","Und","Res-Q Solutions S.A.S",244917.64705882352,1,"C2_EMER_Z1_35 Tensiometro digital - 1 unidad ",1]
["Res-Q Solutions S.A.SC2_EMER_Z1_36","C2_EMER_Z1_36",36,"Fonendoscopio - 1 unidad ",2,1,"unidad","Und","Res-Q Solutions S.A.S",437352.94117647054,1,"C2_EMER_Z1_36 Fonendoscopio - 1 unidad ",1]
["Res-Q Solutions S.A.SC2_EMER_Z1_37","C2_EMER_Z1_37",37,"Mascarilla desechable para RCP - 1 unidad",2,1,"unidad","Und","Res-Q Solutions S.A.S",17494.117647058825,1,"C2_EMER_Z1_37 Mascarilla desechable para RCP - 1 unidad",1]
["Res-Q Solutions S.A.SC2_EMER_Z1_38","C2_EMER_Z1_38",38,"Tabla espinal para emergencias ",2,1,"unidad","Und","Res-Q Solutions S.A.S",393617.6470588235,1,"C2_EMER_Z1_38 Tabla espinal para emergencias ",1]
["Asesorias y productos en prevencion y seguridad S.A.S (Aspreseg)C2_EMER_Z1_1","C2_EMER_Z1_1",1,"Botiquín tipo A en Gabinete",2,1,"unidad","Und","Asesorias y productos en prevencion y seguridad S.A.S (Aspreseg)",325281.25,1,"C2_EMER_Z1_1 Botiquin tipo A en Gabinete",0]
["Asesorias y productos en prevencion y seguridad S.A.S (Aspreseg)C2_EMER_Z1_2","C2_EMER_Z1_2",2,"Botiquín tipo A en maletín",2,1,"unidad","Und","Asesorias y productos en prevencion y seguridad S.A.S (Aspreseg)",275838.5,1,"C2_EMER_Z1_2 Botiquin tipo A en maletin",0]
["Asesorias y productos en prevencion y seguridad S.A.S (Aspreseg)C2_EMER_Z1_3","C2_EMER_Z1_3",3,"Botiquín tipo B en Gabinete",2,1,"unidad","Und","Asesorias y productos en prevencion y seguridad S.A.S (Aspreseg)",1092945,1,"C2_EMER_Z1_3 Botiquin tipo B en Gabinete",0]
["Asesorias y productos en prevencion y seguridad S.A.S (Aspreseg)C2_EMER_Z1_4","C2_EMER_Z1_4",4,"Botiquín tipo B en maletín",2,1,"unidad","Und","Asesorias y productos en prevencion y seguridad S.A.S (Aspreseg)",959085.25999999989,1,"C2_EMER_Z1_4 Botiquin tipo B en maletin",0]
["Asesorias y productos en prevencion y seguridad S.A.S (Aspreseg)C2_EMER_Z1_5","C2_EMER_Z1_5",5,"Botiquín tipo C en Gabinete",2,1,"unidad","Und","Asesorias y productos en prevencion y seguridad S.A.S (Aspreseg)",1026743.7599999999,1,"C2_EMER_Z1_5 Botiquin tipo C en Gabinete",0]
["Asesorias y productos en prevencion y seguridad S.A.S (Aspreseg)C2_EMER_Z1_6","C2_EMER_Z1_6",6,"Botiquín tipo C en morral ",2,1,"unidad","Und","Asesorias y productos en prevencion y seguridad S.A.S (Aspreseg)",1092945,1,"C2_EMER_Z1_6 Botiquin tipo C en morral ",1]
["Asesorias y productos en prevencion y seguridad S.A.S (Aspreseg)C2_EMER_Z1_7","C2_EMER_Z1_7",7,"Gabinete de Botiquín ",2,1,"unidad","Und","Asesorias y productos en prevencion y seguridad S.A.S (Aspreseg)",166544,1,"C2_EMER_Z1_7 Gabinete de Botiquin ",1]
["Asesorias y productos en prevencion y seguridad S.A.S (Aspreseg)C2_EMER_Z1_8","C2_EMER_Z1_8",8,"Morral para Botiquín tipo B y C",2,1,"unidad","Und","Asesorias y productos en prevencion y seguridad S.A.S (Aspreseg)",215986.75,1,"C2_EMER_Z1_8 Morral para Botiquin tipo B y C",1]
["Asesorias y productos en prevencion y seguridad S.A.S (Aspreseg)C2_EMER_Z1_9","C2_EMER_Z1_9",9,"Morral para Botiquín tipo A",2,1,"unidad","Und","Asesorias y productos en prevencion y seguridad S.A.S (Aspreseg)",91078.75,1,"C2_EMER_Z1_9 Morral para Botiquin tipo A",1]
["Asesorias y productos en prevencion y seguridad S.A.S (Aspreseg)C2_EMER_Z1_10","C2_EMER_Z1_10",10,"Baja lenguas - 1 paquete por 20 unidades",2,1,"unidad","Und","Asesorias y productos en prevencion y seguridad S.A.S (Aspreseg)",8327.1999999999989,1,"C2_EMER_Z1_10 Baja lenguas - 1 paquete por 20 unidades",1]
["Asesorias y productos en prevencion y seguridad S.A.S (Aspreseg)C2_EMER_Z1_11","C2_EMER_Z1_11",11,"Gasa estéril - 1 paquete por 20 unidades",2,1,"unidad","Und","Asesorias y productos en prevencion y seguridad S.A.S (Aspreseg)",62453.999999999993,1,"C2_EMER_Z1_11 Gasa esteril - 1 paquete por 20 unidades",1]
["Asesorias y productos en prevencion y seguridad S.A.S (Aspreseg)C2_EMER_Z1_12","C2_EMER_Z1_12",12,"Gasas limpias - 1 paquete por 100 unidades.",2,1,"unidad","Und","Asesorias y productos en prevencion y seguridad S.A.S (Aspreseg)",45105.666666666664,1,"C2_EMER_Z1_12 Gasas limpias - 1 paquete por 100 unidades.",0]
["Asesorias y productos en prevencion y seguridad S.A.S (Aspreseg)C2_EMER_Z1_13","C2_EMER_Z1_13",13,"Apósito o compresas no estériles - 1 paquete por 4 unidades.",2,1,"unidad","Und","Asesorias y productos en prevencion y seguridad S.A.S (Aspreseg)",19083.166666666668,1,"C2_EMER_Z1_13 Aposito o compresas no esteriles - 1 paquete por 4 unidades.",1]
["Asesorias y productos en prevencion y seguridad S.A.S (Aspreseg)C2_EMER_Z1_14","C2_EMER_Z1_14",14,"Guantes de nitrilo para exámen - 1 caja por 100 unidades. ",2,1,"unidad","Und","Asesorias y productos en prevencion y seguridad S.A.S (Aspreseg)",50558,1,"C2_EMER_Z1_14 Guantes de nitrilo para examen - 1 caja por 100 unidades. ",1]
["Asesorias y productos en prevencion y seguridad S.A.S (Aspreseg)C2_EMER_Z1_15","C2_EMER_Z1_15",15,"Solución salina - 1 frasco plástico de 250 cc.",2,1,"unidad","Und","Asesorias y productos en prevencion y seguridad S.A.S (Aspreseg)",13011.25,1,"C2_EMER_Z1_15 Solucion salina - 1 frasco plastico de 250 cc.",1]
["Asesorias y productos en prevencion y seguridad S.A.S (Aspreseg)C2_EMER_Z1_16","C2_EMER_Z1_16",16,"Termómetro digital - 1 unidad",2,1,"unidad","Und","Asesorias y productos en prevencion y seguridad S.A.S (Aspreseg)",27757.333333333332,1,"C2_EMER_Z1_16 Termometro digital - 1 unidad",1]
["Asesorias y productos en prevencion y seguridad S.A.S (Aspreseg)C2_EMER_Z1_17","C2_EMER_Z1_17",17,"Venda elástica - 1 unidad, 2´´x5 yardas y de 450 cms de longitud estirada. ",2,1,"unidad","Und","Asesorias y productos en prevencion y seguridad S.A.S (Aspreseg)",6245.4,1,"C2_EMER_Z1_17 Venda elastica - 1 unidad, 2 pulgadas x5 yardas y de 450 cms de longitud estirada. ",0]
["Asesorias y productos en prevencion y seguridad S.A.S (Aspreseg)C2_EMER_Z1_18","C2_EMER_Z1_18",18,"Venda elástica - 1unidad, 3´´x5 yardas y de 450 cms de longitud estirada. ",2,1,"unidad","Und","Asesorias y productos en prevencion y seguridad S.A.S (Aspreseg)",9368.0999999999985,1,"C2_EMER_Z1_18 Venda elastica - 1unidad, 3 pulgadas x5 yardas y de 450 cms de longitud estirada. ",0]
["Asesorias y productos en prevencion y seguridad S.A.S (Aspreseg)C2_EMER_Z1_19","C2_EMER_Z1_19",19,"Venda elástica - 1 unidad, 5´´x5 yardas y de 450 cms de longitud estirada. ",2,1,"unidad","Und","Asesorias y productos en prevencion y seguridad S.A.S (Aspreseg)",15613.499999999998,1,"C2_EMER_Z1_19 Venda elastica - 1 unidad, 5 pulgadas x5 yardas y de 450 cms de longitud estirada. ",0]
["Asesorias y productos en prevencion y seguridad S.A.S (Aspreseg)C2_EMER_Z1_20","C2_EMER_Z1_20",20,"Venda de algodón laminado - 1 unidad, 3´´x5 yardas y de 450 cms de longitud estirada. ",2,1,"unidad","Und","Asesorias y productos en prevencion y seguridad S.A.S (Aspreseg)",6765.8499999999995,1,"C2_EMER_Z1_20 Venda de algodon laminado - 1 unidad, 3 pulgadas x5 yardas y de 450 cms de longitud estirada. ",0]
["Asesorias y productos en prevencion y seguridad S.A.S (Aspreseg)C2_EMER_Z1_21","C2_EMER_Z1_21",21,"Venda de algodón laminado - 1 unidad, 3´´x5 yardas y de 450 cms de longitud estirada. ",2,1,"unidad","Und","Asesorias y productos en prevencion y seguridad S.A.S (Aspreseg)",6765.8499999999995,1,"C2_EMER_Z1_21 Venda de algodon laminado - 1 unidad, 3 pulgadas x5 yardas y de 450 cms de longitud estirada. ",0]
["Asesorias y productos en prevencion y seguridad S.A.S (Aspreseg)C2_EMER_Z1_22","C2_EMER_Z1_22",22,"Alcohol antiséptico - 1 frasco de 275 ml.",2,1,"unidad","Und","Asesorias y productos en prevencion y seguridad S.A.S (Aspreseg)",14572.599999999999,1,"C2_EMER_Z1_22 Alcohol antiseptico - 1 frasco de 275 ml.",0]
["Asesorias y productos en prevencion y seguridad S.A.S (Aspreseg)C2_EMER_Z1_23","C2_EMER_Z1_23",23,"Esparadrapo en tela - 1 rollo de 4´´",2,1,"unidad","Und","Asesorias y productos en prevencion y seguridad S.A.S (Aspreseg)",31920.933333333334,1,"C2_EMER_Z1_23 Esparadrapo en tela - 1 rollo de 4 pulgadas",0]
["Asesorias y productos en prevencion y seguridad S.A.S (Aspreseg)C2_EMER_Z1_24","C2_EMER_Z1_24",24,"Yodopovidona - 1 frasco por 120 ml. ",2,1,"unidad","Und","Asesorias y productos en prevencion y seguridad S.A.S (Aspreseg)",16307.433333333334,1,"C2_EMER_Z1_24 Yodopovidona - 1 frasco por 120 ml. ",0]
["Asesorias y productos en prevencion y seguridad S.A.S (Aspreseg)C2_EMER_Z1_25","C2_EMER_Z1_25",25,"Tijeras corta todo - 1 unidad",2,1,"unidad","Und","Asesorias y productos en prevencion y seguridad S.A.S (Aspreseg)",15960.466666666667,1,"C2_EMER_Z1_25 Tijeras corta todo - 1 unidad",1]
["Asesorias y productos en prevencion y seguridad S.A.S (Aspreseg)C2_EMER_Z1_26","C2_EMER_Z1_26",26,"Linterna de Dinamo - 1 unidad",2,1,"unidad","Und","Asesorias y productos en prevencion y seguridad S.A.S (Aspreseg)",18389.233333333334,1,"C2_EMER_Z1_26 Linterna de Dinamo - 1 unidad",1]
["Asesorias y productos en prevencion y seguridad S.A.S (Aspreseg)C2_EMER_Z1_27","C2_EMER_Z1_27",27,"Collar cervical de adulto - 1 unidad",2,1,"unidad","Und","Asesorias y productos en prevencion y seguridad S.A.S (Aspreseg)",91078.75,1,"C2_EMER_Z1_27 Collar cervical de adulto - 1 unidad",1]
["Asesorias y productos en prevencion y seguridad S.A.S (Aspreseg)C2_EMER_Z1_28","C2_EMER_Z1_28",28,"Collar cervical de niño - 1 unidad",2,1,"unidad","Und","Asesorias y productos en prevencion y seguridad S.A.S (Aspreseg)",83272,1,"C2_EMER_Z1_28 Collar cervical de nino - 1 unidad",1]
["Asesorias y productos en prevencion y seguridad S.A.S (Aspreseg)C2_EMER_Z1_29","C2_EMER_Z1_29",29,"Inmovilizadores o ferula de miembros superiores de adulto  - 1 unidad",2,1,"unidad","Und","Asesorias y productos en prevencion y seguridad S.A.S (Aspreseg)",31573.966666666667,1,"C2_EMER_Z1_29 Inmovilizadores o ferula de miembros superiores de adulto  - 1 unidad",0]
["Asesorias y productos en prevencion y seguridad S.A.S (Aspreseg)C2_EMER_Z1_30","C2_EMER_Z1_30",30,"Inmovilizadores o ferula de miembros inferiores de adulto  - 1 unidad",2,1,"unidad","Und","Asesorias y productos en prevencion y seguridad S.A.S (Aspreseg)",31573.966666666667,1,"C2_EMER_Z1_30 Inmovilizadores o ferula de miembros inferiores de adulto  - 1 unidad",0]
["Asesorias y productos en prevencion y seguridad S.A.S (Aspreseg)C2_EMER_Z1_31","C2_EMER_Z1_31",31,"Inmovilizadores o ferula de miembros superiores de niño  - 1 unidad",2,1,"unidad","Und","Asesorias y productos en prevencion y seguridad S.A.S (Aspreseg)",31573.966666666667,1,"C2_EMER_Z1_31 Inmovilizadores o ferula de miembros superiores de nino  - 1 unidad",0]
["Asesorias y productos en prevencion y seguridad S.A.S (Aspreseg)C2_EMER_Z1_32","C2_EMER_Z1_32",32,"Inmovilizadores o ferula de miembros inferiores de niño  - 1 unidad",2,1,"unidad","Und","Asesorias y productos en prevencion y seguridad S.A.S (Aspreseg)",31573.966666666667,1,"C2_EMER_Z1_32 Inmovilizadores o ferula de miembros inferiores de nino  - 1 unidad",0]
["Asesorias y productos en prevencion y seguridad S.A.S (Aspreseg)C2_EMER_Z1_33","C2_EMER_Z1_33",33,"Vasos desechables - 1 paquete de 25 unidades",2,1,"unidad","Und","Asesorias y productos en prevencion y seguridad S.A.S (Aspreseg)",11102.933333333334,1,"C2_EMER_Z1_33 Vasos desechables - 1 paquete de 25 unidades",1]
["Asesorias y productos en prevencion y seguridad S.A.S (Aspreseg)C2_EMER_Z1_34","C2_EMER_Z1_34",34,"Tensiometro manual - 1 unidad ",2,1,"unidad","Und","Asesorias y productos en prevencion y seguridad S.A.S (Aspreseg)",78067.5,1,"C2_EMER_Z1_34 Tensiometro manual - 1 unidad ",1]
["Asesorias y productos en prevencion y seguridad S.A.S (Aspreseg)C2_EMER_Z1_35","C2_EMER_Z1_35",35,"Tensiometro digital - 1 unidad ",2,1,"unidad","Und","Asesorias y productos en prevencion y seguridad S.A.S (Aspreseg)",333088,1,"C2_EMER_Z1_35 Tensiometro digital - 1 unidad ",1]
["Asesorias y productos en prevencion y seguridad S.A.S (Aspreseg)C2_EMER_Z1_36","C2_EMER_Z1_36",36,"Fonendoscopio - 1 unidad ",2,1,"unidad","Und","Asesorias y productos en prevencion y seguridad S.A.S (Aspreseg)",52045,1,"C2_EMER_Z1_36 Fonendoscopio - 1 unidad ",1]
["Asesorias y productos en prevencion y seguridad S.A.S (Aspreseg)C2_EMER_Z1_37","C2_EMER_Z1_37",37,"Mascarilla desechable para RCP - 1 unidad",2,1,"unidad","Und","Asesorias y productos en prevencion y seguridad S.A.S (Aspreseg)",48575.333333333336,1,"C2_EMER_Z1_37 Mascarilla desechable para RCP - 1 unidad",1]
["Asesorias y productos en prevencion y seguridad S.A.S (Aspreseg)C2_EMER_Z1_38","C2_EMER_Z1_38",38,"Tabla espinal para emergencias ",2,1,"unidad","Und","Asesorias y productos en prevencion y seguridad S.A.S (Aspreseg)",399011.66666666669,1,"C2_EMER_Z1_38 Tabla espinal para emergencias ",1]
["Productos de Seguridad S.A (Prodeseg)C2_EMER_Z2_1","C2_EMER_Z2_1",1,"Botiquín tipo A en Gabinete",2,2,"unidad","Und","Productos de Seguridad S.A (Prodeseg)",148134.26627461539,1,"C2_EMER_Z2_1 Botiquin tipo A en Gabinete",0]
["Productos de Seguridad S.A (Prodeseg)C2_EMER_Z2_2","C2_EMER_Z2_2",2,"Botiquín tipo A en maletín",2,2,"unidad","Und","Productos de Seguridad S.A (Prodeseg)",110344.72539641026,1,"C2_EMER_Z2_2 Botiquin tipo A en maletin",0]
["Productos de Seguridad S.A (Prodeseg)C2_EMER_Z2_3","C2_EMER_Z2_3",3,"Botiquín tipo B en Gabinete",2,2,"unidad","Und","Productos de Seguridad S.A (Prodeseg)",575596.64979923074,1,"C2_EMER_Z2_3 Botiquin tipo B en Gabinete",0]
[{"$f":"I707&B707","v":"Productos de Seguridad S.A (Prodeseg)C2_EMER_Z2_4"},{"$f":"\"C\"&E707&\"_EMER_Z\"&F707&\"_\"&C707","v":"C2_EMER_Z2_4"},4,"Botiquín tipo B en maletín",2,2,"unidad","Und","Productos de Seguridad S.A (Prodeseg)",576906.51835923083,1,"C2_EMER_Z2_4 Botiquin tipo B en maletin",0]
["Productos de Seguridad S.A (Prodeseg)C2_EMER_Z2_5","C2_EMER_Z2_5",5,"Botiquín tipo C en Gabinete",2,2,"unidad","Und","Productos de Seguridad S.A (Prodeseg)",660857.1851592306,1,"C2_EMER_Z2_5 Botiquin tipo C en Gabinete",0]
["Productos de Seguridad S.A (Prodeseg)C2_EMER_Z2_6","C2_EMER_Z2_6",6,"Botiquín tipo C en morral ",2,2,"unidad","Und","Productos de Seguridad S.A (Prodeseg)",701513.17780923063,1,"C2_EMER_Z2_6 Botiquin tipo C en morral ",1]
["Productos de Seguridad S.A (Prodeseg)C2_EMER_Z2_7","C2_EMER_Z2_7",7,"Gabinete de Botiquín ",2,2,"unidad","Und","Productos de Seguridad S.A (Prodeseg)",76452.919975384619,1,"C2_EMER_Z2_7 Gabinete de Botiquin ",1]
["Productos de Seguridad S.A (Prodeseg)C2_EMER_Z2_8","C2_EMER_Z2_8",8,"Morral para Botiquín tipo B y C",2,2,"unidad","Und","Productos de Seguridad S.A (Prodeseg)",130768.70138091486,1,"C2_EMER_Z2_8 Morral para Botiquin tipo B y C",1]
["Productos de Seguridad S.A (Prodeseg)C2_EMER_Z2_9","C2_EMER_Z2_9",9,"Morral para Botiquín tipo A",2,2,"unidad","Und","Productos de Seguridad S.A (Prodeseg)",25364.003898986663,1,"C2_EMER_Z2_9 Morral para Botiquin tipo A",1]
["Productos de Seguridad S.A (Prodeseg)C2_EMER_Z2_10","C2_EMER_Z2_10",10,"Baja lenguas - 1 paquete por 20 unidades",2,2,"unidad","Und","Productos de Seguridad S.A (Prodeseg)",1226.2908147112701,1,"C2_EMER_Z2_10 Baja lenguas - 1 paquete por 20 unidades",1]
["Productos de Seguridad S.A (Prodeseg)C2_EMER_Z2_11","C2_EMER_Z2_11",11,"Gasa estéril - 1 paquete por 20 unidades",2,2,"unidad","Und","Productos de Seguridad S.A (Prodeseg)",14796.917029585798,1,"C2_EMER_Z2_11 Gasa esteril - 1 paquete por 20 unidades",1]
["Productos de Seguridad S.A (Prodeseg)C2_EMER_Z2_12","C2_EMER_Z2_12",12,"Gasas limpias - 1 paquete por 100 unidades.",2,2,"unidad","Und","Productos de Seguridad S.A (Prodeseg)",16501.852797792642,1,"C2_EMER_Z2_12 Gasas limpias - 1 paquete por 100 unidades.",0]
["Productos de Seguridad S.A (Prodeseg)C2_EMER_Z2_13","C2_EMER_Z2_13",13,"Apósito o compresas no estériles - 1 paquete por 4 unidades.",2,2,"unidad","Und","Productos de Seguridad S.A (Prodeseg)",6960.8528923076929,1,"C2_EMER_Z2_13 Aposito o compresas no esteriles - 1 paquete por 4 unidades.",1]
["Productos de Seguridad S.A (Prodeseg)C2_EMER_Z2_14","C2_EMER_Z2_14",14,"Guantes de nitrilo para exámen - 1 caja por 100 unidades. ",2,2,"unidad","Und","Productos de Seguridad S.A (Prodeseg)",20192.647929433198,1,"C2_EMER_Z2_14 Guantes de nitrilo para examen - 1 caja por 100 unidades. ",1]
["Productos de Seguridad S.A (Prodeseg)C2_EMER_Z2_15","C2_EMER_Z2_15",15,"Solución salina - 1 frasco plástico de 250 cc.",2,2,"unidad","Und","Productos de Seguridad S.A (Prodeseg)",3217.4142133538462,1,"C2_EMER_Z2_15 Solucion salina - 1 frasco plastico de 250 cc.",1]
["Productos de Seguridad S.A (Prodeseg)C2_EMER_Z2_16","C2_EMER_Z2_16",16,"Termómetro digital - 1 unidad",2,2,"unidad","Und","Productos de Seguridad S.A (Prodeseg)",10337.864809716599,1,"C2_EMER_Z2_16 Termometro digital - 1 unidad",1]
["Productos de Seguridad S.A (Prodeseg)C2_EMER_Z2_17","C2_EMER_Z2_17",17,"Venda elástica - 1 unidad, 2´´x5 yardas y de 450 cms de longitud estirada. ",2,2,"unidad","Und","Productos de Seguridad S.A (Prodeseg)",933.34035869175943,1,"C2_EMER_Z2_17 Venda elastica - 1 unidad, 2 pulgadas x5 yardas y de 450 cms de longitud estirada. ",0]
["Productos de Seguridad S.A (Prodeseg)C2_EMER_Z2_18","C2_EMER_Z2_18",18,"Venda elástica - 1unidad, 3´´x5 yardas y de 450 cms de longitud estirada. ",2,2,"unidad","Und","Productos de Seguridad S.A (Prodeseg)",1397.1651643744865,1,"C2_EMER_Z2_18 Venda elastica - 1unidad, 3 pulgadas x5 yardas y de 450 cms de longitud estirada. ",0]
["Productos de Seguridad S.A (Prodeseg)C2_EMER_Z2_19","C2_EMER_Z2_19",19,"Venda elástica - 1 unidad, 5´´x5 yardas y de 450 cms de longitud estirada. ",2,2,"unidad","Und","Productos de Seguridad S.A (Prodeseg)",2331.1096574358976,1,"C2_EMER_Z2_19 Venda elastica - 1 unidad, 5 pulgadas x5 yardas y de 450 cms de longitud estirada. ",0]
["Productos de Seguridad S.A (Prodeseg)C2_EMER_Z2_20","C2_EMER_Z2_20",20,"Venda de algodón laminado - 1 unidad, 3´´x5 yardas y de 450 cms de longitud estirada. ",2,2,"unidad","Und","Productos de Seguridad S.A (Prodeseg)",1018.909172459147,1,"C2_EMER_Z2_20 Venda de algodon laminado - 1 unidad, 3 pulgadas x5 yardas y de 450 cms de longitud estirada. ",0]
["Productos de Seguridad S.A (Prodeseg)C2_EMER_Z2_21","C2_EMER_Z2_21",21,"Venda de algodón laminado - 1 unidad, 3´´x5 yardas y de 450 cms de longitud estirada. ",2,2,"unidad","Und","Productos de Seguridad S.A (Prodeseg)",1018.909172459147,1,"C2_EMER_Z2_21 Venda de algodon laminado - 1 unidad, 3 pulgadas x5 yardas y de 450 cms de longitud estirada. ",0]
["Productos de Seguridad S.A (Prodeseg)C2_EMER_Z2_22","C2_EMER_Z2_22",22,"Alcohol antiséptico - 1 frasco de 275 ml.",2,2,"unidad","Und","Productos de Seguridad S.A (Prodeseg)",3074.2208259036761,1,"C2_EMER_Z2_22 Alcohol antiseptico - 1 frasco de 275 ml.",0]
["Productos de Seguridad S.A (Prodeseg)C2_EMER_Z2_23","C2_EMER_Z2_23",23,"Esparadrapo en tela - 1 rollo de 4´´",2,2,"unidad","Und","Productos de Seguridad S.A (Prodeseg)",25413.44005128205,1,"C2_EMER_Z2_23 Esparadrapo en tela - 1 rollo de 4 pulgadas",0]
["Productos de Seguridad S.A (Prodeseg)C2_EMER_Z2_24","C2_EMER_Z2_24",24,"Yodopovidona - 1 frasco por 120 ml. ",2,2,"unidad","Und","Productos de Seguridad S.A (Prodeseg)",7182.8784298005703,1,"C2_EMER_Z2_24 Yodopovidona - 1 frasco por 120 ml. ",0]
["Productos de Seguridad S.A (Prodeseg)C2_EMER_Z2_25","C2_EMER_Z2_25",25,"Tijeras corta todo - 1 unidad",2,2,"unidad","Und","Productos de Seguridad S.A (Prodeseg)",7533.7755147928992,1,"C2_EMER_Z2_25 Tijeras corta todo - 1 unidad",1]
["Productos de Seguridad S.A (Prodeseg)C2_EMER_Z2_26","C2_EMER_Z2_26",26,"Linterna de Dinamo - 1 unidad",2,2,"unidad","Und","Productos de Seguridad S.A (Prodeseg)",8127.7608910256404,1,"C2_EMER_Z2_26 Linterna de Dinamo - 1 unidad",1]
["Productos de Seguridad S.A (Prodeseg)C2_EMER_Z2_27","C2_EMER_Z2_27",27,"Collar cervical de adulto - 1 unidad",2,2,"unidad","Und","Productos de Seguridad S.A (Prodeseg)",52601.595538461537,1,"C2_EMER_Z2_27 Collar cervical de adulto - 1 unidad",1]
["Productos de Seguridad S.A (Prodeseg)C2_EMER_Z2_28","C2_EMER_Z2_28",28,"Collar cervical de niño - 1 unidad",2,2,"unidad","Und","Productos de Seguridad S.A (Prodeseg)",45654.274346153848,1,"C2_EMER_Z2_28 Collar cervical de nino - 1 unidad",1]
["Productos de Seguridad S.A (Prodeseg)C2_EMER_Z2_29","C2_EMER_Z2_29",29,"Inmovilizadores o ferula de miembros superiores de adulto  - 1 unidad",2,2,"unidad","Und","Productos de Seguridad S.A (Prodeseg)",12796.969525307692,1,"C2_EMER_Z2_29 Inmovilizadores o ferula de miembros superiores de adulto  - 1 unidad",0]
["Productos de Seguridad S.A (Prodeseg)C2_EMER_Z2_30","C2_EMER_Z2_30",30,"Inmovilizadores o ferula de miembros inferiores de adulto  - 1 unidad",2,2,"unidad","Und","Productos de Seguridad S.A (Prodeseg)",12259.299836538461,1,"C2_EMER_Z2_30 Inmovilizadores o ferula de miembros inferiores de adulto  - 1 unidad",0]
["Productos de Seguridad S.A (Prodeseg)C2_EMER_Z2_31","C2_EMER_Z2_31",31,"Inmovilizadores o ferula de miembros superiores de niño  - 1 unidad",2,2,"unidad","Und","Productos de Seguridad S.A (Prodeseg)",12363.141621923076,1,"C2_EMER_Z2_31 Inmovilizadores o ferula de miembros superiores de nino  - 1 unidad",0]
["Productos de Seguridad S.A (Prodeseg)C2_EMER_Z2_32","C2_EMER_Z2_32",32,"Inmovilizadores o ferula de miembros inferiores de niño  - 1 unidad",2,2,"unidad","Und","Productos de Seguridad S.A (Prodeseg)",12259.299836538461,1,"C2_EMER_Z2_32 Inmovilizadores o ferula de miembros inferiores de nino  - 1 unidad",0]
["Productos de Seguridad S.A (Prodeseg)C2_EMER_Z2_33","C2_EMER_Z2_33",33,"Vasos desechables - 1 paquete de 25 unidades",2,2,"unidad","Und","Productos de Seguridad S.A (Prodeseg)",2441.6851588508503,1,"C2_EMER_Z2_33 Vasos desechables - 1 paquete de 25 unidades",1]
["Productos de Seguridad S.A (Prodeseg)C2_EMER_Z2_34","C2_EMER_Z2_34",34,"Tensiometro manual - 1 unidad ",2,2,"unidad","Und","Productos de Seguridad S.A (Prodeseg)",299909.3125,1,"C2_EMER_Z2_34 Tensiometro manual - 1 unidad ",1]
["Productos de Seguridad S.A (Prodeseg)C2_EMER_Z2_35","C2_EMER_Z2_35",35,"Tensiometro digital - 1 unidad ",2,2,"unidad","Und","Productos de Seguridad S.A (Prodeseg)",345146.82649999997,1,"C2_EMER_Z2_35 Tensiometro digital - 1 unidad ",1]
["Productos de Seguridad S.A (Prodeseg)C2_EMER_Z2_36","C2_EMER_Z2_36",36,"Fonendoscopio - 1 unidad ",2,2,"unidad","Und","Productos de Seguridad S.A (Prodeseg)",14796.917029585798,1,"C2_EMER_Z2_36 Fonendoscopio - 1 unidad ",1]
["Productos de Seguridad S.A (Prodeseg)C2_EMER_Z2_37","C2_EMER_Z2_37",37,"Mascarilla desechable para RCP - 1 unidad",2,2,"unidad","Und","Productos de Seguridad S.A (Prodeseg)",50381.043568461537,1,"C2_EMER_Z2_37 Mascarilla desechable para RCP - 1 unidad",1]
["Productos de Seguridad S.A (Prodeseg)C2_EMER_Z2_38","C2_EMER_Z2_38",38,"Tabla espinal para emergencias ",2,2,"unidad","Und","Productos de Seguridad S.A (Prodeseg)",265640.88276923075,1,"C2_EMER_Z2_38 Tabla espinal para emergencias ",1]
["Res-Q Solutions S.A.SC2_EMER_Z2_1","C2_EMER_Z2_1",1,"Botiquín tipo A en Gabinete",2,2,"unidad","Und","Res-Q Solutions S.A.S",221191.25,1,"C2_EMER_Z2_1 Botiquin tipo A en Gabinete",0]
["Res-Q Solutions S.A.SC2_EMER_Z2_2","C2_EMER_Z2_2",2,"Botiquín tipo A en maletín",2,2,"unidad","Und","Res-Q Solutions S.A.S",195168.75,1,"C2_EMER_Z2_2 Botiquin tipo A en maletin",0]
["Res-Q Solutions S.A.SC2_EMER_Z2_3","C2_EMER_Z2_3",3,"Botiquín tipo B en Gabinete",2,2,"unidad","Und","Res-Q Solutions S.A.S",1899642.5,1,"C2_EMER_Z2_3 Botiquin tipo B en Gabinete",0]
["Res-Q Solutions S.A.SC2_EMER_Z2_4","C2_EMER_Z2_4",4,"Botiquín tipo B en maletín",2,2,"unidad","Und","Res-Q Solutions S.A.S",1743507.5,1,"C2_EMER_Z2_4 Botiquin tipo B en maletin",0]
["Res-Q Solutions S.A.SC2_EMER_Z2_5","C2_EMER_Z2_5",5,"Botiquín tipo C en Gabinete",2,2,"unidad","Und","Res-Q Solutions S.A.S",2937940.25,1,"C2_EMER_Z2_5 Botiquin tipo C en Gabinete",0]
["Res-Q Solutions S.A.SC2_EMER_Z2_6","C2_EMER_Z2_6",6,"Botiquín tipo C en morral ",2,2,"unidad","Und","Res-Q Solutions S.A.S",2779853.5625,1,"C2_EMER_Z2_6 Botiquin tipo C en morral ",1]
["Res-Q Solutions S.A.SC2_EMER_Z2_7","C2_EMER_Z2_7",7,"Gabinete de Botiquín ",2,2,"unidad","Und","Res-Q Solutions S.A.S",131205.88235294117,1,"C2_EMER_Z2_7 Gabinete de Botiquin ",1]
["Res-Q Solutions S.A.SC2_EMER_Z2_8","C2_EMER_Z2_8",8,"Morral para Botiquín tipo B y C",2,2,"unidad","Und","Res-Q Solutions S.A.S",174941.17647058822,1,"C2_EMER_Z2_8 Morral para Botiquin tipo B y C",1]
["Res-Q Solutions S.A.SC2_EMER_Z2_9","C2_EMER_Z2_9",9,"Morral para Botiquín tipo A",2,2,"unidad","Und","Res-Q Solutions S.A.S",153073.5294117647,1,"C2_EMER_Z2_9 Morral para Botiquin tipo A",1]
["Res-Q Solutions S.A.SC2_EMER_Z2_10","C2_EMER_Z2_10",10,"Baja lenguas - 1 paquete por 20 unidades",2,2,"unidad","Und","Res-Q Solutions S.A.S",3122.7,1,"C2_EMER_Z2_10 Baja lenguas - 1 paquete por 20 unidades",1]
["Res-Q Solutions S.A.SC2_EMER_Z2_11","C2_EMER_Z2_11",11,"Gasa estéril - 1 paquete por 20 unidades",2,2,"unidad","Und","Res-Q Solutions S.A.S",28624.75,1,"C2_EMER_Z2_11 Gasa esteril - 1 paquete por 20 unidades",1]
["Res-Q Solutions S.A.SC2_EMER_Z2_12","C2_EMER_Z2_12",12,"Gasas limpias - 1 paquete por 100 unidades.",2,2,"unidad","Und","Res-Q Solutions S.A.S",22119.125,1,"C2_EMER_Z2_12 Gasas limpias - 1 paquete por 100 unidades.",0]
["Res-Q Solutions S.A.SC2_EMER_Z2_13","C2_EMER_Z2_13",13,"Apósito o compresas no estériles - 1 paquete por 4 unidades.",2,2,"unidad","Und","Res-Q Solutions S.A.S",19516.875,1,"C2_EMER_Z2_13 Aposito o compresas no esteriles - 1 paquete por 4 unidades.",1]
["Res-Q Solutions S.A.SC2_EMER_Z2_14","C2_EMER_Z2_14",14,"Guantes de nitrilo para exámen - 1 caja por 100 unidades. ",2,2,"unidad","Und","Res-Q Solutions S.A.S",46840.5,1,"C2_EMER_Z2_14 Guantes de nitrilo para examen - 1 caja por 100 unidades. ",1]
["Res-Q Solutions S.A.SC2_EMER_Z2_15","C2_EMER_Z2_15",15,"Solución salina - 1 frasco plástico de 250 cc.",2,2,"unidad","Und","Res-Q Solutions S.A.S",4684.0499999999993,1,"C2_EMER_Z2_15 Solucion salina - 1 frasco plastico de 250 cc.",1]
["Res-Q Solutions S.A.SC2_EMER_Z2_16","C2_EMER_Z2_16",16,"Termómetro digital - 1 unidad",2,2,"unidad","Und","Res-Q Solutions S.A.S",19516.875,1,"C2_EMER_Z2_16 Termometro digital - 1 unidad",1]
["Res-Q Solutions S.A.SC2_EMER_Z2_17","C2_EMER_Z2_17",17,"Venda elástica - 1 unidad, 2´´x5 yardas y de 450 cms de longitud estirada. ",2,2,"unidad","Und","Res-Q Solutions S.A.S",3122.7,1,"C2_EMER_Z2_17 Venda elastica - 1 unidad, 2 pulgadas x5 yardas y de 450 cms de longitud estirada. ",0]
["Res-Q Solutions S.A.SC2_EMER_Z2_18","C2_EMER_Z2_18",18,"Venda elástica - 1unidad, 3´´x5 yardas y de 450 cms de longitud estirada. ",2,2,"unidad","Und","Res-Q Solutions S.A.S",3643.1499999999996,1,"C2_EMER_Z2_18 Venda elastica - 1unidad, 3 pulgadas x5 yardas y de 450 cms de longitud estirada. ",0]
["Res-Q Solutions S.A.SC2_EMER_Z2_19","C2_EMER_Z2_19",19,"Venda elástica - 1 unidad, 5´´x5 yardas y de 450 cms de longitud estirada. ",2,2,"unidad","Und","Res-Q Solutions S.A.S",4553.9375,1,"C2_EMER_Z2_19 Venda elastica - 1 unidad, 5 pulgadas x5 yardas y de 450 cms de longitud estirada. ",0]
["Res-Q Solutions S.A.SC2_EMER_Z2_20","C2_EMER_Z2_20",20,"Venda de algodón laminado - 1 unidad, 3´´x5 yardas y de 450 cms de longitud estirada. ",2,2,"unidad","Und","Res-Q Solutions S.A.S",2342.0249999999996,1,"C2_EMER_Z2_20 Venda de algodon laminado - 1 unidad, 3 pulgadas x5 yardas y de 450 cms de longitud estirada. ",0]
["Res-Q Solutions S.A.SC2_EMER_Z2_21","C2_EMER_Z2_21",21,"Venda de algodón laminado - 1 unidad, 3´´x5 yardas y de 450 cms de longitud estirada. ",2,2,"unidad","Und","Res-Q Solutions S.A.S",3643.1499999999996,1,"C2_EMER_Z2_21 Venda de algodon laminado - 1 unidad, 3 pulgadas x5 yardas y de 450 cms de longitud estirada. ",0]
["Res-Q Solutions S.A.SC2_EMER_Z2_22","C2_EMER_Z2_22",22,"Alcohol antiséptico - 1 frasco de 275 ml.",2,2,"unidad","Und","Res-Q Solutions S.A.S",6505.625,1,"C2_EMER_Z2_22 Alcohol antiseptico - 1 frasco de 275 ml.",0]
["Res-Q Solutions S.A.SC2_EMER_Z2_23","C2_EMER_Z2_23",23,"Esparadrapo en tela - 1 rollo de 4´´",2,2,"unidad","Und","Res-Q Solutions S.A.S",33829.25,1,"C2_EMER_Z2_23 Esparadrapo en tela - 1 rollo de 4 pulgadas",0]
["Res-Q Solutions S.A.SC2_EMER_Z2_24","C2_EMER_Z2_24",24,"Yodopovidona - 1 frasco por 120 ml. ",2,2,"unidad","Und","Res-Q Solutions S.A.S",11189.674999999999,1,"C2_EMER_Z2_24 Yodopovidona - 1 frasco por 120 ml. ",0]
["Res-Q Solutions S.A.SC2_EMER_Z2_25","C2_EMER_Z2_25",25,"Tijeras corta todo - 1 unidad",2,2,"unidad","Und","Res-Q Solutions S.A.S",18215.75,1,"C2_EMER_Z2_25 Tijeras corta todo - 1 unidad",1]
["Res-Q Solutions S.A.SC2_EMER_Z2_26","C2_EMER_Z2_26",26,"Linterna de Dinamo - 1 unidad",2,2,"unidad","Und","Res-Q Solutions S.A.S",20818,1,"C2_EMER_Z2_26 Linterna de Dinamo - 1 unidad",1]
["Res-Q Solutions S.A.SC2_EMER_Z2_27","C2_EMER_Z2_27",27,"Collar cervical de adulto - 1 unidad",2,2,"unidad","Und","Res-Q Solutions S.A.S",65056.249999999993,1,"C2_EMER_Z2_27 Collar cervical de adulto - 1 unidad",1]
["Res-Q Solutions S.A.SC2_EMER_Z2_28","C2_EMER_Z2_28",28,"Collar cervical de niño - 1 unidad",2,2,"unidad","Und","Res-Q Solutions S.A.S",101487.75,1,"C2_EMER_Z2_28 Collar cervical de nino - 1 unidad",1]
["Res-Q Solutions S.A.SC2_EMER_Z2_29","C2_EMER_Z2_29",29,"Inmovilizadores o ferula de miembros superiores de adulto  - 1 unidad",2,2,"unidad","Und","Res-Q Solutions S.A.S",65056.249999999993,1,"C2_EMER_Z2_29 Inmovilizadores o ferula de miembros superiores de adulto  - 1 unidad",0]
[{"$f":"I771&B771","v":"Res-Q Solutions S.A.SC2_EMER_Z2_30"},{"$f":"\"C\"&E771&\"_EMER_Z\"&F771&\"_\"&C771","v":"C2_EMER_Z2_30"},30,"Inmovilizadores o ferula de miembros inferiores de adulto  - 1 unidad",2,2,"unidad","Und","Res-Q Solutions S.A.S",65056.249999999993,1,"C2_EMER_Z2_30 Inmovilizadores o ferula de miembros inferiores de adulto  - 1 unidad",0]
["Res-Q Solutions S.A.SC2_EMER_Z2_31","C2_EMER_Z2_31",31,"Inmovilizadores o ferula de miembros superiores de niño  - 1 unidad",2,2,"unidad","Und","Res-Q Solutions S.A.S",65056.249999999993,1,"C2_EMER_Z2_31 Inmovilizadores o ferula de miembros superiores de nino  - 1 unidad",0]
["Res-Q Solutions S.A.SC2_EMER_Z2_32","C2_EMER_Z2_32",32,"Inmovilizadores o ferula de miembros inferiores de niño  - 1 unidad",2,2,"unidad","Und","Res-Q Solutions S.A.S",65056.249999999993,1,"C2_EMER_Z2_32 Inmovilizadores o ferula de miembros inferiores de nino  - 1 unidad",0]
["Res-Q Solutions S.A.SC2_EMER_Z2_33","C2_EMER_Z2_33",33,"Vasos desechables - 1 paquete de 25 unidades",2,2,"unidad","Und","Res-Q Solutions S.A.S",2733.455882352941,1,"C2_EMER_Z2_33 Vasos desechables - 1 paquete de 25 unidades",1]
["Res-Q Solutions S.A.SC2_EMER_Z2_34","C2_EMER_Z2_34",34,"Tensiometro manual - 1 unidad ",2,2,"unidad","Und","Res-Q Solutions S.A.S",24054.411764705881,1,"C2_EMER_Z2_34 Tensiometro manual - 1 unidad ",1]
["Res-Q Solutions S.A.SC2_EMER_Z2_35","C2_EMER_Z2_35",35,"Tensiometro digital - 1 unidad ",2,2,"unidad","Und","Res-Q Solutions S.A.S",244917.64705882352,1,"C2_EMER_Z2_35 Tensiometro digital - 1 unidad ",1]
["Res-Q Solutions S.A.SC2_EMER_Z2_36","C2_EMER_Z2_36",36,"Fonendoscopio - 1 unidad ",2,2,"unidad","Und","Res-Q Solutions S.A.S",437352.94117647054,1,"C2_EMER_Z2_36 Fonendoscopio - 1 unidad ",1]
["Res-Q Solutions S.A.SC2_EMER_Z2_37","C2_EMER_Z2_37",37,"Mascarilla desechable para RCP - 1 unidad",2,2,"unidad","Und","Res-Q Solutions S.A.S",17494.117647058825,1,"C2_EMER_Z2_37 Mascarilla desechable para RCP - 1 unidad",1]
["Res-Q Solutions S.A.SC2_EMER_Z2_38","C2_EMER_Z2_38",38,"Tabla espinal para emergencias ",2,2,"unidad","Und","Res-Q Solutions S.A.S",393617.6470588235,1,"C2_EMER_Z2_38 Tabla espinal para emergencias ",1]
["Asesorias y productos en prevencion y seguridad S.A.S (Aspreseg)C2_EMER_Z2_1","C2_EMER_Z2_1",1,"Botiquín tipo A en Gabinete",2,2,"unidad","Und","Asesorias y productos en prevencion y seguridad S.A.S (Aspreseg)",348050.9375,1,"C2_EMER_Z2_1 Botiquin tipo A en Gabinete",0]
["Asesorias y productos en prevencion y seguridad S.A.S (Aspreseg)C2_EMER_Z2_2","C2_EMER_Z2_2",2,"Botiquín tipo A en maletín",2,2,"unidad","Und","Asesorias y productos en prevencion y seguridad S.A.S (Aspreseg)",295147.19500000001,1,"C2_EMER_Z2_2 Botiquin tipo A en maletin",0]
["Asesorias y productos en prevencion y seguridad S.A.S (Aspreseg)C2_EMER_Z2_3","C2_EMER_Z2_3",3,"Botiquín tipo B en Gabinete",2,2,"unidad","Und","Asesorias y productos en prevencion y seguridad S.A.S (Aspreseg)",1169451.1499999999,1,"C2_EMER_Z2_3 Botiquin tipo B en Gabinete",0]
["Asesorias y productos en prevencion y seguridad S.A.S (Aspreseg)C2_EMER_Z2_4","C2_EMER_Z2_4",4,"Botiquín tipo B en maletín",2,2,"unidad","Und","Asesorias y productos en prevencion y seguridad S.A.S (Aspreseg)",1026221.2281999999,1,"C2_EMER_Z2_4 Botiquin tipo B en maletin",0]
["Asesorias y productos en prevencion y seguridad S.A.S (Aspreseg)C2_EMER_Z2_5","C2_EMER_Z2_5",5,"Botiquín tipo C en Gabinete",2,2,"unidad","Und","Asesorias y productos en prevencion y seguridad S.A.S (Aspreseg)",1098615.8232,1,"C2_EMER_Z2_5 Botiquin tipo C en Gabinete",0]
["Asesorias y productos en prevencion y seguridad S.A.S (Aspreseg)C2_EMER_Z2_6","C2_EMER_Z2_6",6,"Botiquín tipo C en morral ",2,2,"unidad","Und","Asesorias y productos en prevencion y seguridad S.A.S (Aspreseg)",1169451.1499999999,1,"C2_EMER_Z2_6 Botiquin tipo C en morral ",1]
["Asesorias y productos en prevencion y seguridad S.A.S (Aspreseg)C2_EMER_Z2_7","C2_EMER_Z2_7",7,"Gabinete de Botiquín ",2,2,"unidad","Und","Asesorias y productos en prevencion y seguridad S.A.S (Aspreseg)",178202.08,1,"C2_EMER_Z2_7 Gabinete de Botiquin ",1]
["Asesorias y productos en prevencion y seguridad S.A.S (Aspreseg)C2_EMER_Z2_8","C2_EMER_Z2_8",8,"Morral para Botiquín tipo B y C",2,2,"unidad","Und","Asesorias y productos en prevencion y seguridad S.A.S (Aspreseg)",231105.82249999998,1,"C2_EMER_Z2_8 Morral para Botiquin tipo B y C",1]
["Asesorias y productos en prevencion y seguridad S.A.S (Aspreseg)C2_EMER_Z2_9","C2_EMER_Z2_9",9,"Morral para Botiquín tipo A",2,2,"unidad","Und","Asesorias y productos en prevencion y seguridad S.A.S (Aspreseg)",97454.262499999997,1,"C2_EMER_Z2_9 Morral para Botiquin tipo A",1]
["Asesorias y productos en prevencion y seguridad S.A.S (Aspreseg)C2_EMER_Z2_10","C2_EMER_Z2_10",10,"Baja lenguas - 1 paquete por 20 unidades",2,2,"unidad","Und","Asesorias y productos en prevencion y seguridad S.A.S (Aspreseg)",8910.1039999999994,1,"C2_EMER_Z2_10 Baja lenguas - 1 paquete por 20 unidades",1]
["Asesorias y productos en prevencion y seguridad S.A.S (Aspreseg)C2_EMER_Z2_11","C2_EMER_Z2_11",11,"Gasa estéril - 1 paquete por 20 unidades",2,2,"unidad","Und","Asesorias y productos en prevencion y seguridad S.A.S (Aspreseg)",66825.78,1,"C2_EMER_Z2_11 Gasa esteril - 1 paquete por 20 unidades",1]
["Asesorias y productos en prevencion y seguridad S.A.S (Aspreseg)C2_EMER_Z2_12","C2_EMER_Z2_12",12,"Gasas limpias - 1 paquete por 100 unidades.",2,2,"unidad","Und","Asesorias y productos en prevencion y seguridad S.A.S (Aspreseg)",48263.063333333339,1,"C2_EMER_Z2_12 Gasas limpias - 1 paquete por 100 unidades.",0]
["Asesorias y productos en prevencion y seguridad S.A.S (Aspreseg)C2_EMER_Z2_13","C2_EMER_Z2_13",13,"Apósito o compresas no estériles - 1 paquete por 4 unidades.",2,2,"unidad","Und","Asesorias y productos en prevencion y seguridad S.A.S (Aspreseg)",20418.988333333338,1,"C2_EMER_Z2_13 Aposito o compresas no esteriles - 1 paquete por 4 unidades.",1]
["Asesorias y productos en prevencion y seguridad S.A.S (Aspreseg)C2_EMER_Z2_14","C2_EMER_Z2_14",14,"Guantes de nitrilo para exámen - 1 caja por 100 unidades. ",2,2,"unidad","Und","Asesorias y productos en prevencion y seguridad S.A.S (Aspreseg)",54097.06,1,"C2_EMER_Z2_14 Guantes de nitrilo para examen - 1 caja por 100 unidades. ",1]
["Asesorias y productos en prevencion y seguridad S.A.S (Aspreseg)C2_EMER_Z2_15","C2_EMER_Z2_15",15,"Solución salina - 1 frasco plástico de 250 cc.",2,2,"unidad","Und","Asesorias y productos en prevencion y seguridad S.A.S (Aspreseg)",13922.037499999999,1,"C2_EMER_Z2_15 Solucion salina - 1 frasco plastico de 250 cc.",1]
["Asesorias y productos en prevencion y seguridad S.A.S (Aspreseg)C2_EMER_Z2_16","C2_EMER_Z2_16",16,"Termómetro digital - 1 unidad",2,2,"unidad","Und","Asesorias y productos en prevencion y seguridad S.A.S (Aspreseg)",29700.346666666668,1,"C2_EMER_Z2_16 Termometro digital - 1 unidad",1]
["Asesorias y productos en prevencion y seguridad S.A.S (Aspreseg)C2_EMER_Z2_17","C2_EMER_Z2_17",17,"Venda elástica - 1 unidad, 2´´x5 yardas y de 450 cms de longitud estirada. ",2,2,"unidad","Und","Asesorias y productos en prevencion y seguridad S.A.S (Aspreseg)",6682.5779999999995,1,"C2_EMER_Z2_17 Venda elastica - 1 unidad, 2 pulgadas x5 yardas y de 450 cms de longitud estirada. ",0]
["Asesorias y productos en prevencion y seguridad S.A.S (Aspreseg)C2_EMER_Z2_18","C2_EMER_Z2_18",18,"Venda elástica - 1unidad, 3´´x5 yardas y de 450 cms de longitud estirada. ",2,2,"unidad","Und","Asesorias y productos en prevencion y seguridad S.A.S (Aspreseg)",10023.867,1,"C2_EMER_Z2_18 Venda elastica - 1unidad, 3 pulgadas x5 yardas y de 450 cms de longitud estirada. ",0]
["Asesorias y productos en prevencion y seguridad S.A.S (Aspreseg)C2_EMER_Z2_19","C2_EMER_Z2_19",19,"Venda elástica - 1 unidad, 5´´x5 yardas y de 450 cms de longitud estirada. ",2,2,"unidad","Und","Asesorias y productos en prevencion y seguridad S.A.S (Aspreseg)",16706.445,1,"C2_EMER_Z2_19 Venda elastica - 1 unidad, 5 pulgadas x5 yardas y de 450 cms de longitud estirada. ",0]
["Asesorias y productos en prevencion y seguridad S.A.S (Aspreseg)C2_EMER_Z2_20","C2_EMER_Z2_20",20,"Venda de algodón laminado - 1 unidad, 3´´x5 yardas y de 450 cms de longitud estirada. ",2,2,"unidad","Und","Asesorias y productos en prevencion y seguridad S.A.S (Aspreseg)",7239.4594999999999,1,"C2_EMER_Z2_20 Venda de algodon laminado - 1 unidad, 3 pulgadas x5 yardas y de 450 cms de longitud estirada. ",0]
["Asesorias y productos en prevencion y seguridad S.A.S (Aspreseg)C2_EMER_Z2_21","C2_EMER_Z2_21",21,"Venda de algodón laminado - 1 unidad, 3´´x5 yardas y de 450 cms de longitud estirada. ",2,2,"unidad","Und","Asesorias y productos en prevencion y seguridad S.A.S (Aspreseg)",7239.4594999999999,1,"C2_EMER_Z2_21 Venda de algodon laminado - 1 unidad, 3 pulgadas x5 yardas y de 450 cms de longitud estirada. ",0]
["Asesorias y productos en prevencion y seguridad S.A.S (Aspreseg)C2_EMER_Z2_22","C2_EMER_Z2_22",22,"Alcohol antiséptico - 1 frasco de 275 ml.",2,2,"unidad","Und","Asesorias y productos en prevencion y seguridad S.A.S (Aspreseg)",15592.681999999999,1,"C2_EMER_Z2_22 Alcohol antiseptico - 1 frasco de 275 ml.",0]
["Asesorias y productos en prevencion y seguridad S.A.S (Aspreseg)C2_EMER_Z2_23","C2_EMER_Z2_23",23,"Esparadrapo en tela - 1 rollo de 4´´",2,2,"unidad","Und","Asesorias y productos en prevencion y seguridad S.A.S (Aspreseg)",34155.398666666668,1,"C2_EMER_Z2_23 Esparadrapo en tela - 1 rollo de 4 pulgadas",0]
["Asesorias y productos en prevencion y seguridad S.A.S (Aspreseg)C2_EMER_Z2_24","C2_EMER_Z2_24",24,"Yodopovidona - 1 frasco por 120 ml. ",2,2,"unidad","Und","Asesorias y productos en prevencion y seguridad S.A.S (Aspreseg)",17448.953666666668,1,"C2_EMER_Z2_24 Yodopovidona - 1 frasco por 120 ml. ",0]
["Asesorias y productos en prevencion y seguridad S.A.S (Aspreseg)C2_EMER_Z2_25","C2_EMER_Z2_25",25,"Tijeras corta todo - 1 unidad",2,2,"unidad","Und","Asesorias y productos en prevencion y seguridad S.A.S (Aspreseg)",17077.699333333334,1,"C2_EMER_Z2_25 Tijeras corta todo - 1 unidad",1]
["Asesorias y productos en prevencion y seguridad S.A.S (Aspreseg)C2_EMER_Z2_26","C2_EMER_Z2_26",26,"Linterna de Dinamo - 1 unidad",2,2,"unidad","Und","Asesorias y productos en prevencion y seguridad S.A.S (Aspreseg)",19676.47966666667,1,"C2_EMER_Z2_26 Linterna de Dinamo - 1 unidad",1]
["Asesorias y productos en prevencion y seguridad S.A.S (Aspreseg)C2_EMER_Z2_27","C2_EMER_Z2_27",27,"Collar cervical de adulto - 1 unidad",2,2,"unidad","Und","Asesorias y productos en prevencion y seguridad S.A.S (Aspreseg)",97454.262499999997,1,"C2_EMER_Z2_27 Collar cervical de adulto - 1 unidad",1]
["Asesorias y productos en prevencion y seguridad S.A.S (Aspreseg)C2_EMER_Z2_28","C2_EMER_Z2_28",28,"Collar cervical de niño - 1 unidad",2,2,"unidad","Und","Asesorias y productos en prevencion y seguridad S.A.S (Aspreseg)",89101.04,1,"C2_EMER_Z2_28 Collar cervical de nino - 1 unidad",1]
["Asesorias y productos en prevencion y seguridad S.A.S (Aspreseg)C2_EMER_Z2_29","C2_EMER_Z2_29",29,"Inmovilizadores o ferula de miembros superiores de adulto  - 1 unidad",2,2,"unidad","Und","Asesorias y productos en prevencion y seguridad S.A.S (Aspreseg)",33784.144333333337,1,"C2_EMER_Z2_29 Inmovilizadores o ferula de miembros superiores de adulto  - 1 unidad",0]
["Asesorias y productos en prevencion y seguridad S.A.S (Aspreseg)C2_EMER_Z2_30","C2_EMER_Z2_30",30,"Inmovilizadores o ferula de miembros inferiores de adulto  - 1 unidad",2,2,"unidad","Und","Asesorias y productos en prevencion y seguridad S.A.S (Aspreseg)",33784.144333333337,1,"C2_EMER_Z2_30 Inmovilizadores o ferula de miembros inferiores de adulto  - 1 unidad",0]
["Asesorias y productos en prevencion y seguridad S.A.S (Aspreseg)C2_EMER_Z2_31","C2_EMER_Z2_31",31,"Inmovilizadores o ferula de miembros superiores de niño  - 1 unidad",2,2,"unidad","Und","Asesorias y productos en prevencion y seguridad S.A.S (Aspreseg)",33784.144333333337,1,"C2_EMER_Z2_31 Inmovilizadores o ferula de miembros superiores de nino  - 1 unidad",0]
["Asesorias y productos en prevencion y seguridad S.A.S (Aspreseg)C2_EMER_Z2_32","C2_EMER_Z2_32",32,"Inmovilizadores o ferula de miembros inferiores de niño  - 1 unidad",2,2,"unidad","Und","Asesorias y productos en prevencion y seguridad S.A.S (Aspreseg)",33784.144333333337,1,"C2_EMER_Z2_32 Inmovilizadores o ferula de miembros inferiores de nino  - 1 unidad",0]
["Asesorias y productos en prevencion y seguridad S.A.S (Aspreseg)C2_EMER_Z2_33","C2_EMER_Z2_33",33,"Vasos desechables - 1 paquete de 25 unidades",2,2,"unidad","Und","Asesorias y productos en prevencion y seguridad S.A.S (Aspreseg)",11880.138666666668,1,"C2_EMER_Z2_33 Vasos desechables - 1 paquete de 25 unidades",1]
["Asesorias y productos en prevencion y seguridad S.A.S (Aspreseg)C2_EMER_Z2_34","C2_EMER_Z2_34",34,"Tensiometro manual - 1 unidad ",2,2,"unidad","Und","Asesorias y productos en prevencion y seguridad S.A.S (Aspreseg)",83532.224999999991,1,"C2_EMER_Z2_34 Tensiometro manual - 1 unidad ",1]
["Asesorias y productos en prevencion y seguridad S.A.S (Aspreseg)C2_EMER_Z2_35","C2_EMER_Z2_35",35,"Tensiometro digital - 1 unidad ",2,2,"unidad","Und","Asesorias y productos en prevencion y seguridad S.A.S (Aspreseg)",356404.16,1,"C2_EMER_Z2_35 Tensiometro digital - 1 unidad ",1]
["Asesorias y productos en prevencion y seguridad S.A.S (Aspreseg)C2_EMER_Z2_36","C2_EMER_Z2_36",36,"Fonendoscopio - 1 unidad ",2,2,"unidad","Und","Asesorias y productos en prevencion y seguridad S.A.S (Aspreseg)",55688.149999999994,1,"C2_EMER_Z2_36 Fonendoscopio - 1 unidad ",1]
["Asesorias y productos en prevencion y seguridad S.A.S (Aspreseg)C2_EMER_Z2_37","C2_EMER_Z2_37",37,"Mascarilla desechable para RCP - 1 unidad",2,2,"unidad","Und","Asesorias y productos en prevencion y seguridad S.A.S (Aspreseg)",51975.606666666674,1,"C2_EMER_Z2_37 Mascarilla desechable para RCP - 1 unidad",1]
["Asesorias y productos en prevencion y seguridad S.A.S (Aspreseg)C2_EMER_Z2_38","C2_EMER_Z2_38",38,"Tabla espinal para emergencias ",2,2,"unidad","Und","Asesorias y productos en prevencion y seguridad S.A.S (Aspreseg)",426942.4833333334,1,"C2_EMER_Z2_38 Tabla espinal para emergencias ",1]
["Productos de Seguridad S.A (Prodeseg)C2_EMER_Z3_1","C2_EMER_Z3_1",1,"Botiquín tipo A en Gabinete",2,3,"unidad","Und","Productos de Seguridad S.A (Prodeseg)",171874.29276499999,1,"C2_EMER_Z3_1 Botiquin tipo A en Gabinete",0]
["Productos de Seguridad S.A (Prodeseg)C2_EMER_Z3_2","C2_EMER_Z3_2",2,"Botiquín tipo A en maletín",2,3,"unidad","Und","Productos de Seguridad S.A (Prodeseg)",126171.40972333333,1,"C2_EMER_Z3_2 Botiquin tipo A en maletin",0]
["Productos de Seguridad S.A (Prodeseg)C2_EMER_Z3_3","C2_EMER_Z3_3",3,"Botiquín tipo B en Gabinete",2,3,"unidad","Und","Productos de Seguridad S.A (Prodeseg)",623076.70277999993,1,"C2_EMER_Z3_3 Botiquin tipo B en Gabinete",0]
["Productos de Seguridad S.A (Prodeseg)C2_EMER_Z3_4","C2_EMER_Z3_4",4,"Botiquín tipo B en maletín",2,3,"unidad","Und","Productos de Seguridad S.A (Prodeseg)",624386.57134000002,1,"C2_EMER_Z3_4 Botiquin tipo B en maletin",0]
["Productos de Seguridad S.A (Prodeseg)C2_EMER_Z3_5","C2_EMER_Z3_5",5,"Botiquín tipo C en Gabinete",2,3,"unidad","Und","Productos de Seguridad S.A (Prodeseg)",708337.23813999991,1,"C2_EMER_Z3_5 Botiquin tipo C en Gabinete",0]
["Productos de Seguridad S.A (Prodeseg)C2_EMER_Z3_6","C2_EMER_Z3_6",6,"Botiquín tipo C en morral ",2,3,"unidad","Und","Productos de Seguridad S.A (Prodeseg)",748993.23078999994,1,"C2_EMER_Z3_6 Botiquin tipo C en morral ",1]
["Productos de Seguridad S.A (Prodeseg)C2_EMER_Z3_7","C2_EMER_Z3_7",7,"Gabinete de Botiquín ",2,3,"unidad","Und","Productos de Seguridad S.A (Prodeseg)",89747.334809999986,1,"C2_EMER_Z3_7 Gabinete de Botiquin ",1]
["Productos de Seguridad S.A (Prodeseg)C2_EMER_Z3_8","C2_EMER_Z3_8",8,"Morral para Botiquín tipo B y C",2,3,"unidad","Und","Productos de Seguridad S.A (Prodeseg)",157536.05604935333,1,"C2_EMER_Z3_8 Morral para Botiquin tipo B y C",1]
["Productos de Seguridad S.A (Prodeseg)C2_EMER_Z3_9","C2_EMER_Z3_9",9,"Morral para Botiquín tipo A",2,3,"unidad","Und","Productos de Seguridad S.A (Prodeseg)",29511.861327386665,1,"C2_EMER_Z3_9 Morral para Botiquin tipo A",1]
["Productos de Seguridad S.A (Prodeseg)C2_EMER_Z3_10","C2_EMER_Z3_10",10,"Baja lenguas - 1 paquete por 20 unidades",2,3,"unidad","Und","Productos de Seguridad S.A (Prodeseg)",1504.8404588651163,1,"C2_EMER_Z3_10 Baja lenguas - 1 paquete por 20 unidades",1]
["Productos de Seguridad S.A (Prodeseg)C2_EMER_Z3_11","C2_EMER_Z3_11",11,"Gasa estéril - 1 paquete por 20 unidades",2,3,"unidad","Und","Productos de Seguridad S.A (Prodeseg)",16623.072913461536,1,"C2_EMER_Z3_11 Gasa esteril - 1 paquete por 20 unidades",1]
["Productos de Seguridad S.A (Prodeseg)C2_EMER_Z3_12","C2_EMER_Z3_12",12,"Gasas limpias - 1 paquete por 100 unidades.",2,3,"unidad","Und","Productos de Seguridad S.A (Prodeseg)",18566.202927391299,1,"C2_EMER_Z3_12 Gasas limpias - 1 paquete por 100 unidades.",0]
["Productos de Seguridad S.A (Prodeseg)C2_EMER_Z3_13","C2_EMER_Z3_13",13,"Apósito o compresas no estériles - 1 paquete por 4 unidades.",2,3,"unidad","Und","Productos de Seguridad S.A (Prodeseg)",7808.7109812499993,1,"C2_EMER_Z3_13 Aposito o compresas no esteriles - 1 paquete por 4 unidades.",1]
["Productos de Seguridad S.A (Prodeseg)C2_EMER_Z3_14","C2_EMER_Z3_14",14,"Guantes de nitrilo para exámen - 1 caja por 100 unidades. ",2,3,"unidad","Und","Productos de Seguridad S.A (Prodeseg)",22691.598086315789,1,"C2_EMER_Z3_14 Guantes de nitrilo para examen - 1 caja por 100 unidades. ",1]
["Productos de Seguridad S.A (Prodeseg)C2_EMER_Z3_15","C2_EMER_Z3_15",15,"Solución salina - 1 frasco plástico de 250 cc.",2,3,"unidad","Und","Productos de Seguridad S.A (Prodeseg)",3720.7027749499998,1,"C2_EMER_Z3_15 Solucion salina - 1 frasco plastico de 250 cc.",1]
["Productos de Seguridad S.A (Prodeseg)C2_EMER_Z3_16","C2_EMER_Z3_16",16,"Termómetro digital - 1 unidad",2,3,"unidad","Und","Productos de Seguridad S.A (Prodeseg)",11587.339888157894,1,"C2_EMER_Z3_16 Termometro digital - 1 unidad",1]
["Productos de Seguridad S.A (Prodeseg)C2_EMER_Z3_17","C2_EMER_Z3_17",17,"Venda elástica - 1 unidad, 2´´x5 yardas y de 450 cms de longitud estirada. ",2,3,"unidad","Und","Productos de Seguridad S.A (Prodeseg)",1046.1195819239906,1,"C2_EMER_Z3_17 Venda elastica - 1 unidad, 2 pulgadas x5 yardas y de 450 cms de longitud estirada. ",0]
[{"$f":"I835&B835","v":"Productos de Seguridad S.A (Prodeseg)C2_EMER_Z3_18"},{"$f":"\"C\"&E835&\"_EMER_Z\"&F835&\"_\"&C835","v":"C2_EMER_Z3_18"},18,"Venda elástica - 1unidad, 3´´x5 yardas y de 450 cms de longitud estirada. ",2,3,"unidad","Und","Productos de Seguridad S.A (Prodeseg)",1566.1333244483983,1,"C2_EMER_Z3_18 Venda elastica - 1unidad, 3 pulgadas x5 yardas y de 450 cms de longitud estirada. ",0]
["Productos de Seguridad S.A (Prodeseg)C2_EMER_Z3_19","C2_EMER_Z3_19",19,"Venda elástica - 1 unidad, 5´´x5 yardas y de 450 cms de longitud estirada. ",2,3,"unidad","Und","Productos de Seguridad S.A (Prodeseg)",2613.7290204166666,1,"C2_EMER_Z3_19 Venda elastica - 1 unidad, 5 pulgadas x5 yardas y de 450 cms de longitud estirada. ",0]
["Productos de Seguridad S.A (Prodeseg)C2_EMER_Z3_20","C2_EMER_Z3_20",20,"Venda de algodón laminado - 1 unidad, 3´´x5 yardas y de 450 cms de longitud estirada. ",2,3,"unidad","Und","Productos de Seguridad S.A (Prodeseg)",1141.914491062176,1,"C2_EMER_Z3_20 Venda de algodon laminado - 1 unidad, 3 pulgadas x5 yardas y de 450 cms de longitud estirada. ",0]
["Productos de Seguridad S.A (Prodeseg)C2_EMER_Z3_21","C2_EMER_Z3_21",21,"Venda de algodón laminado - 1 unidad, 3´´x5 yardas y de 450 cms de longitud estirada. ",2,3,"unidad","Und","Productos de Seguridad S.A (Prodeseg)",1141.914491062176,1,"C2_EMER_Z3_21 Venda de algodon laminado - 1 unidad, 3 pulgadas x5 yardas y de 450 cms de longitud estirada. ",0]
["Productos de Seguridad S.A (Prodeseg)C2_EMER_Z3_22","C2_EMER_Z3_22",22,"Alcohol antiséptico - 1 frasco de 275 ml.",2,3,"unidad","Und","Productos de Seguridad S.A (Prodeseg)",3637.9040148913682,1,"C2_EMER_Z3_22 Alcohol antiseptico - 1 frasco de 275 ml.",0]
["Productos de Seguridad S.A (Prodeseg)C2_EMER_Z3_23","C2_EMER_Z3_23",23,"Esparadrapo en tela - 1 rollo de 4´´",2,3,"unidad","Und","Productos de Seguridad S.A (Prodeseg)",28578.776916666662,1,"C2_EMER_Z3_23 Esparadrapo en tela - 1 rollo de 4 pulgadas",0]
["Productos de Seguridad S.A (Prodeseg)C2_EMER_Z3_24","C2_EMER_Z3_24",24,"Yodopovidona - 1 frasco por 120 ml. ",2,3,"unidad","Und","Productos de Seguridad S.A (Prodeseg)",8062.1386701851852,1,"C2_EMER_Z3_24 Yodopovidona - 1 frasco por 120 ml. ",0]
["Productos de Seguridad S.A (Prodeseg)C2_EMER_Z3_25","C2_EMER_Z3_25",25,"Tijeras corta todo - 1 unidad",2,3,"unidad","Und","Productos de Seguridad S.A (Prodeseg)",8446.8534567307688,1,"C2_EMER_Z3_25 Tijeras corta todo - 1 unidad",1]
["Productos de Seguridad S.A (Prodeseg)C2_EMER_Z3_26","C2_EMER_Z3_26",26,"Linterna de Dinamo - 1 unidad",2,3,"unidad","Und","Productos de Seguridad S.A (Prodeseg)",9116.9286614583325,1,"C2_EMER_Z3_26 Linterna de Dinamo - 1 unidad",1]
["Productos de Seguridad S.A (Prodeseg)C2_EMER_Z3_27","C2_EMER_Z3_27",27,"Collar cervical de adulto - 1 unidad",2,3,"unidad","Und","Productos de Seguridad S.A (Prodeseg)",59384.460249999996,1,"C2_EMER_Z3_27 Collar cervical de adulto - 1 unidad",1]
["Productos de Seguridad S.A (Prodeseg)C2_EMER_Z3_28","C2_EMER_Z3_28",28,"Collar cervical de niño - 1 unidad",2,3,"unidad","Und","Productos de Seguridad S.A (Prodeseg)",51589.280968749998,1,"C2_EMER_Z3_28 Collar cervical de nino - 1 unidad",1]
["Productos de Seguridad S.A (Prodeseg)C2_EMER_Z3_29","C2_EMER_Z3_29",29,"Inmovilizadores o ferula de miembros superiores de adulto  - 1 unidad",2,3,"unidad","Und","Productos de Seguridad S.A (Prodeseg)",15202.625543,1,"C2_EMER_Z3_29 Inmovilizadores o ferula de miembros superiores de adulto  - 1 unidad",0]
["Productos de Seguridad S.A (Prodeseg)C2_EMER_Z3_30","C2_EMER_Z3_30",30,"Inmovilizadores o ferula de miembros inferiores de adulto  - 1 unidad",2,3,"unidad","Und","Productos de Seguridad S.A (Prodeseg)",13743.051492187498,1,"C2_EMER_Z3_30 Inmovilizadores o ferula de miembros inferiores de adulto  - 1 unidad",0]
["Productos de Seguridad S.A (Prodeseg)C2_EMER_Z3_31","C2_EMER_Z3_31",31,"Inmovilizadores o ferula de miembros superiores de niño  - 1 unidad",2,3,"unidad","Und","Productos de Seguridad S.A (Prodeseg)",14024.943476249999,1,"C2_EMER_Z3_31 Inmovilizadores o ferula de miembros superiores de nino  - 1 unidad",0]
["Productos de Seguridad S.A (Prodeseg)C2_EMER_Z3_32","C2_EMER_Z3_32",32,"Inmovilizadores o ferula de miembros inferiores de niño  - 1 unidad",2,3,"unidad","Und","Productos de Seguridad S.A (Prodeseg)",13743.051492187498,1,"C2_EMER_Z3_32 Inmovilizadores o ferula de miembros inferiores de nino  - 1 unidad",0]
["Productos de Seguridad S.A (Prodeseg)C2_EMER_Z3_33","C2_EMER_Z3_33",33,"Vasos desechables - 1 paquete de 25 unidades",2,3,"unidad","Und","Productos de Seguridad S.A (Prodeseg)",3333.0440201431579,1,"C2_EMER_Z3_33 Vasos desechables - 1 paquete de 25 unidades",1]
["Productos de Seguridad S.A (Prodeseg)C2_EMER_Z3_34","C2_EMER_Z3_34",34,"Tensiometro manual - 1 unidad ",2,3,"unidad","Und","Productos de Seguridad S.A (Prodeseg)",349969.3162,1,"C2_EMER_Z3_34 Tensiometro manual - 1 unidad ",1]
["Productos de Seguridad S.A (Prodeseg)C2_EMER_Z3_35","C2_EMER_Z3_35",35,"Tensiometro digital - 1 unidad ",2,3,"unidad","Und","Productos de Seguridad S.A (Prodeseg)",395144.3762,1,"C2_EMER_Z3_35 Tensiometro digital - 1 unidad ",1]
["Productos de Seguridad S.A (Prodeseg)C2_EMER_Z3_36","C2_EMER_Z3_36",36,"Fonendoscopio - 1 unidad ",2,3,"unidad","Und","Productos de Seguridad S.A (Prodeseg)",16623.072913461536,1,"C2_EMER_Z3_36 Fonendoscopio - 1 unidad ",1]
["Productos de Seguridad S.A (Prodeseg)C2_EMER_Z3_37","C2_EMER_Z3_37",37,"Mascarilla desechable para RCP - 1 unidad",2,3,"unidad","Und","Productos de Seguridad S.A (Prodeseg)",57163.908280000003,1,"C2_EMER_Z3_37 Mascarilla desechable para RCP - 1 unidad",1]
["Productos de Seguridad S.A (Prodeseg)C2_EMER_Z3_38","C2_EMER_Z3_38",38,"Tabla espinal para emergencias ",2,3,"unidad","Und","Productos de Seguridad S.A (Prodeseg)",313120.93575,1,"C2_EMER_Z3_38 Tabla espinal para emergencias ",1]
["Res-Q Solutions S.A.SC2_EMER_Z3_1","C2_EMER_Z3_1",1,"Botiquín tipo A en Gabinete",2,3,"unidad","Und","Res-Q Solutions S.A.S",221191.25,1,"C2_EMER_Z3_1 Botiquin tipo A en Gabinete",0]
["Res-Q Solutions S.A.SC2_EMER_Z3_2","C2_EMER_Z3_2",2,"Botiquín tipo A en maletín",2,3,"unidad","Und","Res-Q Solutions S.A.S",195168.75,1,"C2_EMER_Z3_2 Botiquin tipo A en maletin",0]
["Res-Q Solutions S.A.SC2_EMER_Z3_3","C2_EMER_Z3_3",3,"Botiquín tipo B en Gabinete",2,3,"unidad","Und","Res-Q Solutions S.A.S",1899642.5,1,"C2_EMER_Z3_3 Botiquin tipo B en Gabinete",0]
["Res-Q Solutions S.A.SC2_EMER_Z3_4","C2_EMER_Z3_4",4,"Botiquín tipo B en maletín",2,3,"unidad","Und","Res-Q Solutions S.A.S",1743507.5,1,"C2_EMER_Z3_4 Botiquin tipo B en maletin",0]
["Res-Q Solutions S.A.SC2_EMER_Z3_5","C2_EMER_Z3_5",5,"Botiquín tipo C en Gabinete",2,3,"unidad","Und","Res-Q Solutions S.A.S",2937940.25,1,"C2_EMER_Z3_5 Botiquin tipo C en Gabinete",0]
["Res-Q Solutions S.A.SC2_EMER_Z3_6","C2_EMER_Z3_6",6,"Botiquín tipo C en morral ",2,3,"unidad","Und","Res-Q Solutions S.A.S",2779853.5625,1,"C2_EMER_Z3_6 Botiquin tipo C en morral ",1]
["Res-Q Solutions S.A.SC2_EMER_Z3_7","C2_EMER_Z3_7",7,"Gabinete de Botiquín ",2,3,"unidad","Und","Res-Q Solutions S.A.S",131205.88235294117,1,"C2_EMER_Z3_7 Gabinete de Botiquin ",1]
["Res-Q Solutions S.A.SC2_EMER_Z3_8","C2_EMER_Z3_8",8,"Morral para Botiquín tipo B y C",2,3,"unidad","Und","Res-Q Solutions S.A.S",174941.17647058822,1,"C2_EMER_Z3_8 Morral para Botiquin tipo B y C",1]
["Res-Q Solutions S.A.SC2_EMER_Z3_9","C2_EMER_Z3_9",9,"Morral para Botiquín tipo A",2,3,"unidad","Und","Res-Q Solutions S.A.S",153073.5294117647,1,"C2_EMER_Z3_9 Morral para Botiquin tipo A",1]
["Res-Q Solutions S.A.SC2_EMER_Z3_10","C2_EMER_Z3_10",10,"Baja lenguas - 1 paquete por 20 unidades",2,3,"unidad","Und","Res-Q Solutions S.A.S",3122.7,1,"C2_EMER_Z3_10 Baja lenguas - 1 paquete por 20 unidades",1]
["Res-Q Solutions S.A.SC2_EMER_Z3_11","C2_EMER_Z3_11",11,"Gasa estéril - 1 paquete por 20 unidades",2,3,"unidad","Und","Res-Q Solutions S.A.S",28624.75,1,"C2_EMER_Z3_11 Gasa esteril - 1 paquete por 20 unidades",1]
["Res-Q Solutions S.A.SC2_EMER_Z3_12","C2_EMER_Z3_12",12,"Gasas limpias - 1 paquete por 100 unidades.",2,3,"unidad","Und","Res-Q Solutions S.A.S",22119.125,1,"C2_EMER_Z3_12 Gasas limpias - 1 paquete por 100 unidades.",0]
["Res-Q Solutions S.A.SC2_EMER_Z3_13","C2_EMER_Z3_13",13,"Apósito o compresas no estériles - 1 paquete por 4 unidades.",2,3,"unidad","Und","Res-Q Solutions S.A.S",19516.875,1,"C2_EMER_Z3_13 Aposito o compresas no esteriles - 1 paquete por 4 unidades.",1]
["Res-Q Solutions S.A.SC2_EMER_Z3_14","C2_EMER_Z3_14",14,"Guantes de nitrilo para exámen - 1 caja por 100 unidades. ",2,3,"unidad","Und","Res-Q Solutions S.A.S",46840.5,1,"C2_EMER_Z3_14 Guantes de nitrilo para examen - 1 caja por 100 unidades. ",1]
["Res-Q Solutions S.A.SC2_EMER_Z3_15","C2_EMER_Z3_15",15,"Solución salina - 1 frasco plástico de 250 cc.",2,3,"unidad","Und","Res-Q Solutions S.A.S",4684.0499999999993,1,"C2_EMER_Z3_15 Solucion salina - 1 frasco plastico de 250 cc.",1]
["Res-Q Solutions S.A.SC2_EMER_Z3_16","C2_EMER_Z3_16",16,"Termómetro digital - 1 unidad",2,3,"unidad","Und","Res-Q Solutions S.A.S",19516.875,1,"C2_EMER_Z3_16 Termometro digital - 1 unidad",1]
["Res-Q Solutions S.A.SC2_EMER_Z3_17","C2_EMER_Z3_17",17,"Venda elástica - 1 unidad, 2´´x5 yardas y de 450 cms de longitud estirada. ",2,3,"unidad","Und","Res-Q Solutions S.A.S",3122.7,1,"C2_EMER_Z3_17 Venda elastica - 1 unidad, 2 pulgadas x5 yardas y de 450 cms de longitud estirada. ",0]
["Res-Q Solutions S.A.SC2_EMER_Z3_18","C2_EMER_Z3_18",18,"Venda elástica - 1unidad, 3´´x5 yardas y de 450 cms de longitud estirada. ",2,3,"unidad","Und","Res-Q Solutions S.A.S",3643.1499999999996,1,"C2_EMER_Z3_18 Venda elastica - 1unidad, 3 pulgadas x5 yardas y de 450 cms de longitud estirada. ",0]
["Res-Q Solutions S.A.SC2_EMER_Z3_19","C2_EMER_Z3_19",19,"Venda elástica - 1 unidad, 5´´x5 yardas y de 450 cms de longitud estirada. ",2,3,"unidad","Und","Res-Q Solutions S.A.S",4553.9375,1,"C2_EMER_Z3_19 Venda elastica - 1 unidad, 5 pulgadas x5 yardas y de 450 cms de longitud estirada. ",0]
["Res-Q Solutions S.A.SC2_EMER_Z3_20","C2_EMER_Z3_20",20,"Venda de algodón laminado - 1 unidad, 3´´x5 yardas y de 450 cms de longitud estirada. ",2,3,"unidad","Und","Res-Q Solutions S.A.S",2342.0249999999996,1,"C2_EMER_Z3_20 Venda de algodon laminado - 1 unidad, 3 pulgadas x5 yardas y de 450 cms de longitud estirada. ",0]
["Res-Q Solutions S.A.SC2_EMER_Z3_21","C2_EMER_Z3_21",21,"Venda de algodón laminado - 1 unidad, 3´´x5 yardas y de 450 cms de longitud estirada. ",2,3,"unidad","Und","Res-Q Solutions S.A.S",3643.1499999999996,1,"C2_EMER_Z3_21 Venda de algodon laminado - 1 unidad, 3 pulgadas x5 yardas y de 450 cms de longitud estirada. ",0]
["Res-Q Solutions S.A.SC2_EMER_Z3_22","C2_EMER_Z3_22",22,"Alcohol antiséptico - 1 frasco de 275 ml.",2,3,"unidad","Und","Res-Q Solutions S.A.S",6505.625,1,"C2_EMER_Z3_22 Alcohol antiseptico - 1 frasco de 275 ml.",0]
["Res-Q Solutions S.A.SC2_EMER_Z3_23","C2_EMER_Z3_23",23,"Esparadrapo en tela - 1 rollo de 4´´",2,3,"unidad","Und","Res-Q Solutions S.A.S",33829.25,1,"C2_EMER_Z3_23 Esparadrapo en tela - 1 rollo de 4 pulgadas",0]
["Res-Q Solutions S.A.SC2_EMER_Z3_24","C2_EMER_Z3_24",24,"Yodopovidona - 1 frasco por 120 ml. ",2,3,"unidad","Und","Res-Q Solutions S.A.S",11189.674999999999,1,"C2_EMER_Z3_24 Yodopovidona - 1 frasco por 120 ml. ",0]
["Res-Q Solutions S.A.SC2_EMER_Z3_25","C2_EMER_Z3_25",25,"Tijeras corta todo - 1 unidad",2,3,"unidad","Und","Res-Q Solutions S.A.S",18215.75,1,"C2_EMER_Z3_25 Tijeras corta todo - 1 unidad",1]
["Res-Q Solutions S.A.SC2_EMER_Z3_26","C2_EMER_Z3_26",26,"Linterna de Dinamo - 1 unidad",2,3,"unidad","Und","Res-Q Solutions S.A.S",20818,1,"C2_EMER_Z3_26 Linterna de Dinamo - 1 unidad",1]
["Res-Q Solutions S.A.SC2_EMER_Z3_27","C2_EMER_Z3_27",27,"Collar cervical de adulto - 1 unidad",2,3,"unidad","Und","Res-Q Solutions S.A.S",65056.249999999993,1,"C2_EMER_Z3_27 Collar cervical de adulto - 1 unidad",1]
["Res-Q Solutions S.A.SC2_EMER_Z3_28","C2_EMER_Z3_28",28,"Collar cervical de niño - 1 unidad",2,3,"unidad","Und","Res-Q Solutions S.A.S",101487.75,1,"C2_EMER_Z3_28 Collar cervical de nino - 1 unidad",1]
["Res-Q Solutions S.A.SC2_EMER_Z3_29","C2_EMER_Z3_29",29,"Inmovilizadores o ferula de miembros superiores de adulto  - 1 unidad",2,3,"unidad","Und","Res-Q Solutions S.A.S",65056.249999999993,1,"C2_EMER_Z3_29 Inmovilizadores o ferula de miembros superiores de adulto  - 1 unidad",0]
["Res-Q Solutions S.A.SC2_EMER_Z3_30","C2_EMER_Z3_30",30,"Inmovilizadores o ferula de miembros inferiores de adulto  - 1 unidad",2,3,"unidad","Und","Res-Q Solutions S.A.S",65056.249999999993,1,"C2_EMER_Z3_30 Inmovilizadores o ferula de miembros inferiores de adulto  - 1 unidad",0]
["Res-Q Solutions S.A.SC2_EMER_Z3_31","C2_EMER_Z3_31",31,"Inmovilizadores o ferula de miembros superiores de niño  - 1 unidad",2,3,"unidad","Und","Res-Q Solutions S.A.S",65056.249999999993,1,"C2_EMER_Z3_31 Inmovilizadores o ferula de miembros superiores de nino  - 1 unidad",0]
["Res-Q Solutions S.A.SC2_EMER_Z3_32","C2_EMER_Z3_32",32,"Inmovilizadores o ferula de miembros inferiores de niño  - 1 unidad",2,3,"unidad","Und","Res-Q Solutions S.A.S",65056.249999999993,1,"C2_EMER_Z3_32 Inmovilizadores o ferula de miembros inferiores de nino  - 1 unidad",0]
["Res-Q Solutions S.A.SC2_EMER_Z3_33","C2_EMER_Z3_33",33,"Vasos desechables - 1 paquete de 25 unidades",2,3,"unidad","Und","Res-Q Solutions S.A.S",2733.455882352941,1,"C2_EMER_Z3_33 Vasos desechables - 1 paquete de 25 unidades",1]
["Res-Q Solutions S.A.SC2_EMER_Z3_34","C2_EMER_Z3_34",34,"Tensiometro manual - 1 unidad ",2,3,"unidad","Und","Res-Q Solutions S.A.S",24054.411764705881,1,"C2_EMER_Z3_34 Tensiometro manual - 1 unidad ",1]
["Res-Q Solutions S.A.SC2_EMER_Z3_35","C2_EMER_Z3_35",35,"Tensiometro digital - 1 unidad ",2,3,"unidad","Und","Res-Q Solutions S.A.S",244917.64705882352,1,"C2_EMER_Z3_35 Tensiometro digital - 1 unidad ",1]
["Res-Q Solutions S.A.SC2_EMER_Z3_36","C2_EMER_Z3_36",36,"Fonendoscopio - 1 unidad ",2,3,"unidad","Und","Res-Q Solutions S.A.S",437352.94117647054,1,"C2_EMER_Z3_36 Fonendoscopio - 1 unidad ",1]
["Res-Q Solutions S.A.SC2_EMER_Z3_37","C2_EMER_Z3_37",37,"Mascarilla desechable para RCP - 1 unidad",2,3,"unidad","Und","Res-Q Solutions S.A.S",17494.117647058825,1,"C2_EMER_Z3_37 Mascarilla desechable para RCP - 1 unidad",1]
["Res-Q Solutions S.A.SC2_EMER_Z3_38","C2_EMER_Z3_38",38,"Tabla espinal para emergencias ",2,3,"unidad","Und","Res-Q Solutions S.A.S",393617.6470588235,1,"C2_EMER_Z3_38 Tabla espinal para emergencias ",1]
["Asesorias y productos en prevencion y seguridad S.A.S (Aspreseg)C2_EMER_Z3_1","C2_EMER_Z3_1",1,"Botiquín tipo A en Gabinete",2,3,"unidad","Und","Asesorias y productos en prevencion y seguridad S.A.S (Aspreseg)",374073.4375,1,"C2_EMER_Z3_1 Botiquin tipo A en Gabinete",0]
["Asesorias y productos en prevencion y seguridad S.A.S (Aspreseg)C2_EMER_Z3_2","C2_EMER_Z3_2",2,"Botiquín tipo A en maletín",2,3,"unidad","Und","Asesorias y productos en prevencion y seguridad S.A.S (Aspreseg)",317214.27499999997,1,"C2_EMER_Z3_2 Botiquin tipo A en maletin",0]
["Asesorias y productos en prevencion y seguridad S.A.S (Aspreseg)C2_EMER_Z3_3","C2_EMER_Z3_3",3,"Botiquín tipo B en Gabinete",2,3,"unidad","Und","Asesorias y productos en prevencion y seguridad S.A.S (Aspreseg)",1256886.75,1,"C2_EMER_Z3_3 Botiquin tipo B en Gabinete",0]
["Asesorias y productos en prevencion y seguridad S.A.S (Aspreseg)C2_EMER_Z3_4","C2_EMER_Z3_4",4,"Botiquín tipo B en maletín",2,3,"unidad","Und","Asesorias y productos en prevencion y seguridad S.A.S (Aspreseg)",1102948.0489999999,1,"C2_EMER_Z3_4 Botiquin tipo B en maletin",0]
["Asesorias y productos en prevencion y seguridad S.A.S (Aspreseg)C2_EMER_Z3_5","C2_EMER_Z3_5",5,"Botiquín tipo C en Gabinete",2,3,"unidad","Und","Asesorias y productos en prevencion y seguridad S.A.S (Aspreseg)",1180755.324,1,"C2_EMER_Z3_5 Botiquin tipo C en Gabinete",0]
[{"$f":"I899&B899","v":"Asesorias y productos en prevencion y seguridad S.A.S (Aspreseg)C2_EMER_Z3_6"},{"$f":"\"C\"&E899&\"_EMER_Z\"&F899&\"_\"&C899","v":"C2_EMER_Z3_6"},6,"Botiquín tipo C en morral ",2,3,"unidad","Und","Asesorias y productos en prevencion y seguridad S.A.S (Aspreseg)",1256886.75,1,"C2_EMER_Z3_6 Botiquin tipo C en morral ",1]
["Asesorias y productos en prevencion y seguridad S.A.S (Aspreseg)C2_EMER_Z3_7","C2_EMER_Z3_7",7,"Gabinete de Botiquín ",2,3,"unidad","Und","Asesorias y productos en prevencion y seguridad S.A.S (Aspreseg)",191525.59999999998,1,"C2_EMER_Z3_7 Gabinete de Botiquin ",1]
["Asesorias y productos en prevencion y seguridad S.A.S (Aspreseg)C2_EMER_Z3_8","C2_EMER_Z3_8",8,"Morral para Botiquín tipo B y C",2,3,"unidad","Und","Asesorias y productos en prevencion y seguridad S.A.S (Aspreseg)",248384.76249999995,1,"C2_EMER_Z3_8 Morral para Botiquin tipo B y C",1]
["Asesorias y productos en prevencion y seguridad S.A.S (Aspreseg)C2_EMER_Z3_9","C2_EMER_Z3_9",9,"Morral para Botiquín tipo A",2,3,"unidad","Und","Asesorias y productos en prevencion y seguridad S.A.S (Aspreseg)",104740.56249999999,1,"C2_EMER_Z3_9 Morral para Botiquin tipo A",1]
["Asesorias y productos en prevencion y seguridad S.A.S (Aspreseg)C2_EMER_Z3_10","C2_EMER_Z3_10",10,"Baja lenguas - 1 paquete por 20 unidades",2,3,"unidad","Und","Asesorias y productos en prevencion y seguridad S.A.S (Aspreseg)",9576.2799999999988,1,"C2_EMER_Z3_10 Baja lenguas - 1 paquete por 20 unidades",1]
["Asesorias y productos en prevencion y seguridad S.A.S (Aspreseg)C2_EMER_Z3_11","C2_EMER_Z3_11",11,"Gasa estéril - 1 paquete por 20 unidades",2,3,"unidad","Und","Asesorias y productos en prevencion y seguridad S.A.S (Aspreseg)",71822.099999999991,1,"C2_EMER_Z3_11 Gasa esteril - 1 paquete por 20 unidades",1]
["Asesorias y productos en prevencion y seguridad S.A.S (Aspreseg)C2_EMER_Z3_12","C2_EMER_Z3_12",12,"Gasas limpias - 1 paquete por 100 unidades.",2,3,"unidad","Und","Asesorias y productos en prevencion y seguridad S.A.S (Aspreseg)",51871.516666666663,1,"C2_EMER_Z3_12 Gasas limpias - 1 paquete por 100 unidades.",0]
["Asesorias y productos en prevencion y seguridad S.A.S (Aspreseg)C2_EMER_Z3_13","C2_EMER_Z3_13",13,"Apósito o compresas no estériles - 1 paquete por 4 unidades.",2,3,"unidad","Und","Asesorias y productos en prevencion y seguridad S.A.S (Aspreseg)",21945.641666666666,1,"C2_EMER_Z3_13 Aposito o compresas no esteriles - 1 paquete por 4 unidades.",1]
["Asesorias y productos en prevencion y seguridad S.A.S (Aspreseg)C2_EMER_Z3_14","C2_EMER_Z3_14",14,"Guantes de nitrilo para exámen - 1 caja por 100 unidades. ",2,3,"unidad","Und","Asesorias y productos en prevencion y seguridad S.A.S (Aspreseg)",58141.7,1,"C2_EMER_Z3_14 Guantes de nitrilo para examen - 1 caja por 100 unidades. ",1]
["Asesorias y productos en prevencion y seguridad S.A.S (Aspreseg)C2_EMER_Z3_15","C2_EMER_Z3_15",15,"Solución salina - 1 frasco plástico de 250 cc.",2,3,"unidad","Und","Asesorias y productos en prevencion y seguridad S.A.S (Aspreseg)",14962.937499999996,1,"C2_EMER_Z3_15 Solucion salina - 1 frasco plastico de 250 cc.",1]
["Asesorias y productos en prevencion y seguridad S.A.S (Aspreseg)C2_EMER_Z3_16","C2_EMER_Z3_16",16,"Termómetro digital - 1 unidad",2,3,"unidad","Und","Asesorias y productos en prevencion y seguridad S.A.S (Aspreseg)",31920.933333333331,1,"C2_EMER_Z3_16 Termometro digital - 1 unidad",1]
["Asesorias y productos en prevencion y seguridad S.A.S (Aspreseg)C2_EMER_Z3_17","C2_EMER_Z3_17",17,"Venda elástica - 1 unidad, 2´´x5 yardas y de 450 cms de longitud estirada. ",2,3,"unidad","Und","Asesorias y productos en prevencion y seguridad S.A.S (Aspreseg)",7182.2099999999982,1,"C2_EMER_Z3_17 Venda elastica - 1 unidad, 2 pulgadas x5 yardas y de 450 cms de longitud estirada. ",0]
["Asesorias y productos en prevencion y seguridad S.A.S (Aspreseg)C2_EMER_Z3_18","C2_EMER_Z3_18",18,"Venda elástica - 1unidad, 3´´x5 yardas y de 450 cms de longitud estirada. ",2,3,"unidad","Und","Asesorias y productos en prevencion y seguridad S.A.S (Aspreseg)",10773.314999999999,1,"C2_EMER_Z3_18 Venda elastica - 1unidad, 3 pulgadas x5 yardas y de 450 cms de longitud estirada. ",0]
["Asesorias y productos en prevencion y seguridad S.A.S (Aspreseg)C2_EMER_Z3_19","C2_EMER_Z3_19",19,"Venda elástica - 1 unidad, 5´´x5 yardas y de 450 cms de longitud estirada. ",2,3,"unidad","Und","Asesorias y productos en prevencion y seguridad S.A.S (Aspreseg)",17955.524999999998,1,"C2_EMER_Z3_19 Venda elastica - 1 unidad, 5 pulgadas x5 yardas y de 450 cms de longitud estirada. ",0]
["Asesorias y productos en prevencion y seguridad S.A.S (Aspreseg)C2_EMER_Z3_20","C2_EMER_Z3_20",20,"Venda de algodón laminado - 1 unidad, 3´´x5 yardas y de 450 cms de longitud estirada. ",2,3,"unidad","Und","Asesorias y productos en prevencion y seguridad S.A.S (Aspreseg)",7780.7274999999981,1,"C2_EMER_Z3_20 Venda de algodon laminado - 1 unidad, 3 pulgadas x5 yardas y de 450 cms de longitud estirada. ",0]
["Asesorias y productos en prevencion y seguridad S.A.S (Aspreseg)C2_EMER_Z3_21","C2_EMER_Z3_21",21,"Venda de algodón laminado - 1 unidad, 3´´x5 yardas y de 450 cms de longitud estirada. ",2,3,"unidad","Und","Asesorias y productos en prevencion y seguridad S.A.S (Aspreseg)",7780.7274999999981,1,"C2_EMER_Z3_21 Venda de algodon laminado - 1 unidad, 3 pulgadas x5 yardas y de 450 cms de longitud estirada. ",0]
["Asesorias y productos en prevencion y seguridad S.A.S (Aspreseg)C2_EMER_Z3_22","C2_EMER_Z3_22",22,"Alcohol antiséptico - 1 frasco de 275 ml.",2,3,"unidad","Und","Asesorias y productos en prevencion y seguridad S.A.S (Aspreseg)",16758.489999999998,1,"C2_EMER_Z3_22 Alcohol antiseptico - 1 frasco de 275 ml.",0]
["Asesorias y productos en prevencion y seguridad S.A.S (Aspreseg)C2_EMER_Z3_23","C2_EMER_Z3_23",23,"Esparadrapo en tela - 1 rollo de 4´´",2,3,"unidad","Und","Asesorias y productos en prevencion y seguridad S.A.S (Aspreseg)",36709.073333333326,1,"C2_EMER_Z3_23 Esparadrapo en tela - 1 rollo de 4 pulgadas",0]
["Asesorias y productos en prevencion y seguridad S.A.S (Aspreseg)C2_EMER_Z3_24","C2_EMER_Z3_24",24,"Yodopovidona - 1 frasco por 120 ml. ",2,3,"unidad","Und","Asesorias y productos en prevencion y seguridad S.A.S (Aspreseg)",18753.548333333332,1,"C2_EMER_Z3_24 Yodopovidona - 1 frasco por 120 ml. ",0]
["Asesorias y productos en prevencion y seguridad S.A.S (Aspreseg)C2_EMER_Z3_25","C2_EMER_Z3_25",25,"Tijeras corta todo - 1 unidad",2,3,"unidad","Und","Asesorias y productos en prevencion y seguridad S.A.S (Aspreseg)",18354.536666666663,1,"C2_EMER_Z3_25 Tijeras corta todo - 1 unidad",1]
["Asesorias y productos en prevencion y seguridad S.A.S (Aspreseg)C2_EMER_Z3_26","C2_EMER_Z3_26",26,"Linterna de Dinamo - 1 unidad",2,3,"unidad","Und","Asesorias y productos en prevencion y seguridad S.A.S (Aspreseg)",21147.618333333332,1,"C2_EMER_Z3_26 Linterna de Dinamo - 1 unidad",1]
["Asesorias y productos en prevencion y seguridad S.A.S (Aspreseg)C2_EMER_Z3_27","C2_EMER_Z3_27",27,"Collar cervical de adulto - 1 unidad",2,3,"unidad","Und","Asesorias y productos en prevencion y seguridad S.A.S (Aspreseg)",104740.56249999999,1,"C2_EMER_Z3_27 Collar cervical de adulto - 1 unidad",1]
["Asesorias y productos en prevencion y seguridad S.A.S (Aspreseg)C2_EMER_Z3_28","C2_EMER_Z3_28",28,"Collar cervical de niño - 1 unidad",2,3,"unidad","Und","Asesorias y productos en prevencion y seguridad S.A.S (Aspreseg)",95762.799999999988,1,"C2_EMER_Z3_28 Collar cervical de nino - 1 unidad",1]
["Asesorias y productos en prevencion y seguridad S.A.S (Aspreseg)C2_EMER_Z3_29","C2_EMER_Z3_29",29,"Inmovilizadores o ferula de miembros superiores de adulto  - 1 unidad",2,3,"unidad","Und","Asesorias y productos en prevencion y seguridad S.A.S (Aspreseg)",36310.061666666668,1,"C2_EMER_Z3_29 Inmovilizadores o ferula de miembros superiores de adulto  - 1 unidad",0]
["Asesorias y productos en prevencion y seguridad S.A.S (Aspreseg)C2_EMER_Z3_30","C2_EMER_Z3_30",30,"Inmovilizadores o ferula de miembros inferiores de adulto  - 1 unidad",2,3,"unidad","Und","Asesorias y productos en prevencion y seguridad S.A.S (Aspreseg)",36310.061666666668,1,"C2_EMER_Z3_30 Inmovilizadores o ferula de miembros inferiores de adulto  - 1 unidad",0]
["Asesorias y productos en prevencion y seguridad S.A.S (Aspreseg)C2_EMER_Z3_31","C2_EMER_Z3_31",31,"Inmovilizadores o ferula de miembros superiores de niño  - 1 unidad",2,3,"unidad","Und","Asesorias y productos en prevencion y seguridad S.A.S (Aspreseg)",36310.061666666668,1,"C2_EMER_Z3_31 Inmovilizadores o ferula de miembros superiores de nino  - 1 unidad",0]
["Asesorias y productos en prevencion y seguridad S.A.S (Aspreseg)C2_EMER_Z3_32","C2_EMER_Z3_32",32,"Inmovilizadores o ferula de miembros inferiores de niño  - 1 unidad",2,3,"unidad","Und","Asesorias y productos en prevencion y seguridad S.A.S (Aspreseg)",36310.061666666668,1,"C2_EMER_Z3_32 Inmovilizadores o ferula de miembros inferiores de nino  - 1 unidad",0]
["Asesorias y productos en prevencion y seguridad S.A.S (Aspreseg)C2_EMER_Z3_33","C2_EMER_Z3_33",33,"Vasos desechables - 1 paquete de 25 unidades",2,3,"unidad","Und","Asesorias y productos en prevencion y seguridad S.A.S (Aspreseg)",12768.373333333333,1,"C2_EMER_Z3_33 Vasos desechables - 1 paquete de 25 unidades",1]
["Asesorias y productos en prevencion y seguridad S.A.S (Aspreseg)C2_EMER_Z3_34","C2_EMER_Z3_34",34,"Tensiometro manual - 1 unidad ",2,3,"unidad","Und","Asesorias y productos en prevencion y seguridad S.A.S (Aspreseg)",89777.625,1,"C2_EMER_Z3_34 Tensiometro manual - 1 unidad ",1]
["Asesorias y productos en prevencion y seguridad S.A.S (Aspreseg)C2_EMER_Z3_35","C2_EMER_Z3_35",35,"Tensiometro digital - 1 unidad ",2,3,"unidad","Und","Asesorias y productos en prevencion y seguridad S.A.S (Aspreseg)",383051.19999999995,1,"C2_EMER_Z3_35 Tensiometro digital - 1 unidad ",1]
["Asesorias y productos en prevencion y seguridad S.A.S (Aspreseg)C2_EMER_Z3_36","C2_EMER_Z3_36",36,"Fonendoscopio - 1 unidad ",2,3,"unidad","Und","Asesorias y productos en prevencion y seguridad S.A.S (Aspreseg)",59851.749999999985,1,"C2_EMER_Z3_36 Fonendoscopio - 1 unidad ",1]
["Asesorias y productos en prevencion y seguridad S.A.S (Aspreseg)C2_EMER_Z3_37","C2_EMER_Z3_37",37,"Mascarilla desechable para RCP - 1 unidad",2,3,"unidad","Und","Asesorias y productos en prevencion y seguridad S.A.S (Aspreseg)",55861.633333333331,1,"C2_EMER_Z3_37 Mascarilla desechable para RCP - 1 unidad",1]
["Asesorias y productos en prevencion y seguridad S.A.S (Aspreseg)C2_EMER_Z3_38","C2_EMER_Z3_38",38,"Tabla espinal para emergencias ",2,3,"unidad","Und","Asesorias y productos en prevencion y seguridad S.A.S (Aspreseg)",458863.41666666669,1,"C2_EMER_Z3_38 Tabla espinal para emergencias ",1]
["Productos de Seguridad S.A (Prodeseg)C3_EMER_Z1_1","C3_EMER_Z1_1",1,"Cuerda tubular ",3,1,"unidad","Und","Productos de Seguridad S.A (Prodeseg)",51795.715071428567,1,"C3_EMER_Z1_1 Cuerda tubular ",1]
["Productos de Seguridad S.A (Prodeseg)C3_EMER_Z1_2","C3_EMER_Z1_2",2,"Linterna recargable",3,1,"unidad","Und","Productos de Seguridad S.A (Prodeseg)",20442.923815789472,1,"C3_EMER_Z1_2 Linterna recargable",1]
["Productos de Seguridad S.A (Prodeseg)C3_EMER_Z1_3","C3_EMER_Z1_3",3,"Megáfono",3,1,"unidad","Und","Productos de Seguridad S.A (Prodeseg)",572311.35550000006,1,"C3_EMER_Z1_3 Megafono",1]
["Productos de Seguridad S.A (Prodeseg)C3_EMER_Z1_4","C3_EMER_Z1_4",4,"Silbato",3,1,"unidad","Und","Productos de Seguridad S.A (Prodeseg)",35298.203227272723,1,"C3_EMER_Z1_4 Silbato",1]
["Productos de Seguridad S.A (Prodeseg)C3_EMER_Z1_5","C3_EMER_Z1_5",5,"1 Paleta de señalización",3,1,"unidad","Und","Productos de Seguridad S.A (Prodeseg)",24446.133158749999,1,"C3_EMER_Z1_5 1 Paleta de senalizacion",1]
["Productos de Seguridad S.A (Prodeseg)C3_EMER_Z1_6","C3_EMER_Z1_6",6,"Monogafas",3,1,"unidad","Und","Productos de Seguridad S.A (Prodeseg)",11630.750742424241,1,"C3_EMER_Z1_6 Monogafas",1]
["Productos de Seguridad S.A (Prodeseg)C3_EMER_Z1_7","C3_EMER_Z1_7",7,"Linterna con botón recargable",3,1,"unidad","Und","Productos de Seguridad S.A (Prodeseg)",10289.120407894738,1,"C3_EMER_Z1_7 Linterna con boton recargable",1]
["Coltech S.A.SC3_EMER_Z1_1","C3_EMER_Z1_1",1,"Cuerda tubular ",3,1,"unidad","Und","Coltech S.A.S",239406.99999999997,1,"C3_EMER_Z1_1 Cuerda tubular ",1]
["Coltech S.A.SC3_EMER_Z1_2","C3_EMER_Z1_2",2,"Linterna recargable",3,1,"unidad","Und","Coltech S.A.S",718221,1,"C3_EMER_Z1_2 Linterna recargable",1]
["Coltech S.A.SC3_EMER_Z1_3","C3_EMER_Z1_3",3,"Megáfono",3,1,"unidad","Und","Coltech S.A.S",718221,1,"C3_EMER_Z1_3 Megafono",1]
["Coltech S.A.SC3_EMER_Z1_4","C3_EMER_Z1_4",4,"Silbato",3,1,"unidad","Und","Coltech S.A.S",7182.2099999999991,1,"C3_EMER_Z1_4 Silbato",1]
["Coltech S.A.SC3_EMER_Z1_5","C3_EMER_Z1_5",5,"1 Paleta de señalización",3,1,"unidad","Und","Coltech S.A.S",7182.2099999999991,1,"C3_EMER_Z1_5 1 Paleta de senalizacion",1]
["Coltech S.A.SC3_EMER_Z1_6","C3_EMER_Z1_6",6,"Monogafas",3,1,"unidad","Und","Coltech S.A.S",14364.419999999998,1,"C3_EMER_Z1_6 Monogafas",1]
["Coltech S.A.SC3_EMER_Z1_7","C3_EMER_Z1_7",7,"Linterna con botón recargable",3,1,"unidad","Und","Coltech S.A.S",143644.19999999998,1,"C3_EMER_Z1_7 Linterna con boton recargable",1]
["Asesorias y productos en prevencion y seguridad S.A.S (Aspreseg)C3_EMER_Z1_1","C3_EMER_Z1_1",1,"Cuerda tubular ",3,1,"unidad","Und","Asesorias y productos en prevencion y seguridad S.A.S (Aspreseg)",121004.62499999999,1,"C3_EMER_Z1_1 Cuerda tubular ",1]
["Asesorias y productos en prevencion y seguridad S.A.S (Aspreseg)C3_EMER_Z1_2","C3_EMER_Z1_2",2,"Linterna recargable",3,1,"unidad","Und","Asesorias y productos en prevencion y seguridad S.A.S (Aspreseg)",139480.6,1,"C3_EMER_Z1_2 Linterna recargable",1]
["Asesorias y productos en prevencion y seguridad S.A.S (Aspreseg)C3_EMER_Z1_3","C3_EMER_Z1_3",3,"Megáfono",3,1,"unidad","Und","Asesorias y productos en prevencion y seguridad S.A.S (Aspreseg)",1165808,1,"C3_EMER_Z1_3 Megafono",1]
["Asesorias y productos en prevencion y seguridad S.A.S (Aspreseg)C3_EMER_Z1_4","C3_EMER_Z1_4",4,"Silbato",3,1,"unidad","Und","Asesorias y productos en prevencion y seguridad S.A.S (Aspreseg)",52045,1,"C3_EMER_Z1_4 Silbato",1]
["Asesorias y productos en prevencion y seguridad S.A.S (Aspreseg)C3_EMER_Z1_5","C3_EMER_Z1_5",5,"1 Paleta de señalización",3,1,"unidad","Und","Asesorias y productos en prevencion y seguridad S.A.S (Aspreseg)",37212.174999999996,1,"C3_EMER_Z1_5 1 Paleta de senalizacion",1]
["Asesorias y productos en prevencion y seguridad S.A.S (Aspreseg)C3_EMER_Z1_6","C3_EMER_Z1_6",6,"Monogafas",3,1,"unidad","Und","Asesorias y productos en prevencion y seguridad S.A.S (Aspreseg)",19516.875,1,"C3_EMER_Z1_6 Monogafas",1]
["Asesorias y productos en prevencion y seguridad S.A.S (Aspreseg)C3_EMER_Z1_7","C3_EMER_Z1_7",7,"Linterna con botón recargable",3,1,"unidad","Und","Asesorias y productos en prevencion y seguridad S.A.S (Aspreseg)",208180,1,"C3_EMER_Z1_7 Linterna con boton recargable",1]
["Productos de Seguridad S.A (Prodeseg)C3_EMER_Z2_1","C3_EMER_Z2_1",1,"Cuerda tubular ",3,2,"unidad","Und","Productos de Seguridad S.A (Prodeseg)",52060.327538461541,1,"C3_EMER_Z2_1 Cuerda tubular ",1]
["Productos de Seguridad S.A (Prodeseg)C3_EMER_Z2_2","C3_EMER_Z2_2",2,"Linterna recargable",3,2,"unidad","Und","Productos de Seguridad S.A (Prodeseg)",20540.412619433195,1,"C3_EMER_Z2_2 Linterna recargable",1]
["Productos de Seguridad S.A (Prodeseg)C3_EMER_Z2_3","C3_EMER_Z2_3",3,"Megáfono",3,2,"unidad","Und","Productos de Seguridad S.A (Prodeseg)",574163.64276923065,1,"C3_EMER_Z2_3 Megafono",1]
["Productos de Seguridad S.A (Prodeseg)C3_EMER_Z2_4","C3_EMER_Z2_4",4,"Silbato",3,2,"unidad","Und","Productos de Seguridad S.A (Prodeseg)",35466.592979020978,1,"C3_EMER_Z2_4 Silbato",1]
["Productos de Seguridad S.A (Prodeseg)C3_EMER_Z2_5","C3_EMER_Z2_5",5,"1 Paleta de señalización",3,2,"unidad","Und","Productos de Seguridad S.A (Prodeseg)",24561.901113076925,1,"C3_EMER_Z2_5 1 Paleta de senalizacion",1]
["Productos de Seguridad S.A (Prodeseg)C3_EMER_Z2_6","C3_EMER_Z2_6",6,"Monogafas",3,2,"unidad","Und","Productos de Seguridad S.A (Prodeseg)",11686.880659673659,1,"C3_EMER_Z2_6 Monogafas",1]
["Productos de Seguridad S.A (Prodeseg)C3_EMER_Z2_7","C3_EMER_Z2_7",7,"Linterna con botón recargable",3,2,"unidad","Und","Productos de Seguridad S.A (Prodeseg)",10337.864809716599,1,"C3_EMER_Z2_7 Linterna con boton recargable",1]
["Coltech S.A.SC3_EMER_Z2_1","C3_EMER_Z2_1",1,"Cuerda tubular ",3,2,"unidad","Und","Coltech S.A.S",237325.19999999998,1,"C3_EMER_Z2_1 Cuerda tubular ",1]
["Coltech S.A.SC3_EMER_Z2_2","C3_EMER_Z2_2",2,"Linterna recargable",3,2,"unidad","Und","Coltech S.A.S",711975.6,1,"C3_EMER_Z2_2 Linterna recargable",1]
["Coltech S.A.SC3_EMER_Z2_3","C3_EMER_Z2_3",3,"Megáfono",3,2,"unidad","Und","Coltech S.A.S",711975.6,1,"C3_EMER_Z2_3 Megafono",1]
[{"$f":"I963&B963","v":"Coltech S.A.SC3_EMER_Z2_4"},{"$f":"\"C\"&E963&\"_EMER_Z\"&F963&\"_\"&C963","v":"C3_EMER_Z2_4"},4,"Silbato",3,2,"unidad","Und","Coltech S.A.S",7119.7559999999994,1,"C3_EMER_Z2_4 Silbato",1]
["Coltech S.A.SC3_EMER_Z2_5","C3_EMER_Z2_5",5,"1 Paleta de señalización",3,2,"unidad","Und","Coltech S.A.S",7119.7559999999994,1,"C3_EMER_Z2_5 1 Paleta de senalizacion",1]
["Coltech S.A.SC3_EMER_Z2_6","C3_EMER_Z2_6",6,"Monogafas",3,2,"unidad","Und","Coltech S.A.S",14239.511999999999,1,"C3_EMER_Z2_6 Monogafas",1]
["Coltech S.A.SC3_EMER_Z2_7","C3_EMER_Z2_7",7,"Linterna con botón recargable",3,2,"unidad","Und","Coltech S.A.S",142395.12,1,"C3_EMER_Z2_7 Linterna con boton recargable",1]
["Asesorias y productos en prevencion y seguridad S.A.S (Aspreseg)C3_EMER_Z2_1","C3_EMER_Z2_1",1,"Cuerda tubular ",3,2,"unidad","Und","Asesorias y productos en prevencion y seguridad S.A.S (Aspreseg)",129474.94875,1,"C3_EMER_Z2_1 Cuerda tubular ",1]
["Asesorias y productos en prevencion y seguridad S.A.S (Aspreseg)C3_EMER_Z2_2","C3_EMER_Z2_2",2,"Linterna recargable",3,2,"unidad","Und","Asesorias y productos en prevencion y seguridad S.A.S (Aspreseg)",149244.242,1,"C3_EMER_Z2_2 Linterna recargable",1]
["Asesorias y productos en prevencion y seguridad S.A.S (Aspreseg)C3_EMER_Z2_3","C3_EMER_Z2_3",3,"Megáfono",3,2,"unidad","Und","Asesorias y productos en prevencion y seguridad S.A.S (Aspreseg)",1247414.5599999998,1,"C3_EMER_Z2_3 Megafono",1]
["Asesorias y productos en prevencion y seguridad S.A.S (Aspreseg)C3_EMER_Z2_4","C3_EMER_Z2_4",4,"Silbato",3,2,"unidad","Und","Asesorias y productos en prevencion y seguridad S.A.S (Aspreseg)",55688.149999999994,1,"C3_EMER_Z2_4 Silbato",1]
["Asesorias y productos en prevencion y seguridad S.A.S (Aspreseg)C3_EMER_Z2_5","C3_EMER_Z2_5",5,"1 Paleta de señalización",3,2,"unidad","Und","Asesorias y productos en prevencion y seguridad S.A.S (Aspreseg)",39817.027249999999,1,"C3_EMER_Z2_5 1 Paleta de senalizacion",1]
["Asesorias y productos en prevencion y seguridad S.A.S (Aspreseg)C3_EMER_Z2_6","C3_EMER_Z2_6",6,"Monogafas",3,2,"unidad","Und","Asesorias y productos en prevencion y seguridad S.A.S (Aspreseg)",20883.056249999998,1,"C3_EMER_Z2_6 Monogafas",1]
["Asesorias y productos en prevencion y seguridad S.A.S (Aspreseg)C3_EMER_Z2_7","C3_EMER_Z2_7",7,"Linterna con botón recargable",3,2,"unidad","Und","Asesorias y productos en prevencion y seguridad S.A.S (Aspreseg)",222752.59999999998,1,"C3_EMER_Z2_7 Linterna con boton recargable",1]
["Productos de Seguridad S.A (Prodeseg)C3_EMER_Z3_1","C3_EMER_Z3_1",1,"Cuerda tubular ",3,3,"unidad","Und","Productos de Seguridad S.A (Prodeseg)",58843.192249999993,1,"C3_EMER_Z3_1 Cuerda tubular ",1]
["Productos de Seguridad S.A (Prodeseg)C3_EMER_Z3_2","C3_EMER_Z3_2",2,"Linterna recargable",3,3,"unidad","Und","Productos de Seguridad S.A (Prodeseg)",23039.362776315786,1,"C3_EMER_Z3_2 Linterna recargable",1]
["Productos de Seguridad S.A (Prodeseg)C3_EMER_Z3_3","C3_EMER_Z3_3",3,"Megáfono",3,3,"unidad","Und","Productos de Seguridad S.A (Prodeseg)",621643.69574999996,1,"C3_EMER_Z3_3 Megafono",1]
["Productos de Seguridad S.A (Prodeseg)C3_EMER_Z3_4","C3_EMER_Z3_4",4,"Silbato",3,3,"unidad","Und","Productos de Seguridad S.A (Prodeseg)",39782.961431818178,1,"C3_EMER_Z3_4 Silbato",1]
["Productos de Seguridad S.A (Prodeseg)C3_EMER_Z3_5","C3_EMER_Z3_5",5,"1 Paleta de señalización",3,3,"unidad","Und","Productos de Seguridad S.A (Prodeseg)",27529.404424375,1,"C3_EMER_Z3_5 1 Paleta de senalizacion",1]
["Productos de Seguridad S.A (Prodeseg)C3_EMER_Z3_6","C3_EMER_Z3_6",6,"Monogafas",3,3,"unidad","Und","Productos de Seguridad S.A (Prodeseg)",13125.670143939393,1,"C3_EMER_Z3_6 Monogafas",1]
["Productos de Seguridad S.A (Prodeseg)C3_EMER_Z3_7","C3_EMER_Z3_7",7,"Linterna con botón recargable",3,3,"unidad","Und","Productos de Seguridad S.A (Prodeseg)",11587.339888157894,1,"C3_EMER_Z3_7 Linterna con boton recargable",1]
["Coltech S.A.SC3_EMER_Z3_1","C3_EMER_Z3_1",1,"Cuerda tubular ",3,3,"unidad","Und","Coltech S.A.S",241488.8,1,"C3_EMER_Z3_1 Cuerda tubular ",1]
["Coltech S.A.SC3_EMER_Z3_2","C3_EMER_Z3_2",2,"Linterna recargable",3,3,"unidad","Und","Coltech S.A.S",724466.39999999991,1,"C3_EMER_Z3_2 Linterna recargable",1]
["Coltech S.A.SC3_EMER_Z3_3","C3_EMER_Z3_3",3,"Megáfono",3,3,"unidad","Und","Coltech S.A.S",724466.39999999991,1,"C3_EMER_Z3_3 Megafono",1]
["Coltech S.A.SC3_EMER_Z3_4","C3_EMER_Z3_4",4,"Silbato",3,3,"unidad","Und","Coltech S.A.S",7244.6639999999998,1,"C3_EMER_Z3_4 Silbato",1]
["Coltech S.A.SC3_EMER_Z3_5","C3_EMER_Z3_5",5,"1 Paleta de señalización",3,3,"unidad","Und","Coltech S.A.S",7244.6639999999998,1,"C3_EMER_Z3_5 1 Paleta de senalizacion",1]
["Coltech S.A.SC3_EMER_Z3_6","C3_EMER_Z3_6",6,"Monogafas",3,3,"unidad","Und","Coltech S.A.S",14489.328,1,"C3_EMER_Z3_6 Monogafas",1]
["Coltech S.A.SC3_EMER_Z3_7","C3_EMER_Z3_7",7,"Linterna con botón recargable",3,3,"unidad","Und","Coltech S.A.S",144893.28,1,"C3_EMER_Z3_7 Linterna con boton recargable",1]
["Asesorias y productos en prevencion y seguridad S.A.S (Aspreseg)C3_EMER_Z3_1","C3_EMER_Z3_1",1,"Cuerda tubular ",3,3,"unidad","Und","Asesorias y productos en prevencion y seguridad S.A.S (Aspreseg)",139155.31875000001,1,"C3_EMER_Z3_1 Cuerda tubular ",1]
["Asesorias y productos en prevencion y seguridad S.A.S (Aspreseg)C3_EMER_Z3_2","C3_EMER_Z3_2",2,"Linterna recargable",3,3,"unidad","Und","Asesorias y productos en prevencion y seguridad S.A.S (Aspreseg)",160402.69,1,"C3_EMER_Z3_2 Linterna recargable",1]
["Asesorias y productos en prevencion y seguridad S.A.S (Aspreseg)C3_EMER_Z3_3","C3_EMER_Z3_3",3,"Megáfono",3,3,"unidad","Und","Asesorias y productos en prevencion y seguridad S.A.S (Aspreseg)",1340679.2,1,"C3_EMER_Z3_3 Megafono",1]
["Asesorias y productos en prevencion y seguridad S.A.S (Aspreseg)C3_EMER_Z3_4","C3_EMER_Z3_4",4,"Silbato",3,3,"unidad","Und","Asesorias y productos en prevencion y seguridad S.A.S (Aspreseg)",59851.749999999985,1,"C3_EMER_Z3_4 Silbato",1]
["Asesorias y productos en prevencion y seguridad S.A.S (Aspreseg)C3_EMER_Z3_5","C3_EMER_Z3_5",5,"1 Paleta de señalización",3,3,"unidad","Und","Asesorias y productos en prevencion y seguridad S.A.S (Aspreseg)",42794.001249999994,1,"C3_EMER_Z3_5 1 Paleta de senalizacion",1]
["Asesorias y productos en prevencion y seguridad S.A.S (Aspreseg)C3_EMER_Z3_6","C3_EMER_Z3_6",6,"Monogafas",3,3,"unidad","Und","Asesorias y productos en prevencion y seguridad S.A.S (Aspreseg)",22444.40625,1,"C3_EMER_Z3_6 Monogafas",1]
["Asesorias y productos en prevencion y seguridad S.A.S (Aspreseg)C3_EMER_Z3_7","C3_EMER_Z3_7",7,"Linterna con botón recargable",3,3,"unidad","Und","Asesorias y productos en prevencion y seguridad S.A.S (Aspreseg)",239406.99999999994,1,"C3_EMER_Z3_7 Linterna con boton recargable",1]

{"sheet":"CSV","index":7,"n_rows":6,"n_cols":16,"rows_kept":6,"cut":false,"hidden":true,"merged":[]}
["Tipo (servicio o artÃ­culo)","Cantidad","CÃ³digo de unidad de medida*","PosiciÃ³n","Precio base","Divisa","DescripciÃ³n","MercancÃ­a"]
[]
[]
[]
["LÃ­nea de solicitudes",1,1,null,"C1_EMER_Z1_2 Extintor polvo quÃ­mico seco clase ABC portÃ¡til de 10 libras",null,null,10,1,null,null,null,"Und","AgregaciÃ³n de la demanda",null,"COP"]
["LÃ­nea de solicitudes",1,2,null,"C2_EMER_Z1_1 BotiquÃ­n tipo A en Gabinete",null,null,10,1,null,null,null,"Und","AgregaciÃ³n de la demanda",null,"COP"]

{"sheet":"Cuadro Totales","index":8,"n_rows":16,"n_cols":7,"rows_kept":16,"cut":false,"hidden":true,"merged":[[10,0,10,3]]}
["Precio Unitario","Precio Unitario + Gravamen","Subtotal","IVA","Precio Total"]
[]
[null,null,null,"Valor Total",{"$f":"SUM(E2)","v":0}]
[]
[]
[null,null,null,null,null," "]
[]
["Precio Unitario","Precio Unitario + Gravamen","Descuento adicional","Precio con Descuento","Subtotal","IVA","Precio Total"]
[]
[null,null,null,null,null,"Valor Total",{"$f":"SUM(G9)","v":0}]
["Resumen"]
["Categoría","SubTotal","IVA","Total"]
["Categoria 1",{"$f":"SUMIF($C$28:$C$29,$R$35,$S$28:$S$29)","v":0},{"$f":"SUMIF($C$28:$C$29,$R$35,$T$28:$T$29)","v":0},{"$f":"B13+C13","v":0}]
["Categoria 2",{"$f":"SUMIF($C$28:$C$29,$R$36,$S$28:$S$29)","v":0},{"$f":"SUMIF($C$28:$C$29,$R$36,$T$28:$T$29)","v":0},{"$f":"B14+C14","v":0}]
["Categoria 3",{"$f":"SUMIF($C$28:$C$29,$R$37,$S$28:$S$29)","v":0},{"$f":"SUMIF($C$28:$C$29,$R$37,$T$28:$T$29)","v":0},0]
["Totales",{"$f":"SUM(B13:B15)","v":0},{"$f":"SUM(C13:C15)","v":0},{"$f":"SUM(D13:D15)","v":0}]

{"sheet":"Listas","index":9,"n_rows":295,"n_cols":35,"rows_kept":295,"cut":false,"hidden":true,"merged":[]}
["Categoria","Zona","Marca","ProductoInicial","Producto","Proveedores","Zona1Departamento","Zona2Departamento","Zona1DepartamentoAntioquia","Zona1DepartamentoBogotá","Zona1DepartamentoBolivar","Zona1DepartamentoCundinamarca","Zona1DepartamentoSantander","Zona1DepartamentoValledelCauca","Zona2DepartamentoBoyaca","Zona2DepartamentoCaldas","Zona2DepartamentoCasanare","Zona2DepartamentoCauca","Zona2DepartamentoCórdoba","Zona2DepartamentoHuila","Zona2DepartamentoMagdalena","Zona2DepartamentoMeta","Zona2DepartamentoNariño","Zona2DepartamentoNortedeSantander","Zona2DepartamentoQuindio","Zona2DepartamentoRisaralda","Zona2DepartamentoSucre","Zona2DepartamentoTolima","Categoria1","Categoria2","Categoria3","ProveeCat1","ProveeCat2","ProveeCat3","Zona1DepartamentoAtlántico"]
["Categoria 1",null,null,"C1_EMER_Z1_1",null,"Asesorias y productos en prevencion y seguridad S.A.S (Aspreseg)","Antioquia","Boyaca","Medellín","Bogotá","Arjona","Facatativá","Bucaramanga","Cali","Belén","Anserma","Aguazul","Cajibío","Canalete","Aipe","Ciénaga","Acacías","Ancuya","Cúcuta","Armenia","Dosquebradas","Palmito","Alvarado","C1_EMER_Z1_1","C2_EMER_Z1_1","C3_EMER_Z1_1","Coltech S.A.S","Asesorias y productos en prevencion y seguridad S.A.S (Aspreseg)","Asesorias y productos en prevencion y seguridad S.A.S (Aspreseg)","Barranquilla"]
["Categoria 2",null,null,"C1_EMER_Z1_2",null,"Coltech S.A.S","Atlántico","Caldas","Caldas",null,"Cartagena","Zipaquirá","Floridablanca","Palmira","Boyacá","Chinchiná","Maní","El Tambo","Cereté","Baraya","El Retén","Cumaral","Arboleda","El Zulia","Calarcá","La Virginia","Sampués","Anzoátegui","C1_EMER_Z1_2","C2_EMER_Z1_2","C3_EMER_Z1_2","Productos de Seguridad S.A (Prodeseg)","Productos de Seguridad S.A (Prodeseg)","Coltech S.A.S","Malambo"]
["Categoria 3",null,null,"C1_EMER_Z1_3",null,"Productos de Seguridad S.A (Prodeseg)","Bogotá","Casanare","La Estrella",null,"Clemencia","Chía","Girón","Yumbo","Chiquinquirá","Manizales","Nunchía","Piendamó – Tunía","Los Cordobas","Campoalegre","Puebloviejo","El Calvario","Buesaco","Los Patios","Circasia y Salento","Marsella","Sincelejo","Cajamarca","C1_EMER_Z1_3","C2_EMER_Z1_3","C3_EMER_Z1_3",null,"Res-Q Solutions S.A.S","Productos de Seguridad S.A (Prodeseg)","Puerto Colombia"]
[null,null,null,"C1_EMER_Z1_4",null,"Res-Q Solutions S.A.S","Bolivar","Cauca","Itagüí",null,"Galapa","Mosquera","Piedecuesta","Jamundí","Chivatá","Marulanda","Orocué","Popayán","Montería","Neiva","Santa Marta","Puerto Gaitán","Chachaguí","Puerto Santander","La Tebaida","Pereira","Tolú","Coello","C1_EMER_Z1_4","C2_EMER_Z1_4","C3_EMER_Z1_4",null,null,null,"Soledad"]
[null,null,null,"C1_EMER_Z1_5",null,null,"Cundinamarca","Córdoba","Sabaneta",null,"Mahates","Madrid",null,"Florida","Ciénega","Neira","Paya","Timbío","Planeta Rica","Palermo",null,"Puerto López","El Tablón","San Cayetano","Montenegro","Santa Rosa de Cabal","Tolú Viejo","Espinal","C1_EMER_Z1_5","C2_EMER_Z1_5","C3_EMER_Z1_5"]
[null,null,null,"C1_EMER_Z1_6",null,null,"Santander","Huila","Bello",null,"Maria La Baja","Funza",null,"Pradera","Cómbita","Palestina","San Luis de Palenque",null,"Puerto Escondido","Rivera",null,"Restrepo","El Tambo","Villa del Rosario",null,null,null,"Flandes","C1_EMER_Z1_6","C2_EMER_Z1_6","C3_EMER_Z1_6"]
[null,null,null,"C1_EMER_Z1_7",null,null,"Valle del Cauca","Magdalena","Copacabana",null,"San Estanislao","Cajicá",null,"Candelaria","Corrales","Villamaría","Yopal",null,"San Carlos","Tello",null,"San Carlos de Guaroa","Funes",null,null,null,null,"Ibagué","C1_EMER_Z1_7","C2_EMER_Z1_7","C3_EMER_Z1_7"]
[null,null,null,"C1_EMER_Z1_8",null,null,null,"Meta","Girardota",null,"Santa Catalina","Soacha",null,"Dagua","Cucaita",null,null,null,"San Pelayo","Villavieja",null,"Villavicencio","Imués",null,null,null,null,"Piedras","C1_EMER_Z1_8","C2_EMER_Z1_8","C3_EMER_Z2_1"]
[null,null,null,"C1_EMER_Z1_9",null,null,null,"Nariño","Barbosa",null,"Santa Rosa","Sibaté",null,"Puerto Tejada","Duitama",null,null,null,"Tierralta",null,null,null,"Ipiales",null,null,null,null,"San Luis","C1_EMER_Z1_9","C2_EMER_Z1_9","C3_EMER_Z2_2"]
[null,null,null,"C1_EMER_Z1_10",null,null,null,"Norte de Santander","Envigado",null,"Turbaco","Tocancipá",null,"Santander de Quilichao","Firavitoba",null,null,null,"Valencia",null,null,null,"La Florida",null,null,null,null,"Valle de San Juan","C1_EMER_Z1_10","C2_EMER_Z1_10","C3_EMER_Z2_3"]
[null,null,null,"C1_EMER_Z1_11",null,null,null,"Quindio",null,null,"Turbaná","La Calera",null,"Villa Rica","Garagoa",null,null,null,null,null,null,null,"Nariño",null,null,null,null,null,"C1_EMER_Z1_11","C2_EMER_Z1_11","C3_EMER_Z2_4"]
[null,null,null,"C1_EMER_Z1_12",null,null,null,"Risaralda",null,null,"Villanueva","Sopó",null,null,"Isa",null,null,null,null,null,null,null,"Ospina",null,null,null,null,null,"C1_EMER_Z1_12","C2_EMER_Z1_12","C3_EMER_Z2_5"]
[null,null,null,"C1_EMER_Z1_13",null,null,null,"Sucre",null,null,null,"Tabio",null,null,"Jenesano",null,null,null,null,null,null,null,"Pasto",null,null,null,null,null,"C1_EMER_Z1_13","C2_EMER_Z1_13","C3_EMER_Z2_6"]
[null,null,null,"C1_EMER_Z1_14",null,null,null,"Tolima",null,null,null,"Tenjo",null,null,"Miraflores",null,null,null,null,null,null,null,"Potosí",null,null,null,null,null,"C1_EMER_Z1_14","C2_EMER_Z1_14","C3_EMER_Z2_7"]
[null,null,null,"C1_EMER_Z1_15",null,null,null,null,null,null,null,"Cota",null,null,"Mongua",null,null,null,null,null,null,null,"Sandoná",null,null,null,null,null,"C1_EMER_Z1_15","C2_EMER_Z1_15","C3_EMER_Z3_1"]
[null,null,null,"C1_EMER_Z1_16",null,null,null,null,null,null,null,"Cogua",null,null,"Monguí",null,null,null,null,null,null,null,"Tangua",null,null,null,null,null,"C1_EMER_Z1_16","C2_EMER_Z1_16","C3_EMER_Z3_2"]
[null,null,null,"C1_EMER_Z1_17",null,null,null,null,null,null,null,"Nemocón",null,null,"Moniquirá",null,null,null,null,null,null,null,"Yacuanquer",null,null,null,null,null,"C1_EMER_Z1_17","C2_EMER_Z1_17","C3_EMER_Z3_3"]
[null,null,null,"C1_EMER_Z1_18",null,null,null,null,null,null,null,"Gachancipá",null,null,"Nobsa",null,null,null,null,null,null,null,null,null,null,null,null,null,"C1_EMER_Z1_18","C2_EMER_Z1_18","C3_EMER_Z3_4"]
[null,null,null,"C1_EMER_Z1_19",null,null,null,null,null,null,null,"Bojacá",null,null,"Oicatá",null,null,null,null,null,null,null,null,null,null,null,null,null,"C1_EMER_Z1_19","C2_EMER_Z1_19","C3_EMER_Z3_5"]
[null,null,null,"C1_EMER_Z1_20",null,null,null,null,null,null,null,null,null,null,"Paipa",null,null,null,null,null,null,null,null,null,null,null,null,null,"C1_EMER_Z1_20","C2_EMER_Z1_20","C3_EMER_Z3_6"]
[null,null,null,"C1_EMER_Z1_21",null,null,null,null,null,null,null,null,null,null,"Paz del Río",null,null,null,null,null,null,null,null,null,null,null,null,null,"C1_EMER_Z1_21","C2_EMER_Z1_21","C3_EMER_Z3_7"]
[null,null,null,"C1_EMER_Z1_22",null,null,null,null,null,null,null,null,null,null,"Pesca",null,null,null,null,null,null,null,null,null,null,null,null,null,"C1_EMER_Z1_22","C2_EMER_Z1_22"]
[null,null,null,"C1_EMER_Z1_23",null,null,null,null,null,null,null,null,null,null,"Ramiriquí",null,null,null,null,null,null,null,null,null,null,null,null,null,"C1_EMER_Z1_23","C2_EMER_Z1_23"]
[null,null,null,"C1_EMER_Z1_24",null,null,null,null,null,null,null,null,null,null,"Ráquira",null,null,null,null,null,null,null,null,null,null,null,null,null,"C1_EMER_Z1_24","C2_EMER_Z1_24"]
[null,null,null,"C1_EMER_Z1_25",null,null,null,null,null,null,null,null,null,null,"Sáchica",null,null,null,null,null,null,null,null,null,null,null,null,null,"C1_EMER_Z1_25","C2_EMER_Z1_25"]
[null,null,null,"C1_EMER_Z1_26",null,null,null,null,null,null,null,null,null,null,"Samacá",null,null,null,null,null,null,null,null,null,null,null,null,null,"C1_EMER_Z1_26","C2_EMER_Z1_26"]
[null,null,null,"C1_EMER_Z1_27",null,null,null,null,null,null,null,null,null,null,"Santa Rosa de Viterbo",null,null,null,null,null,null,null,null,null,null,null,null,null,"C1_EMER_Z1_27","C2_EMER_Z1_27"]
[null,null,null,"C1_EMER_Z1_28",null,null,null,null,null,null,null,null,null,null,"Siachoque",null,null,null,null,null,null,null,null,null,null,null,null,null,"C1_EMER_Z1_28","C2_EMER_Z1_28"]
[null,null,null,"C1_EMER_Z1_29",null,null,null,null,null,null,null,null,null,null,"Sibaté",null,null,null,null,null,null,null,null,null,null,null,null,null,"C1_EMER_Z1_29","C2_EMER_Z1_29"]
[null,null,null,"C1_EMER_Z1_30",null,null,null,null,null,null,null,null,null,null,"Sogamoso",null,null,null,null,null,null,null,null,null,null,null,null,null,"C1_EMER_Z1_30","C2_EMER_Z1_30"]
[null,null,null,"C1_EMER_Z1_31",null,null,null,null,null,null,null,null,null,null,"Sora",null,null,null,null,null,null,null,null,null,null,null,null,null,"C1_EMER_Z1_31","C2_EMER_Z1_31"]
[null,null,null,"C1_EMER_Z1_32",null,null,null,null,null,null,null,null,null,null,"Soracá",null,null,null,null,null,null,null,null,null,null,null,null,null,"C1_EMER_Z1_32","C2_EMER_Z1_32"]
[null,null,null,"C1_EMER_Z1_33",null,null,null,null,null,null,null,null,null,null,"Tibaná",null,null,null,null,null,null,null,null,null,null,null,null,null,"C1_EMER_Z1_33","C2_EMER_Z1_33"]
[null,null,null,"C1_EMER_Z1_34",null,null,null,null,null,null,null,null,null,null,"Tinjacá",null,null,null,null,null,null,null,null,null,null,null,null,null,"C1_EMER_Z1_34","C2_EMER_Z1_34"]
[null,null,null,"C1_EMER_Z1_35",null,null,null,null,null,null,null,null,null,null,"Toca",null,null,null,null,null,null,null,null,null,null,null,null,null,"C1_EMER_Z1_35","C2_EMER_Z1_35"]
[null,null,null,"C1_EMER_Z1_36",null,null,null,null,null,null,null,null,null,null,"Tópaga",null,null,null,null,null,null,null,null,null,null,null,null,null,"C1_EMER_Z1_36","C2_EMER_Z1_36"]
[null,null,null,"C1_EMER_Z1_37",null,null,null,null,null,null,null,null,null,null,"Tunja",null,null,null,null,null,null,null,null,null,null,null,null,null,"C1_EMER_Z1_37","C2_EMER_Z1_37"]
[null,null,null,"C1_EMER_Z1_38",null,null,null,null,null,null,null,null,null,null,"Tuta",null,null,null,null,null,null,null,null,null,null,null,null,null,"C1_EMER_Z1_38","C2_EMER_Z1_38"]
[null,null,null,"C1_EMER_Z1_39",null,null,null,null,null,null,null,null,null,null,"Ventaquemada",null,null,null,null,null,null,null,null,null,null,null,null,null,"C1_EMER_Z1_39","C2_EMER_Z2_1"]
[null,null,null,"C1_EMER_Z1_40",null,null,null,null,null,null,null,null,null,null,"Villa de Leyva",null,null,null,null,null,null,null,null,null,null,null,null,null,"C1_EMER_Z1_40","C2_EMER_Z2_2"]
[null,null,null,"C1_EMER_Z1_41",null,null,null,null,null,null,null,null,null,null,null,null,null,null,null,null,null,null,null,null,null,null,null,null,"C1_EMER_Z1_41","C2_EMER_Z2_3"]
[null,null,null,"C1_EMER_Z1_42",null,null,null,null,null,null,null,null,null,null,null,null,null,null,null,null,null,null,null,null,null,null,null,null,"C1_EMER_Z1_42","C2_EMER_Z2_4"]
[null,null,null,"C1_EMER_Z1_43",null,null,null,null,null,null,null,null,null,null,null,null,null,null,null,null,null,null,null,null,null,null,null,null,"C1_EMER_Z1_43","C2_EMER_Z2_5"]
[null,null,null,"C1_EMER_Z1_44",null,null,null,null,null,null,null,null,null,null,null,null,null,null,null,null,null,null,null,null,null,null,null,null,"C1_EMER_Z1_44","C2_EMER_Z2_6"]
[null,null,null,"C1_EMER_Z1_45",null,null,null,null,null,null,null,null,null,null,null,null,null,null,null,null,null,null,null,null,null,null,null,null,"C1_EMER_Z1_45","C2_EMER_Z2_7"]
[null,null,null,"C1_EMER_Z1_46",null,null,null,null,null,null,null,null,null,null,null,null,null,null,null,null,null,null,null,null,null,null,null,null,"C1_EMER_Z1_46","C2_EMER_Z2_8"]
[null,null,null,"C1_EMER_Z1_47",null,null,null,null,null,null,null,null,null,null,null,null,null,null,null,null,null,null,null,null,null,null,null,null,"C1_EMER_Z1_47","C2_EMER_Z2_9"]
[null,null,null,"C1_EMER_Z1_48",null,null,null,null,null,null,null,null,null,null,null,null,null,null,null,null,null,null,null,null,null,null,null,null,"C1_EMER_Z1_48","C2_EMER_Z2_10"]
[null,null,null,"C1_EMER_Z1_49",null,null,null,null,null,null,null,null,null,null,null,null,null,null,null,null,null,null,null,null,null,null,null,null,"C1_EMER_Z1_49","C2_EMER_Z2_11"]
[null,null,null,"C1_EMER_Z1_50",null,null,null,null,null,null,null,null,null,null,null,null,null,null,null,null,null,null,null,null,null,null,null,null,"C1_EMER_Z1_50","C2_EMER_Z2_12"]
[null,null,null,"C1_EMER_Z1_51",null,null,null,null,null,null,null,null,null,null,null,null,null,null,null,null,null,null,null,null,null,null,null,null,"C1_EMER_Z1_51","C2_EMER_Z2_13"]
[null,null,null,"C1_EMER_Z1_52",null,null,null,null,null,null,null,null,null,null,null,null,null,null,null,null,null,null,null,null,null,null,null,null,"C1_EMER_Z1_52","C2_EMER_Z2_14"]
[null,null,null,"C1_EMER_Z1_53",null,null,null,null,null,null,null,null,null,null,null,null,null,null,null,null,null,null,null,null,null,null,null,null,"C1_EMER_Z1_53","C2_EMER_Z2_15"]
[null,null,null,"C1_EMER_Z1_54",null,null,null,null,null,null,null,null,null,null,null,null,null,null,null,null,null,null,null,null,null,null,null,null,"C1_EMER_Z1_54","C2_EMER_Z2_16"]
[null,null,null,"C1_EMER_Z1_55",null,null,null,null,null,null,null,null,null,null,null,null,null,null,null,null,null,null,null,null,null,null,null,null,"C1_EMER_Z1_55","C2_EMER_Z2_17"]
[null,null,null,"C1_EMER_Z1_56",null,null,null,null,null,null,null,null,null,null,null,null,null,null,null,null,null,null,null,null,null,null,null,null,"C1_EMER_Z1_56","C2_EMER_Z2_18"]
[null,null,null,"C1_EMER_Z1_57",null,null,null,null,null,null,null,null,null,null,null,null,null,null,null,null,null,null,null,null,null,null,null,null,"C1_EMER_Z1_57","C2_EMER_Z2_19"]
[null,null,null,"C1_EMER_Z1_58",null,null,null,null,null,null,null,null,null,null,null,null,null,null,null,null,null,null,null,null,null,null,null,null,"C1_EMER_Z1_58","C2_EMER_Z2_20"]
[null,null,null,"C1_EMER_Z1_59",null,null,null,null,null,null,null,null,null,null,null,null,null,null,null,null,null,null,null,null,null,null,null,null,"C1_EMER_Z1_59","C2_EMER_Z2_21"]
[null,null,null,"C1_EMER_Z1_60",null,null,null,null,null,null,null,null,null,null,null,null,null,null,null,null,null,null,null,null,null,null,null,null,"C1_EMER_Z1_60","C2_EMER_Z2_22"]
[null,null,null,"C1_EMER_Z1_61",null,null,null,null,null,null,null,null,null,null,null,null,null,null,null,null,null,null,null,null,null,null,null,null,"C1_EMER_Z1_61","C2_EMER_Z2_23"]
[null,null,null,"C1_EMER_Z1_62",null,null,null,null,null,null,null,null,null,null,null,null,null,null,null,null,null,null,null,null,null,null,null,null,"C1_EMER_Z1_62","C2_EMER_Z2_24"]
[null,null,null,"C1_EMER_Z1_63",null,null,null,null,null,null,null,null,null,null,null,null,null,null,null,null,null,null,null,null,null,null,null,null,"C1_EMER_Z1_63","C2_EMER_Z2_25"]
[null,null,null,"C1_EMER_Z1_64",null,null,null,null,null,null,null,null,null,null,null,null,null,null,null,null,null,null,null,null,null,null,null,null,"C1_EMER_Z1_64","C2_EMER_Z2_26"]
[null,null,null,"C1_EMER_Z1_65",null,null,null,null,null,null,null,null,null,null,null,null,null,null,null,null,null,null,null,null,null,null,null,null,"C1_EMER_Z1_65","C2_EMER_Z2_27"]
[null,null,null,"C1_EMER_Z1_66",null,null,null,null,null,null,null,null,null,null,null,null,null,null,null,null,null,null,null,null,null,null,null,null,"C1_EMER_Z1_66","C2_EMER_Z2_28"]
[null,null,null,"C1_EMER_Z1_67",null,null,null,null,null,null,null,null,null,null,null,null,null,null,null,null,null,null,null,null,null,null,null,null,"C1_EMER_Z1_67","C2_EMER_Z2_29"]
[null,null,null,"C1_EMER_Z1_68",null,null,null,null,null,null,null,null,null,null,null,null,null,null,null,null,null,null,null,null,null,null,null,null,"C1_EMER_Z1_68","C2_EMER_Z2_30"]
[null,null,null,"C1_EMER_Z1_69",null,null,null,null,null,null,null,null,null,null,null,null,null,null,null,null,null,null,null,null,null,null,null,null,"C1_EMER_Z1_69","C2_EMER_Z2_31"]
[null,null,null,"C1_EMER_Z1_70",null,null,null,null,null,null,null,null,null,null,null,null,null,null,null,null,null,null,null,null,null,null,null,null,"C1_EMER_Z1_70","C2_EMER_Z2_32"]
[null,null,null,"C1_EMER_Z1_71",null,null,null,null,null,null,null,null,null,null,null,null,null,null,null,null,null,null,null,null,null,null,null,null,"C1_EMER_Z1_71","C2_EMER_Z2_33"]
[null,null,null,"C1_EMER_Z1_72",null,null,null,null,null,null,null,null,null,null,null,null,null,null,null,null,null,null,null,null,null,null,null,null,"C1_EMER_Z1_72","C2_EMER_Z2_34"]
[null,null,null,"C1_EMER_Z1_73",null,null,null,null,null,null,null,null,null,null,null,null,null,null,null,null,null,null,null,null,null,null,null,null,"C1_EMER_Z1_73","C2_EMER_Z2_35"]
[null,null,null,"C1_EMER_Z1_74",null,null,null,null,null,null,null,null,null,null,null,null,null,null,null,null,null,null,null,null,null,null,null,null,"C1_EMER_Z1_74","C2_EMER_Z2_36"]
[null,null,null,"C1_EMER_Z1_75",null,null,null,null,null,null,null,null,null,null,null,null,null,null,null,null,null,null,null,null,null,null,null,null,"C1_EMER_Z1_75","C2_EMER_Z2_37"]
[null,null,null,"C1_EMER_Z1_76",null,null,null,null,null,null,null,null,null,null,null,null,null,null,null,null,null,null,null,null,null,null,null,null,"C1_EMER_Z1_76","C2_EMER_Z2_38"]
[null,null,null,"C1_EMER_Z1_77",null,null,null,null,null,null,null,null,null,null,null,null,null,null,null,null,null,null,null,null,null,null,null,null,"C1_EMER_Z1_77","C2_EMER_Z3_1"]
[null,null,null,"C1_EMER_Z1_78",null,null,null,null,null,null,null,null,null,null,null,null,null,null,null,null,null,null,null,null,null,null,null,null,"C1_EMER_Z1_78","C2_EMER_Z3_2"]
[null,null,null,"C1_EMER_Z1_79",null,null,null,null,null,null,null,null,null,null,null,null,null,null,null,null,null,null,null,null,null,null,null,null,"C1_EMER_Z1_79","C2_EMER_Z3_3"]
[null,null,null,"C1_EMER_Z1_80",null,null,null,null,null,null,null,null,null,null,null,null,null,null,null,null,null,null,null,null,null,null,null,null,"C1_EMER_Z1_80","C2_EMER_Z3_4"]
[null,null,null,"C1_EMER_Z1_81",null,null,null,null,null,null,null,null,null,null,null,null,null,null,null,null,null,null,null,null,null,null,null,null,"C1_EMER_Z1_81","C2_EMER_Z3_5"]
[null,null,null,"C1_EMER_Z1_82",null,null,null,null,null,null,null,null,null,null,null,null,null,null,null,null,null,null,null,null,null,null,null,null,"C1_EMER_Z1_82","C2_EMER_Z3_6"]
[null,null,null,"C1_EMER_Z1_83",null,null,null,null,null,null,null,null,null,null,null,null,null,null,null,null,null,null,null,null,null,null,null,null,"C1_EMER_Z1_83","C2_EMER_Z3_7"]
[null,null,null,"C1_EMER_Z1_84",null,null,null,null,null,null,null,null,null,null,null,null,null,null,null,null,null,null,null,null,null,null,null,null,"C1_EMER_Z1_84","C2_EMER_Z3_8"]
[null,null,null,"C1_EMER_Z1_85",null,null,null,null,null,null,null,null,null,null,null,null,null,null,null,null,null,null,null,null,null,null,null,null,"C1_EMER_Z1_85","C2_EMER_Z3_9"]
[null,null,null,"C1_EMER_Z1_86",null,null,null,null,null,null,null,null,null,null,null,null,null,null,null,null,null,null,null,null,null,null,null,null,"C1_EMER_Z1_86","C2_EMER_Z3_10"]
[null,null,null,"C1_EMER_Z1_87",null,null,null,null,null,null,null,null,null,null,null,null,null,null,null,null,null,null,null,null,null,null,null,null,"C1_EMER_Z1_87","C2_EMER_Z3_11"]
[null,null,null,"C1_EMER_Z1_88",null,null,null,null,null,null,null,null,null,null,null,null,null,null,null,null,null,null,null,null,null,null,null,null,"C1_EMER_Z1_88","C2_EMER_Z3_12"]
[null,null,null,"C1_EMER_Z1_89",null,null,null,null,null,null,null,null,null,null,null,null,null,null,null,null,null,null,null,null,null,null,null,null,"C1_EMER_Z1_89","C2_EMER_Z3_13"]
[null,null,null,"C1_EMER_Z1_90",null,null,null,null,null,null,null,null,null,null,null,null,null,null,null,null,null,null,null,null,null,null,null,null,"C1_EMER_Z1_90","C2_EMER_Z3_14"]
[null,null,null,"C1_EMER_Z1_91",null,null,null,null,null,null,null,null,null,null,null,null,null,null,null,null,null,null,null,null,null,null,null,null,"C1_EMER_Z1_91","C2_EMER_Z3_15"]
[null,null,null,"C1_EMER_Z1_92",null,null,null,null,null,null,null,null,null,null,null,null,null,null,null,null,null,null,null,null,null,null,null,null,"C1_EMER_Z1_92","C2_EMER_Z3_16"]
[null,null,null,"C1_EMER_Z1_93",null,null,null,null,null,null,null,null,null,null,null,null,null,null,null,null,null,null,null,null,null,null,null,null,"C1_EMER_Z1_93","C2_EMER_Z3_17"]
[null,null,null,"C1_EMER_Z1_94",null,null,null,null,null,null,null,null,null,null,null,null,null,null,null,null,null,null,null,null,null,null,null,null,"C1_EMER_Z1_94","C2_EMER_Z3_18"]
[null,null,null,"C1_EMER_Z1_95",null,null,null,null,null,null,null,null,null,null,null,null,null,null,null,null,null,null,null,null,null,null,null,null,"C1_EMER_Z1_95","C2_EMER_Z3_19"]
[null,null,null,"C1_EMER_Z1_96",null,null,null,null,null,null,null,null,null,null,null,null,null,null,null,null,null,null,null,null,null,null,null,null,"C1_EMER_Z1_96","C2_EMER_Z3_20"]
[null,null,null,"C1_EMER_Z1_97",null,null,null,null,null,null,null,null,null,null,null,null,null,null,null,null,null,null,null,null,null,null,null,null,"C1_EMER_Z1_97","C2_EMER_Z3_21"]
[null,null,null,"C1_EMER_Z1_98",null,null,null,null,null,null,null,null,null,null,null,null,null,null,null,null,null,null,null,null,null,null,null,null,"C1_EMER_Z1_98","C2_EMER_Z3_22"]
[null,null,null,"C1_EMER_Z2_1",null,null,null,null,null,null,null,null,null,null,null,null,null,null,null,null,null,null,null,null,null,null,null,null,"C1_EMER_Z2_1","C2_EMER_Z3_23"]
[null,null,null,"C1_EMER_Z2_2",null,null,null,null,null,null,null,null,null,null,null,null,null,null,null,null,null,null,null,null,null,null,null,null,"C1_EMER_Z2_2","C2_EMER_Z3_24"]
[null,null,null,"C1_EMER_Z2_3",null,null,null,null,null,null,null,null,null,null,null,null,null,null,null,null,null,null,null,null,null,null,null,null,"C1_EMER_Z2_3","C2_EMER_Z3_25"]
[null,null,null,"C1_EMER_Z2_4",null,null,null,null,null,null,null,null,null,null,null,null,null,null,null,null,null,null,null,null,null,null,null,null,"C1_EMER_Z2_4","C2_EMER_Z3_26"]
[null,null,null,"C1_EMER_Z2_5",null,null,null,null,null,null,null,null,null,null,null,null,null,null,null,null,null,null,null,null,null,null,null,null,"C1_EMER_Z2_5","C2_EMER_Z3_27"]
[null,null,null,"C1_EMER_Z2_6",null,null,null,null,null,null,null,null,null,null,null,null,null,null,null,null,null,null,null,null,null,null,null,null,"C1_EMER_Z2_6","C2_EMER_Z3_28"]
[null,null,null,"C1_EMER_Z2_7",null,null,null,null,null,null,null,null,null,null,null,null,null,null,null,null,null,null,null,null,null,null,null,null,"C1_EMER_Z2_7","C2_EMER_Z3_29"]
[null,null,null,"C1_EMER_Z2_8",null,null,null,null,null,null,null,null,null,null,null,null,null,null,null,null,null,null,null,null,null,null,null,null,"C1_EMER_Z2_8","C2_EMER_Z3_30"]
[null,null,null,"C1_EMER_Z2_9",null,null,null,null,null,null,null,null,null,null,null,null,null,null,null,null,null,null,null,null,null,null,null,null,"C1_EMER_Z2_9","C2_EMER_Z3_31"]
[null,null,null,"C1_EMER_Z2_10",null,null,null,null,null,null,null,null,null,null,null,null,null,null,null,null,null,null,null,null,null,null,null,null,"C1_EMER_Z2_10","C2_EMER_Z3_32"]
[null,null,null,"C1_EMER_Z2_11",null,null,null,null,null,null,null,null,null,null,null,null,null,null,null,null,null,null,null,null,null,null,null,null,"C1_EMER_Z2_11","C2_EMER_Z3_33"]
[null,null,null,"C1_EMER_Z2_12",null,null,null,null,null,null,null,null,null,null,null,null,null,null,null,null,null,null,null,null,null,null,null,null,"C1_EMER_Z2_12","C2_EMER_Z3_34"]
[null,null,null,"C1_EMER_Z2_13",null,null,null,null,null,null,null,null,null,null,null,null,null,null,null,null,null,null,null,null,null,null,null,null,"C1_EMER_Z2_13","C2_EMER_Z3_35"]
[null,null,null,"C1_EMER_Z2_14",null,null,null,null,null,null,null,null,null,null,null,null,null,null,null,null,null,null,null,null,null,null,null,null,"C1_EMER_Z2_14","C2_EMER_Z3_36"]
[null,null,null,"C1_EMER_Z2_15",null,null,null,null,null,null,null,null,null,null,null,null,null,null,null,null,null,null,null,null,null,null,null,null,"C1_EMER_Z2_15","C2_EMER_Z3_37"]
[null,null,null,"C1_EMER_Z2_16",null,null,null,null,null,null,null,null,null,null,null,null,null,null,null,null,null,null,null,null,null,null,null,null,"C1_EMER_Z2_16","C2_EMER_Z3_38"]
[null,null,null,"C1_EMER_Z2_17",null,null,null,null,null,null,null,null,null,null,null,null,null,null,null,null,null,null,null,null,null,null,null,null,"C1_EMER_Z2_17"]
[null,null,null,"C1_EMER_Z2_18",null,null,null,null,null,null,null,null,null,null,null,null,null,null,null,null,null,null,null,null,null,null,null,null,"C1_EMER_Z2_18"]
[null,null,null,"C1_EMER_Z2_19",null,null,null,null,null,null,null,null,null,null,null,null,null,null,null,null,null,null,null,null,null,null,null,null,"C1_EMER_Z2_19"]
[null,null,null,"C1_EMER_Z2_20",null,null,null,null,null,null,null,null,null,null,null,null,null,null,null,null,null,null,null,null,null,null,null,null,"C1_EMER_Z2_20"]
[null,null,null,"C1_EMER_Z2_21",null,null,null,null,null,null,null,null,null,null,null,null,null,null,null,null,null,null,null,null,null,null,null,null,"C1_EMER_Z2_21"]
[null,null,null,"C1_EMER_Z2_22",null,null,null,null,null,null,null,null,null,null,null,null,null,null,null,null,null,null,null,null,null,null,null,null,"C1_EMER_Z2_22"]
[null,null,null,"C1_EMER_Z2_23",null,null,null,null,null,null,null,null,null,null,null,null,null,null,null,null,null,null,null,null,null,null,null,null,"C1_EMER_Z2_23"]
[null,null,null,"C1_EMER_Z2_24",null,null,null,null,null,null,null,null,null,null,null,null,null,null,null,null,null,null,null,null,null,null,null,null,"C1_EMER_Z2_24"]
[null,null,null,"C1_EMER_Z2_25",null,null,null,null,null,null,null,null,null,null,null,null,null,null,null,null,null,null,null,null,null,null,null,null,"C1_EMER_Z2_25"]
[null,null,null,"C1_EMER_Z2_26",null,null,null,null,null,null,null,null,null,null,null,null,null,null,null,null,null,null,null,null,null,null,null,null,"C1_EMER_Z2_26"]
[null,null,null,"C1_EMER_Z2_27",null,null,null,null,null,null,null,null,null,null,null,null,null,null,null,null,null,null,null,null,null,null,null,null,"C1_EMER_Z2_27"]
[null,null,null,"C1_EMER_Z2_28",null,null,null,null,null,null,null,null,null,null,null,null,null,null,null,null,null,null,null,null,null,null,null,null,"C1_EMER_Z2_28"]
[null,null,null,"C1_EMER_Z2_29",null,null,null,null,null,null,null,null,null,null,null,null,null,null,null,null,null,null,null,null,null,null,null,null,"C1_EMER_Z2_29"]
[null,null,null,"C1_EMER_Z2_30",null,null,null,null,null,null,null,null,null,null,null,null,null,null,null,null,null,null,null,null,null,null,null,null,"C1_EMER_Z2_30"]
[null,null,null,"C1_EMER_Z2_31",null,null,null,null,null,null,null,null,null,null,null,null,null,null,null,null,null,null,null,null,null,null,null,null,"C1_EMER_Z2_31"]
[null,null,null,"C1_EMER_Z2_32",null,null,null,null,null,null,null,null,null,null,null,null,null,null,null,null,null,null,null,null,null,null,null,null,"C1_EMER_Z2_32"]
[null,null,null,"C1_EMER_Z2_33",null,null,null,null,null,null,null,null,null,null,null,null,null,null,null,null,null,null,null,null,null,null,null,null,"C1_EMER_Z2_33"]
[null,null,null,"C1_EMER_Z2_34",null,null,null,null,null,null,null,null,null,null,null,null,null,null,null,null,null,null,null,null,null,null,null,null,"C1_EMER_Z2_34"]
[null,null,null,"C1_EMER_Z2_35",null,null,null,null,null,null,null,null,null,null,null,null,null,null,null,null,null,null,null,null,null,null,null,null,"C1_EMER_Z2_35"]
[null,null,null,"C1_EMER_Z2_36",null,null,null,null,null,null,null,null,null,null,null,null,null,null,null,null,null,null,null,null,null,null,null,null,"C1_EMER_Z2_36"]
[null,null,null,"C1_EMER_Z2_37",null,null,null,null,null,null,null,null,null,null,null,null,null,null,null,null,null,null,null,null,null,null,null,null,"C1_EMER_Z2_37"]
[null,null,null,"C1_EMER_Z2_38",null,null,null,null,null,null,null,null,null,null,null,null,null,null,null,null,null,null,null,null,null,null,null,null,"C1_EMER_Z2_38"]
[null,null,null,"C1_EMER_Z2_39",null,null,null,null,null,null,null,null,null,null,null,null,null,null,null,null,null,null,null,null,null,null,null,null,"C1_EMER_Z2_39"]
[null,null,null,"C1_EMER_Z2_40",null,null,null,null,null,null,null,null,null,null,null,null,null,null,null,null,null,null,null,null,null,null,null,null,"C1_EMER_Z2_40"]
[null,null,null,"C1_EMER_Z2_41",null,null,null,null,null,null,null,null,null,null,null,null,null,null,null,null,null,null,null,null,null,null,null,null,"C1_EMER_Z2_41"]
[null,null,null,"C1_EMER_Z2_42",null,null,null,null,null,null,null,null,null,null,null,null,null,null,null,null,null,null,null,null,null,null,null,null,"C1_EMER_Z2_42"]
[null,null,null,"C1_EMER_Z2_43",null,null,null,null,null,null,null,null,null,null,null,null,null,null,null,null,null,null,null,null,null,null,null,null,"C1_EMER_Z2_43"]
[null,null,null,"C1_EMER_Z2_44",null,null,null,null,null,null,null,null,null,null,null,null,null,null,null,null,null,null,null,null,null,null,null,null,"C1_EMER_Z2_44"]
[null,null,null,"C1_EMER_Z2_45",null,null,null,null,null,null,null,null,null,null,null,null,null,null,null,null,null,null,null,null,null,null,null,null,"C1_EMER_Z2_45"]
[null,null,null,"C1_EMER_Z2_46",null,null,null,null,null,null,null,null,null,null,null,null,null,null,null,null,null,null,null,null,null,null,null,null,"C1_EMER_Z2_46"]
[null,null,null,"C1_EMER_Z2_47",null,null,null,null,null,null,null,null,null,null,null,null,null,null,null,null,null,null,null,null,null,null,null,null,"C1_EMER_Z2_47"]
[null,null,null,"C1_EMER_Z2_48",null,null,null,null,null,null,null,null,null,null,null,null,null,null,null,null,null,null,null,null,null,null,null,null,"C1_EMER_Z2_48"]
[null,null,null,"C1_EMER_Z2_49",null,null,null,null,null,null,null,null,null,null,null,null,null,null,null,null,null,null,null,null,null,null,null,null,"C1_EMER_Z2_49"]
[null,null,null,"C1_EMER_Z2_50",null,null,null,null,null,null,null,null,null,null,null,null,null,null,null,null,null,null,null,null,null,null,null,null,"C1_EMER_Z2_50"]
[null,null,null,"C1_EMER_Z2_51",null,null,null,null,null,null,null,null,null,null,null,null,null,null,null,null,null,null,null,null,null,null,null,null,"C1_EMER_Z2_51"]
[null,null,null,"C1_EMER_Z2_52",null,null,null,null,null,null,null,null,null,null,null,null,null,null,null,null,null,null,null,null,null,null,null,null,"C1_EMER_Z2_52"]
[null,null,null,"C1_EMER_Z2_53",null,null,null,null,null,null,null,null,null,null,null,null,null,null,null,null,null,null,null,null,null,null,null,null,"C1_EMER_Z2_53"]
[null,null,null,"C1_EMER_Z2_54",null,null,null,null,null,null,null,null,null,null,null,null,null,null,null,null,null,null,null,null,null,null,null,null,"C1_EMER_Z2_54"]
[null,null,null,"C1_EMER_Z2_55",null,null,null,null,null,null,null,null,null,null,null,null,null,null,null,null,null,null,null,null,null,null,null,null,"C1_EMER_Z2_55"]
[null,null,null,"C1_EMER_Z2_56",null,null,null,null,null,null,null,null,null,null,null,null,null,null,null,null,null,null,null,null,null,null,null,null,"C1_EMER_Z2_56"]
[null,null,null,"C1_EMER_Z2_57",null,null,null,null,null,null,null,null,null,null,null,null,null,null,null,null,null,null,null,null,null,null,null,null,"C1_EMER_Z2_57"]
[null,null,null,"C1_EMER_Z2_58",null,null,null,null,null,null,null,null,null,null,null,null,null,null,null,null,null,null,null,null,null,null,null,null,"C1_EMER_Z2_58"]
[null,null,null,"C1_EMER_Z2_59",null,null,null,null,null,null,null,null,null,null,null,null,null,null,null,null,null,null,null,null,null,null,null,null,"C1_EMER_Z2_59"]
[null,null,null,"C1_EMER_Z2_60",null,null,null,null,null,null,null,null,null,null,null,null,null,null,null,null,null,null,null,null,null,null,null,null,"C1_EMER_Z2_60"]
[null,null,null,"C1_EMER_Z2_61",null,null,null,null,null,null,null,null,null,null,null,null,null,null,null,null,null,null,null,null,null,null,null,null,"C1_EMER_Z2_61"]
[null,null,null,"C1_EMER_Z2_62",null,null,null,null,null,null,null,null,null,null,null,null,null,null,null,null,null,null,null,null,null,null,null,null,"C1_EMER_Z2_62"]
[null,null,null,"C1_EMER_Z2_63",null,null,null,null,null,null,null,null,null,null,null,null,null,null,null,null,null,null,null,null,null,null,null,null,"C1_EMER_Z2_63"]
[null,null,null,"C1_EMER_Z2_64",null,null,null,null,null,null,null,null,null,null,null,null,null,null,null,null,null,null,null,null,null,null,null,null,"C1_EMER_Z2_64"]
[null,null,null,"C1_EMER_Z2_65",null,null,null,null,null,null,null,null,null,null,null,null,null,null,null,null,null,null,null,null,null,null,null,null,"C1_EMER_Z2_65"]
[null,null,null,"C1_EMER_Z2_66",null,null,null,null,null,null,null,null,null,null,null,null,null,null,null,null,null,null,null,null,null,null,null,null,"C1_EMER_Z2_66"]
[null,null,null,"C1_EMER_Z2_67",null,null,null,null,null,null,null,null,null,null,null,null,null,null,null,null,null,null,null,null,null,null,null,null,"C1_EMER_Z2_67"]
[null,null,null,"C1_EMER_Z2_68",null,null,null,null,null,null,null,null,null,null,null,null,null,null,null,null,null,null,null,null,null,null,null,null,"C1_EMER_Z2_68"]
[null,null,null,"C1_EMER_Z2_69",null,null,null,null,null,null,null,null,null,null,null,null,null,null,null,null,null,null,null,null,null,null,null,null,"C1_EMER_Z2_69"]
[null,null,null,"C1_EMER_Z2_70",null,null,null,null,null,null,null,null,null,null,null,null,null,null,null,null,null,null,null,null,null,null,null,null,"C1_EMER_Z2_70"]
[null,null,null,"C1_EMER_Z2_71",null,null,null,null,null,null,null,null,null,null,null,null,null,null,null,null,null,null,null,null,null,null,null,null,"C1_EMER_Z2_71"]
[null,null,null,"C1_EMER_Z2_72",null,null,null,null,null,null,null,null,null,null,null,null,null,null,null,null,null,null,null,null,null,null,null,null,"C1_EMER_Z2_72"]
[null,null,null,"C1_EMER_Z2_73",null,null,null,null,null,null,null,null,null,null,null,null,null,null,null,null,null,null,null,null,null,null,null,null,"C1_EMER_Z2_73"]
[null,null,null,"C1_EMER_Z2_74",null,null,null,null,null,null,null,null,null,null,null,null,null,null,null,null,null,null,null,null,null,null,null,null,"C1_EMER_Z2_74"]
[null,null,null,"C1_EMER_Z2_75",null,null,null,null,null,null,null,null,null,null,null,null,null,null,null,null,null,null,null,null,null,null,null,null,"C1_EMER_Z2_75"]
[null,null,null,"C1_EMER_Z2_76",null,null,null,null,null,null,null,null,null,null,null,null,null,null,null,null,null,null,null,null,null,null,null,null,"C1_EMER_Z2_76"]
[null,null,null,"C1_EMER_Z2_77",null,null,null,null,null,null,null,null,null,null,null,null,null,null,null,null,null,null,null,null,null,null,null,null,"C1_EMER_Z2_77"]
[null,null,null,"C1_EMER_Z2_78",null,null,null,null,null,null,null,null,null,null,null,null,null,null,null,null,null,null,null,null,null,null,null,null,"C1_EMER_Z2_78"]
[null,null,null,"C1_EMER_Z2_79",null,null,null,null,null,null,null,null,null,null,null,null,null,null,null,null,null,null,null,null,null,null,null,null,"C1_EMER_Z2_79"]
[null,null,null,"C1_EMER_Z2_80",null,null,null,null,null,null,null,null,null,null,null,null,null,null,null,null,null,null,null,null,null,null,null,null,"C1_EMER_Z2_80"]
[null,null,null,"C1_EMER_Z2_81",null,null,null,null,null,null,null,null,null,null,null,null,null,null,null,null,null,null,null,null,null,null,null,null,"C1_EMER_Z2_81"]
[null,null,null,"C1_EMER_Z2_82",null,null,null,null,null,null,null,null,null,null,null,null,null,null,null,null,null,null,null,null,null,null,null,null,"C1_EMER_Z2_82"]
[null,null,null,"C1_EMER_Z2_83",null,null,null,null,null,null,null,null,null,null,null,null,null,null,null,null,null,null,null,null,null,null,null,null,"C1_EMER_Z2_83"]
[null,null,null,"C1_EMER_Z2_84",null,null,null,null,null,null,null,null,null,null,null,null,null,null,null,null,null,null,null,null,null,null,null,null,"C1_EMER_Z2_84"]
[null,null,null,"C1_EMER_Z2_85",null,null,null,null,null,null,null,null,null,null,null,null,null,null,null,null,null,null,null,null,null,null,null,null,"C1_EMER_Z2_85"]
[null,null,null,"C1_EMER_Z2_86",null,null,null,null,null,null,null,null,null,null,null,null,null,null,null,null,null,null,null,null,null,null,null,null,"C1_EMER_Z2_86"]
[null,null,null,"C1_EMER_Z2_87",null,null,null,null,null,null,null,null,null,null,null,null,null,null,null,null,null,null,null,null,null,null,null,null,"C1_EMER_Z2_87"]
[null,null,null,"C1_EMER_Z2_88",null,null,null,null,null,null,null,null,null,null,null,null,null,null,null,null,null,null,null,null,null,null,null,null,"C1_EMER_Z2_88"]
[null,null,null,"C1_EMER_Z2_89",null,null,null,null,null,null,null,null,null,null,null,null,null,null,null,null,null,null,null,null,null,null,null,null,"C1_EMER_Z2_89"]
[null,null,null,"C1_EMER_Z2_90",null,null,null,null,null,null,null,null,null,null,null,null,null,null,null,null,null,null,null,null,null,null,null,null,"C1_EMER_Z2_90"]
[null,null,null,"C1_EMER_Z2_91",null,null,null,null,null,null,null,null,null,null,null,null,null,null,null,null,null,null,null,null,null,null,null,null,"C1_EMER_Z2_91"]
[null,null,null,"C1_EMER_Z2_92",null,null,null,null,null,null,null,null,null,null,null,null,null,null,null,null,null,null,null,null,null,null,null,null,"C1_EMER_Z2_92"]
[null,null,null,"C1_EMER_Z2_93",null,null,null,null,null,null,null,null,null,null,null,null,null,null,null,null,null,null,null,null,null,null,null,null,"C1_EMER_Z2_93"]
[null,null,null,"C1_EMER_Z2_94",null,null,null,null,null,null,null,null,null,null,null,null,null,null,null,null,null,null,null,null,null,null,null,null,"C1_EMER_Z2_94"]
[null,null,null,"C1_EMER_Z2_95",null,null,null,null,null,null,null,null,null,null,null,null,null,null,null,null,null,null,null,null,null,null,null,null,"C1_EMER_Z2_95"]
[null,null,null,"C1_EMER_Z2_96",null,null,null,null,null,null,null,null,null,null,null,null,null,null,null,null,null,null,null,null,null,null,null,null,"C1_EMER_Z2_96"]
[null,null,null,"C1_EMER_Z2_97",null,null,null,null,null,null,null,null,null,null,null,null,null,null,null,null,null,null,null,null,null,null,null,null,"C1_EMER_Z2_97"]
[null,null,null,"C1_EMER_Z2_98",null,null,null,null,null,null,null,null,null,null,null,null,null,null,null,null,null,null,null,null,null,null,null,null,"C1_EMER_Z2_98"]
[null,null,null,"C1_EMER_Z3_1",null,null,null,null,null,null,null,null,null,null,null,null,null,null,null,null,null,null,null,null,null,null,null,null,"C1_EMER_Z3_1"]
[null,null,null,"C1_EMER_Z3_2",null,null,null,null,null,null,null,null,null,null,null,null,null,null,null,null,null,null,null,null,null,null,null,null,"C1_EMER_Z3_2"]
[null,null,null,"C1_EMER_Z3_3",null,null,null,null,null,null,null,null,null,null,null,null,null,null,null,null,null,null,null,null,null,null,null,null,"C1_EMER_Z3_3"]
[null,null,null,"C1_EMER_Z3_4",null,null,null,null,null,null,null,null,null,null,null,null,null,null,null,null,null,null,null,null,null,null,null,null,"C1_EMER_Z3_4"]
[null,null,null,"C1_EMER_Z3_5",null,null,null,null,null,null,null,null,null,null,null,null,null,null,null,null,null,null,null,null,null,null,null,null,"C1_EMER_Z3_5"]
[null,null,null,"C1_EMER_Z3_6",null,null,null,null,null,null,null,null,null,null,null,null,null,null,null,null,null,null,null,null,null,null,null,null,"C1_EMER_Z3_6"]
[null,null,null,"C1_EMER_Z3_7",null,null,null,null,null,null,null,null,null,null,null,null,null,null,null,null,null,null,null,null,null,null,null,null,"C1_EMER_Z3_7"]
[null,null,null,"C1_EMER_Z3_8",null,null,null,null,null,null,null,null,null,null,null,null,null,null,null,null,null,null,null,null,null,null,null,null,"C1_EMER_Z3_8"]
[null,null,null,"C1_EMER_Z3_9",null,null,null,null,null,null,null,null,null,null,null,null,null,null,null,null,null,null,null,null,null,null,null,null,"C1_EMER_Z3_9"]
[null,null,null,"C1_EMER_Z3_10",null,null,null,null,null,null,null,null,null,null,null,null,null,null,null,null,null,null,null,null,null,null,null,null,"C1_EMER_Z3_10"]
[null,null,null,"C1_EMER_Z3_11",null,null,null,null,null,null,null,null,null,null,null,null,null,null,null,null,null,null,null,null,null,null,null,null,"C1_EMER_Z3_11"]
[null,null,null,"C1_EMER_Z3_12",null,null,null,null,null,null,null,null,null,null,null,null,null,null,null,null,null,null,null,null,null,null,null,null,"C1_EMER_Z3_12"]
[null,null,null,"C1_EMER_Z3_13",null,null,null,null,null,null,null,null,null,null,null,null,null,null,null,null,null,null,null,null,null,null,null,null,"C1_EMER_Z3_13"]
[null,null,null,"C1_EMER_Z3_14",null,null,null,null,null,null,null,null,null,null,null,null,null,null,null,null,null,null,null,null,null,null,null,null,"C1_EMER_Z3_14"]
[null,null,null,"C1_EMER_Z3_15",null,null,null,null,null,null,null,null,null,null,null,null,null,null,null,null,null,null,null,null,null,null,null,null,"C1_EMER_Z3_15"]
[null,null,null,"C1_EMER_Z3_16",null,null,null,null,null,null,null,null,null,null,null,null,null,null,null,null,null,null,null,null,null,null,null,null,"C1_EMER_Z3_16"]
[null,null,null,"C1_EMER_Z3_17",null,null,null,null,null,null,null,null,null,null,null,null,null,null,null,null,null,null,null,null,null,null,null,null,"C1_EMER_Z3_17"]
[null,null,null,"C1_EMER_Z3_18",null,null,null,null,null,null,null,null,null,null,null,null,null,null,null,null,null,null,null,null,null,null,null,null,"C1_EMER_Z3_18"]
[null,null,null,"C1_EMER_Z3_19",null,null,null,null,null,null,null,null,null,null,null,null,null,null,null,null,null,null,null,null,null,null,null,null,"C1_EMER_Z3_19"]
[null,null,null,"C1_EMER_Z3_20",null,null,null,null,null,null,null,null,null,null,null,null,null,null,null,null,null,null,null,null,null,null,null,null,"C1_EMER_Z3_20"]
[null,null,null,"C1_EMER_Z3_21",null,null,null,null,null,null,null,null,null,null,null,null,null,null,null,null,null,null,null,null,null,null,null,null,"C1_EMER_Z3_21"]
[null,null,null,"C1_EMER_Z3_22",null,null,null,null,null,null,null,null,null,null,null,null,null,null,null,null,null,null,null,null,null,null,null,null,"C1_EMER_Z3_22"]
[null,null,null,"C1_EMER_Z3_23",null,null,null,null,null,null,null,null,null,null,null,null,null,null,null,null,null,null,null,null,null,null,null,null,"C1_EMER_Z3_23"]
[null,null,null,"C1_EMER_Z3_24",null,null,null,null,null,null,null,null,null,null,null,null,null,null,null,null,null,null,null,null,null,null,null,null,"C1_EMER_Z3_24"]
[null,null,null,"C1_EMER_Z3_25",null,null,null,null,null,null,null,null,null,null,null,null,null,null,null,null,null,null,null,null,null,null,null,null,"C1_EMER_Z3_25"]
[null,null,null,"C1_EMER_Z3_26",null,null,null,null,null,null,null,null,null,null,null,null,null,null,null,null,null,null,null,null,null,null,null,null,"C1_EMER_Z3_26"]
[null,null,null,"C1_EMER_Z3_27",null,null,null,null,null,null,null,null,null,null,null,null,null,null,null,null,null,null,null,null,null,null,null,null,"C1_EMER_Z3_27"]
[null,null,null,"C1_EMER_Z3_28",null,null,null,null,null,null,null,null,null,null,null,null,null,null,null,null,null,null,null,null,null,null,null,null,"C1_EMER_Z3_28"]
[null,null,null,"C1_EMER_Z3_29",null,null,null,null,null,null,null,null,null,null,null,null,null,null,null,null,null,null,null,null,null,null,null,null,"C1_EMER_Z3_29"]
[null,null,null,"C1_EMER_Z3_30",null,null,null,null,null,null,null,null,null,null,null,null,null,null,null,null,null,null,null,null,null,null,null,null,"C1_EMER_Z3_30"]
[null,null,null,"C1_EMER_Z3_31",null,null,null,null,null,null,null,null,null,null,null,null,null,null,null,null,null,null,null,null,null,null,null,null,"C1_EMER_Z3_31"]
[null,null,null,"C1_EMER_Z3_32",null,null,null,null,null,null,null,null,null,null,null,null,null,null,null,null,null,null,null,null,null,null,null,null,"C1_EMER_Z3_32"]
[null,null,null,"C1_EMER_Z3_33",null,null,null,null,null,null,null,null,null,null,null,null,null,null,null,null,null,null,null,null,null,null,null,null,"C1_EMER_Z3_33"]
[null,null,null,"C1_EMER_Z3_34",null,null,null,null,null,null,null,null,null,null,null,null,null,null,null,null,null,null,null,null,null,null,null,null,"C1_EMER_Z3_34"]
[null,null,null,"C1_EMER_Z3_35",null,null,null,null,null,null,null,null,null,null,null,null,null,null,null,null,null,null,null,null,null,null,null,null,"C1_EMER_Z3_35"]
[null,null,null,"C1_EMER_Z3_36",null,null,null,null,null,null,null,null,null,null,null,null,null,null,null,null,null,null,null,null,null,null,null,null,"C1_EMER_Z3_36"]
[null,null,null,"C1_EMER_Z3_37",null,null,null,null,null,null,null,null,null,null,null,null,null,null,null,null,null,null,null,null,null,null,null,null,"C1_EMER_Z3_37"]
[null,null,null,"C1_EMER_Z3_38",null,null,null,null,null,null,null,null,null,null,null,null,null,null,null,null,null,null,null,null,null,null,null,null,"C1_EMER_Z3_38"]
[null,null,null,"C1_EMER_Z3_39",null,null,null,null,null,null,null,null,null,null,null,null,null,null,null,null,null,null,null,null,null,null,null,null,"C1_EMER_Z3_39"]
[null,null,null,"C1_EMER_Z3_40",null,null,null,null,null,null,null,null,null,null,null,null,null,null,null,null,null,null,null,null,null,null,null,null,"C1_EMER_Z3_40"]
[null,null,null,"C1_EMER_Z3_41",null,null,null,null,null,null,null,null,null,null,null,null,null,null,null,null,null,null,null,null,null,null,null,null,"C1_EMER_Z3_41"]
[null,null,null,"C1_EMER_Z3_42",null,null,null,null,null,null,null,null,null,null,null,null,null,null,null,null,null,null,null,null,null,null,null,null,"C1_EMER_Z3_42"]
[null,null,null,"C1_EMER_Z3_43",null,null,null,null,null,null,null,null,null,null,null,null,null,null,null,null,null,null,null,null,null,null,null,null,"C1_EMER_Z3_43"]
[null,null,null,"C1_EMER_Z3_44",null,null,null,null,null,null,null,null,null,null,null,null,null,null,null,null,null,null,null,null,null,null,null,null,"C1_EMER_Z3_44"]
[null,null,null,"C1_EMER_Z3_45",null,null,null,null,null,null,null,null,null,null,null,null,null,null,null,null,null,null,null,null,null,null,null,null,"C1_EMER_Z3_45"]
[null,null,null,"C1_EMER_Z3_46",null,null,null,null,null,null,null,null,null,null,null,null,null,null,null,null,null,null,null,null,null,null,null,null,"C1_EMER_Z3_46"]
[null,null,null,"C1_EMER_Z3_47",null,null,null,null,null,null,null,null,null,null,null,null,null,null,null,null,null,null,null,null,null,null,null,null,"C1_EMER_Z3_47"]
[null,null,null,"C1_EMER_Z3_48",null,null,null,null,null,null,null,null,null,null,null,null,null,null,null,null,null,null,null,null,null,null,null,null,"C1_EMER_Z3_48"]
[null,null,null,"C1_EMER_Z3_49",null,null,null,null,null,null,null,null,null,null,null,null,null,null,null,null,null,null,null,null,null,null,null,null,"C1_EMER_Z3_49"]
[null,null,null,"C1_EMER_Z3_50",null,null,null,null,null,null,null,null,null,null,null,null,null,null,null,null,null,null,null,null,null,null,null,null,"C1_EMER_Z3_50"]
[null,null,null,"C1_EMER_Z3_51",null,null,null,null,null,null,null,null,null,null,null,null,null,null,null,null,null,null,null,null,null,null,null,null,"C1_EMER_Z3_51"]
[null,null,null,"C1_EMER_Z3_52",null,null,null,null,null,null,null,null,null,null,null,null,null,null,null,null,null,null,null,null,null,null,null,null,"C1_EMER_Z3_52"]
[null,null,null,"C1_EMER_Z3_53",null,null,null,null,null,null,null,null,null,null,null,null,null,null,null,null,null,null,null,null,null,null,null,null,"C1_EMER_Z3_53"]
[null,null,null,"C1_EMER_Z3_54",null,null,null,null,null,null,null,null,null,null,null,null,null,null,null,null,null,null,null,null,null,null,null,null,"C1_EMER_Z3_54"]
[null,null,null,"C1_EMER_Z3_55",null,null,null,null,null,null,null,null,null,null,null,null,null,null,null,null,null,null,null,null,null,null,null,null,"C1_EMER_Z3_55"]
[null,null,null,"C1_EMER_Z3_56",null,null,null,null,null,null,null,null,null,null,null,null,null,null,null,null,null,null,null,null,null,null,null,null,"C1_EMER_Z3_56"]
[null,null,null,"C1_EMER_Z3_57",null,null,null,null,null,null,null,null,null,null,null,null,null,null,null,null,null,null,null,null,null,null,null,null,"C1_EMER_Z3_57"]
[null,null,null,"C1_EMER_Z3_58",null,null,null,null,null,null,null,null,null,null,null,null,null,null,null,null,null,null,null,null,null,null,null,null,"C1_EMER_Z3_58"]
[null,null,null,"C1_EMER_Z3_59",null,null,null,null,null,null,null,null,null,null,null,null,null,null,null,null,null,null,null,null,null,null,null,null,"C1_EMER_Z3_59"]
[null,null,null,"C1_EMER_Z3_60",null,null,null,null,null,null,null,null,null,null,null,null,null,null,null,null,null,null,null,null,null,null,null,null,"C1_EMER_Z3_60"]
[null,null,null,"C1_EMER_Z3_61",null,null,null,null,null,null,null,null,null,null,null,null,null,null,null,null,null,null,null,null,null,null,null,null,"C1_EMER_Z3_61"]
[null,null,null,"C1_EMER_Z3_62",null,null,null,null,null,null,null,null,null,null,null,null,null,null,null,null,null,null,null,null,null,null,null,null,"C1_EMER_Z3_62"]
[null,null,null,"C1_EMER_Z3_63",null,null,null,null,null,null,null,null,null,null,null,null,null,null,null,null,null,null,null,null,null,null,null,null,"C1_EMER_Z3_63"]
[null,null,null,"C1_EMER_Z3_64",null,null,null,null,null,null,null,null,null,null,null,null,null,null,null,null,null,null,null,null,null,null,null,null,"C1_EMER_Z3_64"]
[null,null,null,"C1_EMER_Z3_65",null,null,null,null,null,null,null,null,null,null,null,null,null,null,null,null,null,null,null,null,null,null,null,null,"C1_EMER_Z3_65"]
[null,null,null,"C1_EMER_Z3_66",null,null,null,null,null,null,null,null,null,null,null,null,null,null,null,null,null,null,null,null,null,null,null,null,"C1_EMER_Z3_66"]
[null,null,null,"C1_EMER_Z3_67",null,null,null,null,null,null,null,null,null,null,null,null,null,null,null,null,null,null,null,null,null,null,null,null,"C1_EMER_Z3_67"]
[null,null,null,"C1_EMER_Z3_68",null,null,null,null,null,null,null,null,null,null,null,null,null,null,null,null,null,null,null,null,null,null,null,null,"C1_EMER_Z3_68"]
[null,null,null,"C1_EMER_Z3_69",null,null,null,null,null,null,null,null,null,null,null,null,null,null,null,null,null,null,null,null,null,null,null,null,"C1_EMER_Z3_69"]
[null,null,null,"C1_EMER_Z3_70",null,null,null,null,null,null,null,null,null,null,null,null,null,null,null,null,null,null,null,null,null,null,null,null,"C1_EMER_Z3_70"]
[null,null,null,"C1_EMER_Z3_71",null,null,null,null,null,null,null,null,null,null,null,null,null,null,null,null,null,null,null,null,null,null,null,null,"C1_EMER_Z3_71"]
[null,null,null,"C1_EMER_Z3_72",null,null,null,null,null,null,null,null,null,null,null,null,null,null,null,null,null,null,null,null,null,null,null,null,"C1_EMER_Z3_72"]
[null,null,null,"C1_EMER_Z3_73",null,null,null,null,null,null,null,null,null,null,null,null,null,null,null,null,null,null,null,null,null,null,null,null,"C1_EMER_Z3_73"]
[null,null,null,"C1_EMER_Z3_74",null,null,null,null,null,null,null,null,null,null,null,null,null,null,null,null,null,null,null,null,null,null,null,null,"C1_EMER_Z3_74"]
[null,null,null,"C1_EMER_Z3_75",null,null,null,null,null,null,null,null,null,null,null,null,null,null,null,null,null,null,null,null,null,null,null,null,"C1_EMER_Z3_75"]
[null,null,null,"C1_EMER_Z3_76",null,null,null,null,null,null,null,null,null,null,null,null,null,null,null,null,null,null,null,null,null,null,null,null,"C1_EMER_Z3_76"]
[null,null,null,"C1_EMER_Z3_77",null,null,null,null,null,null,null,null,null,null,null,null,null,null,null,null,null,null,null,null,null,null,null,null,"C1_EMER_Z3_77"]
[null,null,null,"C1_EMER_Z3_78",null,null,null,null,null,null,null,null,null,null,null,null,null,null,null,null,null,null,null,null,null,null,null,null,"C1_EMER_Z3_78"]
[null,null,null,"C1_EMER_Z3_79",null,null,null,null,null,null,null,null,null,null,null,null,null,null,null,null,null,null,null,null,null,null,null,null,"C1_EMER_Z3_79"]
[null,null,null,"C1_EMER_Z3_80",null,null,null,null,null,null,null,null,null,null,null,null,null,null,null,null,null,null,null,null,null,null,null,null,"C1_EMER_Z3_80"]
[null,null,null,"C1_EMER_Z3_81",null,null,null,null,null,null,null,null,null,null,null,null,null,null,null,null,null,null,null,null,null,null,null,null,"C1_EMER_Z3_81"]
[null,null,null,"C1_EMER_Z3_82",null,null,null,null,null,null,null,null,null,null,null,null,null,null,null,null,null,null,null,null,null,null,null,null,"C1_EMER_Z3_82"]
[null,null,null,"C1_EMER_Z3_83",null,null,null,null,null,null,null,null,null,null,null,null,null,null,null,null,null,null,null,null,null,null,null,null,"C1_EMER_Z3_83"]
[null,null,null,"C1_EMER_Z3_84",null,null,null,null,null,null,null,null,null,null,null,null,null,null,null,null,null,null,null,null,null,null,null,null,"C1_EMER_Z3_84"]
[null,null,null,"C1_EMER_Z3_85",null,null,null,null,null,null,null,null,null,null,null,null,null,null,null,null,null,null,null,null,null,null,null,null,"C1_EMER_Z3_85"]
[null,null,null,"C1_EMER_Z3_86",null,null,null,null,null,null,null,null,null,null,null,null,null,null,null,null,null,null,null,null,null,null,null,null,"C1_EMER_Z3_86"]
[null,null,null,"C1_EMER_Z3_87",null,null,null,null,null,null,null,null,null,null,null,null,null,null,null,null,null,null,null,null,null,null,null,null,"C1_EMER_Z3_87"]
[null,null,null,"C1_EMER_Z3_88",null,null,null,null,null,null,null,null,null,null,null,null,null,null,null,null,null,null,null,null,null,null,null,null,"C1_EMER_Z3_88"]
[null,null,null,"C1_EMER_Z3_89",null,null,null,null,null,null,null,null,null,null,null,null,null,null,null,null,null,null,null,null,null,null,null,null,"C1_EMER_Z3_89"]
[null,null,null,"C1_EMER_Z3_90",null,null,null,null,null,null,null,null,null,null,null,null,null,null,null,null,null,null,null,null,null,null,null,null,"C1_EMER_Z3_90"]
[null,null,null,"C1_EMER_Z3_91",null,null,null,null,null,null,null,null,null,null,null,null,null,null,null,null,null,null,null,null,null,null,null,null,"C1_EMER_Z3_91"]
[null,null,null,"C1_EMER_Z3_92",null,null,null,null,null,null,null,null,null,null,null,null,null,null,null,null,null,null,null,null,null,null,null,null,"C1_EMER_Z3_92"]
[null,null,null,"C1_EMER_Z3_93",null,null,null,null,null,null,null,null,null,null,null,null,null,null,null,null,null,null,null,null,null,null,null,null,"C1_EMER_Z3_93"]
[null,null,null,"C1_EMER_Z3_94",null,null,null,null,null,null,null,null,null,null,null,null,null,null,null,null,null,null,null,null,null,null,null,null,"C1_EMER_Z3_94"]
[null,null,null,"C1_EMER_Z3_95",null,null,null,null,null,null,null,null,null,null,null,null,null,null,null,null,null,null,null,null,null,null,null,null,"C1_EMER_Z3_95"]
[null,null,null,"C1_EMER_Z3_96",null,null,null,null,null,null,null,null,null,null,null,null,null,null,null,null,null,null,null,null,null,null,null,null,"C1_EMER_Z3_96"]
[null,null,null,"C1_EMER_Z3_97",null,null,null,null,null,null,null,null,null,null,null,null,null,null,null,null,null,null,null,null,null,null,null,null,"C1_EMER_Z3_97"]
[null,null,null,"C1_EMER_Z3_98",null,null,null,null,null,null,null,null,null,null,null,null,null,null,null,null,null,null,null,null,null,null,null,null,"C1_EMER_Z3_98"]

{"sheet":"minimo","index":10,"n_rows":15,"n_cols":5,"rows_kept":15,"cut":false,"hidden":true,"merged":[]}
[]
[]
[null,null,"Etiquetas de fila","Proveedor","Suma de total"]
[null,null,1,"Productos de Seguridad S.A (Prodeseg)",714507.8]
[null,null,null,"Coltech S.A.S",1197035]
[null,null,"Total 1",null,1911542.8]
[null,null,2,"Productos de Seguridad S.A (Prodeseg)",1097273]
[null,null,null,"Res-Q Solutions S.A.S",1951687.5]
[null,null,null,"Asesorias y productos en prevencion y seguridad S.A.S (Aspreseg)",2758385]
[null,null,"Total 2",null,5807345.5]
[null,null,3,"Coltech S.A.S",71822.100000000006]
[null,null,null,"Productos de Seguridad S.A (Prodeseg)",352982]
[null,null,null,"Asesorias y productos en prevencion y seguridad S.A.S (Aspreseg)",520450]
[null,null,"Total 3",null,945254.1]
[null,null,"Total general",null,8664142.3999999985]

{"sheet":"temp","index":11,"n_rows":9,"n_cols":15,"rows_kept":9,"cut":false,"hidden":true,"merged":[]}
["llave","Cod_Cat","Consecutivo","Biomedico","Categoria","Zona","Unidad","Unidad_TVEC","Proveedor","Valor","Activo","cant","valor base","valor con gravamenes","total"]
["Productos de Seguridad S.A (Prodeseg)C1_EMER_Z1_3","C1_EMER_Z1_3",3,"Extintor polvo químico seco clase ABC portátil de 20 libras",1,1,"unidad","Und","Productos de Seguridad S.A (Prodeseg)",71450.777562066665,1,{"$f":"SUMIF(ResumenCotizacion!$D:$D,B2,ResumenCotizacion!$P:$P)","v":0},{"$f":"J2","v":71450.777562066665},{"$f":"ROUND(M2/(1-VLOOKUP(\"Total porcentaje:\",ResumenCotizacion!$F:$H,3,0)),2)","v":71450.78},{"$f":"L2*N2","v":0}]
["Coltech S.A.SC1_EMER_Z1_3","C1_EMER_Z1_3",3,"Extintor polvo químico seco clase ABC portátil de 20 libras",1,1,"unidad","Und","Coltech S.A.S",119703.49999999999,1,{"$f":"SUMIF(ResumenCotizacion!$D:$D,B3,ResumenCotizacion!$P:$P)","v":0},{"$f":"J3","v":119703.49999999999},{"$f":"ROUND(M3/(1-VLOOKUP(\"Total porcentaje:\",ResumenCotizacion!$F:$H,3,0)),2)","v":119703.5},{"$f":"L3*N3","v":0}]
["Productos de Seguridad S.A (Prodeseg)C2_EMER_Z1_2","C2_EMER_Z1_2",2,"Botiquín tipo A en maletín",2,1,"unidad","Und","Productos de Seguridad S.A (Prodeseg)",109727.29630666666,1,{"$f":"SUMIF(ResumenCotizacion!$D:$D,B4,ResumenCotizacion!$P:$P)","v":0},109727.29630666666,{"$f":"ROUND(M4/(1-VLOOKUP(\"Total porcentaje:\",ResumenCotizacion!$F:$H,3,0)),2)","v":109727.3},0]
["Res-Q Solutions S.A.SC2_EMER_Z1_2","C2_EMER_Z1_2",2,"Botiquín tipo A en maletín",2,1,"unidad","Und","Res-Q Solutions S.A.S",195168.75,1,{"$f":"SUMIF(ResumenCotizacion!$D:$D,B5,ResumenCotizacion!$P:$P)","v":0},195168.75,{"$f":"ROUND(M5/(1-VLOOKUP(\"Total porcentaje:\",ResumenCotizacion!$F:$H,3,0)),2)","v":195168.75},0]
["Asesorias y productos en prevencion y seguridad S.A.S (Aspreseg)C2_EMER_Z1_2","C2_EMER_Z1_2",2,"Botiquín tipo A en maletín",2,1,"unidad","Und","Asesorias y productos en prevencion y seguridad S.A.S (Aspreseg)",275838.5,1,{"$f":"SUMIF(ResumenCotizacion!$D:$D,B6,ResumenCotizacion!$P:$P)","v":0},275838.5,{"$f":"ROUND(M6/(1-VLOOKUP(\"Total porcentaje:\",ResumenCotizacion!$F:$H,3,0)),2)","v":275838.5},0]
["Productos de Seguridad S.A (Prodeseg)C3_EMER_Z1_4","C3_EMER_Z1_4",4,"Silbato",3,1,"unidad","Und","Productos de Seguridad S.A (Prodeseg)",35298.203227272723,1,{"$f":"SUMIF(ResumenCotizacion!$D:$D,B7,ResumenCotizacion!$P:$P)","v":0},35298.203227272723,{"$f":"ROUND(M7/(1-VLOOKUP(\"Total porcentaje:\",ResumenCotizacion!$F:$H,3,0)),2)","v":35298.199999999997},0]
["Coltech S.A.SC3_EMER_Z1_4","C3_EMER_Z1_4",4,"Silbato",3,1,"unidad","Und","Coltech S.A.S",7182.2099999999991,1,{"$f":"SUMIF(ResumenCotizacion!$D:$D,B8,ResumenCotizacion!$P:$P)","v":0},7182.2099999999991,{"$f":"ROUND(M8/(1-VLOOKUP(\"Total porcentaje:\",ResumenCotizacion!$F:$H,3,0)),2)","v":7182.21},0]
["Asesorias y productos en prevencion y seguridad S.A.S (Aspreseg)C3_EMER_Z1_4","C3_EMER_Z1_4",4,"Silbato",3,1,"unidad","Und","Asesorias y productos en prevencion y seguridad S.A.S (Aspreseg)",52045,1,{"$f":"SUMIF(ResumenCotizacion!$D:$D,B9,ResumenCotizacion!$P:$P)","v":0},52045,{"$f":"ROUND(M9/(1-VLOOKUP(\"Total porcentaje:\",ResumenCotizacion!$F:$H,3,0)),2)","v":52045},0]

{"sheet":"tempListas","index":12,"n_rows":1,"n_cols":1,"rows_kept":1,"cut":false,"hidden":true,"merged":[]}
["Cod_Cat"]